Workbook

Sheet Control Panel
A1: GO TO
A2: Utah | B2: Wyoming | D2: FILING INFORMATION | K2: Model Checks
A3: 1.1 | B3: 1.1 | K3: (Must Be 0)
A4: 1.2 | B4: 1.2 | F4: UTAH | K4: ='Model Checks'!D7 -> 0.7190577239
A5: 1.3 pg 1 | B5: 1.3 pg 1 | E5: Current Case No. | F5: 15-057-04 | K5: (If this is not 0, or very close, go to
A6: 1.3 pg 2 | B6: 1.3 pg 2 | E6: Filing Date | F6: 2015-04-30 | K6: the "Model Checks"
B7: 1.3 pg 3 | E7: Test Year Ending | F7: 2016-05-31 | K7: Tab and find the
A8: 1.4 pg 1 | B8: 1.4 pg 1 | E8: Proposed Effective Date | F8: 2015-06-01 | K8: problem.)
A9: 1.4 pg 2 | B9: 1.4 pg 2 | E9: Prior Case No. | F9: 14-057-22
A10: 1.4 pg 3 | K10: Go To
A11: 1.5 | B11: 1.5 | D11: Total Increase (Decrease) | F11: ='Utah Summary-by class'!Q31 -> -61135615.05 | H11: =F11-G11 -> -61135615.05 | K11: Model Checks'
A12: 1.6 pg 1 | B12: 1.6 pg 1
A13: 1.6 pg 2 | B13: 1.6 pg 2
A14: 1.6 pg 3 | B14: 1.6 pg 3 | D14: Typical Customer's Bill | K14: Old Ut Data color
A15: 1.7 pg 1 | B15: 1.7 pg 1 | K15: Old Wy Data color
A16: 1.7 pg 2 | B16: 1.7 pg 2 | E16: Previous | F16: ='Ut 1.7'!F30 -> 737.8 | K16: New Data color
A17: 1.8 | B17: 1.8 | E17: Proposed | F17: ='Ut 1.7'!H30 -> 693.37
A18: 1.9 | B18: 1.9 | E18: Difference | F18: ='Ut 1.7'!J30 -> -44.43 | H18: =F18-G18 -> -44.43
A19: Monthly Inputs | E19: % Difference | F19: ='Ut 1.7'!J32 -> -6.02 | H19: =F19-G19 -> -6.02
A20: Other Inputs
A21: Expenses
A22: Rate Base
D29: Exhibit Headings
D31: UTAH
F32: Questar Gas Company
F33: ="Docket No. "&F5 -> Docket No. 15-057-04
D35: WYOMING
F36: =F32 -> Questar Gas Company
F37: ="PSCW Docket No. "&#REF! -> 
D39: Test Year (enter as text)
E40: from | F40: Jun-15
E41: to | F41: May-16

Sheet Application
A1: Application Information
B3: Utah | F3: Wyoming
A4: Utah Gas Costs | B4: ='Ut 1.5'!G41 -> 564407582.6 | E4: Wyoming Gas Costs | F4: =#REF! -> 
A5: Increase (Decrease) to Commodity | B5: ='Utah Summary-by class'!G34 -> -85179000 | E5: Increase (Decrease) to Commodity | F5: =#REF! -> 
A6: Increase (Decrease) to SNG | B6: ='Utah Summary-by class'!N34 -> 24043000
A7: Total Increase (Decrease) | B7: ='Utah Summary-by class'!Q34 -> -61136000
A8: Typical Increase in $ | B8: ='Ut 1.7'!J30 -> -44.43 | E8: Typical Increase in $ | F8: =#REF! -> 
A9: Typical Monthly Increase | B9: =B8/12 -> -3.7025 | E9: Typical Monthly Increase | F9: =F8/12 -> 
A10: Typical Increase in % | B10: ='Ut 1.7'!J32/100 -> -0.0602 | E10: Typical Increase in % | F10: =#REF!/100 -> 
A11: Proposed Rate Effective Date | B11: ='Control Panel'!F8 -> 2015-06-01 | E11: Proposed Rate Effective Date | F11: ='Control Panel'!#REF! -> 
A12: Test Year Ending | B12: ='Control Panel'!F7 -> 2016-05-31 | E12: Test Year Ending | F12: ='Control Panel'!#REF! -> 
A13: System-Wide Production Costs - Wexpro I | B13: ='Ut 1.1'!I1414 -> 317082952.4 | E13: System-Wide Production Costs - Wexpro I | F13: =#REF! -> 
A14: System-Wide Royalty Payments - Wexpro I | B14: ='Ut 1.1'!I1409 -> 28173703.38 | E14: System-Wide Royalty Payments - Wexpro I | F14: =#REF! -> 
A15: Wexpro Operators Service Fee - Wexpro I | B15: ='Ut 1.1'!I1411 -> 288909249 | E15: Wexpro Operators Service Fee - Wexpro I | F15: =#REF! -> 
A16: System-Wide Production Costs - Wexpro II | B16: ='Ut 1.1'!I1509 -> 26347912.63 | E16: System-Wide Production Costs - Wexpro II | F16: =#REF! -> 
A17: System-Wide Royalty Payments - Wexpro II | B17: ='Ut 1.1'!I1504 -> 1907435.627 | E17: System-Wide Royalty Payments - Wexpro II | F17: =#REF! -> 
A18: Wexpro Operators Service Fee - Wexpro II | B18: ='Ut 1.1'!I1506 -> 24440477 | E18: Wexpro Operators Service Fee - Wexpro II | F18: =#REF! -> 
A19: Purchased Gas Costs | B19: ='Ut 1.2'!G24 -> 152933576 | E19: Purchased Gas Costs | F19: =#REF! -> 
A20: Purchased Gas Costs per Dth | B20: ='Ut 1.2'!F24 -> 2.854170383 | E20: Purchased Gas Costs per Dth | F20: =#REF! -> 
A21: Contracted Dth | B21: ='Ut 1.2'!E17 -> 18560000 | C21: Dth | E21: Contracted Dth | F21: =#REF! ->  | G21: Dth
A22: Contracted Dth Costs | B22: ='Ut 1.2'!G17 -> 56685620 | E22: Contracted Dth Costs | F22: =#REF! -> 
A23: Stabailization Costs | B23: ='Ut 1.2'!G16 -> 0 | E23: Stabailization Costs | F23: =#REF! -> 
A24: Spot Market Dth | B24: ='Ut 1.2'!E19 -> 33328270 | C24: Dth | E24: Spot Market Dth | F24: =#REF! ->  | G24: Dth
A25: Spot Market Costs | B25: ='Ut 1.2'!G19 -> 91758535 | E25: Spot Market Costs | F25: =#REF! -> 
A26: Purchased Gas Dth | B26: ='Ut 1.2'!E24 -> 53582497 | C26: Dth | E26: Purchased Gas Dth | F26: =#REF! ->  | G26: Dth
A27: Future Contract Dth | B27: ='Ut 1.2'!E21 -> 1694227 | C27: Dth | E27: Future Contract Dth | F27: =#REF! ->  | G27: Dth
A28: Future Contract Costs | B28: ='Ut 1.2'!G21 -> 4489421 | E28: Future Contract Costs | F28: =#REF! -> 
A29: Transportation & Gathering Costs | B29: ='Ut 1.3 p1'!M61 -> 86360716.2 | E29: Transportation & Gathering Costs | F29: =#REF! -> 
A30: Transportation Costs | B30: ='Ut 1.3 p1'!M29 -> 62426926 | E30: Kern River Transportation Costs | F30: =#REF! -> 
A31: Capacity Release Credits | B31: =-'Ut 1.3 p1'!L20 -> 110748 | E31: Capacity Release Credits | F31: =-#REF! -> 
A32: Transportation Commodity Costs | B32: ='Ut 1.3 p1'!M44 -> 549970 | E32: Transportation Commodity Costs | F32: =#REF! -> 
E33: QGM Gathering Costs | F33: =#REF! -> 
A34: Other Trans. & Gathering Costs | B34: ='Ut 1.3 p1'!L54 -> 1865281 | E34: Other Trans. & Gathering Costs | F34: =#REF! -> 
A35: CO2 Processing Costs
A36: Storage & Working Gas Costs | B36: ='Ut 1.3 p1'!L55 -> 3393768 | E36: Storage & Working Gas Costs | F36: =#REF! -> 
A37: Total Other Costs | B37: ='Ut 1.3 p1'!M56 -> 7245392.2
A38: Storage Costs | B38: ='Ut 1.3 p2'!K56 -> 20953161.17 | E38: Storage Costs | F38: =#REF! -> 
A39: Storage Demand | B39: ='Ut 1.3 p2'!J20 -> 16500058
A40: Storage Commodity | B40: ='Ut 1.3 p2'!J27 -> 132054
A41: Working Storage Gas Return | B41: ='Ut 1.3 p2'!K53 -> 3896853.166 | E41: Working Storage Gas Return | F41: =#REF! -> 
A42: Total Other Revenues | B42: ='Ut 1.4 p3'!H28 -> 18963047
E43: Production Depreciation & Amort. | F43: =#REF! -> 
E44: Return on Production Plant | F44: =#REF! -> 
E45: Total Production Return & Exp. | F45: =#REF! -> 
A46: Utah Gas Costs | B46: ='Ut 1.5'!G41 -> 564407582.6 | E46: Wyoming Gas Costs | F46: =#REF! -> 
A47: Utah Gas Costs | B47: =B46 -> 564407582.6 | E47: Core Customer Gas Costs | F47: =#REF! -> 
A48: Utah Net Gas Costs | B48: ='Ut 1.6 p1'!J25 -> 464889863.4 | E48: Core Customer Unit Cost of Gas | F48: =#REF! -> 
A49: Commodity Portion of Gas Costs | B49: ='Ut 1.6 p1'!J25 -> 464889863.4
A50: Firm Gas Cost | B50: ='Ut 1.6 p1'!F31 -> 4.20781
A51: Current Amortization | B51: ='Ut 1.6 p1'!H32 -> 0.41533 | E51: Current Amortization | F51: =#REF! -> 
A52: Previous Case No. | B52: ='Ut 1.6 p1'!H29 -> 14-057-22
A53: Forecasted 191 Account Balance | B53: ='Ut 1.6 p1'!D49 -> 6953471 | E53: Forecasted 191 Account Balance | F53: =#REF! -> 
A54: Proposed Amortization | B54: ='Ut 1.6 p1'!F32 -> 0.06293716725 | E54: Proposed Amortization | F54: =#REF! -> 
A55: Total Unit Cost in Rates | B55: ='Ut 1.6 p1'!F33 -> 4.270747167 | E55: Total Unit Cost in Rates | F55: =#REF! -> 
A56: Increase in Unit Cost In Rates | B56: ='Ut 1.6 p1'!J33 -> -0.7759328328
A57: Test Year SNG Costs | B57: ='Ut 1.6 p2'!F14 -> 99517719.23
A58: Forested 191 SNG Balance | B58: ='Ut 1.6 p2'!F15 -> 15358114
A59: Total SNG | B59: ='Ut 1.6 p2'!F16 -> 114875833.2
A60: Forecasted Current SNG Revenues | B60: ='Ut 1.6 p2'!F19 -> 90832446.09
A61: % Change in SNG Rates | B61: =-ROUND('Ut 1.6 p2'!F35,2)/100 -> -0.2661
A62: Average Monthly Increase | B62: ='Ut 1.7'!J30/12 -> -3.7025 | E62: Typical Increase in $ | F62: =#REF! -> 
A63: Typical Increase in % | B63: ='Ut 1.7'!J32/100 -> -0.0602 | E63: Typical Increase in % | F63: =#REF!/100 -> 
A64: Company Owned Gas % | E64: Company Owned Gas % | F64: =Calculations!P177 -> 0.5559876616
A65: Utah Gas Costs | B65: ='Ut 1.5'!G41 -> 564407582.6 | E65: Wyoming Gas Costs | F65: =#REF! -> 

Sheet Monthly Inputs
A1: MONTHLY INPUTS | E1: Col. E-F, copy from col. J-K (or appropriate columns), rows 3 through 81, before updating test year
G2: TEST YEAR COLUMNS | S2: 12-Month
E3: Apr15 | F3: May15 | G3: Jun15 | H3: Jul15 | I3: Aug15 | J3: Sep15 | K3: Oct15 | L3: Nov15 | M3: Dec15 | N3: Jan16 | O3: Feb16 | P3: Mar16 | Q3: Apr16 | R3: May16 | S3: =R3 -> May16
E4: 4 | F4: 5 | G4: 6 | H4: 7 | I4: 8 | J4: 9 | K4: 10 | L4: 11 | M4: 12 | N4: 1 | O4: 2 | P4: 3 | Q4: 4 | R4: 5
A5: QGC Company Produced Gas In MDth | G5: Scott Nelsen | I5: Updated: | J5: 2015-03-24
A6: WEXPRO I
B7: Company Production In Dth | E7: 5407980 | F7: 5563110 | G7: 5624683 | H7: 5587050 | I7: 5404037 | J7: 5227300 | K7: 5307538 | L7: 5107108 | M7: 5181794 | N7: 5226523 | O7: 4930360 | P7: 5247381 | Q7: 4994553 | R7: 5118907 | S7: =SUM(G7:R7) -> 62957234 | U7: ScottN | V7: For this pass through only we used Mike Neese Production #'s since we didn't have an updated IRP
B8: Birch Cr Gathering | E8: 0 | F8: 0 | G8: =G7/$S$7*$S$8 -> 0 | H8: =H7/$S$7*$S$8 -> 0 | I8: =I7/$S$7*$S$8 -> 0 | J8: 0 | K8: 0 | L8: 0 | M8: 0 | N8: 0 | O8: 0 | P8: 0 | Q8: 0 | R8: =R7/$S$7*$S$8 -> 0 | S8: ='Other Inputs'!$D$160 -> 0
B9: QGM Gathering | E9: =E7/$S$7*$S$9 -> 3441912.272 | F9: =F7/$S$7*$S$9 -> 3540644.858 | G9: =G7/$S$7*$S$9 -> 3579833.032 | H9: =H7/$S$7*$S$9 -> 3555881.486 | I9: 3439402.747 | J9: 3326918.372 | K9: 3377985.898 | L9: 3250422.098 | M9: 3297956.05 | N9: 3326423.85 | O9: 3137930.722 | P9: 3339698.937 | Q9: 3178786.398 | R9: =R7/$S$7*$S$9 -> 3257931.579 | S9: ='Other Inputs'!$D$174 -> 40069171.17
A12: WEXPRO II
B13: Company Production In Dth | E13: 352200 | F13: 358720 | G13: 310574 | H13: 317160 | I13: 313512 | J13: 299978 | K13: 306553 | L13: 293451 | M13: 300005 | N13: 415617 | O13: 384810 | P13: 407195 | Q13: 390146 | R13: 399214 | S13: =SUM(G13:R13) -> 4138215 | U13: ScottN | V13: For this pass through only we used Mike Neese Production #'s since we didn't have an updated IRP
B14: Samson Gathering | E14: =E13/$S$13*$S$14 -> 352200 | F14: 358720 | G14: 310574 | H14: 317160 | I14: 313512 | J14: 299978 | K14: 306553 | L14: 293451 | M14: 300005 | N14: 415617 | O14: 384810 | P14: 407195 | Q14: 390146 | R14: =R13/$S$13*$S$14 -> 399214 | S14: ='Other Inputs'!D177 -> 4138215
D21: 1000
B23: Injections in Dth
C24: Chalk Creek | E24: 0 | F24: 0 | G24: 0 | H24: 0 | I24: 0 | J24: 0 | K24: 0 | L24: 143776 | M24: 180893 | N24: 0 | O24: 0 | P24: 0 | Q24: 0 | R24: 0 | S24: =SUM(G24:R24) -> 324669 | U24: ScottN
C25: Clay Basin | E25: 0 | F25: 780215.0852 | G25: 1940490 | H25: 2489650 | I25: 2293680 | J25: 1999920 | K25: 1932280 | L25: 1697400 | M25: 0 | N25: 0 | O25: 0 | P25: 0 | Q25: 0 | R25: 235160 | S25: =SUM(G25:R25) -> 12588580 | U25: ScottN
C26: Coalville | E26: 0 | F26: 0 | G26: 0 | H26: 0 | I26: 0 | J26: 0 | K26: 156389 | L26: 280146 | M26: 258993 | N26: 0 | O26: 0 | P26: 0 | Q26: 0 | R26: 0 | S26: 695528 | U26: ScottN
C27: Leroy | E27: 0 | F27: 0 | G27: 0 | H27: 0 | I27: 0 | J27: 0 | K27: 635881 | L27: 282493 | M27: 0 | N27: 0 | O27: 0 | P27: 0 | Q27: 0 | R27: 0 | S27: 918374 | U27: ScottN
C28: Ryckman | E28: 0 | F28: 0 | G28: 358462 | H28: 370410 | I28: 370410 | J28: 358462 | K28: 0 | L28: 0 | M28: 0 | N28: 0 | O28: 0 | P28: 0 | Q28: 0 | R28: 370410 | S28: 1828154 | U28: ScottN
C29: Total Injections | E29: 0 | F29: 780215.0852 | G29: =SUM(G24:G28) -> 2298952 | H29: 2860060 | I29: 2664090 | J29: 2358382 | K29: 2724550 | L29: 2403815 | M29: 439886 | N29: 0 | O29: 0 | P29: 0 | Q29: 0 | R29: 605570 | S29: 16355305
B31: Withdrawls In Dth
C32: Chalk Creek | E32: 0 | F32: 0 | G32: 0 | H32: 0 | I32: 0 | J32: 0 | K32: 0 | L32: 0 | M32: 0 | N32: 326884 | O32: 0 | P32: 0 | Q32: 0 | R32: 0 | S32: =SUM(G32:R32) -> 326884 | U32: ScottN
C33: Clay Basin | E33: 0 | F33: 185530 | G33: 103510 | H33: 65920 | I33: 0 | J33: 0 | K33: 0 | L33: 0 | M33: 0 | N33: 5366110 | O33: 4635210 | P33: 2526510 | Q33: 0 | R33: 192550 | S33: =SUM(G33:R33) -> 12889810 | U33: ScottN
C34: Coalville | E34: 0 | F34: 0 | G34: 0 | H34: 0 | I34: 0 | J34: 0 | K34: 0 | L34: 0 | M34: 0 | N34: 694894 | O34: 0 | P34: 0 | Q34: 0 | R34: 0 | S34: 694894 | U34: ScottN
C35: Leroy | E35: 0 | F35: 0 | G35: 0 | H35: 0 | I35: 0 | J35: 0 | K35: 0 | L35: 0 | M35: 0 | N35: 897648 | O35: 0 | P35: 0 | Q35: 0 | R35: 0 | S35: 897648 | U35: ScottN
C36: Ryckman | E36: 0 | F36: 0 | G36: 0 | H36: 0 | I36: 0 | J36: 0 | K36: 0 | L36: 271850 | M36: 514600 | N36: 514600 | O36: 481400 | P36: 0 | Q36: 0 | R36: 0 | S36: 1782450 | U36: ScottN
C37: Total Withdrawls | E37: 0 | F37: 185530 | G37: =SUM(G32:G36) -> 103510 | H37: 65920 | I37: 0 | J37: 0 | K37: 0 | L37: 271850 | M37: 514600 | N37: 7800136 | O37: 5116610 | P37: 2526510 | Q37: 0 | R37: 192550 | S37: 16591686
B39: Lost & Unaccounted for on QPC
A42: Injection and Withdrawl Used, Lost and Unaccounted For
D43: Gas Use
D44: %
B45: Injections in Dth
C46: Chalk Creek | D46: ='Other Inputs'!E135 -> 0.0113 | E46: 0 | F46: 0 | G46: =G24*-$D46 -> 0 | H46: =H24*-$D46 -> 0 | I46: =I24*-$D46 -> 0 | J46: =J24*-$D46 -> 0 | K46: 0 | L46: -1624.6688 | M46: -2044.0909 | N46: 0 | O46: 0 | P46: 0 | Q46: 0 | R46: 0 | S46: =SUM(G46:R46) -> -3668.7597
C47: Clay Basin | D47: ='Other Inputs'!E144 -> 0.0238 | E47: 0 | F47: -18569.11903 | G47: =G25*-$D47 -> -46183.662 | H47: =H25*-$D47 -> -59253.67 | I47: =I25*-$D47 -> -54589.584 | J47: =J25*-$D47 -> -47598.096 | K47: -45988.264 | L47: -40398.12 | M47: 0 | N47: =N25*-$D47 -> 0 | O47: 0 | P47: 0 | Q47: 0 | R47: -5596.808 | S47: =SUM(G47:R47) -> -299608.204
C48: Coalville | D48: ='Other Inputs'!E147 -> 0.0137 | E48: 0 | F48: 0 | G48: =G26*-$D48 -> 0 | H48: 0 | I48: 0 | J48: 0 | K48: -2142.5293 | L48: -3838.0002 | M48: -3548.2041 | N48: 0 | O48: 0 | P48: 0 | Q48: 0 | R48: 0 | S48: =SUM(G48:R48) -> -9528.7336
C49: Leroy | D49: ='Other Inputs'!E141 -> 0.0342 | E49: 0 | F49: 0 | G49: =G27*-$D49 -> 0 | H49: 0 | I49: 0 | J49: 0 | K49: -21747.1302 | L49: -9661.2606 | M49: 0 | N49: 0 | O49: 0 | P49: 0 | Q49: 0 | R49: 0 | S49: =SUM(G49:R49) -> -31408.3908
C50: Ryckman | D50: ='Other Inputs'!E138 -> 0.025 | E50: 0 | F50: 0 | G50: -8961.55 | H50: -9260.25 | I50: -9260.25 | J50: -8961.55 | K50: 0 | L50: 0 | M50: 0 | N50: 0 | O50: 0 | P50: 0 | Q50: 0 | R50: -9260.25 | S50: =SUM(G50:R50) -> -45703.85
C51: Total Injections | E51: 0 | F51: -18569.11903 | G51: =SUM(G46:G50) -> -55145.212 | H51: -68513.92 | I51: -63849.834 | J51: -56559.646 | K51: -69877.9235 | L51: -55522.0496 | M51: -5592.295 | N51: 0 | O51: 0 | P51: 0 | Q51: 0 | R51: -14857.058 | S51: =SUM(S46:S50) -> -389917.9381
B53: Withdrawls In Dth
C54: Chalk Creek | D54: ='Other Inputs'!E136 -> 0.0118 | E54: 0 | F54: 0 | G54: =G32*-$D54 -> 0 | H54: 0 | I54: 0 | J54: 0 | K54: 0 | L54: 0 | M54: 0 | N54: -3857.2312 | O54: 0 | P54: 0 | Q54: 0 | R54: 0 | S54: =SUM(G54:R54) -> -3857.2312
C55: Clay Basin | D55: ='Other Inputs'!E145 -> 0.013 | E55: 0 | F55: -2411.89 | G55: =G33*-$D55 -> -1345.63 | H55: -856.96 | I55: 0 | J55: 0 | K55: 0 | L55: 0 | M55: 0 | N55: -69759.43 | O55: -60257.73 | P55: -32844.63 | Q55: 0 | R55: -2503.15 | S55: =SUM(G55:R55) -> -167567.53
C56: Coalville | D56: ='Other Inputs'!E148 -> 0.0128 | E56: 0 | F56: 0 | G56: =G34*-$D56 -> 0 | H56: 0 | I56: 0 | J56: 0 | K56: =K34*-$D56 -> 0 | L56: 0 | M56: 0 | N56: -8894.6432 | O56: 0 | P56: 0 | Q56: 0 | R56: 0 | S56: =SUM(G56:R56) -> -8894.6432
C57: Leroy | D57: ='Other Inputs'!E142 -> 0.0119 | E57: 0 | F57: 0 | G57: =G35*-$D57 -> 0 | H57: 0 | I57: 0 | J57: 0 | K57: 0 | L57: 0 | M57: 0 | N57: -10682.0112 | O57: 0 | P57: 0 | Q57: 0 | R57: 0 | S57: =SUM(G57:R57) -> -10682.0112
C58: Ryckman | D58: ='Other Inputs'!E139 -> 0 | E58: 0 | F58: 0 | G58: 0 | H58: 0 | I58: 0 | J58: 0 | K58: 0 | L58: 0 | M58: 0 | N58: =N36*-$D58 -> 0 | O58: 0 | P58: 0 | Q58: 0 | R58: 0 | S58: =SUM(G58:R58) -> 0
C59: Total Withdrawls | E59: 0 | F59: -2411.89 | G59: =SUM(G54:G58) -> -1345.63 | H59: -856.96 | I59: 0 | J59: 0 | K59: =SUM(K54:K58) -> 0 | L59: 0 | M59: 0 | N59: -93193.3156 | O59: -60257.73 | P59: -32844.63 | Q59: 0 | R59: -2503.15 | S59: =SUM(S54:S58) -> -191001.4156
B61: QPC Transportation Loss
C62: Chalk Creek | D62: ='Other Inputs'!$E$286 -> 0.0197 | E62: 0 | F62: 0 | G62: =G32*-$D62 -> 0 | H62: 0 | I62: 0 | J62: 0 | K62: 0 | L62: 0 | M62: 0 | N62: -6439.6148 | O62: 0 | P62: 0 | Q62: 0 | R62: 0 | S62: =SUM(G62:R62) -> -6439.6148
C63: Clay Basin | D63: ='Other Inputs'!$E$286 -> 0.0197 | E63: 0 | F63: -3654.941 | G63: =G33*-$D63 -> -2039.147 | H63: -1298.624 | I63: 0 | J63: 0 | K63: 0 | L63: 0 | M63: 0 | N63: -105712.367 | O63: -91313.637 | P63: -49772.247 | Q63: 0 | R63: -3793.235 | S63: =SUM(G63:R63) -> -253929.257
C64: Coalville | D64: ='Other Inputs'!$E$286 -> 0.0197 | E64: 0 | F64: 0 | G64: =G34*-$D64 -> 0 | H64: 0 | I64: 0 | J64: 0 | K64: 0 | L64: 0 | M64: 0 | N64: -13689.4118 | O64: 0 | P64: 0 | Q64: 0 | R64: 0 | S64: =SUM(G64:R64) -> -13689.4118
C65: Leroy | D65: ='Other Inputs'!$E$286 -> 0.0197 | E65: 0 | F65: 0 | G65: =G35*-$D65 -> 0 | H65: 0 | I65: 0 | J65: 0 | K65: 0 | L65: 0 | M65: 0 | N65: -17683.6656 | O65: 0 | P65: 0 | Q65: 0 | R65: 0 | S65: =SUM(G65:R65) -> -17683.6656
C66: Ryckman | D66: ='Other Inputs'!$E$286 -> 0.0197 | E66: 0 | F66: 0 | G66: 0 | H66: 0 | I66: 0 | J66: 0 | K66: 0 | L66: -5355.445 | M66: -10137.62 | N66: =N36*-$D66 -> -10137.62 | O66: -9483.58 | P66: 0 | Q66: 0 | R66: 0 | S66: =SUM(G66:R66) -> -35114.265
C67: Total Withdrawls | E67: 0 | F67: -3654.941 | G67: =SUM(G62:G66) -> -2039.147 | H67: -1298.624 | I67: 0 | J67: 0 | K67: 0 | L67: -5355.445 | M67: -10137.62 | N67: -153662.6792 | O67: -100797.217 | P67: -49772.247 | Q67: 0 | R67: -3793.235 | S67: -326856.2142
B70: Total Injections & Withdrawls | E70: 0 | F70: -20981.00903 | G70: =G51+G59 -> -56490.842 | H70: =H51+H59 -> -69370.88 | I70: =I51+I59 -> -63849.834 | J70: -56559.646 | K70: =K51+K59 -> -69877.9235 | L70: -55522.0496 | M70: -5592.295 | N70: -93193.3156 | O70: -60257.73 | P70: -32844.63 | Q70: 0 | R70: -17360.208 | S70: =S51+S59 -> -580919.3537
R72: Fuel Factor | S72: =-S70/(S37+S29) -> 0.01763193955
S74: 12-Month
E75: =E3 -> Apr15 | F75: May15 | G75: Jun15 | H75: Jul15 | I75: Aug15 | J75: Sep15 | K75: Oct15 | L75: =L3 -> Nov15 | M75: Dec15 | N75: Jan16 | O75: Feb16 | P75: Mar16 | Q75: Apr16 | R75: May16 | S75: Total
I77: Updated: | J77: 2015-04-03 | K77: EXH 1.2
A78: Natural Gas Spot Price Forecast - Average of GI, Cera & Pira | E78: (Forecast --->) | G78: (Forecast --->)
B79: Kern River Opal, Wyoming | E79: 2.33 | F79: =TRANSPOSE('Graph (Ex 1.10) Inputs'!F2:F14) -> 2.41 | G79: 2.55 | H79: 2.64 | I79: 2.63 | J79: 2.56 | K79: 2.56 | L79: 2.67 | M79: 2.88 | N79: 2.95 | O79: 2.86 | P79: 2.76 | Q79: 2.72 | R79: 2.78
B82: Spot Purchases from IRP | G82: 0 | H82: 0 | I82: 64.2 | J82: 885.525 | K82: 4140.805 | L82: =9192.07-1406.641 -> 7785.429 | M82: =11280.38-3023.31 -> 8257.07 | N82: =7167.382-4942.749 -> 2224.633 | O82: =6770.309-4483.351 -> 2286.958 | P82: =4426.047-627.747 -> 3798.3 | Q82: 3885.35 | R82: 0 | S82: =SUM(G82:R82) -> 33328.27 | U82: Scott N
C83: In DTH | G83: =G82*1000 -> 0 | H83: =H82*1000 -> 0 | I83: 64200 | J83: 885525 | K83: 4140805 | L83: =L82*1000 -> 7785429 | M83: 8257070 | N83: 2224633 | O83: 2286958 | P83: 3798300 | Q83: 3885350 | R83: 0 | S83: =SUM(G83:R83) -> 33328270
C84: In $ | G84: =G83*G79 -> 0 | H84: 0 | I84: 168846 | J84: 2266944 | K84: =K83*K79 -> 10600460.8 | L84: 20787095.43 | M84: 23780361.6 | N84: 6562667.35 | O84: 6540699.88 | P84: 10483308 | Q84: 10568152 | R84: 0 | S84: =SUM(G84:R84) -> 91758535.06
A87: CONTRACT PURCHASES | I87: Updated: | J87: 2015-04-03
B88: RESET FORMULAS TO Brent's WORKSHEET
B89: Peaking Purchases (DTH) | G89: 0 | H89: 0 | I89: 0 | J89: 0 | K89: 0 | L89: 1000000 | M89: 4000000 | N89: 5000000 | O89: 4000000 | P89: 0 | Q89: 0 | R89: 0 | S89: =SUM(G89:R89) -> 14000000 | T89: =S90/S89 -> 3.052632566
B90: Peaking Purchases ($) | G90: 0 | H90: 0 | I90: 0 | J90: 0 | K90: 0 | L90: 2826056.749 | M90: 12192404.2 | N90: 15610579.08 | O90: 12107815.89 | P90: 0 | Q90: 0 | R90: 0 | S90: =SUM(G90:R90) -> 42736855.92
B92: Term Purchases (DTH) | G92: 0 | H92: 0 | I92: 0 | J92: 0 | K92: 0 | L92: 900000 | M92: 930000 | N92: 930000 | O92: 870000 | P92: 930000 | Q92: 0 | R92: 0 | S92: =SUM(G92:R92) -> 4560000
B93: Term Purchases ($) | G93: 0 | H93: 0 | I93: 0 | J93: 0 | K93: 0 | L93: 2613960 | M93: 2896392 | N93: 2961492 | O93: 2692128 | P93: 2784792 | Q93: 0 | R93: 0 | S93: =SUM(G93:R93) -> 13948764 | T93: =S93/S92 -> 3.058939474
B94: Stabilization Costs (Winter Months - Oct to Mar) | G94: 0 | H94: 0 | I94: 0 | J94: 0 | K94: 0 | L94: 0 | M94: 0 | N94: 0 | O94: 0 | P94: 0 | Q94: 0 | R94: 0 | S94: =SUM(G94:R94) -> 0
B97: Total Purchases (DTH) | E97: =E89+E92 -> 0 | F97: 0 | G97: 0 | H97: =H89+H92 -> 0 | I97: 0 | J97: 0 | K97: 0 | L97: =L89+L92 -> 1900000 | M97: 4930000 | N97: 5930000 | O97: 4870000 | P97: 930000 | Q97: 0 | R97: 0 | S97: =SUM(G97:R97) -> 18560000 | T97: =S92/S97 -> 0.2456896552
B98: Total Purchases ($) | E98: 0 | F98: 0 | G98: 0 | H98: 0 | I98: 0 | J98: 0 | K98: 0 | L98: =L90+L93 -> 5440016.749 | M98: 15088796.2 | N98: 18572071.08 | O98: 14799943.89 | P98: 2784792 | Q98: 0 | R98: 0 | S98: =SUM(G98:R98) -> 56685619.92
A101: Typical Customer Monthly Usage in Dth
B102: Utah | G102: =VLOOKUP(MONTH(L3),$F$116:$G$127,2,FALSE) -> 6.3 | H102: 11.5 | I102: 14.9 | J102: 12.5 | K102: 10.1 | L102: 8.3 | M102: 4.4 | N102: =VLOOKUP(MONTH(G3),$F$116:$G$127,2,FALSE) -> 3.1 | O102: =VLOOKUP(MONTH(H3),$F$116:$G$127,2,FALSE) -> 2 | P102: =VLOOKUP(MONTH(I3),$F$116:$G$127,2,FALSE) -> 1.8 | Q102: =VLOOKUP(MONTH(J3),$F$116:$G$127,2,FALSE) -> 2 | R102: =VLOOKUP(MONTH(K3),$F$116:$G$127,2,FALSE) -> 3.1 | S102: =SUM(G102:R102) -> 80
B103: Wyoming | G103: =VLOOKUP(MONTH(L3),$F$116:$H$127,3,FALSE) -> 8 | H103: 12.3 | I103: 14.7 | J103: 14.1 | K103: 11.8 | L103: 9.4 | M103: 5.8 | N103: =VLOOKUP(MONTH(G3),$F$116:$H$127,3,FALSE) -> 3.7 | O103: =VLOOKUP(MONTH(H3),$F$116:$H$127,3,FALSE) -> 2.3 | P103: =VLOOKUP(MONTH(I3),$F$116:$H$127,3,FALSE) -> 1.7 | Q103: =VLOOKUP(MONTH(J3),$F$116:$H$127,3,FALSE) -> 2.1 | R103: =VLOOKUP(MONTH(K3),$F$116:$H$127,3,FALSE) -> 4.1 | S103: =SUM(G103:R103) -> 90
A105: INPUTS FROM WEXPRO | G105: =G3 -> Jun15 | H105: Jul15 | I105: Aug15 | J105: Sep15 | K105: Oct15 | L105: Nov15 | M105: Dec15 | N105: Jan16 | O105: Feb16 | P105: Mar16 | Q105: Apr16 | R105: May16 | S105: 12-Month
S106: Total
A107: Wexpro I Operator Fee (Wexpro forecast) | E107: Updated Mike Neese 4/15/2015 | G107: 24203212 | H107: 24850223 | I107: 25029364 | J107: 24439211 | K107: 24746798 | L107: 24031672 | M107: 24580111 | N107: 23940633 | O107: 23236310 | P107: 23385585 | Q107: 23178726 | R107: 23287404 | S107: =SUM(G107:R107) -> 288909249
A109: Wexpro II Operator Fee (Wexpro forecast) | E109: Updated Mike Neese 4/15/2015 | G109: 2091801 | H109: 1986306 | I109: 1970600 | J109: 1931482 | K109: 1938744 | L109: 1906126 | M109: 1962387 | N109: 2193184 | O109: 2106872 | P109: 2145011 | Q109: 2096725 | R109: 2111239 | S109: =SUM(G109:R109) -> 24440477
F115: Typical UPC | G115: UT | H115: WY
F116: 1 | G116: 14.9 | H116: 14.7
F117: 2 | G117: 12.5 | H117: 14.1
F118: 3 | G118: 10.1 | H118: 11.8
F119: 4 | G119: 8.3 | H119: 9.4
F120: 5 | G120: 4.4 | H120: 5.8
F121: 6 | G121: 3.1 | H121: 3.7
F122: 7 | G122: 2 | H122: 2.3
F123: 8 | G123: 1.8 | H123: 1.7
F124: 9 | G124: 2 | H124: 2.1
F125: 10 | G125: 3.1 | H125: 4.1
F126: 11 | G126: 6.3 | H126: 8
F127: 12 | G127: 11.5 | H127: 12.3
F128: Total | G128: =SUM(G116:G127) -> 80 | H128: =SUM(H116:H127) -> 90

Sheet Graph (Ex 1.10) Inputs
C1: ACTUAL | D1: CERA | E1: PIRA | F1: AVG
B2: 2015-05-01 | D2: 2.48 | E2: 2.33 | F2: 2.41
B3: 2015-06-01 | D3: 2.51 | E3: 2.58 | F3: 2.55
B4: 2015-07-01 | D4: 2.5 | E4: 2.77 | F4: 2.64
B5: 2015-08-01 | D5: 2.46 | E5: 2.79 | F5: 2.63
B6: 2015-09-01 | D6: 2.44 | E6: 2.69 | F6: 2.56
B7: 2015-10-01 | D7: 2.44 | E7: 2.67 | F7: 2.56
B8: 2015-11-01 | D8: 2.38 | E8: 2.96 | F8: 2.67
B9: 2015-12-01 | D9: 2.67 | E9: 3.09 | F9: 2.88
B10: 2016-01-01 | D10: 2.7 | E10: 3.2 | F10: 2.95
B11: 2016-02-01 | D11: 2.61 | E11: 3.11 | F11: 2.86
B12: 2016-03-01 | D12: 2.54 | E12: 2.98 | F12: 2.76
B13: 2016-04-01 | D13: 2.52 | E13: 2.91 | F13: 2.72
B14: 2016-05-01 | D14: 2.55 | E14: 3.02 | F14: 2.78
D17: Price Forecasts
B19: Make sure all pricing is in Whole number @ 2 decimal places only

Sheet Other Inputs
H1: Used In
A2: INPUT SECTION | H2: Ut | I2: Wy | J2: Source
A3: INPUTS FROM QUESTAR PIPELINE TARIFF AND CONTRACTS
B5: QPC Storage Commodity Rates | E5: Rate | F5: Effective
B6: Peaking Injections | E6: 0.03872 | F6: 2015-01-01 | H6: 1.3.2 | I6: 1.3p2 | J6: QPC Tariff Statement of Rates
B7: Peaking Withdrawals | E7: 0.03872 | F7: =$F$6 -> 2015-01-01 | H7: 1.3.2 | I7: 1.3p2 | J7: =J6 -> QPC Tariff Statement of Rates
B8: Ryckman Injections | E8: 0.015 | F8: =$F$6 -> 2015-01-01 | J8: Glen W
B9: Ryckman Withdrawals | E9: 0.01 | F9: 2015-01-01 | J9: Glen W
B10: Clay Basin Injections | E10: 0.01049 | F10: 2015-01-01 | H10: 1.3.2 | I10: 1.3p2 | J10: QPC Tariff Statement of Rates
B11: Clay Basin Withdrawals | E11: 0.01781 | F11: =$F$6 -> 2015-01-01 | H11: 1.3.2 | I11: 1.3p2 | J11: =J10 -> QPC Tariff Statement of Rates
B13: QPC Storage Field Reservation Charges
B14: Peaking Storage Fields Demand (Leroy, Chalk Creek, Coalville) | E14: 2.87375 | F14: =$F$6 -> 2015-01-01 | H14: 1.3.2 | I14: 1.3p2 | J14: =$J$6 -> QPC Tariff Statement of Rates
B15: Ryckman | E15: 0.09 | F15: =$F$6 -> 2015-01-01 | J15: Glen W
B16: Clay Basin Demand | E16: 2.85338 | F16: =$F$6 -> 2015-01-01 | H16: 1.3.2 | I16: 1.3p2 | J16: =$J$6 -> QPC Tariff Statement of Rates
B17: Clay Basin Capacity | E17: 0.02378 | F17: =$F$6 -> 2015-01-01 | H17: 1.3.2 | I17: 1.3p2 | J17: =$J$6 -> QPC Tariff Statement of Rates
J20: used in Exhibit 1.3
B21: FIRM TRANSPORTATION | D21: Contract Dth | E21: Months | F21: Maximum Rate | G21: Effective
B22: T-1 Transportation - Yearly (MT241) | D22: =798902 -> 798902 | E22: 12 | F22: 5.28804 | G22: 1/1/2015 | H22: 1.3p1 | J22: =$J$6 -> QPC Tariff Statement of Rates | N22: 4000000
B23: T-1 Transportation - Yearly (Mainline 104) | D23: 30000 | E23: 12 | F23: 5.28804 | G23: =$G$22 -> 1/1/2015 | H23: Jan | J23: =$J$6 -> QPC Tariff Statement of Rates | N23: 28100
B24: T-1 Transportation - Yearly (Tieline 112) | D24: 12000 | E24: 12 | F24: 5.28804 | G24: =$G$22 -> 1/1/2015 | H24: 1.3p1 | J24: =$J$6 -> QPC Tariff Statement of Rates | N24: =N21/N22 -> 0
B25: T-1 Transportation - Nov-Mar | D25: 75000 | E25: 5 | F25: 6.80887 | G25: =$G$22 -> 1/1/2015 | J25: Rate from Glen | N25: =N22/N23 -> 142.3487544
B26: Total Yearly T-1 Transportation | D26: =SUM(D22:D25) -> 915902 | E26: 12
B28: T-1 Transportation - Seasonal(BASE TARIFF RATE LOW LOAD) Mainline 104 | D28: 0 | E28: 0 | F28: 0 | J28: not using currently - ck with Glen
B30: No-Notice Transportation (BASE TARIFF RATE) | D30: 203542 | E30: 12 | F30: 0.86753 | G30: =$G$22 -> 1/1/2015 | H30: 1.3p1 | J30: =$J$6 -> QPC Tariff Statement of Rates
B31: GRI - Yearly (SURCHARGE LOW LOAD CUSTOMERS MAXIMUM) | D31: =D26 -> 915902 | E31: 12 | F31: 0 | G31: =$G$22 -> 1/1/2015 | H31: 1.3p1 | J31: =$J$6 -> QPC Tariff Statement of Rates
B32: GRI - Seasonal (No GRI currently) | D32: 30000 | E32: 3 | F32: =+F31 -> 0 | G32: =$G$22 -> 1/1/2015 | H32: 1.3p1 | J32: =$J$6 -> QPC Tariff Statement of Rates
B33: GRI | D33: 52000 | E33: 12 | F33: =+F31 -> 0 | G33: =$G$22 -> 1/1/2015 | H33: 1.3p1 | J33: =$J$6 -> QPC Tariff Statement of Rates
B35: TRANSPORTATION COMMODITY
B36: PIPELINE USAGE CHARGE TO VOLUMETRIC RELEASES
B37: QPC Commodity
B38: QPC Firm Transportation Usage Charge (Max & Min) (BASE TARIFF RATE) | F38: 0.00267 | G38: 2015-01-01 | H38: 1.3p1 | J38: =$J$6 -> QPC Tariff Statement of Rates
B39: QPC (ANNUAL CHARGE ADJUSTMENT) | F39: 0.0014 | G39: 2014-10-01 | H39: 1.3p1 | J39: FERC Website
B40: QPC GRI SURCHARGE (not used currently) | F40: 0 | G40: =G38 -> 2015-01-01 | H40: 1.3p1 | J40: =$J$6 -> QPC Tariff Statement of Rates
E41: Current | F41: Proposed
B42: INTER TRANS (T-2 PIPELINE BASE TARIFF) MAX | D42: Base Tariff | E42: 0.17652 | F42: 0.17652 | G42: 2015-01-01 | J42: =$J$6 -> QPC Tariff Statement of Rates
C43: (not used currently) | D43: GRI Surcharge | E43: 0 | F43: 0 | G43: =G42 -> 2015-01-01 | J43: =$J$6 -> QPC Tariff Statement of Rates
D44: Annual Charge | E44: 0.0014 | F44: 0.0014 | G44: 2014-10-01 | J44: ferc.gov
D45: Total | E45: =SUM(E42:E44) -> 0.17792 | F45: =SUM(F42:F44) -> 0.17792
B48: Utah | E48: =ROUND((E45)/(1-$E283),5) -> 0.1788 | F48: =ROUND((F45)/(1-E283),5) -> 0.1788 | H48: 1.6.3 | J48: Before Adjustment for Bad Debt (Transport grossed up for QGC fuel)
B49: Wyoming | F49: =ROUND((F45)/(1-E284),5) -> 0.18063
A51: INPUTS FROM KERN RIVER PIPELINE TARIFF AND CONTRACTS
B52: Kern River 2003 Expansion | D52: Contract Dth | E52: Months | F52: Maximum Rate | G52: Effective
F53: 0.4717 | G53: 2015-04-01 | J53: KR Tariff 5-A
B54: Jan - Dec | D54: 3000 | E54: 12 | F54: 14.34754167 | H54: 1.3.1
B55: November - March | D55: 50000 | E55: 5 | F55: 14.34754167 | H55: Jan
B56: Jan - Dec | D56: 1885 | E56: 12 | F56: 17.74204167
B57: Days in Tariff Rate | E57: 366 | F57: 0.5833 | G57: =G53 -> 2015-04-01 | J57: e.g., if rates effective Jan 1 in a leap year, then use 366
B59: Kern River 2003 Expansion | E59: Days in TEST PERIOD
B60: Jan - Dec | C60: 0.8274794078 | D60: =D54+D56 -> 4885 | E60: 366 | F60: 0.0044 | G60: =G57 -> 2015-04-01 | H60: 1.3p1 | J60: KR Tariff 5-A
B61: November - March | C61: =C60 -> 0.8274794078 | D61: =D55 -> 50000 | E61: 152 | F61: 0.0044 | G61: =G57 -> 2015-04-01 | H61: 1.3p1 | J61: KR Tariff 5-A | K61: Should be 152 in leap year
A63: INPUTS FROM QUESTAR GAS TARIFF
B65: I-Sales Commodity Rates | E65: I-2 -eliminated | F65: IS | J65: =31*5 -> 155
B66: Effective Date | E66: 11/1/2005 | F66: 7/31/2009 | J66: =J65*0.75 -> 116.25
B67: Commodity Rate | E67: 0 | F67: =ROUND((7353080/1941997),5) -> 3.78635 | G67: Should this just be utah | J67: =J65*0.15 -> 23.25
B68: CO2 Refund | E68: 0 | F68: 0 | J68: =J65*0.1 -> 15.5
B69: Net Commodity Rate | E69: =SUM(E67:E68) -> 0 | F69: =SUM(F67:F68) -> 3.78635
A71: Current SNG Rates
B72: UTAH | E72: Current SNG Base | F72: Current SNG Amort. | G72: Current SNG Total | J72: Effective
B73: GS | D73: Winter | E73: 1.05851 | F73: -0.06718 | G73: =E73+F73 -> 0.99133 | J73: 2015-02-01
D74: Summer | E74: 0.49698 | F74: -0.03154 | G74: =E74+F74 -> 0.46544 | J74: =J73 -> 2015-02-01
B76: FS | D76: Winter | E76: 1.03094 | F76: -0.06543 | G76: =E76+F76 -> 0.96551 | J76: 2015-02-01
D77: Summer | E77: 0.49697 | F77: -0.03153 | G77: =E77+F77 -> 0.46544 | J77: =J76 -> 2015-02-01
B79: NGV | E79: 0.76385 | F79: -0.04848 | G79: =E79+F79 -> 0.71537 | J79: 2015-02-01
B81: (This includes bad debt adjustment) IS | E81: 0.17925 | F81: 0 | G81: =E81+F81 -> 0.17925 | J81: 2015-02-01
A84: Current Rates
B85: Utah GS | J85: Effective
B86: Block 1 | D86: Summer | G86: 7.43283 | J86: 2015-02-01
B87: Block 2 | D87: Summer | G87: 6.47222 | J87: =$J$86 -> 2015-02-01
B88: Block 1 | D88: Winter | G88: 8.55698 | J88: =$J$86 -> 2015-02-01
B89: Block 2 | D89: Winter | G89: 7.59638 | J89: =$J$86 -> 2015-02-01
B90: #1 BSF | G90: 6.75 | J90: =J86 -> 2015-02-01
B92: Wyoming GS
B93: Block 1 | G93: 7.98021 | J93: 2015-02-01
B94: Block 2 | G94: 7.73227 | J94: =J93 -> 2015-02-01
B95: BSF | G95: 12 | J95: =J93 -> 2015-02-01
A97: INPUTS FROM PREVIOUS PASSTHROUGH CASE
B98: PRIOR PERIOD COMPANY PRODUCTION AVERAGE GAS COST
E99: PROPOSED | F99: PRIOR CASE | G99: Most Recent
B100: VOLUMES DTH | E100: ='Monthly Inputs'!S7+'Monthly Inputs'!S13 -> 67095449 | F100: 70897170 | G100: EXH 1.1 | J100: LAST CASE IN WHICH RATES CHANGED
B101: AMOUNT | E101: =+D184+D205 -> 343430865 | F101: 360165191 | G101: EXH 1.1
B102: AVG COST | E102: =+E101/E100 -> 5.11854187 | F102: =ROUND(+F101/F100,5) -> 5.08011
B104: Utah Cost of Gas by Component
B105: Unit Cost Of Gas (Line 7) | F105: 4.63135 | J105: Exhibit 1.6 pg 1 (Prior case)
B106: 191 Account Amortization (Line 8) | F106: 0.41533 | J106: Exhibit 1.6 pg 1 (Prior case )
B107: Total Unit Cost In Rates (Line 9) | F107: =SUM(F105:F106) -> 5.04668
B109: I-2 Commodity Cost (excluding bad debt) | E109: 0
B111: Wyoming Cost of Gas by Component
B112: Unit Cost Of Gas (Line 9) | F112: 5.42255 | J112: (WY) Exhibit 1.6 pg 1
B113: 191 Account Amortization (Line 10) | F113: 0.27228 | J113: (WY) Exhibit 1.6 pg 1
B114: Total Unit Cost In Rates (Line 11) | F114: =F112+F113 -> 5.69483 | J114: (WY) Exhibit 1.6 pg 1
A119: INPUTS FROM 191 ACCOUNT MONTH END BALANCE ACTUAL OR FORECAST | E119: Utah | F119: Wyoming
E120: 2015 | F120: 2015-03-31
H121: 1.6.2
D122: current yr /mo(text)
B123: March 2015 191 account (Actual/Forecast) | D123: 2015 | E123: 2311585 | F123: 707716 | H123: 1.6.1 | J123: 191 Account Forecast/Actual
B124: Supplier Non-Gas Cost Under (Over) Collected through March 2015 (act/fcst) | D124: March | E124: -4641886 | H124: 1.6.2 | J124: 191 Account Year-End (sometimes through current period)
B125: Commodity Cost Under (Over) Collected during YEAR (Act/Fcst) | E125: =E123-E124 -> 6953471
A127: INPUTS FROM IRP
B128: #1 Peak Day Demand Forecast | E128: 2014 | F128: Source
B129: Utah | E129: =E131-E130 -> 1263667 | F129: 2014 IRP
B130: Wyoming | E130: 39214
B131: System Total Peak Day Demand Forecast | E131: 1302881 | H131: 1.5 | I131: 1.5
A134: STORAGE FIELD INPUTS | E134: Storage
B135: Chalk Creek Injections Factor | E135: 0.0113 | H135: Scott Nelson Monthly IRP
B136: Chalk Creek Withdrawls Factor | E136: 0.0118 | H136: Scott Nelson Monthly IRP
B138: Ryckman Injections Factor | E138: 0.025 | H138: Scott Nelson Monthly IRP
B139: Ryckman Withdrawls Factor | E139: 0 | H139: Scott Nelson Monthly IRP
B141: Leroy Injections Factor | E141: 0.0342 | H141: Scott Nelson Monthly IRP
B142: Leroy Withdrawls Factor | E142: 0.0119 | H142: Scott Nelson Monthly IRP
B144: Clay Basin Injections Factor | E144: 0.0238 | H144: Scott Nelson Monthly IRP
B145: Clay Basin Withdrawls Factor | E145: 0.013 | H145: Scott Nelson Monthly IRP
B147: Coalville Injections Factor | E147: 0.0137 | H147: Scott Nelson Monthly IRP
B148: Coalville Withdrawls Factor | E148: 0.0128 | H148: Scott Nelson Monthly IRP
B150: QPC Storage Field Reservation Charges | E150: Monthly Dth
B151: Peaking Storage Fields Maximum Daily Withdrawal Qty (Leroy, Chalk Creek, Coalville) | E151: 184625 | H151: From Contract Amounts. (See Ex 1.3 pg 2 if not changed)
B152: Ryckman Maximum Storage Qty | E152: =2500000 -> 2500000 | H152: From Glen Watkins (Contract Amounts) (See Ex 1.3 pg 2 if not changed)
B153: Clay Basin Minimum Required Deliverability | E153: 111827 | H153: From Glen Watkins (Contract Amounts) (See Ex 1.3 pg 2 if not changed)
B154: Clay Basin Capacity | E154: 13419000 | H154: From Glen Watkins (Contract Amounts) (See Ex 1.3 pg 2 if not changed)
A156: OTHER INPUTS FROM GLEN, TOM, TINA & Al | D156: Revenue
B157: OTHER GATHERING
B162: Total Forecasted Birch Creek | D162: 246857.95 | E162: 2015-03-31 | J162: Birch Creek from Jesse
B164: Other gathering | D164: 1618422.77 | E164: 2015-03-31 | H164: JanB | J164: Jesse Query
B165: Total Gathering | D165: =SUM(D162:D164) -> 1865280.72 | H165: 1.3.1 | I165: 1.3P1
B167: Other Transportation | D167: 3393768.27 | E167: 2015-03-31 | H167: 1.3.1 | J167: Jesse Query
B169: Forecast Future Contracts Premium over spot price | E169: 0.02 | F169: Verified with Tina 04/10/15
D171: Commodity | E171: Mo. Demand
D172: Charge | E172: Charge | F172: Effective
B173: QEP Gathering Rates -System wide Gathering agreement #163 (SWGA) | D173: 0.14446 | E173: 862503 | F173: 2014-09-01 | I173: 1.3p1 | J173: QEP Rates (Changes every Sep 1)
B174: QGC Gathering Throughput Dth From Exhibit 1.1 Backup | D174: ='Ex 1.1 Data'!E1 -> 40069171.17 | E174: 12 | I174: 1.3p1 | J174: Ex. 1.1 updated on 11-17-2010
B176: Gathering Rate Wexpro II | D176: 0.48 | I176: 1.3p1 | J176: Samson Rate (amount changes in September ask John Wilkey) for this passthrough Brady wants us to use the estimated amount of 0.48 4-14-15
B177: Wexpro II Gathering Throughput Dth From Exhibit 1.1 Backup | D177: ='Ex 1.1 Data'!L1 -> 4138215 | I177: 1.3p1 | J177: Ex. 1.1 backup calucated each time
A179: OTHER INPUTS FROM JIM LIVSEY | D179: Volume (Dth) | E179: Revenue
A180: WEXPRO I
B181: Questar Gas Production 1/ | D181: Current
B182: Test Year Royalties | D182: ='Ut 1.1'!I1409 -> 28173703.38 | H182: 1.4.1 | I182: 1.4P1 | J182: Exhibit 1.1
B183: Operator Service Fee | D183: ='Monthly Inputs'!S107 -> 288909249 | H183: 1.4.1 | I183: 1.4P1 | J183: Jim Livsey (Updated on 11-10-2010
B184: Total Questar Gas Production Costs | D184: =SUM(D182:D183) -> 317082952.4
B186: Total Questar Gas Production Dth | D186: ='Ut 1.1'!F1414 -> 62957234 | J186: this formula changes each time
F187: Hot | G187: Hot
B188: Other Revenue Credits | D188: 1 | E188: 2 | F188: 2 | G188: 2 | I188: 1
D189: Historical | E189: Forecast | F189: =HLOOKUP(F$188,$D$188:$E$196,$I189) -> Forecast | G189: =HLOOKUP(G$188,$D$188:$E$196,$I189) -> Forecast | I189: 2
D190: 12 Mo Ending | E190: 12 Mo Ending | F190: Utah | G190: Wyoming | I190: 3
B191: 483 Sales for Resale | E191: 2702880 | F191: =HLOOKUP(F$188,$D$188:$E$196,$I191) -> 2702880 | G191: =HLOOKUP(G$188,$D$188:$E$196,$I191) -> 2702880 | I191: 4 | J191: Wexpro (Mike Neese)
B192: 490 Incidental Plant Prod Sales | E192: 2976196 | F192: =HLOOKUP(F$188,$D$188:$E$196,$I192) -> 2976196 | G192: 2976196 | I192: 5 | J192: Wexpro (Mike Neese)
B193: 492 Incidental Gasoline_Oil Sales | E193: 535068 | F193: 535068 | G193: 535068 | I193: 6 | J193: Wexpro (Mike Neese)
B194: 4951 Overriding Royalty Revenue from Celsius | E194: 12829163 | F194: 12829163 | G194: 12829163 | I194: 7 | J194: Wexpro (Mike Neese)
B195: 4952 Oil Revenue Received from Wexpro | E195: 0 | F195: 0 | G195: 0 | I195: 8 | J195: Wexpro (Mike Neese)
B196: 758001 Gas Well Royalities - Other | E196: -80260 | F196: -80260 | G196: -80260 | I196: 9 | J196: Wexpro (Mike Neese)
B199: Total Other Revenue Credits | D199: =SUM(D191:D196) -> 0 | E199: =SUM(E191:E196) -> 18963047 | F199: =SUM(F191:F196) -> 18963047 | G199: =SUM(G191:G196) -> 18963047
A201: WEXPRO II
B202: Questar Gas Production 1/ | D202: Current
B203: Test Year Royalties | D203: ='Ut 1.1'!I1504 -> 1907435.627 | H203: 1.4.1 | I203: 1.4P1 | J203: Exhibit 1.1
B204: Operator Service Fee | D204: ='Monthly Inputs'!S109 -> 24440477 | H204: 1.4.1 | I204: 1.4P1 | J204: Jim Livsey (Updated on 11-10-2010
B205: Total Questar Gas Production Costs | D205: =SUM(D203:D204) -> 26347912.63
B207: Total Questar Gas Production Dth | D207: ='Ut 1.1'!F1509 -> 4138215 | J207: this formula changes each time
F208: Hot | G208: Hot
B209: Other Revenue Credits | D209: 1 | E209: 2 | F209: 2 | G209: 2 | I209: 1
D210: Historical | E210: Forecast | F210: =HLOOKUP(F$188,$D$188:$E$196,$I210) -> Forecast | G210: =HLOOKUP(G$188,$D$188:$E$196,$I210) -> Forecast | I210: 2
D211: 12 Mo Ending | E211: 12 Mo Ending | F211: Utah | G211: Wyoming | I211: 3
B212: 483 Sales for Resale | E212: 0 | F212: =HLOOKUP(F$209,$D$209:$E$217,$I212) -> 0 | G212: 0 | I212: 4 | J212: Wexpro (Mike Neese)
B213: 490 Incidental Plant Prod Sales | E213: 931501 | F213: 931501 | G213: 931501 | I213: 5 | J213: Wexpro (Mike Neese)
B214: 492 Incidental Gasoline_Oil Sales | E214: 543701 | F214: 543701 | G214: 543701 | I214: 6 | J214: Wexpro (Mike Neese)
B215: 4951 Overriding Royalty Revenue from Celsius | E215: 0 | F215: 0 | G215: 0 | I215: 7 | J215: Wexpro (Mike Neese)
B216: 4952 Oil Revenue Received from Wexpro | E216: 0 | F216: 0 | G216: 0 | I216: 8 | J216: Wexpro (Mike Neese)
B217: 758001 Gas Well Royalities - Other | E217: -81555 | F217: -81555 | G217: -81555 | I217: 9 | J217: Wexpro (Mike Neese)
B220: Total Other Revenue Credits | D220: =SUM(D212:D217) -> 0 | E220: =SUM(E212:E218) -> 1393647 | F220: =SUM(F212:F217) -> 1393647 | G220: =SUM(G212:G217) -> 1393647
E222: Proceeds | F222: Dths | G222: Price
B223: Sales of Wexpro Gas | E223: 0 | F223: 0 | G223: 0 | J223: Will S. Updated sales vs. shut ins
A225: SUMMARY INPUTS FROM REVRUN, RATE BASE, EXPENSES, ETC.
B227: Supplier Non-Gas Costs Recovered at Current Rates 3/ | E227: ='RevRun Fcst'!T$199 -> 90835755.1 | H227: 1.6.2 | J227: Dave's Revrun
B228: MT Supplier Non-Gas | E228: ='RevRun Fcst'!T142 -> 2117.4 | J228: Dave's Revrun
B229: Net Supplier Non-Gas | E229: =E227-E228 -> 90833637.7
B230: UT Current Int Sales SNG Rate - not including Bad Debt adj. | E230: ='RevRun Fcst'!T102+'RevRun Fcst'!T93 -> 2648021 | F230: 0.1788 | J230: Revrun (D210); SNG from last case in which rates changed (see Exh. 1.6, p. 2, line 6c col. C)
E232: ='Rate Base'!$U$8 -> 2015-03-31 | F232: update to most current
B233: Account 164-1 - Gas Stored Underground | D233: Dth | E233: Ending Balance | F233: $ per Dth
D234: ='Rate Base'!T295 -> -2053992 | E234: ='Rate Base'!T216 -> 9447138.71 | F234: =+E234/D234 -> -4.599403849 | H234: 1.4.2
A237: UT CET and DSM AMORTIZATION FILING INPUTS
E238: Base DNG | F238: Current DNG
B239: GS Rates (Base rates are before CET, DSM, & EA Amortizations) | D239: Summer Blk 1 | E239: 1.73142 | F239: 1.92071
D240: Summer Blk 2 | E240: 0.73142 | F240: 0.9601
D241: Winter Blk 1 | E241: 2.35422 | F241: 2.51897
D242: Winter Blk 2 | E242: 1.35422 | F242: 1.55837 | J242: Base DNG Rate from latest general rate case Docket 13-057-05
J243: Current Rates Effective 03-1-14
D244: Energy Assistance | E244: 0.01419 | F244: Current Rate 7/1/2014 GS Rate
E245: 0.01174 | F245: Current Rate 7/1/2014 FS Rate
E246: 0.00657 | F246: Current Rate 7/1/2014 IS Rate
E247: 0.2679 | F247: Current Rate 7/1/2014 NGV Rate
E248: Ending Balance | F248: Date
B249: CET Balance (Account 191.9) | E249: -1886289.514 | F249: 2011-07-31 | J249: Accounting
B250: DSM Expense Deferral Balance (Account 182.4) | E250: 42000000 | F250: 2011-03-31 | J250: Accounting
B252: GS Block Usage in Dth | D252: Winter Blk 1 | E252: 52526064 | J252: Block out from Dave's REVRUN
D253: Winter Blk 2 | E253: 14984828 | J253: (used Gary's "Rate Design Model - Bill Factor Input.xls" &
D254: Summer Blk 1 | E254: 23076373 | J254: Dave's "PT0802.bk" files) Updated March 31, 2010
D255: Summer Blk 2 | E255: 4705902
A257: WY CET and DSM AMORTIZATION FILING INPUTS
E258: Base DNG | F258: Current DNG
B259: GS Rates (Base rates are before CET and DSM Amortizations) | D259: Blk 1 | E259: 1.73142 | F259: 2.01783
D260: Blk 2 | E260: 0.73142 | F260: 1.08394
J262: Base DNG Rate from latest general rate case Docket 30010-94-GR-08
J263: Current Rates Effective 10/1/13
... 33 more rows

Sheet CET & DSM WY (hidden)
A1: Rate Caclulation for the CET and DSM Amortizations WY
L3: Solver Cells
A4: CET Amortization % Calculation | L4: % Change | M4: Difference
B5: Balance | C5: Date | D5: GS Dth | F5: Amortization per Dth | L5: =J20/D20 -> 0.01140516088 | M5: =G20-B11 -> 0 | O5: -> Difference should be at 0 (Use Goal Seek to Get Difference to Equal 0.
A6: DSM Balance | B6: ='Other Inputs'!$E$267 -> 274858.68 | C6: ='Other Inputs'!$F$267 -> 2011-07-31 | D6: =B20 -> 3298812 | F6: =B6/D6 -> 0.08332050447
O8: Typical Bill Rates
A9: CET Amortization Calculation
B10: Balance | C10: Date | D10: DNG Rev | F10: New DNG | I10: % Change | O10: Current | P10: Proposed
A11: CET Balance | B11: ='Other Inputs'!$E$266 -> 57097.0875 | C11: ='Other Inputs'!$F$266 -> 2011-07-31 | D11: =D20 -> 5006250.073 | F11: =D11+B11 -> 5063347.161 | I11: =L5 -> 0.01140516088 | O11: Effective | R11: SNG & | S11: CET, DSM
O12: ='Other Inputs'!$J$93 -> 2015-02-01 | P12: CET Only | Q12: DSM Only | R12: Commodity | S12: Commodity
O13: BSF | P13: BSF | Q13: BSF | R13: BSF | S13: BSF
B14: Revenue Calculation | F14: CET Amortization | I14: Total DNG | L14: REVRUN Calculation | O14: ='Other Inputs'!$G$95 -> 12 | P14: ='Other Inputs'!$G$95 -> 12 | Q14: ='Other Inputs'!$G$95 -> 12 | R14: ='Other Inputs'!$G$95 -> 12 | S14: =#REF! -> 
A15: WY GS | B15: Dth | C15: Base DNG | D15: DNG Revenue | F15: CET Rate | G15: Revenue | I15: DNG Rate | J15: Revenue | L15: CET Rate | M15: CET Amort
A16: Block 1 | B16: ='Other Inputs'!E269 -> 2593433 | C16: ='Other Inputs'!E259 -> 1.73142 | D16: =B16*C16 -> 4490321.765 | F16: =ROUND((G16/B16),5) -> 0.01975 | G16: =D16*$L$5 -> 51212.84214 | I16: =C16+F16 -> 1.75117 | J16: =I16*B16 -> 4541542.067 | L16: =ROUND(F16,5) -> 0.01975 | M16: =B16*L16 -> 51220.30175 | O16: ='Other Inputs'!$G$86 -> 7.43283 | P16: =J24 -> 6.78793 | Q16: =J31 -> 6.82863 | R16: =J36 ->  | S16: =J41 -> 
A17: Block 2 | B17: ='Other Inputs'!E270 -> 705379 | C17: ='Other Inputs'!E260 -> 0.73142 | D17: =B17*C17 -> 515928.3082 | F17: =ROUND((G17/B17),5) -> 0.00834 | G17: =D17*$L$5 -> 5884.245359 | I17: =C17+F17 -> 0.73976 | J17: =I17*B17 -> 521811.169 | L17: =ROUND(F17,5) -> 0.00834 | M17: =B17*L17 -> 5882.86086
O18: ='Other Inputs'!$G$93 -> 7.98021 | P18: =J24 -> 6.78793 | Q18: =J31 -> 6.82863 | R18: =J36 ->  | S18: =J41 -> 
A20: GS-1 Block Rev | B20: =SUM(B16:B19) -> 3298812 | D20: =SUM(D16:D19) -> 5006250.073 | G20: =SUM(G16:G19) -> 57097.0875 | J20: =B11 -> 57097.0875 | M20: =SUM(M16:M19) -> 57103.16261
A22: Total Rate Calculation With CET Amortization Only | J22: ='Control Panel'!#REF! ->  | L22: ='Other Inputs'!$J$93 -> 2015-02-01
A23: WY GS | B23: Total DNG | C23: CET | D23: DSM | F23: Total DNG | G23: Core Commodity Cost | J23: Total Rate | L23: Total Rate
A24: Block 1 | B24: =$C$16 -> 1.73142 | C24: =$F$16 -> 0.01975 | D24: 0.06792 | F24: =SUM(B24:D24) -> 1.81909 | G24: 4.96884 | J24: =SUM(F24:G24) -> 6.78793 | L24: ='Other Inputs'!G93 -> 7.98021 | M24: =J24-L24 -> -1.19228
A25: Block 2 | B25: =$C$17 -> 0.73142 | C25: =$F$17 -> 0.00834 | D25: =$D$24 -> 0.06792 | F25: =SUM(B25:D25) -> 0.80768 | G25: =G24 -> 4.96884 | J25: =SUM(F25:G25) -> 5.77652 | L25: ='Other Inputs'!$G$94 -> 7.73227 | M25: =J25-L25 -> -1.95575
A29: Total Rate Calculation With DSM Amortization Only | J29: =J22 ->  | L29: ='Other Inputs'!$J$93 -> 2015-02-01
A30: WY GS | B30: Base DNG | C30: CET | D30: DSM | F30: Total DNG | G30: Core Commodity Cost | J30: Total Rate | L30: Total Rate
A31: Block 1 | B31: =$C$16 -> 1.73142 | C31: 0.04505 | D31: =$F$6 -> 0.08332050447 | F31: =ROUND(SUM(B31:D31),5) -> 1.85979 | G31: =G24 -> 4.96884 | J31: =SUM(F31:I31) -> 6.82863 | L31: ='Other Inputs'!$G$86 -> 7.43283 | M31: =J31-L31 -> -0.6042
A32: Block 2 | B32: =$C$17 -> 0.73142 | C32: 0.02848 | D32: =$F$6 -> 0.08332050447 | F32: =ROUND(SUM(B32:D32),5) -> 0.84322 | G32: =G25 -> 4.96884 | J32: =SUM(F32:I32) -> 5.81206 | L32: ='Other Inputs'!$G$94 -> 7.73227 | M32: =J32-L32 -> -1.92021
A34: Total Rate Calculation With Core Commodity Cost Changes Only | J34: =J22 ->  | L34: ='Other Inputs'!$J$93 -> 2015-02-01
A35: WY GS | B35: Base DNG | C35: CET | D35: DSM | F35: Total DNG | G35: Core Commodity Cost | J35: Total Rate | L35: Total Rate
A36: Block 1 | B36: =$C$16 -> 1.73142 | C36: =C31 -> 0.04505 | D36: =D24 -> 0.06792 | F36: =SUM(B36:D36) -> 1.84439 | G36: =#REF! ->  | J36: =SUM(F36:I36) ->  | L36: ='Other Inputs'!$G$86 -> 7.43283 | M36: =J36-L36 -> 
A37: Block 2 | B37: =$C$17 -> 0.73142 | C37: =C32 -> 0.02848 | D37: =D25 -> 0.06792 | F37: =SUM(B37:D37) -> 0.82782 | G37: =#REF! ->  | J37: =SUM(F37:I37) ->  | L37: ='Other Inputs'!$G$94 -> 7.73227 | M37: =J37-L37 -> 
A39: Total Rate Calculation | J39: =J29 ->  | L39: ='Other Inputs'!$J$93 -> 2015-02-01
A40: WY GS | B40: Base DNG | C40: CET | D40: DSM | F40: Total DNG | G40: Core Commodity Cost | J40: Total Rate | L40: Total Rate
A41: Block 1 | B41: =$C$16 -> 1.73142 | C41: =$F$16 -> 0.01975 | D41: =$F$6 -> 0.08332050447 | F41: =SUM(B41:D41) -> 1.834490504 | G41: =#REF! ->  | J41: =SUM(F41:I41) ->  | L41: ='Other Inputs'!$G$86 -> 7.43283 | M41: =J41-L41 -> 
A42: Block 2 | B42: =$C$17 -> 0.73142 | C42: =$F$17 -> 0.00834 | D42: =$F$6 -> 0.08332050447 | F42: =SUM(B42:D42) -> 0.8230805045 | G42: =#REF! ->  | J42: =SUM(F42:I42) ->  | L42: ='Other Inputs'!$G$94 -> 7.73227 | M42: =J42-L42 -> 
A44: Typical Customer Difference - CET Amortization Only
B45: Typical
A46: GS | B46: Dth | C46: =O12 -> 2015-02-01 | D46: =J39 ->  | F46: Change | G46: % Change
A47: January | B47: 14.7 | C47: =ROUND($O$14+(B47*$O$18),2) -> 129.31 | D47: =ROUND($P$14+(B47*$P$18),2) -> 111.78 | F47: =D47-C47 -> -17.53
A48: February | B48: 14.1 | C48: =ROUND($O$14+(B48*$O$18),2) -> 124.52 | D48: =ROUND($P$14+(B48*$P$18),2) -> 107.71 | F48: =D48-C48 -> -16.81
A49: March | B49: 11.8 | C49: =ROUND($O$14+(B49*$O$18),2) -> 106.17 | D49: =ROUND($P$14+(B49*$P$18),2) -> 92.1 | F49: -14.07
A50: April | B50: 9.4 | C50: =ROUND($O$14+(B50*$O$16),2) -> 81.87 | D50: =ROUND($P$14+(B50*$P$16),2) -> 75.81 | F50: -6.06
A51: May | B51: 5.8 | C51: 55.11 | D51: =ROUND($P$14+(B51*$P$16),2) -> 51.37 | F51: -3.74
A52: June | B52: 3.7 | C52: 39.5 | D52: 37.12 | F52: -2.38
A53: July | B53: 2.3 | C53: 29.1 | D53: 27.61 | F53: -1.49
A54: August | B54: 1.7 | C54: 24.64 | D54: 23.54 | F54: -1.1
A55: September | B55: 2.1 | C55: 27.61 | D55: 26.25 | F55: -1.36
A56: October | B56: 4.1 | C56: 42.47 | D56: 39.83 | F56: -2.64
A57: November | B57: 8 | C57: =ROUND($O$14+(B57*$O$18),2) -> 75.84 | D57: =ROUND($P$14+(B57*$P$18),2) -> 66.3 | F57: -9.54
A58: December | B58: 12.3 | C58: =ROUND($O$14+(B58*$O$18),2) -> 110.16 | D58: =ROUND($P$14+(B58*$P$18),2) -> 95.49 | F58: -14.67
B59: =SUM(B47:B58) -> 90 | C59: =SUM(C47:C58) -> 846.3 | D59: =SUM(D47:D58) -> 754.91 | F59: =SUM(F47:F58) -> -91.39 | G59: =F59/C59 -> -0.1079877112
A62: Typical Customer Difference - DSM Amortization Only
B63: Typical
A64: GS | B64: Dth | C64: =C46 -> 2015-02-01 | D64: =D46 ->  | F64: Change | G64: % Change
A65: January | B65: 14.7 | C65: =ROUND($O$14+(B65*$O$18),2) -> 129.31 | D65: =ROUND($Q$14+(B65*$Q$18),2) -> 112.38 | F65: =D65-C65 -> -16.93
A66: February | B66: 14.1 | C66: =ROUND($O$14+(B66*$O$18),2) -> 124.52 | D66: =ROUND($Q$14+(B66*$Q$18),2) -> 108.28 | F66: =D66-C66 -> -16.24
A67: March | B67: 11.8 | C67: =ROUND($O$14+(B67*$O$18),2) -> 106.17 | D67: =ROUND($Q$14+(B67*$Q$18),2) -> 92.58 | F67: -13.59
A68: April | B68: 9.4 | C68: =ROUND($O$14+(B68*$O$16),2) -> 81.87 | D68: =ROUND($Q$14+(B68*$Q$16),2) -> 76.19 | F68: -5.68
A69: May | B69: 5.8 | C69: 55.11 | D69: 51.61 | F69: -3.5
A70: June | B70: 3.7 | C70: 39.5 | D70: 37.27 | F70: -2.23
A71: July | B71: 2.3 | C71: 29.1 | D71: 27.71 | F71: -1.39
A72: August | B72: 1.7 | C72: 24.64 | D72: 23.61 | F72: -1.03
A73: September | B73: 2.1 | C73: 27.61 | D73: 26.34 | F73: -1.27
A74: October | B74: 4.1 | C74: 42.47 | D74: 40 | F74: -2.47
A75: November | B75: 8 | C75: =ROUND($O$14+(B75*$O$18),2) -> 75.84 | D75: =ROUND($Q$14+(B75*$Q$18),2) -> 66.63 | F75: -9.21
A76: December | B76: 12.3 | C76: =ROUND($O$14+(B76*$O$18),2) -> 110.16 | D76: =ROUND($Q$14+(B76*$Q$18),2) -> 95.99 | F76: -14.17
B77: =SUM(B65:B76) -> 90 | C77: =SUM(C65:C76) -> 846.3 | D77: =SUM(D65:D76) -> 758.59 | F77: =SUM(F65:F76) -> -87.71 | G77: =F77/C77 -> -0.1036393714
A80: Typical Customer Difference - SNG and Commodity Changes Only
B81: Typical
A82: GS | B82: Dth | C82: =C64 -> 2015-02-01 | D82: =D64 ->  | F82: Change | G82: % Change
A83: January | B83: 14.7 | C83: =ROUND($O$14+(B83*$O$18),2) -> 129.31 | D83: =ROUND($R$14+(B83*$R$18),2) ->  | F83: =D83-C83 -> 
A84: February | B84: 14.1 | C84: =ROUND($O$14+(B84*$O$18),2) -> 124.52 | D84: =ROUND($R$14+(B84*$R$18),2) ->  | F84: =D84-C84 -> 
A85: March | B85: 11.8 | C85: =ROUND($O$14+(B85*$O$18),2) -> 106.17 | D85: =ROUND($R$14+(B85*$R$18),2) -> 
A86: April | B86: 9.4 | C86: =ROUND($O$14+(B86*$O$16),2) -> 81.87 | D86: =ROUND($R$14+(B86*$R$16),2) -> 
A87: May | B87: 5.8 | C87: 55.11
A88: June | B88: 3.7 | C88: 39.5
A89: July | B89: 2.3 | C89: 29.1
A90: August | B90: 1.7 | C90: 24.64
A91: September | B91: 2.1 | C91: 27.61
A92: October | B92: 4.1 | C92: 42.47
A93: November | B93: 8 | C93: =ROUND($O$14+(B93*$O$18),2) -> 75.84 | D93: =ROUND($R$14+(B93*$R$18),2) -> 
A94: December | B94: 12.3 | C94: =ROUND($O$14+(B94*$O$18),2) -> 110.16 | D94: =ROUND($R$14+(B94*$R$18),2) -> 
B95: =SUM(B83:B94) -> 90 | C95: =SUM(C83:C94) -> 846.3 | D95: =SUM(D83:D94) ->  | F95: =SUM(F83:F94) ->  | G95: =F95/C95 -> 
A98: Typical Customer Difference - CET & DSM Amort, SNG and Commodity Changes
B99: Typical
A100: GS | B100: Dth | C100: =C46 -> 2015-02-01 | D100: =D46 ->  | F100: Change | G100: % Change
A101: January | B101: 14.7 | C101: =ROUND($O$14+(B101*$O$18),2) -> 129.31 | D101: =ROUND($S$14+(B101*$S$18),2) ->  | F101: =D101-C101 -> 
A102: February | B102: 14.1 | C102: =ROUND($O$14+(B102*$O$18),2) -> 124.52 | D102: =ROUND($S$14+(B102*$S$18),2) ->  | F102: =D102-C102 -> 
A103: March | B103: 11.8 | C103: =ROUND($O$14+(B103*$O$18),2) -> 106.17 | D103: =ROUND($S$14+(B103*$S$18),2) -> 
A104: April | B104: 9.4 | C104: =ROUND($O$14+(B104*$O$16),2) -> 81.87 | D104: =ROUND($S$14+(B104*$S$16),2) -> 
A105: May | B105: 5.8 | C105: 55.11
A106: June | B106: 3.7 | C106: 39.5
A107: July | B107: 2.3 | C107: 29.1
A108: August | B108: 1.7 | C108: 24.64
A109: September | B109: 2.1 | C109: 27.61
A110: October | B110: 4.1 | C110: 42.47
A111: November | B111: 8 | C111: =ROUND($O$14+(B111*$O$18),2) -> 75.84 | D111: =ROUND($S$14+(B111*$S$18),2) -> 
A112: December | B112: 12.3 | C112: =ROUND($O$14+(B112*$O$18),2) -> 110.16 | D112: =ROUND($S$14+(B112*$S$18),2) -> 
B113: =SUM(B101:B112) -> 90 | C113: =SUM(C101:C112) -> 846.3 | D113: =SUM(D101:D112) ->  | F113: =SUM(F101:F112) ->  | G113: =F113/C113 -> 

Sheet Calculations
A1: GAS BALANCE FOR 12 MONTHS ENDING: _________________
D3: SALES VOLUMES IN DECATHERMS (12 Months of Forecast)
D4: Forecast | E4: Forecast | F4: Forecast | G4: Forecast | H4: Forecast | I4: Forecast | J4: Forecast | K4: Forecast | L4: Forecast | M4: Forecast | N4: Forecast | O4: Forecast | P4: 12-Month
A5: RATE CLASS | D5: ='Monthly Inputs'!G3 -> Jun15 | E5: ='Monthly Inputs'!H3 -> Jul15 | F5: ='Monthly Inputs'!I3 -> Aug15 | G5: ='Monthly Inputs'!J3 -> Sep15 | H5: ='Monthly Inputs'!K3 -> Oct15 | I5: ='Monthly Inputs'!L3 -> Nov15 | J5: ='Monthly Inputs'!M3 -> Dec15 | K5: ='Monthly Inputs'!N3 -> Jan16 | L5: ='Monthly Inputs'!O3 -> Feb16 | M5: ='Monthly Inputs'!P3 -> Mar16 | N5: ='Monthly Inputs'!Q3 -> Apr16 | O5: ='Monthly Inputs'!R3 -> May16 | P5: Total
A6: UTAH | D6: =MONTH(D5) -> 6 | E6: =MONTH(E5) -> 7 | F6: 8 | G6: 9 | H6: 10 | I6: 11 | J6: 12 | K6: 1 | L6: 2 | M6: 3 | N6: 4 | O6: 5
B7: GSR | D7: ='RevRun Fcst'!H21 -> 2731363 | E7: ='RevRun Fcst'!I21 -> 2180295 | F7: ='RevRun Fcst'!J21 -> 2138770 | G7: ='RevRun Fcst'!K21 -> 3207892 | H7: ='RevRun Fcst'!L21 -> 6056697 | I7: ='RevRun Fcst'!M21 -> 11091732 | J7: ='RevRun Fcst'!N21 -> 16639949 | K7: ='RevRun Fcst'!O21 -> 19263335 | L7: ='RevRun Fcst'!P21 -> 15504726 | M7: ='RevRun Fcst'!Q21 -> 11171046 | N7: ='RevRun Fcst'!R21 -> 8088403 | O7: ='RevRun Fcst'!S21 -> 4167656 | P7: =SUM(D7:O7) -> 102241864
B8: GSC | D8: ='RevRun Fcst'!H30 -> 0 | E8: ='RevRun Fcst'!I30 -> 0 | F8: ='RevRun Fcst'!J30 -> 0 | G8: ='RevRun Fcst'!K30 -> 0 | H8: ='RevRun Fcst'!L30 -> 0 | I8: ='RevRun Fcst'!M30 -> 0 | J8: ='RevRun Fcst'!N30 -> 0 | K8: ='RevRun Fcst'!O30 -> 0 | L8: ='RevRun Fcst'!P30 -> 0 | M8: ='RevRun Fcst'!Q30 -> 0 | N8: ='RevRun Fcst'!R30 -> 0 | O8: ='RevRun Fcst'!S30 -> 0 | P8: 0
B9: GSS | D9: ='RevRun Fcst'!H39 -> 0 | E9: ='RevRun Fcst'!I39 -> 0 | F9: ='RevRun Fcst'!J39 -> 0 | G9: ='RevRun Fcst'!K39 -> 0 | H9: ='RevRun Fcst'!L39 -> 0 | I9: ='RevRun Fcst'!M39 -> 0 | J9: ='RevRun Fcst'!N39 -> 0 | K9: ='RevRun Fcst'!O39 -> 0 | L9: ='RevRun Fcst'!P39 -> 0 | M9: ='RevRun Fcst'!Q39 -> 0 | N9: ='RevRun Fcst'!R39 -> 0 | O9: ='RevRun Fcst'!S39 -> 0 | P9: 0
B10: F-1 | D10: ='RevRun Fcst'!H48 -> 346138 | E10: ='RevRun Fcst'!I48 -> 297931 | F10: ='RevRun Fcst'!J48 -> 295420 | G10: ='RevRun Fcst'!K48 -> 337785 | H10: ='RevRun Fcst'!L48 -> 374570 | I10: ='RevRun Fcst'!M48 -> 498989 | J10: ='RevRun Fcst'!N48 -> 540419 | K10: ='RevRun Fcst'!O48 -> 545626 | L10: ='RevRun Fcst'!P48 -> 496246 | M10: ='RevRun Fcst'!Q48 -> 417275 | N10: ='RevRun Fcst'!R48 -> 380253 | O10: ='RevRun Fcst'!S48 -> 357199 | P10: 4887851
B11: F-4 | D11: ='RevRun Fcst'!H75 -> 0 | E11: ='RevRun Fcst'!I75 -> 0 | F11: ='RevRun Fcst'!J75 -> 0 | G11: ='RevRun Fcst'!K75 -> 0 | H11: ='RevRun Fcst'!L75 -> 0 | I11: ='RevRun Fcst'!M75 -> 0 | J11: ='RevRun Fcst'!N75 -> 0 | K11: ='RevRun Fcst'!O75 -> 0 | L11: ='RevRun Fcst'!P75 -> 0 | M11: ='RevRun Fcst'!Q75 -> 0 | N11: ='RevRun Fcst'!R75 -> 0 | O11: ='RevRun Fcst'!S75 -> 0 | P11: 0
B12: NGV | D12: ='RevRun Fcst'!H66 -> 56410 | E12: ='RevRun Fcst'!I66 -> 59086 | F12: ='RevRun Fcst'!J66 -> 66544 | G12: ='RevRun Fcst'!K66 -> 56704 | H12: ='RevRun Fcst'!L66 -> 60089 | I12: ='RevRun Fcst'!M66 -> 59076 | J12: ='RevRun Fcst'!N66 -> 54878 | K12: ='RevRun Fcst'!O66 -> 52870 | L12: ='RevRun Fcst'!P66 -> 52761 | M12: ='RevRun Fcst'!Q66 -> 60726 | N12: ='RevRun Fcst'!R66 -> 52199 | O12: ='RevRun Fcst'!S66 -> 73666 | P12: 705009
A13: Total Firm Sales | D13: =SUM(D7:D12) -> 3133911 | E13: 2537312 | F13: =SUM(F7:F12) -> 2500734 | G13: 3602381 | H13: 6491356 | I13: 11649797 | J13: 17235246 | K13: 19861831 | L13: 16053733 | M13: 11649047 | N13: 8520855 | O13: 4598521 | P13: =SUM(P7:P12) -> 107834724
B15: I-4 | D15: ='RevRun Fcst'!H102 -> 202960 | E15: ='RevRun Fcst'!I102 -> 200475 | F15: ='RevRun Fcst'!J102 -> 224055 | G15: ='RevRun Fcst'!K102 -> 198725 | H15: ='RevRun Fcst'!L102 -> 228898 | I15: ='RevRun Fcst'!M102 -> 262136 | J15: ='RevRun Fcst'!N102 -> 235392 | K15: ='RevRun Fcst'!O102 -> 254475 | L15: ='RevRun Fcst'!P102 -> 245446 | M15: ='RevRun Fcst'!Q102 -> 212089 | N15: ='RevRun Fcst'!R102 -> 193697 | O15: ='RevRun Fcst'!S102 -> 189673 | P15: =SUM(D15:O15) -> 2648021
B16: IS-4 | D16: ='RevRun Fcst'!H93 -> 0 | E16: ='RevRun Fcst'!I93 -> 0 | F16: ='RevRun Fcst'!J93 -> 0 | G16: ='RevRun Fcst'!K93 -> 0 | H16: ='RevRun Fcst'!L93 -> 0 | I16: ='RevRun Fcst'!M93 -> 0 | J16: ='RevRun Fcst'!N93 -> 0 | K16: ='RevRun Fcst'!O93 -> 0 | L16: ='RevRun Fcst'!P93 -> 0 | M16: ='RevRun Fcst'!Q93 -> 0 | N16: ='RevRun Fcst'!R93 -> 0 | O16: ='RevRun Fcst'!S93 -> 0 | P16: =SUM(D16:O16) -> 0
A17: Total Interruptible Sales | D17: =SUM(D15:D16) -> 202960 | E17: 200475 | F17: 224055 | G17: 198725 | H17: 228898 | I17: 262136 | J17: 235392 | K17: 254475 | L17: 245446 | M17: 212089 | N17: 193697 | O17: 189673 | P17: 2648021
A20: Total Utah Sales | D20: =+D13+D17 -> 3336871 | E20: =+E13+E17 -> 2737787 | F20: =+F13+F17 -> 2724789 | G20: 3801106 | H20: 6720254 | I20: 11911933 | J20: 17470638 | K20: 20116306 | L20: 16299179 | M20: 11861136 | N20: 8714552 | O20: 4788194 | P20: =+P13+P17 -> 110482745
A22: Total Utah Transportation | D22: ='RevRun Fcst'!H204 -> 7166421 | E22: ='RevRun Fcst'!I204 -> 7351965 | F22: ='RevRun Fcst'!J204 -> 7352843 | G22: ='RevRun Fcst'!K204 -> 6858792 | H22: ='RevRun Fcst'!L204 -> 7623164 | I22: ='RevRun Fcst'!M204 -> 7348389 | J22: ='RevRun Fcst'!N204 -> 8492424 | K22: ='RevRun Fcst'!O204 -> 8198246 | L22: ='RevRun Fcst'!P204 -> 7854174 | M22: ='RevRun Fcst'!Q204 -> 7263529 | N22: ='RevRun Fcst'!R204 -> 6636481 | O22: ='RevRun Fcst'!S204 -> 6560394 | P22: =SUM(D22:O22) -> 88706822
A25: Total Utah Sales & Trans | D25: =+D20+D22 -> 10503292 | E25: 10089752 | F25: 10077632 | G25: 10659898 | H25: 14343418 | I25: 19260322 | J25: 25963062 | K25: 28314552 | L25: 24153353 | M25: 19124665 | N25: 15351033 | O25: 11348588 | P25: 199189567
A27: WYOMING
A28: GS-1 | D28: ='RevRun Fcst'!H244 -> 104709 | E28: ='RevRun Fcst'!I244 -> 71757 | F28: ='RevRun Fcst'!J244 -> 62710 | G28: ='RevRun Fcst'!K244 -> 127121 | H28: ='RevRun Fcst'!L244 -> 221194 | I28: ='RevRun Fcst'!M244 -> 380741 | J28: ='RevRun Fcst'!N244 -> 544705 | K28: ='RevRun Fcst'!O244 -> 596097 | L28: ='RevRun Fcst'!P244 -> 550599 | M28: ='RevRun Fcst'!Q244 -> 442361 | N28: ='RevRun Fcst'!R244 -> 315098 | O28: ='RevRun Fcst'!S244 -> 203685 | P28: =SUM(D28:O28) -> 3620777
A29: GS-W | D29: ='RevRun Fcst'!H271 -> 0 | E29: ='RevRun Fcst'!I271 -> 0 | F29: ='RevRun Fcst'!J271 -> 0 | G29: ='RevRun Fcst'!K271 -> 0 | H29: ='RevRun Fcst'!L271 -> 0 | I29: ='RevRun Fcst'!M271 -> 0 | J29: ='RevRun Fcst'!N271 -> 0 | K29: ='RevRun Fcst'!O271 -> 0 | L29: ='RevRun Fcst'!P271 -> 0 | M29: ='RevRun Fcst'!Q271 -> 0 | N29: ='RevRun Fcst'!R271 -> 0 | O29: ='RevRun Fcst'!S271 -> 0 | P29: =SUM(D29:O29) -> 0
A30: F-1 | D30: ='RevRun Fcst'!H253 -> 14444 | E30: ='RevRun Fcst'!I253 -> 10882 | F30: ='RevRun Fcst'!J253 -> 9463 | G30: ='RevRun Fcst'!K253 -> 12311 | H30: ='RevRun Fcst'!L253 -> 14772 | I30: ='RevRun Fcst'!M253 -> 19655 | J30: ='RevRun Fcst'!N253 -> 23669 | K30: ='RevRun Fcst'!O253 -> 25555 | L30: ='RevRun Fcst'!P253 -> 25871 | M30: ='RevRun Fcst'!Q253 -> 22930 | N30: ='RevRun Fcst'!R253 -> 20101 | O30: ='RevRun Fcst'!S253 -> 17184 | P30: =SUM(D30:O30) -> 216837
A31: NGV | D31: ='RevRun Fcst'!H262 -> 1427 | E31: ='RevRun Fcst'!I262 -> 1794 | F31: ='RevRun Fcst'!J262 -> 2156 | G31: ='RevRun Fcst'!K262 -> 1766 | H31: ='RevRun Fcst'!L262 -> 2102 | I31: ='RevRun Fcst'!M262 -> 2020 | J31: ='RevRun Fcst'!N262 -> 1780 | K31: ='RevRun Fcst'!O262 -> 1066 | L31: ='RevRun Fcst'!P262 -> 1318 | M31: ='RevRun Fcst'!Q262 -> 1358 | N31: ='RevRun Fcst'!R262 -> 1379 | O31: ='RevRun Fcst'!S262 -> 1954 | P31: =SUM(D31:O31) -> 20120
A32: Total Firm Sales | D32: =SUM(D28:D31) -> 120580 | E32: 84433 | F32: 74329 | G32: 141198 | H32: 238068 | I32: 402416 | J32: 570154 | K32: 622718 | L32: 577788 | M32: 466649 | N32: 336578 | O32: 222823 | P32: 3857734
A34: I-2 | D34: ='RevRun Fcst'!H280 -> 8605 | E34: ='RevRun Fcst'!I280 -> 7971 | F34: ='RevRun Fcst'!J280 -> 7880 | G34: ='RevRun Fcst'!K280 -> 9166 | H34: ='RevRun Fcst'!L280 -> 14042 | I34: ='RevRun Fcst'!M280 -> 15230 | J34: ='RevRun Fcst'!N280 -> 21366 | K34: ='RevRun Fcst'!O280 -> 21826 | L34: ='RevRun Fcst'!P280 -> 19215 | M34: ='RevRun Fcst'!Q280 -> 18337 | N34: ='RevRun Fcst'!R280 -> 12923 | O34: ='RevRun Fcst'!S280 -> 14770 | P34: =SUM(D34:O34) -> 171331
A35: I-4 | D35: ='RevRun Fcst'!H289 -> 0 | E35: ='RevRun Fcst'!I289 -> 0 | F35: ='RevRun Fcst'!J289 -> 0 | G35: ='RevRun Fcst'!K289 -> 0 | H35: ='RevRun Fcst'!L289 -> 0 | I35: ='RevRun Fcst'!M289 -> 0 | J35: ='RevRun Fcst'!N289 -> 0 | K35: ='RevRun Fcst'!O289 -> 0 | L35: ='RevRun Fcst'!P289 -> 0 | M35: ='RevRun Fcst'!Q289 -> 0 | N35: ='RevRun Fcst'!R289 -> 0 | O35: ='RevRun Fcst'!S289 -> 0 | P35: =SUM(D35:O35) -> 0
A36: Total Interruptible Sales | D36: =SUM(D34:D35) -> 8605 | E36: 7971 | F36: 7880 | G36: 9166 | H36: 14042 | I36: 15230 | J36: 21366 | K36: 21826 | L36: 19215 | M36: 18337 | N36: 12923 | O36: 14770 | P36: 171331
A39: Total Wyoming Sales | D39: =+D32+D36 -> 129185 | E39: 92404 | F39: 82209 | G39: 150364 | H39: 252110 | I39: 417646 | J39: 591520 | K39: 644544 | L39: 597003 | M39: 484986 | N39: 349501 | O39: 237593 | P39: 4029065
A41: Total Wyoming Transportation | D41: ='RevRun Fcst'!H328 -> 24113 | E41: ='RevRun Fcst'!I328 -> 31649 | F41: ='RevRun Fcst'!J328 -> 21226 | G41: ='RevRun Fcst'!K328 -> 42391 | H41: ='RevRun Fcst'!L328 -> 37336 | I41: ='RevRun Fcst'!M328 -> 26533 | J41: ='RevRun Fcst'!N328 -> 72507 | K41: ='RevRun Fcst'!O328 -> 72713 | L41: ='RevRun Fcst'!P328 -> 69316 | M41: ='RevRun Fcst'!Q328 -> 42949 | N41: ='RevRun Fcst'!R328 -> 52186 | O41: ='RevRun Fcst'!S328 -> 78857 | P41: =SUM(D41:O41) -> 571776
A44: Total Wyoming Sales & Trans | D44: =+D39+D41 -> 153298 | E44: 124053 | F44: 103435 | G44: 192755 | H44: 289446 | I44: 444179 | J44: 664027 | K44: 717257 | L44: 666319 | M44: 527935 | N44: 401687 | O44: 316450 | P44: 4600841
A47: Total System Sales and Trans | D47: =+D25+D44 -> 10656590 | E47: 10213805 | F47: 10181067 | G47: 10852653 | H47: 14632864 | I47: 19704501 | J47: 26627089 | K47: 29031809 | L47: 24819672 | M47: 19652600 | N47: 15752720 | O47: =+O25+O44 -> 11665038 | P47: 203790408
A49: Usage by Season
C50: Month | D50: =MONTH(D5) -> 6 | E50: 7 | F50: 8 | G50: 9 | H50: 10 | I50: 11 | J50: 12 | K50: 1 | L50: 2 | M50: 3 | N50: 4 | O50: 5
A51: GS | C51: Season (0=Winter, 1=Summer) | D51: =IF(D$50<4,0,IF(D$50>10,0,1)) -> 1 | E51: =IF(E$50<4,0,IF(E$50>10,0,1)) -> 1 | F51: 1 | G51: 1 | H51: 1 | I51: 0 | J51: 0 | K51: 0 | L51: 0 | M51: 0 | N51: 1 | O51: 1 | P51: Total
B52: Winter | D52: =IF(D51=0,D7+D8,0) -> 0 | E52: =IF(E51=0,E7+E8,0) -> 0 | F52: 0 | G52: 0 | H52: 0 | I52: 11091732 | J52: 16639949 | K52: 19263335 | L52: 15504726 | M52: 11171046 | N52: 0 | O52: 0 | P52: =SUM(D52:O52) -> 73670788 | Q52: =SUM(G52:I52) -> 11091732
B53: Summer | D53: =IF(D51=1,D7+D8,0) -> 2731363 | E53: 2180295 | F53: 2138770 | G53: 3207892 | H53: 6056697 | I53: 0 | J53: 0 | K53: 0 | L53: 0 | M53: 0 | N53: 8088403 | O53: 4167656 | P53: =SUM(D53:O53) -> 28571076 | Q53: =P52+P53-Q52 -> 91150132
A54: GSS
B55: Winter | D55: =IF(D51=0,D9,0) -> 0 | E55: 0 | F55: 0 | G55: 0 | H55: 0 | I55: 0 | J55: 0 | K55: 0 | L55: 0 | M55: 0 | N55: 0 | O55: 0 | P55: =SUM(D55:O55) -> 0
B56: Summer | D56: =IF(D51=1,D9,0) -> 0 | E56: 0 | F56: 0 | G56: 0 | H56: 0 | I56: 0 | J56: 0 | K56: 0 | L56: 0 | M56: 0 | N56: 0 | O56: 0 | P56: =SUM(D56:O56) -> 0
A57: F-S
B58: Winter | D58: =IF(D51=0,D10,0) -> 0 | E58: 0 | F58: 0 | G58: 0 | H58: 0 | I58: 498989 | J58: 540419 | K58: 545626 | L58: 496246 | M58: 417275 | N58: 0 | O58: 0 | P58: =SUM(D58:O58) -> 2498555 | Q58: =SUM(G58:I58) -> 498989
B59: Summer | D59: =IF(D51=1,D10,0) -> 346138 | E59: 297931 | F59: 295420 | G59: 337785 | H59: 374570 | I59: 0 | J59: 0 | K59: 0 | L59: 0 | M59: 0 | N59: 380253 | O59: 357199 | P59: =SUM(D59:O59) -> 2389296 | Q59: =P58+P59-Q58 -> 4388862
B62: Rates: R050201.R1 | C62: WYOMING NON-CORE DNG REVENUES FROM DEMAND FORECAST AND CURRENTLY EFFECTIVE I-SALES GAS COST RATES
D63: Forecast | E63: Forecast | F63: Forecast | G63: Forecast | H63: Forecast | I63: Forecast | J63: Forecast | K63: Forecast | L63: Forecast | M63: Forecast | N63: Forecast | O63: Forecast | P63: 12-Month
D64: =D5 -> Jun15 | E64: =E5 -> Jul15 | F64: =F5 -> Aug15 | G64: Sep15 | H64: Oct15 | I64: Nov15 | J64: Dec15 | K64: Jan16 | L64: Feb16 | M64: Mar16 | N64: Apr16 | O64: May16 | P64: Total
A65: I-2 & 1-4 (Non-Gas Revenue) (Yearly) | D65: ='RevRun Fcst'!H273+'RevRun Fcst'!H282 -> 3176.58 | E65: ='RevRun Fcst'!I273+'RevRun Fcst'!I282 -> 3017.12 | F65: ='RevRun Fcst'!J273+'RevRun Fcst'!J282 -> 2994.23 | G65: ='RevRun Fcst'!K273+'RevRun Fcst'!K282 -> 3317.67 | H65: ='RevRun Fcst'!L273+'RevRun Fcst'!L282 -> 4543.93 | I65: ='RevRun Fcst'!M273+'RevRun Fcst'!M282 -> 4842.7 | J65: ='RevRun Fcst'!N273+'RevRun Fcst'!N282 -> 6385.85 | K65: ='RevRun Fcst'!O273+'RevRun Fcst'!O282 -> 6501.52 | L65: ='RevRun Fcst'!P273+'RevRun Fcst'!P282 -> 5844.88 | M65: ='RevRun Fcst'!Q273+'RevRun Fcst'!Q282 -> 5624.07 | N65: ='RevRun Fcst'!R273+'RevRun Fcst'!R282 -> 4262.5 | O65: ='RevRun Fcst'!S273+'RevRun Fcst'!S282 -> 4727.01 | P65: =SUM(D65:O65) -> 55238.06
A66: IC (Total Revenue) (Yearly) | D66: =ROUND(D41*$P66/$P41,0) -> 4795 | E66: 6293 | F66: 4220 | G66: 8429 | H66: 7424 | I66: 5276 | J66: 14417 | K66: 14458 | L66: 13782 | M66: 8540 | N66: 10376 | O66: =P66-SUM(D66:N66) -> 15679.07 | P66: ='RevRun Fcst'!T300+'RevRun Fcst'!T314 -> 113689.07
A68: ="I-2 Gas Cost (Rate Effective "&'Other Inputs'!E66&")" -> I-2 Gas Cost (Rate Effective 11/1/2005) | D68: ='Other Inputs'!E69 -> 0 | E68: =+D68 -> 0 | F68: 0 | G68: 0 | H68: 0 | I68: 0 | J68: 0 | K68: 0 | L68: 0 | M68: 0 | N68: 0 | O68: 0
A69: ="I-4 Gas Cost (Rate Effective "&'Other Inputs'!F66&")" -> I-4 Gas Cost (Rate Effective 7/31/2009) | D69: ='Other Inputs'!F69 -> 3.78635 | E69: =+D69 -> 3.78635 | F69: 3.78635 | G69: 3.78635 | H69: 3.78635 | I69: 3.78635 | J69: 3.78635 | K69: 3.78635 | L69: 3.78635 | M69: 3.78635 | N69: 3.78635 | O69: 3.78635
D72: ALLOCATION BASES
D73: DEMAND | G73: OTHER COST
A74: Utah Peak Day Demand | D74: =+D76-D75 -> 1263667 | E74: =D74/D76 -> 0.9699020862 | G74: Utah Sales | H74: =+P20 -> 110482745 | I74: =H74/H76 -> 0.9648152885
A75: Wyoming Peak Day Demand | D75: ='Other Inputs'!E130 -> 39214 | E75: =1-E74 -> 0.03009791378 | G75: Wyoming Sales | H75: =+P39 -> 4029065 | I75: =1-I74 -> 0.03518471152
A76: Peak Day Demand | D76: ='Other Inputs'!E131 -> 1302881 | E76: =ROUND(D76/D$76,4) -> 1 | G76: Total Sales | H76: =+H74+H75 -> 114511810 | I76: =ROUND(H76/H$76,4) -> 1
D79: Financial Report Information (Latest 12 Months of Actual Expenses and 13 Months of Rate Base)
D80: Actual | E80: Actual | F80: Actual | G80: Actual | H80: Actual | I80: Actual | J80: Actual | K80: Actual | L80: Actual | M80: Actual | N80: Actual | O80: Actual
A81: Accounts | D81: =Expenses!J9 -> 2014-07-01 | E81: =Expenses!K9 -> 2014-08-01 | F81: =Expenses!L9 -> 2014-09-01 | G81: =Expenses!M9 -> 2014-10-01 | H81: =Expenses!N9 -> 2014-11-01 | I81: =Expenses!O9 -> 2014-12-01 | J81: =Expenses!P9 -> 2015-01-01 | K81: =Expenses!Q9 -> 2015-02-01 | L81: =Expenses!R9 -> 2015-03-01 | M81: =Expenses!G9 -> 2014-04-01 | N81: =Expenses!H9 -> 2014-05-01 | O81: =Expenses!I9 -> 2014-06-01 | P81: =+'Monthly Inputs'!S3 -> May16
A82: EXPENSES
B83: Gas Use In Dth (Acct 810 & 812) | D83: 0 | E83: 0 | F83: 0 | G83: 0 | H83: 0 | I83: 0 | J83: 0 | K83: 0 | L83: 0 | M83: 0 | N83: 0 | O83: 0 | P83: =SUM(D83:O83) -> 0
B85: Other Revenue (Yearly)
B86: Sales for Resale (account 483) | D86: =Expenses!J445 -> 360254.28 | E86: =Expenses!K445 -> 422737.5 | F86: =Expenses!L445 -> 385189.97 | G86: =Expenses!M445 -> 264701.82 | H86: =Expenses!N445 -> 431109.9 | I86: =Expenses!O445 -> 240381.04 | J86: =Expenses!P445 -> 352021.09 | K86: =Expenses!Q445 -> 306803.97 | L86: =Expenses!R445 -> 210363.93 | M86: =Expenses!G445 -> 482844.32 | N86: =Expenses!H445 -> 386906.98 | O86: =Expenses!I445 -> 297005.47 | P86: =SUM(D86:O86) -> 4140320.27
B87: Incidental Plant Prod Sales (Acct 490) | D87: =Expenses!J446 -> 545078.25 | E87: =Expenses!K446 -> 892809.25 | F87: =Expenses!L446 -> 604993.77 | G87: =Expenses!M446 -> 810197.98 | H87: =Expenses!N446 -> 939463.24 | I87: =Expenses!O446 -> 844351.44 | J87: =Expenses!P446 -> 610520.79 | K87: =Expenses!Q446 -> 364292.21 | L87: =Expenses!R446 -> 345338.15 | M87: =Expenses!G446 -> 570422.87 | N87: =Expenses!H446 -> 66701.74 | O87: =Expenses!I446 -> 646109.25 | P87: =SUM(D87:O87) -> 7240278.94
B88: Gas Processed by Others (account 491) | D88: =Expenses!J461 -> 0 | E88: =Expenses!K461 -> 0 | F88: =Expenses!L461 -> 0 | G88: =Expenses!M461 -> 0 | H88: =Expenses!N461 -> 0 | I88: =Expenses!O461 -> 0 | J88: =Expenses!P461 -> 0 | K88: =Expenses!Q461 -> 0 | L88: =Expenses!R461 -> 0 | M88: =Expenses!G461 -> 0 | N88: =Expenses!H461 -> 0 | O88: =Expenses!I461 -> 0 | P88: =SUM(D88:O88) -> 0
B89: Gasoline - Oil Sales (account 492) | D89: =Expenses!J447 -> 339266.74 | E89: =Expenses!K447 -> 275951.21 | F89: =Expenses!L447 -> 167786.76 | G89: =Expenses!M447 -> 149260.02 | H89: =Expenses!N447 -> 131467.64 | I89: =Expenses!O447 -> 175410.47 | J89: =Expenses!P447 -> 123658.45 | K89: =Expenses!Q447 -> 143687.47 | L89: =Expenses!R447 -> 68503.83 | M89: =Expenses!G447 -> 205916.78 | N89: =Expenses!H447 -> 290565.3 | O89: =Expenses!I447 -> 215010.66 | P89: =SUM(D89:O89) -> 2286485.33
B90: Gasoline - Oil Cost (account 758.001) | D90: =-Expenses!J450 -> -55547.94 | E90: =-Expenses!K450 -> -42487.02 | F90: =-Expenses!L450 -> -27726.92 | G90: =-Expenses!M450 -> -24473.79 | H90: =-Expenses!N450 -> -35445.14 | I90: =-Expenses!O450 -> -26866.01 | J90: =-Expenses!P450 -> -20397.98 | K90: =-Expenses!Q450 -> -23435.82 | L90: =-Expenses!R450 -> -11271.11 | M90: =-Expenses!G450 -> -33676.42 | N90: =-Expenses!H450 -> -46868.47 | O90: =-Expenses!I450 -> -35513.94 | P90: =SUM(D90:O90) -> -383710.56
B93: Overriding Royalty (account 495-1) | D93: =Expenses!J448 -> 1624327.84 | E93: =Expenses!K448 -> 1664443.26 | F93: =Expenses!L448 -> 1799581.52 | G93: =Expenses!M448 -> 1521451.99 | H93: =Expenses!N448 -> 1394710.96 | I93: =Expenses!O448 -> 1413000.66 | J93: =Expenses!P448 -> 1176752.57 | K93: =Expenses!Q448 -> 1274375.72 | L93: =Expenses!R448 -> 933484.78 | M93: =Expenses!G448 -> 1694361.11 | N93: =Expenses!H448 -> 1724812.65 | O93: =Expenses!I448 -> 1524511.55 | P93: =SUM(D93:O93) -> 17745814.61
B94: Wexpro Revenue Sharing (account 495-2) | D94: =Expenses!J449 -> 0 | E94: =Expenses!K449 -> 0 | F94: =Expenses!L449 -> -146492 | G94: =Expenses!M449 -> 0 | H94: =Expenses!N449 -> 0 | I94: =Expenses!O449 -> 0 | J94: =Expenses!P449 -> 0 | K94: =Expenses!Q449 -> 0 | L94: =Expenses!R449 -> 0 | M94: =Expenses!G449 -> 0 | N94: =Expenses!H449 -> 0 | O94: =Expenses!I449 -> 0 | P94: =SUM(D94:O94) -> -146492
P95: Page 2 of 6
C96: Actual | D96: Actual | E96: Actual | F96: Actual | G96: Actual | H96: Actual | I96: Actual | J96: Actual | K96: Actual | L96: Actual | M96: Actual | N96: Actual | O96: Actual | P96: 13-Month
A97: Accounts | C97: ='Rate Base'!H8 -> 2014-03-21 | D97: ='Rate Base'!I8 -> 2014-04-20 | E97: ='Rate Base'!J8 -> 2014-05-20 | F97: ='Rate Base'!K8 -> 2014-06-19 | G97: ='Rate Base'!L8 -> 2014-07-19 | H97: ='Rate Base'!M8 -> 2014-08-18 | I97: ='Rate Base'!N8 -> 2014-09-17 | J97: ='Rate Base'!O8 -> 2014-10-17 | K97: ='Rate Base'!P8 -> 2014-11-16 | L97: ='Rate Base'!Q8 -> 2014-12-16 | M97: ='Rate Base'!R8 -> 2015-01-15 | N97: ='Rate Base'!S8 -> 2015-02-14 | O97: ='Rate Base'!T8 -> 2015-03-16 | P97: Average
A98: RATE BASE - PRODUCTION
B99: Acct 164 (Working Gas) - Production | C99: ='Rate Base'!H216 -> 6166884.89 | D99: ='Rate Base'!I216 -> 4699533.51 | E99: ='Rate Base'!J216 -> 13360087 | F99: ='Rate Base'!K216 -> 27776654.2 | G99: ='Rate Base'!L216 -> 42002346.57 | H99: ='Rate Base'!M216 -> 56135251.62 | I99: ='Rate Base'!N216 -> 66798582.12 | J99: ='Rate Base'!O216 -> 69627001.85 | K99: ='Rate Base'!P216 -> 59708122.01 | L99: ='Rate Base'!Q216 -> 40325369.94 | M99: ='Rate Base'!R216 -> 30248596.29 | N99: ='Rate Base'!S216 -> 14896410.62 | O99: ='Rate Base'!T216 -> 9447138.71 | P99: =(((+C99+O99)/2)+SUM(D99:N99))/12 -> 36115413.96
B100: Acct 101 - Production | C100: ='Rate Base'!H158 -> 81179889.44 | D100: ='Rate Base'!I158 -> 81179889.44 | E100: ='Rate Base'!J158 -> 81179889.44 | F100: ='Rate Base'!K158 -> 79968136.83 | G100: ='Rate Base'!L158 -> 79968136.83 | H100: ='Rate Base'!M158 -> 79968136.83 | I100: ='Rate Base'!N158 -> 79968136.83 | J100: ='Rate Base'!O158 -> 79968136.83 | K100: ='Rate Base'!P158 -> 79968136.83 | L100: ='Rate Base'!Q158 -> 79968136.83 | M100: ='Rate Base'!R158 -> 79968136.83 | N100: ='Rate Base'!S158 -> 79968136.83 | O100: ='Rate Base'!T158 -> 79968136.83 | P100: 80220585.29
B101: Acct 108 - Production | C101: ='Rate Base'!H176 -> -68129649.47 | D101: ='Rate Base'!I176 -> -68224081.55 | E101: ='Rate Base'!J176 -> -68304512.95 | F101: ='Rate Base'!K176 -> -67171390.31 | G101: ='Rate Base'!L176 -> -67270278.51 | H101: ='Rate Base'!M176 -> -67313568.07 | I101: ='Rate Base'!N176 -> -67341847.47 | J101: ='Rate Base'!O176 -> -67370368.33 | K101: ='Rate Base'!P176 -> -67417957.61 | L101: ='Rate Base'!Q176 -> -67503017.46 | M101: ='Rate Base'!R176 -> -67590733.85 | N101: ='Rate Base'!S176 -> -67644222.63 | O101: ='Rate Base'!T176 -> -67710115.81 | P101: -67589321.78
B102: Acct 111 - Production | C102: ='Rate Base'!H183 -> -6080432.19 | D102: ='Rate Base'!I183 -> -6082750.98 | E102: ='Rate Base'!J183 -> -6084703.26 | F102: ='Rate Base'!K183 -> -6086682.23 | G102: ='Rate Base'!L183 -> -6089142.24 | H102: ='Rate Base'!M183 -> -6090167.45 | I102: ='Rate Base'!N183 -> -6090799.73 | J102: ='Rate Base'!O183 -> -6091526.41 | K102: ='Rate Base'!P183 -> -6092752.27 | L102: ='Rate Base'!Q183 -> -6094959.03 | M102: ='Rate Base'!R183 -> -6097235.33 | N102: ='Rate Base'!S183 -> -6098547.69 | O102: ='Rate Base'!T183 -> -6100221.03 | P102: -6090799.436
B103: Acct 2550 - Production | C103: ='Rate Base'!H251 -> -12882.71 | D103: ='Rate Base'!I251 -> -11979.07 | E103: ='Rate Base'!J251 -> -11075.43 | F103: ='Rate Base'!K251 -> -10171.79 | G103: ='Rate Base'!L251 -> -9268.15 | H103: ='Rate Base'!M251 -> -8364.51 | I103: ='Rate Base'!N251 -> -7460.87 | J103: ='Rate Base'!O251 -> -6557.23 | K103: ='Rate Base'!P251 -> -5653.59 | L103: ='Rate Base'!Q251 -> -4749.92 | M103: ='Rate Base'!R251 -> -4479.67 | N103: ='Rate Base'!S251 -> -4209.42 | O103: ='Rate Base'!T251 -> -3939.17 | P103: -7698.3825
B104: Acct 2820 - Production | C104: ='Rate Base'!H258 -> -1954845.67 | D104: ='Rate Base'!I258 -> -1950222.48 | E104: ='Rate Base'!J258 -> -1946320.13 | F104: ='Rate Base'!K258 -> -1942949.9 | G104: ='Rate Base'!L258 -> -1939270.93 | H104: ='Rate Base'!M258 -> -1916040.18 | I104: ='Rate Base'!N258 -> -1909455.99 | J104: ='Rate Base'!O258 -> -1901970.04 | K104: ='Rate Base'!P258 -> -2270786.68 | L104: ='Rate Base'!Q258 -> -1773585.33 | M104: ='Rate Base'!R258 -> -1764032.42 | N104: ='Rate Base'!S258 -> -1754423.62 | O104: ='Rate Base'!T258 -> -1745027.76 | P104: -1909916.201
B105: Acct 2821 - Production | C105: ='Rate Base'!H265 -> -743900.31 | D105: ='Rate Base'!I265 -> -743900.31 | E105: ='Rate Base'!J265 -> -743900.31 | F105: ='Rate Base'!K265 -> -743900.31 | G105: ='Rate Base'!L265 -> -743900.31 | H105: ='Rate Base'!M265 -> -743900.31 | I105: ='Rate Base'!N265 -> -743900.31 | J105: ='Rate Base'!O265 -> -743900.31 | K105: ='Rate Base'!P265 -> -725600.31 | L105: ='Rate Base'!Q265 -> -725600.31 | M105: ='Rate Base'!R265 -> -725600.31 | N105: ='Rate Base'!S265 -> -725600.31 | O105: ='Rate Base'!T265 -> -725600.31 | P105: -737037.81
D107: Production | H107: Acct 101 | I107: Acct 108 | J107: Acct 111 | K107: Acct 2550 | L107: Acct 2820 | M107: Acct 2821 | N107: Total
B108: Depreciation - Acct 403 | D108: =Expenses!S385 -> 826446.56 | F108: Thirteen month average | H108: =P100 -> 80220585.29 | I108: =P101 -> -67589321.78 | J108: =P102 -> -6090799.436 | K108: =P103 -> -7698.3825 | L108: =P104 -> -1909916.201 | M108: =P105 -> -737037.81 | N108: =SUM(H108:M108) -> 3885811.679
B109: Amortization & Depletion - Acct 404 | D109: =Expenses!S392 -> 19788.84 | F109: =CONCATENATE("Wexpro Red. @ ",-'Other Inputs'!E278*100," %") -> Wexpro Red. @ 6.3 % | H109: =H108*'Other Inputs'!$E$278 -> -5053896.873 | I109: =I108*'Other Inputs'!$E$278 -> 4258127.272 | J109: =J108*'Other Inputs'!$E$278 -> 383720.3645 | N109: =SUM(H109:M109) -> -412049.2366
B110: Utah Pre-Tax Return on Production Assets | D110: =+N111 -> 374818.9676 | M110: =SUM(N108:N109) -> 3473762.443
B111: Utah Production Cost | D111: =SUM(D108:D110) -> 1221054.368 | M111: ="Utah Pre-Tax Rate of Return on Production Assets ("&'Other Inputs'!E281&")" -> Utah Pre-Tax Rate of Return on Production Assets (0.1079) | N111: =M110*'Other Inputs'!E281 -> 374818.9676
M112: ="Wyoming Pre-Tax Rate of Return on Production Assets ("&'Other Inputs'!E280&")" -> Wyoming Pre-Tax Rate of Return on Production Assets (0.1059) | N112: =M110*'Other Inputs'!E280 -> 367871.4427
A114: TACTICAL PLAN INFORMATION (IRP) | P114: 12-Month
D115: =D5 -> Jun15 | E115: =E5 -> Jul15 | F115: Aug15 | G115: Sep15 | H115: Oct15 | I115: Nov15 | J115: Dec15 | K115: Jan16 | L115: Feb16 | M115: Mar16 | N115: Apr16 | O115: May16 | P115: Total
A116: COMPANY PRODUCTION
B117: Prior Company
B118: D24 Wells
B119: Brady & Powel
B120: Total Company Production Wexpro I & II | D120: ='Monthly Inputs'!G7+'Monthly Inputs'!G13 -> 5935257 | E120: ='Monthly Inputs'!H7+'Monthly Inputs'!H13 -> 5904210 | F120: ='Monthly Inputs'!I7+'Monthly Inputs'!I13 -> 5717549 | G120: ='Monthly Inputs'!J7+'Monthly Inputs'!J13 -> 5527278 | H120: ='Monthly Inputs'!K7+'Monthly Inputs'!K13 -> 5614091 | I120: ='Monthly Inputs'!L7+'Monthly Inputs'!L13 -> 5400559 | J120: ='Monthly Inputs'!M7+'Monthly Inputs'!M13 -> 5481799 | K120: ='Monthly Inputs'!N7+'Monthly Inputs'!N13 -> 5642140 | L120: ='Monthly Inputs'!O7+'Monthly Inputs'!O13 -> 5315170 | M120: ='Monthly Inputs'!P7+'Monthly Inputs'!P13 -> 5654576 | N120: ='Monthly Inputs'!Q7+'Monthly Inputs'!Q13 -> 5384699 | O120: ='Monthly Inputs'!R7+'Monthly Inputs'!R13 -> 5518121 | P120: =SUM(D120:O120) -> 67095449
A122: STORAGE INJECTIONS
B123: Chalk Creek | D123: ='Monthly Inputs'!G24 -> 0 | E123: ='Monthly Inputs'!H24 -> 0 | F123: ='Monthly Inputs'!I24 -> 0 | G123: ='Monthly Inputs'!J24 -> 0 | H123: ='Monthly Inputs'!K24 -> 0 | I123: ='Monthly Inputs'!L24 -> 143776 | J123: ='Monthly Inputs'!M24 -> 180893 | K123: ='Monthly Inputs'!N24 -> 0 | L123: ='Monthly Inputs'!O24 -> 0 | M123: ='Monthly Inputs'!P24 -> 0 | N123: ='Monthly Inputs'!Q24 -> 0 | O123: ='Monthly Inputs'!R24 -> 0 | P123: =SUM(D123:O123) -> 324669
B124: Coalville | D124: ='Monthly Inputs'!G26 -> 0 | E124: ='Monthly Inputs'!H26 -> 0 | F124: ='Monthly Inputs'!I26 -> 0 | G124: ='Monthly Inputs'!J26 -> 0 | H124: ='Monthly Inputs'!K26 -> 156389 | I124: ='Monthly Inputs'!L26 -> 280146 | J124: ='Monthly Inputs'!M26 -> 258993 | K124: ='Monthly Inputs'!N26 -> 0 | L124: ='Monthly Inputs'!O26 -> 0 | M124: ='Monthly Inputs'!P26 -> 0 | N124: ='Monthly Inputs'!Q26 -> 0 | O124: ='Monthly Inputs'!R26 -> 0 | P124: =SUM(D124:O124) -> 695528
B125: Leroy | D125: ='Monthly Inputs'!G27 -> 0 | E125: ='Monthly Inputs'!H27 -> 0 | F125: ='Monthly Inputs'!I27 -> 0 | G125: ='Monthly Inputs'!J27 -> 0 | H125: ='Monthly Inputs'!K27 -> 635881 | I125: ='Monthly Inputs'!L27 -> 282493 | J125: ='Monthly Inputs'!M27 -> 0 | K125: ='Monthly Inputs'!N27 -> 0 | L125: ='Monthly Inputs'!O27 -> 0 | M125: ='Monthly Inputs'!P27 -> 0 | N125: ='Monthly Inputs'!Q27 -> 0 | O125: ='Monthly Inputs'!R27 -> 0 | P125: =SUM(D125:O125) -> 918374
B126: Ryckman | D126: ='Monthly Inputs'!G28 -> 358462 | E126: ='Monthly Inputs'!H28 -> 370410 | F126: ='Monthly Inputs'!I28 -> 370410 | G126: ='Monthly Inputs'!J28 -> 358462 | H126: ='Monthly Inputs'!K28 -> 0 | I126: ='Monthly Inputs'!L28 -> 0 | J126: ='Monthly Inputs'!M28 -> 0 | K126: ='Monthly Inputs'!N28 -> 0 | L126: ='Monthly Inputs'!O28 -> 0 | M126: ='Monthly Inputs'!P28 -> 0 | N126: ='Monthly Inputs'!Q28 -> 0 | O126: ='Monthly Inputs'!R28 -> 370410 | P126: =SUM(D126:O126) -> 1828154
B127: Total Peaking Storage | D127: =SUM(D123:D126) -> 358462 | E127: 370410 | F127: 370410 | G127: 358462 | H127: 792270 | I127: 706415 | J127: 439886 | K127: 0 | L127: 0 | M127: 0 | N127: 0 | O127: 370410 | P127: 3766725
B128: Clay Basin | D128: ='Monthly Inputs'!G25 -> 1940490 | E128: ='Monthly Inputs'!H25 -> 2489650 | F128: ='Monthly Inputs'!I25 -> 2293680 | G128: ='Monthly Inputs'!J25 -> 1999920 | H128: ='Monthly Inputs'!K25 -> 1932280 | I128: ='Monthly Inputs'!L25 -> 1697400 | J128: ='Monthly Inputs'!M25 -> 0 | K128: ='Monthly Inputs'!N25 -> 0 | L128: ='Monthly Inputs'!O25 -> 0 | M128: ='Monthly Inputs'!P25 -> 0 | N128: ='Monthly Inputs'!Q25 -> 0 | O128: ='Monthly Inputs'!R25 -> 235160 | P128: =SUM(D128:O128) -> 12588580
B129: Total Storage Injections | D129: =SUM(D127:D128) -> 2298952 | E129: =SUM(E127:E128) -> 2860060 | F129: 2664090 | G129: 2358382 | H129: 2724550 | I129: 2403815 | J129: 439886 | K129: 0 | L129: 0 | M129: 0 | N129: 0 | O129: 605570 | P129: 16355305
A130: STORAGE WITHDRAWLS
B131: Chalk Creek | D131: ='Monthly Inputs'!G32 -> 0 | E131: ='Monthly Inputs'!H32 -> 0 | F131: ='Monthly Inputs'!I32 -> 0 | G131: ='Monthly Inputs'!J32 -> 0 | H131: ='Monthly Inputs'!K32 -> 0 | I131: ='Monthly Inputs'!L32 -> 0 | J131: ='Monthly Inputs'!M32 -> 0 | K131: ='Monthly Inputs'!N32 -> 326884 | L131: ='Monthly Inputs'!O32 -> 0 | M131: ='Monthly Inputs'!P32 -> 0 | N131: ='Monthly Inputs'!Q32 -> 0 | O131: ='Monthly Inputs'!R32 -> 0 | P131: =SUM(D131:O131) -> 326884
B132: Coalville | D132: ='Monthly Inputs'!G34 -> 0 | E132: ='Monthly Inputs'!H34 -> 0 | F132: ='Monthly Inputs'!I34 -> 0 | G132: ='Monthly Inputs'!J34 -> 0 | H132: ='Monthly Inputs'!K34 -> 0 | I132: ='Monthly Inputs'!L34 -> 0 | J132: ='Monthly Inputs'!M34 -> 0 | K132: ='Monthly Inputs'!N34 -> 694894 | L132: ='Monthly Inputs'!O34 -> 0 | M132: ='Monthly Inputs'!P34 -> 0 | N132: ='Monthly Inputs'!Q34 -> 0 | O132: ='Monthly Inputs'!R34 -> 0 | P132: =SUM(D132:O132) -> 694894
B133: Leroy | D133: ='Monthly Inputs'!G35 -> 0 | E133: ='Monthly Inputs'!H35 -> 0 | F133: ='Monthly Inputs'!I35 -> 0 | G133: ='Monthly Inputs'!J35 -> 0 | H133: ='Monthly Inputs'!K35 -> 0 | I133: ='Monthly Inputs'!L35 -> 0 | J133: ='Monthly Inputs'!M35 -> 0 | K133: ='Monthly Inputs'!N35 -> 897648 | L133: ='Monthly Inputs'!O35 -> 0 | M133: ='Monthly Inputs'!P35 -> 0 | N133: ='Monthly Inputs'!Q35 -> 0 | O133: ='Monthly Inputs'!R35 -> 0 | P133: =SUM(D133:O133) -> 897648
B134: Ryckman | D134: ='Monthly Inputs'!G36 -> 0 | E134: ='Monthly Inputs'!H36 -> 0 | F134: ='Monthly Inputs'!I36 -> 0 | G134: ='Monthly Inputs'!J36 -> 0 | H134: ='Monthly Inputs'!K36 -> 0 | I134: ='Monthly Inputs'!L36 -> 271850 | J134: ='Monthly Inputs'!M36 -> 514600 | K134: ='Monthly Inputs'!N36 -> 514600 | L134: ='Monthly Inputs'!O36 -> 481400 | M134: ='Monthly Inputs'!P36 -> 0 | N134: ='Monthly Inputs'!Q36 -> 0 | O134: ='Monthly Inputs'!R36 -> 0 | P134: =SUM(D134:O134) -> 1782450
B135: Total Peaking Storage | D135: =SUM(D131:D134) -> 0 | E135: =SUM(E131:E134) -> 0 | F135: 0 | G135: 0 | H135: 0 | I135: 271850 | J135: 514600 | K135: 2434026 | L135: 481400 | M135: 0 | N135: 0 | O135: 0 | P135: 3701876
B136: Clay Basin | D136: ='Monthly Inputs'!G33 -> 103510 | E136: ='Monthly Inputs'!H33 -> 65920 | F136: ='Monthly Inputs'!I33 -> 0 | G136: ='Monthly Inputs'!J33 -> 0 | H136: ='Monthly Inputs'!K33 -> 0 | I136: ='Monthly Inputs'!L33 -> 0 | J136: ='Monthly Inputs'!M33 -> 0 | K136: ='Monthly Inputs'!N33 -> 5366110 | L136: ='Monthly Inputs'!O33 -> 4635210 | M136: ='Monthly Inputs'!P33 -> 2526510 | N136: ='Monthly Inputs'!Q33 -> 0 | O136: ='Monthly Inputs'!R33 -> 192550 | P136: =SUM(D136:O136) -> 12889810
B137: Total Storage Withdrawls | D137: =SUM(D135:D136) -> 103510 | E137: 65920 | F137: 0 | G137: 0 | H137: 0 | I137: 271850 | J137: 514600 | K137: 7800136 | L137: 5116610 | M137: 2526510 | N137: 0 | O137: 192550 | P137: 16591686
A140: Gas Supply and Demand | D140: =D4 -> Forecast | E140: Forecast | F140: Forecast | G140: Forecast | H140: Forecast | I140: Forecast | J140: Forecast | K140: Forecast | L140: Forecast | M140: Forecast | N140: Forecast | O140: Forecast | P140: 12-Month
A141: Demand | D141: =D5 -> Jun15 | E141: Jul15 | F141: Aug15 | G141: Sep15 | H141: Oct15 | I141: Nov15 | J141: Dec15 | K141: Jan16 | L141: Feb16 | M141: Mar16 | N141: Apr16 | O141: May16 | P141: Total
A143: Utah Sales | D143: =+D20 -> 3336871 | E143: 2737787 | F143: =+F20 -> 2724789 | G143: 3801106 | H143: 6720254 | I143: 11911933 | J143: 17470638 | K143: 20116306 | L143: 16299179 | M143: 11861136 | N143: 8714552 | O143: 4788194 | P143: =SUM(D143:O143) -> 110482745
A144: Wyoming Sales | D144: =+D39 -> 129185 | E144: 92404 | F144: 82209 | G144: 150364 | H144: 252110 | I144: 417646 | J144: 591520 | K144: 644544 | L144: 597003 | M144: 484986 | N144: 349501 | O144: 237593 | P144: =SUM(D144:O144) -> 4029065
A145: Total Sales | D145: =+D143+D144 -> 3466056 | E145: 2830191 | F145: 2806998 | G145: 3951470 | H145: 6972364 | I145: 12329579 | J145: 18062158 | K145: 20760850 | L145: 16896182 | M145: 12346122 | N145: 9064053 | O145: 5025787 | P145: 114511810
A147: Distribution Use (Offices) | C147: Check formulas for correct month | D147: =ROUND(O83,0) -> 0 | E147: =ROUND(D83,0) -> 0 | F147: =ROUND(E83,0) -> 0 | G147: 0 | H147: 0 | I147: 0 | J147: 0 | K147: 0 | L147: 0 | M147: 0 | N147: 0 | O147: 0 | P147: =SUM(D147:O147) -> 0 | Q147: =(O145/O150)-1 -> -0.004940070144
A148: Distribution Lost and Unaccounted for | D148: =+D150-D145-D147 -> 17207 | E148: =+E150-E145-E147 -> 14051 | F148: 13935 | G148: 19617 | H148: 34614 | I148: 61211 | J148: 89670 | K148: 103068 | L148: 83882 | M148: 61293 | N148: 44999 | O148: =+O150-O145-O147 -> 24951 | P148: =SUM(D148:O148) -> 568498
A150: Total City Gate | D150: =ROUND((D145+D147)/(1-'Other Inputs'!$E$283),0) -> 3483263 | E150: =ROUND((E145+E147)/(1-'Other Inputs'!$E$283),0) -> 2844242 | F150: =ROUND((F145+F147)/(1-'Other Inputs'!$E$283),0) -> 2820933 | G150: =ROUND((G145+G147)/(1-'Other Inputs'!$E$283),0) -> 3971087 | H150: =ROUND((H145+H147)/(1-'Other Inputs'!$E$283),0) -> 7006978 | I150: =ROUND((I145+I147)/(1-'Other Inputs'!$E$283),0) -> 12390790 | J150: =ROUND((J145+J147)/(1-'Other Inputs'!$E$283),0) -> 18151828 | K150: =ROUND((K145+K147)/(1-'Other Inputs'!$E$283),0) -> 20863918 | L150: =ROUND((L145+L147)/(1-'Other Inputs'!$E$283),0) -> 16980064 | M150: =ROUND((M145+M147)/(1-'Other Inputs'!$E$283),0) -> 12407415 | N150: =ROUND((N145+N147)/(1-'Other Inputs'!$E$283),0) -> 9109052 | O150: =ROUND((O145+O147)/(1-'Other Inputs'!$E$283),0) -> 5050738 | P150: =SUM(D150:O150) -> 115080308
A152: Peaking Injection | D152: =+D127 -> 358462 | E152: 370410 | F152: 370410 | G152: 358462 | H152: 792270 | I152: 706415 | J152: 439886 | K152: 0 | L152: 0 | M152: =+M127 -> 0 | N152: 0 | O152: 370410 | P152: =SUM(D152:O152) -> 3766725
A153: Clay Basin Injection | D153: =+D128 -> 1940490 | E153: 2489650 | F153: 2293680 | G153: 1999920 | H153: 1932280 | I153: 1697400 | J153: 0 | K153: 0 | L153: 0 | M153: 0 | N153: 0 | O153: 235160 | P153: =SUM(D153:O153) -> 12588580
A154: Storage Lost & Unaccounted For | D154: =-'Monthly Inputs'!G51 -> 55145.212 | E154: =-'Monthly Inputs'!H51 -> 68513.92 | F154: =-'Monthly Inputs'!I51 -> 63849.834 | G154: =-'Monthly Inputs'!J51 -> 56559.646 | H154: =-'Monthly Inputs'!K51 -> 69877.9235 | I154: =-'Monthly Inputs'!L51 -> 55522.0496 | J154: =-'Monthly Inputs'!M51 -> 5592.295 | K154: =-'Monthly Inputs'!N51 -> 0 | L154: =-'Monthly Inputs'!O51 -> 0 | M154: =-'Monthly Inputs'!P51 -> 0 | N154: =-'Monthly Inputs'!Q51 -> 0 | O154: =-'Monthly Inputs'!R51 -> 14857.058 | P154: =SUM(D154:O154) -> 389917.9381
A155: Total Demand | D155: =SUM(D150:D154) -> 5837360.212 | E155: =SUM(E150:E154) -> 5772815.92 | F155: 5548872.834 | G155: 6386028.646 | H155: =SUM(H150:H154) -> 9801405.923 | I155: 14850127.05 | J155: 18597306.3 | K155: 20863918 | L155: 16980064 | M155: 12407415 | N155: 9109052 | O155: =SUM(O150:O154) -> 5671165.058 | P155: =SUM(D155:O155) -> 131825530.9
D157: Forecast | E157: Forecast | F157: Forecast | G157: Forecast | H157: Forecast | I157: Forecast | J157: Forecast | K157: Forecast | L157: Forecast | M157: Forecast | N157: Forecast | O157: Forecast | P157: 12-Month
A158: Supply | D158: =D5 -> Jun15 | E158: =E5 -> Jul15 | F158: Aug15 | G158: Sep15 | H158: Oct15 | I158: Nov15 | J158: Dec15 | K158: Jan16 | L158: Feb16 | M158: Mar16 | N158: Apr16 | O158: May16 | P158: Total
A159: Company Production | D159: =+D120 -> 5935257 | E159: 5904210 | F159: 5717549 | G159: 5527278 | H159: 5614091 | I159: 5400559 | J159: 5481799 | K159: 5642140 | L159: 5315170 | M159: 5654576 | N159: 5384699 | O159: 5518121 | P159: =SUM(D159:O159) -> 67095449
A160: Co Prod Lost & Unaccounted For | D160: =ROUND(D159*(-'Other Inputs'!$E$285-'Other Inputs'!$E$286),0) -> -342399 | E160: =ROUND(E159*(-'Other Inputs'!$E$285-'Other Inputs'!$E$286),0) -> -340608 | F160: =ROUND(F159*(-'Other Inputs'!$E$285-'Other Inputs'!$E$286),0) -> -329840 | G160: =ROUND(G159*(-'Other Inputs'!$E$285-'Other Inputs'!$E$286),0) -> -318863 | H160: =ROUND(H159*(-'Other Inputs'!$E$285-'Other Inputs'!$E$286),0) -> -323871 | I160: =ROUND(I159*(-'Other Inputs'!$E$285-'Other Inputs'!$E$286),0) -> -311553 | J160: =ROUND(J159*(-'Other Inputs'!$E$285-'Other Inputs'!$E$286),0) -> -316240 | K160: =ROUND(K159*(-'Other Inputs'!$E$285-'Other Inputs'!$E$286),0) -> -325489 | L160: =ROUND(L159*(-'Other Inputs'!$E$285-'Other Inputs'!$E$286),0) -> -306627 | M160: =ROUND(M159*(-'Other Inputs'!$E$285-'Other Inputs'!$E$286),0) -> -326207 | N160: =ROUND(N159*(-'Other Inputs'!$E$285-'Other Inputs'!$E$286),0) -> -310638 | O160: =ROUND(O159*(-'Other Inputs'!$E$285-'Other Inputs'!$E$286),0) -> -318335 | P160: =SUM(D160:O160) -> -3870670
A161: Company Production @ City Gate | D161: =SUM(D159:D160) -> 5592858 | E161: =SUM(E159:E160) -> 5563602 | F161: 5387709 | G161: 5208415 | H161: 5290220 | I161: 5089006 | J161: 5165559 | K161: 5316651 | L161: 5008543 | M161: 5328369 | N161: 5074061 | O161: 5199786 | P161: =SUM(D161:O161) -> 63224779
A163: Peaking Withdrawal | D163: =+D135 -> 0 | E163: 0 | F163: 0 | G163: 0 | H163: 0 | I163: 271850 | J163: 514600 | K163: 2434026 | L163: 481400 | M163: 0 | N163: 0 | O163: 0 | P163: =SUM(D163:O163) -> 3701876
A164: Clay Basin Withdrawal | D164: =+D136 -> 103510 | E164: 65920 | F164: 0 | G164: 0 | H164: 0 | I164: 0 | J164: 0 | K164: 5366110 | L164: 4635210 | M164: 2526510 | N164: 0 | O164: 192550 | P164: =SUM(D164:O164) -> 12889810
A165: QPC Transportation Loss on Storage | D165: ='Monthly Inputs'!G67+'Monthly Inputs'!G59 -> -3384.777 | E165: ='Monthly Inputs'!H67+'Monthly Inputs'!H59 -> -2155.584 | F165: ='Monthly Inputs'!I67+'Monthly Inputs'!I59 -> 0 | G165: ='Monthly Inputs'!J67+'Monthly Inputs'!J59 -> 0 | H165: ='Monthly Inputs'!K67+'Monthly Inputs'!K59 -> 0 | I165: ='Monthly Inputs'!L67+'Monthly Inputs'!L59 -> -5355.445 | J165: ='Monthly Inputs'!M67+'Monthly Inputs'!M59 -> -10137.62 | K165: ='Monthly Inputs'!N67+'Monthly Inputs'!N59 -> -246855.9948 | L165: ='Monthly Inputs'!O67+'Monthly Inputs'!O59 -> -161054.947 | M165: ='Monthly Inputs'!P67+'Monthly Inputs'!P59 -> -82616.877 | N165: ='Monthly Inputs'!Q67+'Monthly Inputs'!Q59 -> 0 | O165: ='Monthly Inputs'!R67+'Monthly Inputs'!R59 -> -6296.385 | P165: =SUM(D165:O165) -> -517857.6298 | R165: =4761675+168421 -> 4930096
A166: Storage Lost & Unaccounted For | D166: ='Monthly Inputs'!G51 -> -55145.212 | E166: ='Monthly Inputs'!H51 -> -68513.92 | F166: ='Monthly Inputs'!I51 -> -63849.834 | G166: ='Monthly Inputs'!J51 -> -56559.646 | H166: ='Monthly Inputs'!K51 -> -69877.9235 | I166: ='Monthly Inputs'!L51 -> -55522.0496 | J166: ='Monthly Inputs'!M51 -> -5592.295 | K166: ='Monthly Inputs'!N51 -> 0 | L166: ='Monthly Inputs'!O51 -> 0 | M166: ='Monthly Inputs'!P51 -> 0 | N166: ='Monthly Inputs'!Q51 -> 0 | O166: ='Monthly Inputs'!R51 -> -14857.058 | P166: =SUM(D166:O166) -> -389917.9381
A167: Storage Supply @ City Gate | D167: =SUM(D163:D166) -> 44980.011 | E167: =SUM(E163:E166) -> -4749.504 | F167: -63849.834 | G167: -56559.646 | H167: -69877.9235 | I167: 210972.5054 | J167: 498870.085 | K167: 7553280.005 | L167: 4955555.053 | M167: 2443893.123 | N167: 0 | O167: 171396.557 | P167: 15683910.43
A169: Gas Purchased @ City Gate | D169: =D155-D161-D167-D154 -> 144376.989 | E169: 145449.504 | F169: 161163.834 | G169: 1177613.646 | H169: 4511185.923 | I169: 9494626.495 | J169: 12927284.92 | K169: 7993986.995 | L169: 7015965.947 | M169: 4635152.877 | N169: 4034991 | O169: 285125.443 | P169: =SUM(D169:O169) -> 52526923.57
A170: Gas Reimbursement | D170: =+D171-D169 -> 2901.011 | E170: =+E171-E169 -> 2922.496 | F170: 3239.166 | G170: 23665.354 | H170: 90656.0765 | I170: 190802.5054 | J170: 259785.085 | K170: 160646.0052 | L170: 140992.053 | M170: 93147.123 | N170: 81087 | O170: 5729.557 | P170: =SUM(D170:O170) -> 1055573.432
A171: Gas Purchased - Dth ( /.98) | D171: =ROUND(D169/(1-'Other Inputs'!$E$286),0) -> 147278 | E171: =ROUND(E169/(1-'Other Inputs'!$E$286),0) -> 148372 | F171: =ROUND(F169/(1-'Other Inputs'!$E$286),0) -> 164403 | G171: =ROUND(G169/(1-'Other Inputs'!$E$286),0) -> 1201279 | H171: =ROUND(H169/(1-'Other Inputs'!$E$286),0) -> 4601842 | I171: =ROUND(I169/(1-'Other Inputs'!$E$286),0) -> 9685429 | J171: =ROUND(J169/(1-'Other Inputs'!$E$286),0) -> 13187070 | K171: =ROUND(K169/(1-'Other Inputs'!$E$286),0) -> 8154633 | L171: =ROUND(L169/(1-'Other Inputs'!$E$286),0) -> 7156958 | M171: =ROUND(M169/(1-'Other Inputs'!$E$286),0) -> 4728300 | N171: =ROUND(N169/(1-'Other Inputs'!$E$286),0) -> 4116078 | O171: =ROUND(O169/(1-'Other Inputs'!$E$286),0) -> 290855 | P171: =SUM(D171:O171) -> 53582497
A173: Transported Volumes - total | D173: =+D161+D169+D137+D165 -> 5837360.212 | E173: 5772815.92 | F173: 5548872.834 | G173: 6386028.646 | H173: 9801405.923 | I173: 14850127.05 | J173: 18597306.29 | K173: 20863918 | L173: 16980064 | M173: 12407415 | N173: 9109052 | O173: 5671165.058 | P173: 131825530.9
A174: Kern transported volumes | D174: =HLOOKUP(MONTH(D5),kernrivertrans,6,FALSE) -> 74473.1467 | E174: 76955.58493 | F174: 76955.58493 | G174: 74473.1467 | H174: 76955.58493 | I174: 1315692.258 | J174: 1359548.667 | K174: 1359548.667 | L174: 1271835.85 | M174: 1359548.667 | N174: 74473.1467 | O174: 76955.58493
A175: Storage Fuel % | C175: =(P154-P166)/(P163+P164+P152+P153) -> 0.02366941115
A177: Company Production as % of Total Supply / Demand | D177: =D159/(D171+D159) -> 0.9757867402 | E177: 0.9754861644 | F177: =F159/(F171+F159) -> 0.9720495849 | G177: 0.8214655832 | H177: =H159/(H171+H159) -> 0.5495426605 | I177: 0.3579851051 | J177: 0.2936331601 | K177: 0.4089463529 | L177: 0.4261638431 | M177: 0.5446059454 | N177: 0.5667640657 | O177: =O159/(O171+O159) -> 0.9499300737 | P177: =P159/(P171+P159) -> 0.5559876616
A179: PURCHASES BREAKDOWN
A180: Spot Market Purchases | D180: ='Monthly Inputs'!G83 -> 0 | E180: ='Monthly Inputs'!H83 -> 0 | F180: ='Monthly Inputs'!I83 -> 64200 | G180: ='Monthly Inputs'!J83 -> 885525 | H180: ='Monthly Inputs'!K83 -> 4140805 | I180: ='Monthly Inputs'!L83 -> 7785429 | J180: ='Monthly Inputs'!M83 -> 8257070 | K180: ='Monthly Inputs'!N83 -> 2224633 | L180: ='Monthly Inputs'!O83 -> 2286958 | M180: ='Monthly Inputs'!P83 -> 3798300 | N180: ='Monthly Inputs'!Q83 -> 3885350 | O180: ='Monthly Inputs'!R83 -> 0 | P180: =SUM(D180:O180) -> 33328270
A181: Spot Market Purchases Cost | D181: ='Monthly Inputs'!G84 -> 0 | E181: ='Monthly Inputs'!H84 -> 0 | F181: ='Monthly Inputs'!I84 -> 168846 | G181: ='Monthly Inputs'!J84 -> 2266944 | H181: ='Monthly Inputs'!K84 -> 10600460.8 | I181: ='Monthly Inputs'!L84 -> 20787095.43 | J181: ='Monthly Inputs'!M84 -> 23780361.6 | K181: ='Monthly Inputs'!N84 -> 6562667.35 | L181: ='Monthly Inputs'!O84 -> 6540699.88 | M181: ='Monthly Inputs'!P84 -> 10483308 | N181: ='Monthly Inputs'!Q84 -> 10568152 | O181: ='Monthly Inputs'!R84 -> 0 | P181: =SUM(D181:O181) -> 91758535.06
A183: Contract Purchases (Dth) | D183: ='Monthly Inputs'!G92 -> 0 | E183: ='Monthly Inputs'!H92 -> 0 | F183: ='Monthly Inputs'!I92 -> 0 | G183: ='Monthly Inputs'!J92 -> 0 | H183: ='Monthly Inputs'!K92 -> 0 | I183: ='Monthly Inputs'!L92 -> 900000 | J183: ='Monthly Inputs'!M92 -> 930000 | K183: ='Monthly Inputs'!N92 -> 930000 | L183: ='Monthly Inputs'!O92 -> 870000 | M183: ='Monthly Inputs'!P92 -> 930000 | N183: ='Monthly Inputs'!Q92 -> 0 | O183: ='Monthly Inputs'!R92 -> 0 | P183: =SUM(D183:O183) -> 4560000
A184: Contract Purchases Cost Including Stabalization Costs | D184: ='Monthly Inputs'!G93+'Monthly Inputs'!G94 -> 0 | E184: ='Monthly Inputs'!H93+'Monthly Inputs'!H94 -> 0 | F184: ='Monthly Inputs'!I93+'Monthly Inputs'!I94 -> 0 | G184: ='Monthly Inputs'!J93+'Monthly Inputs'!J94 -> 0 | H184: ='Monthly Inputs'!K93+'Monthly Inputs'!K94 -> 0 | I184: ='Monthly Inputs'!L93+'Monthly Inputs'!L94 -> 2613960 | J184: ='Monthly Inputs'!M93+'Monthly Inputs'!M94 -> 2896392 | K184: ='Monthly Inputs'!N93+'Monthly Inputs'!N94 -> 2961492 | L184: ='Monthly Inputs'!O93+'Monthly Inputs'!O94 -> 2692128 | M184: ='Monthly Inputs'!P93+'Monthly Inputs'!P94 -> 2784792 | N184: ='Monthly Inputs'!Q93+'Monthly Inputs'!Q94 -> 0 | O184: ='Monthly Inputs'!R93+'Monthly Inputs'!R94 -> 0 | P184: =SUM(D184:O184) -> 13948764
Q185: =P184+P187 -> 56685619.92
A186: Peak Purchases (Dth) | D186: ='Monthly Inputs'!G89 -> 0 | E186: ='Monthly Inputs'!H89 -> 0 | F186: ='Monthly Inputs'!I89 -> 0 | G186: ='Monthly Inputs'!J89 -> 0 | H186: ='Monthly Inputs'!K89 -> 0 | I186: ='Monthly Inputs'!L89 -> 1000000 | J186: ='Monthly Inputs'!M89 -> 4000000 | K186: ='Monthly Inputs'!N89 -> 5000000 | L186: ='Monthly Inputs'!O89 -> 4000000 | M186: ='Monthly Inputs'!P89 -> 0 | N186: ='Monthly Inputs'!Q89 -> 0 | O186: ='Monthly Inputs'!R89 -> 0 | P186: =SUM(D186:O186) -> 14000000
A187: Peak Purchases Cost | D187: ='Monthly Inputs'!G90 -> 0 | E187: ='Monthly Inputs'!H90 -> 0 | F187: ='Monthly Inputs'!I90 -> 0 | G187: ='Monthly Inputs'!J90 -> 0 | H187: ='Monthly Inputs'!K90 -> 0 | I187: ='Monthly Inputs'!L90 -> 2826056.749 | J187: ='Monthly Inputs'!M90 -> 12192404.2 | K187: ='Monthly Inputs'!N90 -> 15610579.08 | L187: ='Monthly Inputs'!O90 -> 12107815.89 | M187: ='Monthly Inputs'!P90 -> 0 | N187: ='Monthly Inputs'!Q90 -> 0 | O187: ='Monthly Inputs'!R90 -> 0 | P187: =SUM(D187:O187) -> 42736855.92
A189: Future Purchases | D189: =+D171-D180-D183-D186 -> 147278 | E189: =+E171-E180-E183-E186 -> 148372 | F189: =+F171-F180-F183-F186 -> 100203 | G189: =+G171-G180-G183-G186 -> 315754 | H189: =+H171-H180-H183-H186 -> 461037 | I189: =+I171-I180-I183-I186 -> 0 | J189: =+J171-J180-J183-J186 -> 0 | K189: =+K171-K180-K183-K186 -> 0 | L189: 0 | M189: =+M171-M180-M183-M186 -> 4.656612873e-10 | N189: 230728 | O189: 290855 | P189: =SUM(D189:O189) -> 1694227
A190: Future Purchases Cost | D190: =ROUND(D189*D197,0) -> 378504 | E190: =ROUND(E189*E197,0) -> 394670 | F190: =ROUND(F189*F197,0) -> 265538 | G190: 814645 | H190: =ROUND(H189*H197,0) -> 1189475 | I190: 0 | J190: 0 | K190: 0 | L190: 0 | M190: 0 | N190: 632195 | O190: 814394 | P190: =SUM(D190:O190) -> 4489421
A192: Total Purchases Cost | D192: =+D181+D184+D187+D190 -> 378504 | E192: =+E181+E184+E187+E190 -> 394670 | F192: =+F181+F184+F187+F190 -> 434384 | G192: =+G181+G184+G187+G190 -> 3081589 | H192: =+H181+H184+H187+H190 -> 11789935.8 | I192: 26227112.18 | J192: =+J181+J184+J187+J190 -> 38869157.8 | K192: 25134738.43 | L192: 21340643.77 | M192: 13268100 | N192: 11200347 | O192: =+O181+O184+O187+O190 -> 814394 | P192: 152933576
A194: Gas Cost
A195: Gas Cost Purchases | D195: =IF(D171=0,0,ROUND(D192/D171,5)) -> 2.57 | E195: =IF(E171=0,0,ROUND(E192/E171,5)) -> 2.66 | F195: 2.64219 | G195: 2.56526 | H195: 2.562 | I195: 2.70789 | J195: 2.94752 | K195: 3.08226 | L195: 2.9818 | M195: 2.8061 | N195: 2.72112 | O195: 2.8
A196: Gas Cost Injection Rate - this line not used - DELETE? | D196: ='Ut Storage'!K27 -> 4.553251072 | E196: =+D196 -> 4.553251072 | F196: 4.553251072 | G196: 4.553251072 | H196: 4.553251072 | I196: 4.553251072 | J196: 4.553251072 | K196: 4.553251072 | L196: 4.553251072 | M196: 4.553251072 | N196: 4.553251072 | O196: 4.553251072
A197: =CONCATENATE("'Future Contract Price (spot + $",'Other Inputs'!E169,")") -> 'Future Contract Price (spot + $0.02) | D197: =+D229+'Other Inputs'!$E$169 -> 2.57 | E197: =+E229+'Other Inputs'!$E$169 -> 2.66 | F197: =+F229+'Other Inputs'!$E$169 -> 2.65 | G197: =+G229+'Other Inputs'!$E$169 -> 2.58 | H197: =+H229+'Other Inputs'!$E$169 -> 2.58 | I197: =+I229+'Other Inputs'!$E$169 -> 2.69 | J197: =+J229+'Other Inputs'!$E$169 -> 2.9 | K197: =+K229+'Other Inputs'!$E$169 -> 2.97 | L197: =+L229+'Other Inputs'!$E$169 -> 2.88 | M197: =+M229+'Other Inputs'!$E$169 -> 2.78 | N197: =+N229+'Other Inputs'!$E$169 -> 2.74 | O197: =+O229+'Other Inputs'!$E$169 -> 2.8
A199: System Production | D199: =+D161 -> 5592858 | E199: 5563602 | F199: 5387709 | G199: 5208415 | H199: 5290220 | I199: 5089006 | J199: 5165559 | K199: 5316651 | L199: 5008543 | M199: 5328369 | N199: 5074061 | O199: 5199786 | P199: =SUM(D199:O199) -> 63224779
A200: System Purchases | D200: =+D169 -> 144376.989 | E200: 145449.504 | F200: 161163.834 | G200: 1177613.646 | H200: 4511185.923 | I200: 9494626.495 | J200: 12927284.92 | K200: 7993986.995 | L200: 7015965.947 | M200: 4635152.877 | N200: 4034991 | O200: 285125.443 | P200: =SUM(D200:O200) -> 52526923.57
A201: System Gathering of Production | D201: =ROUND($P201*D$120/$P$120,0) -> 3544515 | E201: 3525974 | F201: 3414501 | G201: 3300871 | H201: 3352716 | I201: 3225195 | J201: 3273711 | K201: 3369467 | L201: 3174201 | M201: 3376893 | N201: 3215724 | O201: 3295403 | P201: ='Other Inputs'!$D$174 -> 40069171.17
A202: System Birch Creek Gathering | D202: =ROUND($P202*D$120/$P$120,0) -> 0 | E202: 0 | F202: 0 | G202: 0 | H202: 0 | I202: 0 | J202: 0 | K202: 0 | L202: 0 | M202: 0 | N202: 0 | O202: 0 | P202: ='Other Inputs'!$D$158 -> 0
A204: Utah Production | D204: =ROUND(D199*$I$74,0) -> 5396075 | E204: 5367848 | F204: 5198144 | G204: 5025158 | H204: 5104085 | I204: 4909951 | J204: 4983810 | K204: 5129586 | L204: 4832319 | M204: 5140892 | N204: 4895532 | O204: 5016833 | P204: =SUM(D204:O204) -> 61000233
A205: Utah Purchases | D205: =ROUND(D200*$I$74,0) -> 139297 | E205: 140332 | F205: 155493 | G205: 1136180 | H205: 4352461 | I205: 9160561 | J205: 12472442 | K205: 7712721 | L205: 6769111 | M205: 4472066 | N205: 3893021 | O205: 275093 | P205: =SUM(D205:O205) -> 50678778
A206: Utah Gathering | D206: =ROUND(D201*$I$74,0) -> 3419802 | E206: 3401914 | F206: 3294363 | G206: 3184731 | H206: 3234752 | I206: 3111717 | J206: 3158526 | K206: 3250913 | L206: 3062518 | M206: 3258078 | N206: 3102580 | O206: 3179455 | P206: =SUM(D206:O206) -> 38659349
A207: Utah Birch Creek Gathering | D207: =ROUND(D202*$I$74,0) -> 0 | E207: 0 | F207: 0 | G207: 0 | H207: 0 | I207: 0 | J207: 0 | K207: 0 | L207: 0 | M207: 0 | N207: 0 | O207: 0 | P207: =SUM(D207:O207) -> 0
A209: Wyoming Production | D209: =+D199-D204 -> 196783 | E209: 195754 | F209: 189565 | G209: 183257 | H209: 186135 | I209: 179055 | J209: 181749 | K209: 187065 | L209: 176224 | M209: 187477 | N209: 178529 | O209: 182953 | P209: =SUM(D209:O209) -> 2224546
A210: Wyoming Purchases | D210: =+D200-D205 -> 5079.989 | E210: 5117.504 | F210: 5670.834 | G210: 41433.646 | H210: 158724.9235 | I210: 334065.4946 | J210: 454842.915 | K210: 281265.9948 | L210: 246854.947 | M210: 163086.877 | N210: 141970 | O210: 10032.443 | P210: =SUM(D210:O210) -> 1848145.568
A211: Wyoming Gathering | D211: =+D201-D206 -> 124713 | E211: 124060 | F211: 120138 | G211: 116140 | H211: 117964 | I211: 113478 | J211: 115185 | K211: 118554 | L211: 111683 | M211: 118815 | N211: 113144 | O211: 115948 | P211: =SUM(D211:O211) -> 1409822
A212: Wyoming Birch Creek Gathering | D212: =+D202-D207 -> 0 | E212: 0 | F212: 0 | G212: 0 | H212: 0 | I212: 0 | J212: 0 | K212: 0 | L212: 0 | M212: 0 | N212: 0 | O212: 0 | P212: =SUM(D212:O212) -> 0
A215: I-2, I-4 Averate Gas Cost Calculations
A216: Wyoming
B217: Wyoming I-2 Volumes | D217: =D34 -> 8605 | E217: 7971 | F217: 7880 | G217: 9166 | H217: 14042 | I217: 15230 | J217: 21366 | K217: 21826 | L217: 19215 | M217: 18337 | N217: 12923 | O217: 14770 | P217: 171331
B218: Wyoming I-4 Volumes | D218: =D35 -> 0 | E218: 0 | F218: 0 | G218: 0 | H218: 0 | I218: 0 | J218: 0 | K218: 0 | L218: 0 | M218: 0 | N218: 0 | O218: 0 | P218: 0
D219: =SUM(D217:D218) -> 8605 | E219: =SUM(E217:E218) -> 7971 | F219: 7880 | G219: 9166 | H219: 14042 | I219: 15230 | J219: 21366 | K219: 21826 | L219: 19215 | M219: 18337 | N219: 12923 | O219: 14770 | P219: 171331
B221: Global Insight Spot Price Forecast | D221: ='Monthly Inputs'!G79 -> 2.55 | E221: ='Monthly Inputs'!H79 -> 2.64 | F221: ='Monthly Inputs'!I79 -> 2.63 | G221: ='Monthly Inputs'!J79 -> 2.56 | H221: ='Monthly Inputs'!K79 -> 2.56 | I221: ='Monthly Inputs'!L79 -> 2.67 | J221: ='Monthly Inputs'!M79 -> 2.88 | K221: ='Monthly Inputs'!N79 -> 2.95 | L221: ='Monthly Inputs'!O79 -> 2.86 | M221: ='Monthly Inputs'!P79 -> 2.76 | N221: ='Monthly Inputs'!Q79 -> 2.72 | O221: ='Monthly Inputs'!R79 -> 2.78
D222: =D219*D221 -> 21942.75 | E222: =E219*E221 -> 21043.44 | F222: 20724.4 | G222: 23464.96 | H222: 35947.52 | I222: 40664.1 | J222: 61534.08 | K222: 64386.7 | L222: 54954.9 | M222: 50610.12 | N222: 35150.56 | O222: 41060.6 | P222: =SUM(D222:O222) -> 471484.13
P223: =P222/P219 -> 2.751890376
P224: =1-'Other Inputs'!$E$284 -> 0.985
P225: =1-'Other Inputs'!$E$286 -> 0.9803
P226: =P223/P224/P225 -> 2.849941177
A227: Utah
B228: Utah I-4 & IS-4 Volumes | D228: =D15+D16 -> 202960 | E228: 200475 | F228: 224055 | G228: 198725 | H228: 228898 | I228: 262136 | J228: 235392 | K228: 254475 | L228: 245446 | M228: 212089 | N228: 193697 | O228: 189673 | P228: 2648021
B229: =B221 -> Global Insight Spot Price Forecast | D229: ='Monthly Inputs'!G79 -> 2.55 | E229: ='Monthly Inputs'!H79 -> 2.64 | F229: ='Monthly Inputs'!I79 -> 2.63 | G229: ='Monthly Inputs'!J79 -> 2.56 | H229: ='Monthly Inputs'!K79 -> 2.56 | I229: ='Monthly Inputs'!L79 -> 2.67 | J229: ='Monthly Inputs'!M79 -> 2.88 | K229: ='Monthly Inputs'!N79 -> 2.95 | L229: ='Monthly Inputs'!O79 -> 2.86 | M229: ='Monthly Inputs'!P79 -> 2.76 | N229: ='Monthly Inputs'!Q79 -> 2.72 | O229: ='Monthly Inputs'!R79 -> 2.78
D230: =D228*D229 -> 517548 | E230: =E228*E229 -> 529254 | F230: 589264.65 | G230: 508736 | H230: 585978.88 | I230: 699903.12 | J230: 677928.96 | K230: 750701.25 | L230: 701975.56 | M230: 585365.64 | N230: 526855.84 | O230: =O228*O229 -> 527290.94 | P230: =SUM(D230:O230) -> 7200802.84
P231: =P230/P228 -> 2.719314854
P232: =1-'Other Inputs'!$E$283 -> 0.99506 | Q232: QGC Lost & Unaccounted For % (Utah
P233: =1-'Other Inputs'!$E$286 -> 0.9803 | Q233: QPC Lost & Unaccounted For %
P235: =P231/P232/P233 -> 2.787733306
D237: =MONTH(D238) -> 1 | E237: =MONTH(E238) -> 2 | F237: =MONTH(F238) -> 3 | G237: 4 | H237: 5 | I237: 6 | J237: 7 | K237: 8 | L237: 9 | M237: 10 | N237: 11 | O237: 12
D238: 2011-01-01 | E238: 2011-02-01 | F238: 2011-03-01 | G238: 2011-04-01 | H238: 2011-05-01 | I238: 2011-06-01 | J238: 2011-07-01 | K238: 2010-08-01 | L238: 2010-09-01 | M238: 2010-10-01 | N238: 2010-11-01 | O238: 2010-12-01
D239: 31 | E239: 29 | F239: 31 | G239: 30 | H239: 31 | I239: 30 | J239: 31 | K239: 31 | L239: 30 | M239: 31 | N239: 30 | O239: 31
D240: ='Other Inputs'!$D$54+'Other Inputs'!$D$55 -> 53000 | E240: ='Other Inputs'!$D$54+'Other Inputs'!$D$55 -> 53000 | F240: ='Other Inputs'!$D$54+'Other Inputs'!$D$55 -> 53000 | G240: ='Other Inputs'!$D$54 -> 3000 | H240: ='Other Inputs'!$D$54 -> 3000 | I240: ='Other Inputs'!$D$54 -> 3000 | J240: ='Other Inputs'!$D$54 -> 3000 | K240: ='Other Inputs'!$D$54 -> 3000 | L240: ='Other Inputs'!$D$54 -> 3000 | M240: ='Other Inputs'!$D$54 -> 3000 | N240: ='Other Inputs'!$D$54+'Other Inputs'!$D$55 -> 53000 | O240: ='Other Inputs'!$D$54+'Other Inputs'!$D$55 -> 53000
D241: ='Other Inputs'!$C$60 -> 0.8274794078 | E241: ='Other Inputs'!$C$60 -> 0.8274794078 | F241: ='Other Inputs'!$C$60 -> 0.8274794078 | G241: ='Other Inputs'!$C$60 -> 0.8274794078 | H241: ='Other Inputs'!$C$60 -> 0.8274794078 | I241: ='Other Inputs'!$C$60 -> 0.8274794078 | J241: ='Other Inputs'!$C$60 -> 0.8274794078 | K241: ='Other Inputs'!$C$60 -> 0.8274794078 | L241: ='Other Inputs'!$C$60 -> 0.8274794078 | M241: ='Other Inputs'!$C$60 -> 0.8274794078 | N241: ='Other Inputs'!$C$60 -> 0.8274794078 | O241: ='Other Inputs'!$C$60 -> 0.8274794078
D242: =D239*D240*D241 -> 1359548.667 | E242: =E239*E240*E241 -> 1271835.85 | F242: 1359548.667 | G242: 74473.1467 | H242: 76955.58493 | I242: 74473.1467 | J242: 76955.58493 | K242: 76955.58493 | L242: 74473.1467 | M242: 76955.58493 | N242: 1315692.258 | O242: 1359548.667 | P242: =SUM(D242:O242) -> 7197415.889
D246: 0.13 | E246: 0.14 | F246: 0.05 | G246: 0.05 | H246: 0.02 | I246: 0.02 | J246: 0.02 | K246: 0.02 | L246: 0.01 | M246: 0 | N246: 0 | O246: 0
D247: =D246*(D180+D183+D186+D189) -> 19146.14 | E247: 20772.08 | F247: 8220.15 | G247: 60063.95 | H247: 92036.84 | I247: 193708.58 | J247: 263741.4 | K247: 163092.66 | L247: 71569.58 | M247: 0 | N247: 0 | O247: 0

Sheet CET & DSM (hidden)
A1: Rate Caclulation for the CET and DSM Amortizations
P3: Solver Cells
A4: CET Amortization % Calculation | P4: % Change | Q4: Difference
B5: Balance | C5: Date | D5: GS Dth | H5: Amortization per Dth | P5: =J20/D20 -> -0.01006839709 | Q5: =J20-B11 -> 0 | S5: -> Difference should be at 0 (Use Goal Seek to Get Difference to Equal 0.
A6: DSM Balance | B6: ='Other Inputs'!$E$250 -> 42000000 | C6: ='Other Inputs'!$F$250 -> 2011-03-31 | D6: =B20 -> 95293167 | H6: =ROUND(B6/D6,5) -> 0.44075
S8: Typical Bill Rates
A9: CET Amortization Calculation
B10: Balance | C10: Date | D10: DNG Rev | H10: New DNG | L10: % Change | S10: Current | T10: Proposed
A11: CET Balance | B11: ='Other Inputs'!$E$249 -> -1886289.514 | C11: ='Other Inputs'!$F$249 -> 2011-07-31 | D11: =D20 -> 187347548.7 | H11: =D11+B11 -> 185461259.2 | L11: =P5 -> -0.01006839709 | S11: Effective | V11: SNG & | W11: CET, DSM
S12: ='Other Inputs'!$J$86 -> 2015-02-01 | T12: CET Only | U12: DSM Only | V12: Commodity | W12: Commodity
S13: BSF | T13: BSF | U13: BSF | V13: BSF | W13: BSF
B14: Revenue Calculation | H14: CET Amortization | L14: Total DNG | P14: REVRUN Calculation | S14: ='Other Inputs'!$G$90 -> 6.75 | T14: ='Other Inputs'!$G$90 -> 6.75 | U14: ='Other Inputs'!$G$90 -> 6.75 | V14: ='Other Inputs'!$G$90 -> 6.75 | W14: ='Ut 1.8'!$C$12 -> 6.75
A15: Utah GS | B15: Dth | C15: Base DNG | D15: DNG Revenue | H15: CET Rate | J15: Revenue | L15: DNG Rate | N15: Revenue | P15: CET Rate | Q15: CET Amort
A16: Block 1 Summer | B16: ='Other Inputs'!E254 -> 23076373 | C16: ='Other Inputs'!E239 -> 1.73142 | D16: =B16*C16 -> 39954893.74 | H16: =ROUND((J16/B16),5) -> -0.01743 | J16: =D16*$P$5 -> -402281.7357 | L16: =C16+H16 -> 1.71399 | N16: =L16*B16 -> 39552672.56 | P16: =ROUND(H16,5) -> -0.01743 | Q16: =B16*P16 -> -402221.1814 | S16: ='Other Inputs'!$G$86 -> 7.43283 | T16: =N24 -> 7.12295 | U16: =N31 -> 7.08019 | V16: =N38 -> 7.016867167 | W16: =N45 -> 7.569227167
A17: Block 2 Summer | B17: ='Other Inputs'!E255 -> 4705902 | C17: ='Other Inputs'!E240 -> 0.73142 | D17: =B17*C17 -> 3441990.841 | H17: =ROUND((J17/B17),5) -> -0.00736 | J17: =D17*$P$5 -> -34655.33055 | L17: =C17+H17 -> 0.72406 | N17: =L17*B17 -> 3407355.402 | P17: =ROUND(H17,5) -> -0.00736 | Q17: =B17*P17 -> -34635.43872
A18: Block 1 Winter | B18: ='Other Inputs'!E252 -> 52526064 | C18: ='Other Inputs'!E241 -> 2.35422 | D18: =B18*C18 -> 123657910.4 | H18: =ROUND((J18/B18),5) -> -0.0237 | J18: =D18*$P$5 -> -1245036.945 | L18: =C18+H18 -> 2.33052 | N18: =L18*B18 -> 122413042.7 | P18: =ROUND(H18,5) -> -0.0237 | Q18: =B18*P18 -> -1244867.717 | S18: ='Other Inputs'!$G$88 -> 8.55698 | T18: =N26 -> 8.3885 | U18: =N33 -> 8.34079 | V18: =N40 -> 8.299717167 | W18: =N47 -> 9.433467167
A19: Block 2 Winter | B19: ='Other Inputs'!E253 -> 14984828 | C19: ='Other Inputs'!E242 -> 1.35422 | D19: =B19*C19 -> 20292753.77 | H19: =ROUND((J19/B19),5) -> -0.01363 | J19: =D19*$P$5 -> -204315.503 | L19: =C19+H19 -> 1.34059 | N19: =L19*B19 -> 20088510.57 | P19: =ROUND(H19,5) -> -0.01363 | Q19: =B19*P19 -> -204243.2056
A20: GS-1 Block Rev | B20: =SUM(B16:B19) -> 95293167 | D20: =SUM(D16:D19) -> 187347548.7 | J20: =B11 -> -1886289.514 | N20: =SUM(N16:N19) -> 185461581.2 | Q20: =SUM(Q16:Q19) -> -1885967.543
A22: Total Rate Calculation With CET Amortization Only | N22: ='Control Panel'!F8 -> 2015-06-01 | P22: ='Other Inputs'!$J$86 -> 2015-02-01
A23: Utah GS | B23: Base DNG | C23: CET | D23: DSM | E23: Energy Assist | F23: Infrastructure | H23: Total DNG | I23: Base SNG | J23: SNG Amort | L23: Base Gas Cost | M23: 191 Amort | N23: Total Rate | P23: Total Rate
A24: Block 1 Summer | B24: =$C$16 -> 1.73142 | C24: =$H$16 -> -0.01743 | D24: 0.44104 | E24: 0.01519 | F24: 0.02908 | H24: =SUM(B24:F24) -> 2.1993 | I24: 0.55715 | J24: 0.01244 | L24: 4.21339 | M24: 0.14067 | N24: =SUM(H24:M24) -> 7.12295 | P24: ='Other Inputs'!$G$86 -> 7.43283 | Q24: =N24-P24 -> -0.30988
A25: Block 2 Summer | B25: =$C$17 -> 0.73142 | C25: =$H$17 -> -0.00736 | D25: =$D$24 -> 0.44104 | E25: =$E$24 -> 0.01519 | F25: 0.0108 | H25: =SUM(B25:F25) -> 1.19109 | I25: =I24 -> 0.55715 | J25: =J24 -> 0.01244 | L25: =L24 -> 4.21339 | M25: =$M$24 -> 0.14067 | N25: =SUM(H25:M25) -> 6.11474 | P25: ='Other Inputs'!$G$87 -> 6.47222 | Q25: =N25-P25 -> -0.35748
A26: Block 1 Winter | B26: =$C$18 -> 2.35422 | C26: =$H$18 -> -0.0237 | D26: =$D$24 -> 0.44104 | E26: =$E$24 -> 0.01519 | F26: 0.03453 | H26: =SUM(B26:F26) -> 2.82128 | I26: 1.18665 | J26: 0.02651 | L26: =L24 -> 4.21339 | M26: =$M$24 -> 0.14067 | N26: =SUM(H26:M26) -> 8.3885 | P26: ='Other Inputs'!$G$88 -> 8.55698 | Q26: =N26-P26 -> -0.16848
A27: Block 2 Winter | B27: =$C$19 -> 1.35422 | C27: =$H$19 -> -0.01363 | D27: =$D$24 -> 0.44104 | E27: =$E$24 -> 0.01519 | F27: 0.01434 | H27: =SUM(B27:F27) -> 1.81116 | I27: =I26 -> 1.18665 | J27: =J26 -> 0.02651 | L27: =L24 -> 4.21339 | M27: =$M$24 -> 0.14067 | N27: =SUM(H27:M27) -> 7.37838 | P27: ='Other Inputs'!$G$89 -> 7.59638 | Q27: =N27-P27 -> -0.218
A29: Total Rate Calculation With DSM Amortization Only | N29: =N22 -> 2015-06-01 | P29: ='Other Inputs'!$J$86 -> 2015-02-01
A30: Utah GS | B30: Base DNG | C30: CET | D30: DSM | E30: Energy Assist | F30: Infrastructure | H30: Total DNG | I30: Base SNG | J30: SNG Amort | L30: Commodity | M30: 191 Amort | N30: Total Rate | P30: Total Rate
A31: Block 1 Summer | B31: =$C$16 -> 1.73142 | C31: -0.0599 | D31: =$H$6 -> 0.44075 | E31: =$E$24 -> 0.01519 | F31: =F24 -> 0.02908 | H31: =SUM(B31:F31) -> 2.15654 | I31: =$I$24 -> 0.55715 | J31: =J24 -> 0.01244 | L31: =$L$24 -> 4.21339 | M31: =$M$24 -> 0.14067 | N31: =SUM(H31:M31) -> 7.08019 | P31: ='Other Inputs'!$G$86 -> 7.43283 | Q31: =N31-P31 -> -0.35264
A32: Block 2 Summer | B32: =$C$17 -> 0.73142 | C32: -0.02224 | D32: =$H$6 -> 0.44075 | E32: =$E$24 -> 0.01519 | F32: =F25 -> 0.0108 | H32: =SUM(B32:F32) -> 1.17592 | I32: =$I$24 -> 0.55715 | J32: =J25 -> 0.01244 | L32: =$L$24 -> 4.21339 | M32: =$M$24 -> 0.14067 | N32: =SUM(H32:M32) -> 6.09957 | P32: ='Other Inputs'!$G$87 -> 6.47222 | Q32: =N32-P32 -> -0.37265
A33: Block 1 Winter | B33: =$C$18 -> 2.35422 | C33: -0.07112 | D33: =$H$6 -> 0.44075 | E33: =$E$24 -> 0.01519 | F33: =F26 -> 0.03453 | H33: =SUM(B33:F33) -> 2.77357 | I33: =$I$26 -> 1.18665 | J33: =J26 -> 0.02651 | L33: =$L$24 -> 4.21339 | M33: =$M$24 -> 0.14067 | N33: =SUM(H33:M33) -> 8.34079 | P33: ='Other Inputs'!$G$88 -> 8.55698 | Q33: =N33-P33 -> -0.21619
A34: Block 2 Winter | B34: =$C$19 -> 1.35422 | C34: -0.02953 | D34: =$H$6 -> 0.44075 | E34: =$E$24 -> 0.01519 | F34: =F27 -> 0.01434 | H34: =SUM(B34:F34) -> 1.79497 | I34: =$I$26 -> 1.18665 | J34: =J27 -> 0.02651 | L34: =$L$24 -> 4.21339 | M34: =$M$24 -> 0.14067 | N34: =SUM(H34:M34) -> 7.36219 | P34: ='Other Inputs'!$G$89 -> 7.59638 | Q34: =N34-P34 -> -0.23419
A36: Total Rate Calculation With SNG and Commodity Changes Only | N36: =N22 -> 2015-06-01 | P36: ='Other Inputs'!$J$86 -> 2015-02-01
A37: Utah GS | B37: Base DNG | C37: CET | D37: DSM | E37: Energy Assist | F37: Infrastructure | H37: Total DNG | I37: Base SNG | J37: SNG | L37: Commodity | M37: 191 Amort | N37: Total Rate | P37: Total Rate
A38: Block 1 Summer | B38: =$C$16 -> 1.73142 | C38: =C31 -> -0.0599 | D38: =D24 -> 0.44104 | E38: =$E$24 -> 0.01519 | F38: =F24 -> 0.02908 | H38: =SUM(B38:F38) -> 2.15683 | I38: ='Ut 1.6 p3'!G17 -> 0.51018 | J38: ='Ut 1.6 p3'!$H$17 -> 0.07911 | L38: ='Ut 1.6 p1'!$F$31 -> 4.20781 | M38: ='Ut 1.6 p1'!$F$32 -> 0.06293716725 | N38: =SUM(H38:M38) -> 7.016867167 | P38: ='Other Inputs'!$G$86 -> 7.43283 | Q38: =N38-P38 -> -0.4159628328
A39: Block 2 Summer | B39: =$C$17 -> 0.73142 | C39: =C32 -> -0.02224 | D39: =D25 -> 0.44104 | E39: =$E$24 -> 0.01519 | F39: =F25 -> 0.0108 | H39: =SUM(B39:F39) -> 1.17621 | I39: ='Ut 1.6 p3'!G17 -> 0.51018 | J39: ='Ut 1.6 p3'!$H$17 -> 0.07911 | L39: ='Ut 1.6 p1'!$F$31 -> 4.20781 | M39: ='Ut 1.6 p1'!$F$32 -> 0.06293716725 | N39: =SUM(H39:M39) -> 6.036247167 | P39: ='Other Inputs'!$G$87 -> 6.47222 | Q39: =N39-P39 -> -0.4359728328
A40: Block 1 Winter | B40: =$C$18 -> 2.35422 | C40: =C33 -> -0.07112 | D40: =D26 -> 0.44104 | E40: =$E$24 -> 0.01519 | F40: =F26 -> 0.03453 | H40: =SUM(B40:F40) -> 2.77386 | I40: ='Ut 1.6 p3'!G16 -> 1.08662 | J40: ='Ut 1.6 p3'!$H$16 -> 0.16849 | L40: ='Ut 1.6 p1'!$F$31 -> 4.20781 | M40: ='Ut 1.6 p1'!$F$32 -> 0.06293716725 | N40: =SUM(H40:M40) -> 8.299717167 | P40: ='Other Inputs'!$G$88 -> 8.55698 | Q40: =N40-P40 -> -0.2572628328
A41: Block 2 Winter | B41: =$C$19 -> 1.35422 | C41: =C34 -> -0.02953 | D41: =D27 -> 0.44104 | E41: =$E$24 -> 0.01519 | F41: =F27 -> 0.01434 | H41: =SUM(B41:F41) -> 1.79526 | I41: ='Ut 1.6 p3'!G16 -> 1.08662 | J41: ='Ut 1.6 p3'!$H$16 -> 0.16849 | L41: ='Ut 1.6 p1'!$F$31 -> 4.20781 | M41: ='Ut 1.6 p1'!$F$32 -> 0.06293716725 | N41: =SUM(H41:M41) -> 7.321117167 | P41: ='Other Inputs'!$G$89 -> 7.59638 | Q41: =N41-P41 -> -0.2752628328
A43: Total Rate Calculation | N43: =N29 -> 2015-06-01 | P43: ='Other Inputs'!$J$86 -> 2015-02-01
A44: Utah GS | B44: Base DNG | C44: CET | D44: DSM | E44: Energy Assist | F44: Infrastructure | H44: Total DNG | I44: Base SNG | J44: SNG | L44: Commodity | N44: Total Rate | P44: Total Rate
A45: Block 1 Summer | B45: =$C$16 -> 1.73142 | C45: =$H$16 -> -0.01743 | D45: =$H$6 -> 0.44075 | E45: =$E$24 -> 0.01519 | F45: =F38 -> 0.02908 | H45: =SUM(B45:F45) -> 2.19901 | I45: =I38 -> 0.51018 | J45: ='Ut 1.6 p3'!$I$17 -> 0.58929 | L45: ='Ut 1.6 p1'!$F$33 -> 4.270747167 | N45: =SUM(H45:L45) -> 7.569227167 | P45: ='Other Inputs'!$G$86 -> 7.43283 | Q45: =N45-P45 -> 0.1363971672
A46: Block 2 Summer | B46: =$C$17 -> 0.73142 | C46: =$H$17 -> -0.00736 | D46: =$H$6 -> 0.44075 | E46: =$E$24 -> 0.01519 | F46: =F39 -> 0.0108 | H46: =SUM(B46:F46) -> 1.1908 | I46: =I39 -> 0.51018 | J46: ='Ut 1.6 p3'!$I$17 -> 0.58929 | L46: =$L$45 -> 4.270747167 | N46: =SUM(H46:L46) -> 6.561017167 | P46: ='Other Inputs'!$G$87 -> 6.47222 | Q46: =N46-P46 -> 0.08879716725
A47: Block 1 Winter | B47: =$C$18 -> 2.35422 | C47: =$H$18 -> -0.0237 | D47: =$H$6 -> 0.44075 | E47: =$E$24 -> 0.01519 | F47: =F40 -> 0.03453 | H47: =SUM(B47:F47) -> 2.82099 | I47: =I40 -> 1.08662 | J47: ='Ut 1.6 p3'!$I$16 -> 1.25511 | L47: =$L$45 -> 4.270747167 | N47: =SUM(H47:L47) -> 9.433467167 | P47: ='Other Inputs'!$G$88 -> 8.55698 | Q47: =N47-P47 -> 0.8764871672
A48: Block 2 Winter | B48: =$C$19 -> 1.35422 | C48: =$H$19 -> -0.01363 | D48: =$H$6 -> 0.44075 | E48: =$E$24 -> 0.01519 | F48: =F41 -> 0.01434 | H48: =SUM(B48:F48) -> 1.81087 | I48: =I41 -> 1.08662 | J48: ='Ut 1.6 p3'!$I$16 -> 1.25511 | L48: =$L$45 -> 4.270747167 | N48: =SUM(H48:L48) -> 8.423347167 | P48: ='Other Inputs'!$G$89 -> 7.59638 | Q48: =N48-P48 -> 0.8269671672
A50: Typical Customer Difference - CET Amortization Only
B51: Typical
A52: GS | B52: Dth | C52: =S12 -> 2015-02-01 | D52: =N43 -> 2015-06-01 | H52: Change | J52: % Change
A53: January | B53: 14.9 | C53: =ROUND($S$14+(B53*$S$18),2) -> 134.25 | D53: =ROUND($T$14+(B53*$T$18),2) -> 131.74 | H53: =D53-C53 -> -2.51
A54: February | B54: 12.5 | C54: =ROUND($S$14+(B54*$S$18),2) -> 113.71 | D54: =ROUND($T$14+(B54*$T$18),2) -> 111.61 | H54: -2.1
A55: March | B55: 10.1 | C55: =ROUND($S$14+(B55*$S$18),2) -> 93.18 | D55: =ROUND($T$14+(B55*$T$18),2) -> 91.47 | H55: -1.71
A56: April | B56: 8.3 | C56: =ROUND($S$14+(B56*$S$16),2) -> 68.44 | D56: =ROUND($T$14+(B56*$T$16),2) -> 65.87 | H56: -2.57
A57: May | B57: 4.4 | C57: 39.45 | D57: =ROUND($T$14+(B57*$T$16),2) -> 38.09 | H57: -1.36
A58: June | B58: 3.1 | C58: 29.79 | D58: 28.83 | H58: -0.96
A59: July | B59: 2 | C59: 21.62 | D59: 21 | H59: -0.62
A60: August | B60: 1.8 | C60: 20.13 | D60: 19.57 | H60: -0.56
A61: September | B61: 2 | C61: 21.62 | D61: 21 | H61: -0.62
A62: October | B62: 3.1 | C62: 29.79 | D62: 28.83 | H62: -0.96
A63: November | B63: 6.3 | C63: =ROUND($S$14+(B63*$S$18),2) -> 60.66 | D63: =ROUND($T$14+(B63*$T$18),2) -> 59.6 | H63: -1.06
A64: December | B64: 11.5 | C64: =ROUND($S$14+(B64*$S$18),2) -> 105.16 | D64: =ROUND($T$14+(B64*$T$18),2) -> 103.22 | H64: -1.94
B65: =SUM(B53:B64) -> 80 | C65: =SUM(C53:C64) -> 737.8 | D65: =SUM(D53:D64) -> 720.83 | H65: =SUM(H53:H64) -> -16.97 | J65: =H65/C65 -> -0.02300081323
A68: Typical Customer Difference - DSM Amortization Only
B69: Typical
A70: GS | B70: Dth | C70: =C52 -> 2015-02-01 | D70: =D52 -> 2015-06-01 | H70: Change | J70: % Change
A71: January | B71: 14.9 | C71: =ROUND($S$14+(B71*$S$18),2) -> 134.25 | D71: =ROUND($U$14+(B71*$U$18),2) -> 131.03 | H71: =D71-C71 -> -3.22
A72: February | B72: 12.5 | C72: =ROUND($S$14+(B72*$S$18),2) -> 113.71 | D72: =ROUND($U$14+(B72*$U$18),2) -> 111.01 | H72: -2.7
A73: March | B73: 10.1 | C73: =ROUND($S$14+(B73*$S$18),2) -> 93.18 | D73: =ROUND($U$14+(B73*$U$18),2) -> 90.99 | H73: -2.19
A74: April | B74: 8.3 | C74: =ROUND($S$14+(B74*$S$16),2) -> 68.44 | D74: =ROUND($U$14+(B74*$U$16),2) -> 65.52 | H74: -2.92
A75: May | B75: 4.4 | C75: 39.45 | D75: 37.9 | H75: -1.55
A76: June | B76: 3.1 | C76: 29.79 | D76: 28.7 | H76: -1.09
A77: July | B77: 2 | C77: 21.62 | D77: 20.91 | H77: -0.71
A78: August | B78: 1.8 | C78: 20.13 | D78: 19.49 | H78: -0.64
A79: September | B79: 2 | C79: 21.62 | D79: 20.91 | H79: -0.71
A80: October | B80: 3.1 | C80: 29.79 | D80: 28.7 | H80: -1.09
A81: November | B81: 6.3 | C81: =ROUND($S$14+(B81*$S$18),2) -> 60.66 | D81: =ROUND($U$14+(B81*$U$18),2) -> 59.3 | H81: -1.36
A82: December | B82: 11.5 | C82: =ROUND($S$14+(B82*$S$18),2) -> 105.16 | D82: =ROUND($U$14+(B82*$U$18),2) -> 102.67 | H82: -2.49
B83: =SUM(B71:B82) -> 80 | C83: =SUM(C71:C82) -> 737.8 | D83: =SUM(D71:D82) -> 717.13 | H83: =SUM(H71:H82) -> -20.67 | J83: =H83/C83 -> -0.02801572242
A86: Typical Customer Difference - SNG and Commodity Changes Only
B87: Typical
A88: GS-1 | B88: Dth | C88: =C70 -> 2015-02-01 | D88: =D70 -> 2015-06-01 | H88: Change | J88: % Change
A89: January | B89: 14.9 | C89: =ROUND($S$14+(B89*$S$18),2) -> 134.25 | D89: =ROUND($V$14+(B89*$V$18),2) -> 130.42 | H89: =D89-C89 -> -3.83
A90: February | B90: 12.5 | C90: =ROUND($S$14+(B90*$S$18),2) -> 113.71 | D90: =ROUND($V$14+(B90*$V$18),2) -> 110.5 | H90: -3.21
A91: March | B91: 10.1 | C91: =ROUND($S$14+(B91*$S$18),2) -> 93.18 | D91: =ROUND($V$14+(B91*$V$18),2) -> 90.58 | H91: -2.6
A92: April | B92: 8.3 | C92: =ROUND($S$14+(B92*$S$16),2) -> 68.44 | D92: =ROUND($V$14+(B92*$V$16),2) -> 64.99 | H92: -3.45
A93: May | B93: 4.4 | C93: 39.45 | D93: 37.62 | H93: -1.83
A94: June | B94: 3.1 | C94: 29.79 | D94: 28.5 | H94: -1.29
A95: July | B95: 2 | C95: 21.62 | D95: 20.78 | H95: -0.84
A96: August | B96: 1.8 | C96: 20.13 | D96: 19.38 | H96: -0.75
A97: September | B97: 2 | C97: 21.62 | D97: 20.78 | H97: -0.84
A98: October | B98: 3.1 | C98: 29.79 | D98: 28.5 | H98: -1.29
A99: November | B99: 6.3 | C99: =ROUND($S$14+(B99*$S$18),2) -> 60.66 | D99: =ROUND($V$14+(B99*$V$18),2) -> 59.04 | H99: -1.62
A100: December | B100: 11.5 | C100: =ROUND($S$14+(B100*$S$18),2) -> 105.16 | D100: =ROUND($V$14+(B100*$V$18),2) -> 102.2 | H100: -2.96
B101: =SUM(B89:B100) -> 80 | C101: =SUM(C89:C100) -> 737.8 | D101: =SUM(D89:D100) -> 713.29 | H101: =SUM(H89:H100) -> -24.51 | J101: =H101/C101 -> -0.03322038493
A104: Typical Customer Difference - CET & DSM Amort, SNG and Commodity Changes
B105: Typical
A106: GS-1 | B106: Dth | C106: =C52 -> 2015-02-01 | D106: =D52 -> 2015-06-01 | H106: Change | J106: % Change
A107: January | B107: 14.9 | C107: =ROUND($S$14+(B107*$S$18),2) -> 134.25 | D107: =ROUND($W$14+(B107*$W$18),2) -> 147.31 | H107: =D107-C107 -> 13.06
A108: February | B108: 12.5 | C108: =ROUND($S$14+(B108*$S$18),2) -> 113.71 | D108: =ROUND($W$14+(B108*$W$18),2) -> 124.67 | H108: 10.96
A109: March | B109: 10.1 | C109: =ROUND($S$14+(B109*$S$18),2) -> 93.18 | D109: =ROUND($W$14+(B109*$W$18),2) -> 102.03 | H109: 8.85
A110: April | B110: 8.3 | C110: =ROUND($S$14+(B110*$S$16),2) -> 68.44 | D110: =ROUND($W$14+(B110*$W$16),2) -> 69.57 | H110: 1.13
A111: May | B111: 4.4 | C111: 39.45 | D111: 40.05 | H111: 0.6
A112: June | B112: 3.1 | C112: 29.79 | D112: 30.21 | H112: 0.42
A113: July | B113: 2 | C113: 21.62 | D113: 21.89 | H113: 0.27
A114: August | B114: 1.8 | C114: 20.13 | D114: 20.37 | H114: 0.24
A115: September | B115: 2 | C115: 21.62 | D115: 21.89 | H115: 0.27
A116: October | B116: 3.1 | C116: 29.79 | D116: 30.21 | H116: 0.42
A117: November | B117: 6.3 | C117: =ROUND($S$14+(B117*$S$18),2) -> 60.66 | D117: =ROUND($W$14+(B117*$W$18),2) -> 66.18 | H117: 5.52
A118: December | B118: 11.5 | C118: =ROUND($S$14+(B118*$S$18),2) -> 105.16 | D118: =ROUND($W$14+(B118*$W$18),2) -> 115.23 | H118: 10.07
B119: =SUM(B107:B118) -> 80 | C119: =SUM(C107:C118) -> 737.8 | D119: =SUM(D107:D118) -> 789.61 | H119: =SUM(H107:H118) -> 51.81 | J119: =H119/C119 -> 0.07022228246

Sheet Utah Summary-by class
A1: UTAH SUMMARY
B2: NOT AN EXHIBIT !!!
A3: NEEDS TO BE UPDATED FOR GSR AND GSC RATES | Q3: Sub Total
C4: COMMODITY | J4: SNG | Q4: TOTAL
C5: Current | D5: Proposed | E5: Current | F5: Proposed | G5: Revenue | H5: % | J5: Current | K5: Proposed | L5: Current | M5: Proposed | N5: Revenue | O5: % | Q5: Revenue | R5: %
A6: RATE | B6: Dth Sales | C6: Rates | D6: Rates | E6: Revenue | F6: Revenue | G6: Difference | H6: Change | J6: Rates | K6: Rates | L6: Revenue | M6: Revenue | N6: Difference | O6: Change | Q6: Difference | R6: Change
A8: GS (W) | B8: =Calculations!P52 -> 73670788 | C8: ='Ut 1.6 p1'!$H$33 -> 5.04668 | D8: =ROUND('Ut 1.6 p1'!$F$33,5) -> 4.27075 | E8: =ROUND(B8*C8,0) -> 371792892 | F8: =ROUND(B8*D8,0) -> 314629518 | G8: =(F8-E8) -> -57163374 | J8: ='Ut 1.6 p3'!E16 -> 0.99133 | K8: ='Ut 1.6 p3'!I16 -> 1.25511 | L8: =ROUND(B8*J8,0) -> 73032062 | M8: =B8*K8 -> 92464942.73 | N8: =(M8-L8) -> 19432880.73 | Q8: =G8+N8 -> -37730493.27
A9: GS (S) | B9: =Calculations!P53 -> 28571076 | C9: ='Ut 1.6 p1'!$H$33 -> 5.04668 | D9: =D8 -> 4.27075 | E9: =ROUND(B9*C9,0) -> 144189078 | F9: =ROUND(B9*D9,0) -> 122019923 | G9: =(F9-E9) -> -22169155 | J9: ='Ut 1.6 p3'!E17 -> 0.46544 | K9: ='Ut 1.6 p3'!I17 -> 0.58929 | L9: =ROUND(B9*J9,0) -> 13298122 | M9: =B9*K9 -> 16836649.38 | N9: =(M9-L9) -> 3538527.376 | Q9: =G9+N9 -> -18630627.62
A10: Total | B10: =SUM(B8:B9) -> 102241864 | E10: =SUM(E8:E9) -> 515981970 | F10: =SUM(F8:F9) -> 436649441 | G10: =SUM(G8:G9) -> -79332529 | H10: =IF(G10=0,0,G10/E10) -> -0.1537505836 | L10: =SUM(L8:L9) -> 86330184 | M10: =SUM(M8:M9) -> 109301592.1 | N10: =SUM(N8:N9) -> 22971408.1 | O10: =IF(N10=0,0,N10/L10) -> 0.2660877927 | Q10: =SUM(Q8:Q9) -> -56361120.9 | R10: =IF(Q10=0,0,Q10/(E10+L10)) -> -0.09357460334
G11: 70106876
G12: 9225654.028
A13: FS | B13: =Calculations!P58 -> 2498555 | C13: ='Ut 1.6 p1'!$H$33 -> 5.04668 | D13: =D8 -> 4.27075 | E13: =ROUND(B13*C13,0) -> 12609408 | F13: =ROUND(B13*D13,0) -> 10670704 | G13: =(F13-E13) -> -1938704 | J13: ='Ut 1.6 p3'!E19 -> 0.96551 | K13: ='Ut 1.6 p3'!I19 -> 1.22242 | L13: =ROUND(B13*J13,0) -> 2412380 | M13: =B13*K13 -> 3054283.603 | N13: =(M13-L13) -> 641903.6031 | Q13: =G13+N13 -> -1296800.397
B14: =Calculations!P59 -> 2389296 | C14: ='Ut 1.6 p1'!$H$33 -> 5.04668 | D14: =D9 -> 4.27075 | E14: =ROUND(B14*C14,0) -> 12058012 | F14: =ROUND(B14*D14,0) -> 10204086 | G14: =(F14-E14) -> -1853926 | J14: ='Ut 1.6 p3'!E20 -> 0.46544 | K14: ='Ut 1.6 p3'!I20 -> 0.58929 | L14: =ROUND(B14*J14,0) -> 1112074 | M14: =B14*K14 -> 1407988.24 | N14: =(M14-L14) -> 295914.2398 | Q14: =G14+N14 -> -1558011.76
A15: Total | B15: =SUM(B13:B14) -> 4887851 | E15: =SUM(E13:E14) -> 24667420 | F15: =SUM(F13:F14) -> 20874790 | G15: =SUM(G13:G14) -> -3792630 | H15: =IF(G15=0,0,G15/E15) -> -0.1537505746 | L15: =SUM(L13:L14) -> 3524454 | M15: =SUM(M13:M14) -> 4462271.843 | N15: =SUM(N13:N14) -> 937817.8429 | O15: =IF(N15=0,0,N15/L15) -> 0.2660888305 | Q15: =SUM(Q13:Q14) -> -2854812.157 | R15: =IF(Q15=0,0,Q15/(E15+L15)) -> -0.1012636534
A19: NGV | B19: =Calculations!P12 -> 705009 | C19: ='Ut 1.6 p1'!$H$33 -> 5.04668 | D19: =D8 -> 4.27075 | E19: =ROUND(B19*C19,0) -> 3557955 | F19: =ROUND(B19*D19,0) -> 3010917 | G19: =(F19-E19) -> -547038 | H19: =IF(G19=0,0,G19/E19) -> -0.1537506798 | J19: ='Ut 1.6 p3'!E22 -> 0.71537 | K19: ='Ut 1.6 p3'!I22 -> 0.90572 | L19: =ROUND(B19*J19,0) -> 504342 | M19: =ROUND(B19*K19,0) -> 638541 | N19: =(M19-L19) -> 134199 | O19: =IF(N19=0,0,N19/L19) -> 0.2660872979 | Q19: =G19+N19 -> -412839 | R19: =IF(Q19=0,0,Q19/(E19+L19)) -> -0.1016269859
A21: IS | B21: =Calculations!P17 -> 2648021 | C21: 4.839795 | D21: =D8 -> 4.27075 | E21: =ROUND(B21*C21,0) -> 12815879 | F21: =ROUND(B21*D21,0) -> 11309036 | G21: =(F21-E21) -> -1506843 | H21: =IF(G21=0,0,G21/E21) -> -0.1175762505 | Q21: =G21 -> -1506843 | R21: =IF(Q21=0,0,Q21/(E21+L21)) -> -0.1175762505
G24: =G10+G15+G19+G21 -> -85179040 | N24: =N10+N15+N19 -> 24043424.95 | Q24: =Q10+Q15+Q19+Q21 -> -61135615.05
A27: IS | B27: 0 | E27: =ROUND(B27*C27,0) -> 0 | F27: =ROUND(B27*D27,0) -> 0 | G27: =(F27-E27) -> 0 | H27: =IF(G27=0,0,G27/E27) -> 0 | J27: ='Ut 1.6 p3'!E24 -> 0.1788 | K27: ='Ut 1.6 p3'!I24 -> 0.1788 | L27: =ROUND(B21*J27,0) -> 473466 | M27: =ROUND(B21*K27,0) -> 473466 | N27: =(M27-L27) -> 0 | O27: =IF(N27=0,0,N27/L27) -> 0 | Q27: =G27+N27 -> 0 | R27: =IF(Q27=0,0,Q27/(E27+L27)) -> 0
B29: 0 | E29: =ROUND(B29*C29,0) -> 0 | F29: =ROUND(B29*D29,0) -> 0 | G29: =(F29-E29) -> 0 | H29: =IF(G29=0,0,G29/E29) -> 0 | J29: 0 | K29: 0 | L29: =ROUND(B29*J29,0) -> 0 | M29: =ROUND(B29*K29,0) -> 0 | N29: =(M29-L29) -> 0 | O29: =IF(N29=0,0,N29/L29) -> 0 | Q29: =G29+N29 -> 0 | R29: =IF(Q29=0,0,Q29/(E29+L29)) -> 0
B30: - | E30: - | F30: - | G30: - | L30: ------------------- | M30: ------------------- | N30: ------------------- | Q30: -------------------
B31: =B10+B15+B19+B27+B29+B21 -> 110482745 | E31: =E10+E15+E19+E27+E29+E21 -> 557023224 | F31: =F10+F15+F19+F27+F29+F21 -> 471844184 | G31: =G10+G15+G19+G27+G29+G21 -> -85179040 | H31: =IF(G31=0,0,G31/E31) -> -0.152918292 | L31: =L10+L15+L19+L27+L29 -> 90832446 | M31: =M10+M15+M19+M27+M29 -> 114875870.9 | N31: =N10+N15+N19+N27+N29 -> 24043424.95 | O31: =IF(N31=0,0,N31/L31) -> 0.2647008421 | Q31: =Q10+Q15+Q19+Q27+Q29+Q21 -> -61135615.05 | R31: =IF(Q31=0,0,Q31/(E31+L31)) -> -0.09436610326 | W31: =49300714-6927605-5328088 -> 37045021
G32: =IF(G31>0,"Commodity Increase","Commodity Decrease") -> Commodity Decrease | N32: =IF(N31>0,"Increase to SNG","Decrease to SNG") -> Increase to SNG | W32: =W31-N31 -> 13001596.05
B33: NOT AN EXHIBIT !!!
G34: =ROUND(G31,-3) -> -85179000 | N34: =ROUND(N31,-3) -> 24043000 | Q34: =ROUND(Q31,-3) -> -61136000 | W34: =W32-8603966 -> 4397630.054
G35: Rounded | N35: Rounded | Q35: Rounded
A38: FT2 | B38: ='RevRun Fcst'!S138+'RevRun Fcst'!S183 -> 0 | M38: =0.0005*B27 -> 0
M39: =M38+M31 -> 114875870.9
A40: IT | B40: ='RevRun Fcst'!S165+'RevRun Fcst'!S174 -> 2714436
A43: winter | B43: =B8+B13 -> 76169343 | J43: =L43/B43 -> 0.9904830346 | L43: =L8+L13 -> 75444442
A44: summer | B44: =B9+B14 -> 30960372 | J44: =L44/B44 -> 0.4654400147 | L44: =L9+L14 -> 14410196
A45: year | B45: =B10+B15 -> 107129715 | J45: =L45/B45 -> 0.8387461686 | L45: =L10+L15 -> 89854638
B47: =B10+B15+B19 -> 107834724 | J47: =L47/B47 -> 0.837939549 | L47: =L10+L15+L19 -> 90358980

Sheet UT Summary - by cost

Sheet Model Checks
B2: Model Checks
B3: If the total of all checks is not zero, or very close to zero, find the checks below that are out of balance and follow the calculations
B4: back through the model and correct any errors.
D6: Total of all Checks
D7: =ABS(SUM(D10:D1993)) -> 0.7190577239
B9: Forecasted Demand
C10: Utah | D10: =Calculations!P25-'RevRun Fcst'!T205 -> 0
C11: Wyoming | D11: =Calculations!P44-'RevRun Fcst'!T329 -> 0
C12: Total System | D12: =Calculations!P47-'RevRun Fcst'!T370 -> 0
B13: Forecasted Utah Demand Check by Month
C14: 1 | D14: =Calculations!D25-'RevRun Fcst'!H205 -> 0
C15: 2 | D15: =Calculations!E25-'RevRun Fcst'!I205 -> 0
C16: 3 | D16: =Calculations!F25-'RevRun Fcst'!J205 -> 0
C17: 4 | D17: =Calculations!G25-'RevRun Fcst'!K205 -> 0
C18: 5 | D18: =Calculations!H25-'RevRun Fcst'!L205 -> 0
C19: 6 | D19: =Calculations!I25-'RevRun Fcst'!M205 -> 0
C20: 7 | D20: =Calculations!J25-'RevRun Fcst'!N205 -> 0
C21: 8 | D21: =Calculations!K25-'RevRun Fcst'!O205 -> 0
C22: 9 | D22: =Calculations!L25-'RevRun Fcst'!P205 -> 0
C23: 10 | D23: =Calculations!M25-'RevRun Fcst'!Q205 -> 0
C24: 11 | D24: =Calculations!N25-'RevRun Fcst'!R205 -> 0
C25: 12 | D25: =Calculations!O25-'RevRun Fcst'!S205 -> 0
C26: Wyoming I-2 and I-4 Revenues | D26: =('RevRun Fcst'!T273+'RevRun Fcst'!T282)-Calculations!P65 -> 0
C27: System Sales Volumes | D27: =Calculations!H76-'RevRun Fcst'!T368 -> 0
C28: Utah Sales Volumes | D28: =Calculations!P20-'Utah Summary-by class'!B31 -> 0
B29: Company Production | D29: =Calculations!P120-'Monthly Inputs'!S7-'Monthly Inputs'!S13 -> 0
B30: Injections | D30: ='Monthly Inputs'!S29-SUM('Monthly Inputs'!S23:S28) -> 0
B31: Withdrawls | D31: ='Monthly Inputs'!S37-SUM('Monthly Inputs'!S32:S36) -> 0
B32: Injections & Withdrawls | D32: =SUM('Ut 1.3 p2'!D23:D28)-'Monthly Inputs'!S29-'Monthly Inputs'!S37 -> 0
B33: Injections | D33: =Calculations!P129-'Monthly Inputs'!S29 -> 0
B34: Withdrawls | D34: =Calculations!P137-'Monthly Inputs'!S37 -> 0
B35: Sales for Resale | D35: =Expenses!S445-Calculations!P86 -> 0
B36: Incidental Plant Prod Sales | D36: =Expenses!S446-Calculations!P87 -> 0
B37: Incidental Gas & Oil Sales | D37: =Expenses!S447-Calculations!P89 -> 0
B38: Gasoline and Oil Costs | D38: =Expenses!S450+Calculations!P90 -> 0
B39: Wexpro Revenue Sharing | D39: =Expenses!S449-Calculations!P94 -> 0
B40: Storage Gas | D40: ='Rate Base'!U216-Calculations!P99 -> 0
B41: 101 Production | D41: ='Rate Base'!U158-Calculations!P100 -> 0
B42: 108 Production | D42: ='Rate Base'!U176-Calculations!P101 -> 0
B43: 111 Production | D43: ='Rate Base'!U183-Calculations!P102 -> 0
B44: 255 Production | D44: ='Rate Base'!U251-Calculations!P103 -> 0
B45: 282 Production | D45: ='Rate Base'!U258-Calculations!P104 -> 0
B46: 282.1 Production | D46: ='Rate Base'!U265-Calculations!P105 -> 0
B47: Production Rate Base | D47: =SUM(Calculations!P99:P105)-'Rate Base'!U285 -> 0
B48: Purchased Gas Cost | D48: ='Ut 1.2'!G24-Calculations!P192 -> 0.02051949501
B49: Working Gas Rate Base | D49: =Calculations!P99-'Ut 1.3 p2'!D53 -> 0
B50: Allocations | D50: ='Ut 1.5'!E41-'Ut 1.5'!F41-'Ut 1.5'!G41+'Ut 1.5'!G39 -> 1.192092896e-07
B52: System Sales | D52: ='SDR#1'!C10-'RevRun Fcst'!T368 -> 0
B53: Lost & Unaccounted For | D53: ='SDR#1'!C15-(('SDR#1'!C10+'SDR#1'!C11)/(1-'Other Inputs'!E283)) -> 1.284827054
B54: Supply / Demand | D54: ='SDR#1'!C36-'SDR#1'!C15 -> -2.116161004
B55: System Sales | D55: ='SDR#3'!H36-'SDR#1'!C10 -> 0
B56: SNG Revenue | D56: ='SDR#4'!G23-'Utah Summary-by class'!L31 -> 0.09290000796
B57: Utah Sales | D57: ='SDR#3'!D36-'SDR#4'!E23 -> 0
B58: Utah Sales | D58: ='SDR#2'!G59+'Ut 1.6 p1'!J22 -> -0.001143395901
B59: Seasonal Volumes | D59: =Calculations!P52+Calculations!P53-Calculations!P7-Calculations!P8 -> 0
B60: Seasonal Volumes | D60: =Calculations!P55+Calculations!P56-Calculations!P9 -> 0
B61: Seasonal Volumes | D61: =Calculations!P58+Calculations!P59-Calculations!P10 -> 0

Sheet SDR#1
E1: ='Control Panel'!F32 -> Questar Gas Company
E2: ='Control Panel'!F33 -> Docket No. 15-057-04
B4: Standard Data Request #1
B5: Summary of Sources of Supply and Demand
A8: 1 | B8: DEMAND | C8: Total | D8: Utah | E8: Wyoming
A10: =A8+1 -> 2 | B10: SALES IN DTHS | C10: =D10+E10 -> 114511810 | D10: =Calculations!P20 -> 110482745 | E10: =Calculations!P39 -> 4029065
A11: =A10+1 -> 3 | B11: DIST. CO. USE & | C11: 0
A12: =A11+1 -> 4 | B12: DIST. LOST & UNACCT. (0.49%) | C12: =Calculations!P148 -> 568498
A15: =A12+1 -> 5 | B15: TOTAL | C15: =SUM(C10:C12) -> 115080308
A19: =A15+1 -> 6 | B19: SUPPLY | C19: Total | D19: Utah | E19: Wyoming
A21: =A19+1 -> 7 | B21: COMPANY PRODUCTION | C21: ='Ut 1.1'!F1414+'Ut 1.1'!F1509 -> 67095449 | D21: =$D$10/$C$10*C21 -> 64734714.98 | E21: =$E$10/$C$10*C21 -> 2360734.017
A22: =A21+1 -> 8 | B22: GAS REIMBURSEMENT | C22: =C21*-'Other Inputs'!$E$287 -> -3870669.357 | D22: =D21*-'Other Inputs'!$E$287 -> -3734480.973 | E22: =E21*-'Other Inputs'!$E$287 -> -136188.3847
A25: =A22+1 -> 9 | B25: CONTRACT GAS | C25: ='Ut 1.2'!E24 -> 53582497 | D25: =$D$10/$C$10*C25 -> 51697212.3 | E25: =$E$10/$C$10*C25 -> 1885284.699
A26: =A25+1 -> 10 | B26: GAS REIMBURSEMENT | C26: =C25*-'Other Inputs'!$E$286 -> -1055575.191 | D26: =D25*-'Other Inputs'!$E$286 -> -1018435.082 | E26: =E25*-'Other Inputs'!$E$286 -> -37140.10858
A28: =A26+1 -> 11 | B28: STORAGE
A29: =A28+1 -> 12 | B29: INJECTIONS | C29: ='Ut 1.4 p2'!E22 -> -16355305 | D29: =$D$10/$C$10*C29 -> -15779848.31 | E29: =$E$10/$C$10*C29 -> -575456.6882
A30: =A29+1 -> 13 | B30: WITHDRAWALS | C30: ='Ut 1.4 p2'!E21 -> 16591686 | D30: =$D$10/$C$10*C30 -> 16007912.31 | E30: =$E$10/$C$10*C30 -> 583773.6855
A31: =A30+1 -> 14 | B31: NET (INJECTIONS) WITHDRAWALS | C31: =C29+C30 -> 236381 | D31: =D29+D30 -> 228064.0027 | E31: =E29+E30 -> 8316.997293
A33: =A31+1 -> 15 | B33: Storage Fuel | C33: =Calculations!P165+Calculations!P166-1 -> -907776.5679 | D33: =D10/C10*C33 -> -875836.7112 | E33: =E10/C10*C33 -> -31939.85666
A36: =A33+1 -> 16 | B36: TOTAL SUPPLY | C36: =C21+C22+C25+C26+C29+C30+C33 -> 115080305.9 | D36: =SUM(D21:D30)+D33 -> 111031238.5 | E36: =SUM(E21:E30)+E33 -> 4049067.364
A38: =A36+1 -> 17 | B38: Company Use & Loss % | C38: =(+C36-C10)/C36 -> 0.004939992812 | D38: =(+D36-D10)/D36 -> 0.004939992812 | E38: =(+E36-E10)/E36 -> 0.004939992812
B41: Difference | C41: =C15-C36 -> 2.116161004

Sheet SDR#2
H1: ='Control Panel'!F32 -> Questar Gas Company
H2: ='Control Panel'!F33 -> Docket No. 15-057-04
A5: Standard Data Request #2
A6: Supplier Non-Gas Costs
B8: (A) | C8: (B) | D8: (C) | E8: (D) | F8: (E) | G8: (F) | T8: withdraw
A9: I. Transportation (QPC T-1) | C9: Volume (Dth) | G9: Utah Total | J9: Utah gas | K9: Utah Co. | L9: Utah gas | M9: Wyo gas | N9: Wyo Co. | O9: Wyo gas | Q9: @city gate | R9: @city gate | T9: loss | U9: Kern River
B10: Month | C10: Utah | D10: Wyoming | E10: $/dth | F10: Demand | G10: b*d+e*(Ut %) | J10: purchased | K10: production | L10: withdrawn | M10: purchased | N10: production | O10: withdrawn | P10: Total | Q10: purchased | R10: co production | S10: withdrawls | T10: =-Calculations!P165/Calculations!P137 -> 0.03121187502 | U10: Transportation
B12: =#REF! ->  | C12: =J12+K12+L12-(T12+$B$43*U12)*$J$39 -> 5515122.634 | D12: =M12+N12+O12-(T12+$B$43*U12)*$K$39 -> 201124.5066 | E12: ='Other Inputs'!$F$38 -> 0.00267 | F12: =('Other Inputs'!$D$22)*('Other Inputs'!$F$22)-('Other Inputs'!$E$291/12)+('Other Inputs'!$D$30*'Other Inputs'!$F$30) -> 4391975.486 | G12: =(+C12)*E12+F12*$J$33/$L$33 -> 4274511.564 | J12: =Q12*$J$39 -> 139297.1263 | K12: =R12*$J$39 -> 5396074.905 | L12: =S12*$J$39 -> 99868.03051 | M12: =Q12-J12 -> 5079.862707 | N12: =R12-K12 -> 196783.0953 | O12: =S12-L12 -> 3641.969489 | P12: =SUM(J12:O12)-U12 -> 5694194.989 | Q12: =Calculations!D169 -> 144376.989 | R12: =Calculations!D161 -> 5592858 | S12: =Calculations!D163+Calculations!D164 -> 103510 | T12: =S12*$T$10 -> 3230.741183 | U12: =V12*W12 -> 146550 | V12: 4885 | W12: 30 | X12: =B12 -> 
B13: =#REF! ->  | C13: =J13+K13+L13-(T13+$B$43*U13)*$J$39 -> 5448895.332 | D13: =M13+N13+O13-(T13+$B$43*U13)*$K$39 -> 198709.3412 | E13: ='Other Inputs'!$F$38 -> 0.00267 | F13: =('Other Inputs'!$D$22)*('Other Inputs'!$F$22)-('Other Inputs'!$E$291/12)+('Other Inputs'!$D$30*'Other Inputs'!$F$30) -> 4391975.486 | G13: 4274334.737 | J13: =Q13*$J$39 -> 140331.9052 | K13: 5367848.269 | L13: 63600.62382 | M13: 5117.598838 | N13: 195753.7314 | O13: 2319.376183 | P13: =SUM(J13:O13)-U13 -> 5623536.504 | Q13: =Calculations!E169 -> 145449.504 | R13: =Calculations!E161 -> 5563602 | S13: =Calculations!E163+Calculations!E164 -> 65920 | T13: =S13*$T$10 -> 2057.486801 | U13: =V13*W13 -> 151435 | V13: 4885 | W13: 31 | X13: =B13 -> 
B14: =#REF! ->  | C14: 5232736.973 | D14: 190826.5168 | E14: ='Other Inputs'!$F$38 -> 0.00267 | F14: =('Other Inputs'!$D$22)*('Other Inputs'!$F$22)-('Other Inputs'!$E$291/12)+('Other Inputs'!$D$30*'Other Inputs'!$F$30) -> 4391975.486 | G14: 4273757.594 | J14: =Q14*$J$39 -> 155493.331 | K14: 5198144.013 | L14: 0 | M14: 5670.503006 | N14: 189564.9869 | O14: 0 | P14: 5397437.834 | Q14: =Calculations!F169 -> 161163.834 | R14: =Calculations!F161 -> 5387709 | S14: =Calculations!F163+Calculations!F164 -> 0 | T14: 0 | U14: =V14*W14 -> 151435 | V14: 4885 | W14: 31
B15: =#REF! ->  | C15: 6044337.711 | D15: 220423.8275 | E15: ='Other Inputs'!$F$38 -> 0.00267 | F15: =('Other Inputs'!$D$22)*('Other Inputs'!$F$22)-('Other Inputs'!$E$291/12)+('Other Inputs'!$D$30*'Other Inputs'!$F$30) -> 4391975.486 | G15: 4275924.568 | J15: =Q15*$J$39 -> 1136179.65 | K15: 5025158.421 | L15: 0 | M15: 41433.99641 | N15: 183256.5792 | O15: 0 | P15: 6239478.646 | Q15: =Calculations!G169 -> 1177613.646 | R15: =Calculations!G161 -> 5208415 | S15: =Calculations!G163+Calculations!G164 -> 0 | T15: 0 | U15: 146550 | V15: 4885 | W15: 30
B16: =#REF! ->  | C16: 9335645.913 | D16: 340450.6667 | E16: ='Other Inputs'!$F$38 -> 0.00267 | F16: =('Other Inputs'!$D$22)*('Other Inputs'!$F$22)-('Other Inputs'!$E$291/12)+('Other Inputs'!$D$30*'Other Inputs'!$F$30) -> 4391975.486 | G16: 4284712.361 | J16: 4352461.148 | K16: 5104085.135 | L16: 0 | M16: 158724.7753 | N16: 186134.8646 | O16: 0 | P16: 9649970.923 | Q16: =Calculations!H169 -> 4511185.923 | R16: =Calculations!H161 -> 5290220 | S16: =Calculations!H163+Calculations!H164 -> 0 | T16: 0 | U16: 151435 | V16: 4885 | W16: 31
B17: =#REF! ->  | C17: 14207609.86 | D17: 518120.5774 | E17: ='Other Inputs'!$F$38 -> 0.00267 | F17: =('Other Inputs'!$D$22)*('Other Inputs'!$F$22)-('Other Inputs'!$E$291/12)+('Other Inputs'!$D$30*'Other Inputs'!$F$30) -> 4391975.486 | G17: 4297720.505 | J17: 9160560.8 | K17: 4909950.792 | L17: 262285.0362 | M17: 334065.6942 | N17: 179055.208 | O17: 9564.963826 | P17: 14708932.49 | Q17: =Calculations!I169 -> 9494626.495 | R17: =Calculations!I161 -> 5089006 | S17: =Calculations!I163+Calculations!I164 -> 271850 | T17: 8484.948224 | U17: 146550 | V17: 4885 | W17: 30
B18: =#REF! ->  | C18: 16578884.08 | D18: 604595.7816 | E18: ='Other Inputs'!$F$38 -> 0.00267 | F18: =('Other Inputs'!$D$22)*('Other Inputs'!$F$22)-('Other Inputs'!$E$291/12)+('Other Inputs'!$D$30*'Other Inputs'!$F$30) -> 4391975.486 | G18: =(+C18)*E18+F18*$J$33/$L$33 -> 4304051.807 | J18: 12472442.12 | K18: 4983810.297 | L18: 496493.9475 | M18: 454842.7904 | N18: 181748.7032 | O18: 18106.05255 | P18: 16906008.92 | Q18: =Calculations!J169 -> 12927284.92 | R18: =Calculations!J161 -> 5165559 | S18: =Calculations!J163+Calculations!J164 -> 514600 | T18: 16061.63089 | U18: 1701435 | V18: 54885 | W18: 31
B19: =#REF! ->  | C19: 18774740.81 | D19: 684673.8924 | E19: ='Other Inputs'!$F$38 -> 0.00267 | F19: =('Other Inputs'!$D$22)*('Other Inputs'!$F$22)-('Other Inputs'!$E$291/12)+('Other Inputs'!$D$30*'Other Inputs'!$F$30) -> 4391975.486 | G19: 4309914.745 | J19: 7712720.869 | K19: 5129586.168 | L19: 7525690.465 | M19: 281266.1263 | N19: 187064.8317 | O19: 274445.5349 | P19: 19409338.99 | Q19: =Calculations!K169 -> 7993986.995 | R19: =Calculations!K161 -> 5316651 | S19: =Calculations!K163+Calculations!K164 -> 7800136 | T19: 243456.87 | U19: 1701435 | V19: 54885 | W19: 31
B20: =#REF! ->  | C20: 15113204.31 | D20: 551145.6338 | E20: ='Other Inputs'!$F$38 -> 0.00267 | F20: =('Other Inputs'!$D$22)*('Other Inputs'!$F$22)-('Other Inputs'!$E$291/12)+('Other Inputs'!$D$30*'Other Inputs'!$F$30) -> 4391975.486 | G20: 4300138.442 | J20: 6769111.209 | K20: 4832318.859 | L20: 4936583.553 | M20: 246854.7378 | N20: 176224.1406 | O20: 180026.4468 | P20: 15549453.95 | Q20: =Calculations!L169 -> 7015965.947 | R20: =Calculations!L161 -> 5008543 | S20: =Calculations!L163+Calculations!L164 -> 5116610 | T20: 159698.9918 | U20: 1591665 | V20: 54885 | W20: 29
B21: =#REF! ->  | C21: 10616125.37 | D21: 387146.9629 | E21: ='Other Inputs'!$F$38 -> 0.00267 | F21: =('Other Inputs'!$D$22)*('Other Inputs'!$F$22)-('Other Inputs'!$E$291/12)+('Other Inputs'!$D$30*'Other Inputs'!$F$30) -> 4391975.486 | G21: =(+C21)*E21+F21*$J$33/$L$33 -> 4288131.241 | J21: 4472066.36 | K21: 5140891.874 | L21: 2437615.475 | M21: 163086.5168 | N21: 187477.1261 | O21: 88894.52549 | P21: 10788596.88 | Q21: =Calculations!M169 -> 4635152.877 | R21: =Calculations!M161 -> 5328369 | S21: =Calculations!M163+Calculations!M164 -> 2526510 | T21: 78857.11436 | U21: 1701435 | V21: 54885 | W21: 31
B22: =#REF! ->  | C22: 7474005.099 | D22: 272560.6822 | E22: ='Other Inputs'!$F$38 -> 0.00267 | F22: =('Other Inputs'!$D$22)*('Other Inputs'!$F$22)-('Other Inputs'!$E$291/12)+('Other Inputs'!$D$30*'Other Inputs'!$F$30) -> 4391975.486 | G22: =(+C22)*E22+F22*$J$33/$L$33 -> 4279741.78 | J22: 3893021.006 | K22: 4895531.628 | L22: 0 | M22: 141969.9943 | N22: 178529.3725 | O22: 0 | P22: 7462502 | Q22: =Calculations!N169 -> 4034991 | R22: =Calculations!N161 -> 5074061 | S22: =Calculations!N163+Calculations!N164 -> 0 | T22: 0 | U22: 1646550 | V22: 54885 | W22: 30
B23: =#REF! ->  | C23: 5351002.837 | D23: 195139.4152 | E23: ='Other Inputs'!$F$38 -> 0.00267 | F23: =('Other Inputs'!$D$22)*('Other Inputs'!$F$22)-('Other Inputs'!$E$291/12)+('Other Inputs'!$D$30*'Other Inputs'!$F$30) -> 4391975.486 | G23: 4274073.364 | J23: 275093.3865 | K23: 5016833.03 | L23: 185775.1838 | M23: 10032.05646 | N23: 182952.9704 | O23: 6774.816202 | P23: 5526026.443 | Q23: =Calculations!O169 -> 285125.443 | R23: =Calculations!O161 -> 5199786 | S23: =Calculations!O163+Calculations!O164 -> 192550 | T23: 6009.846535 | U23: 151435 | V23: 4885 | W23: 31
C26: =SUM(C12:C23) -> 119692310.9 | D26: =SUM(D12:D23) -> 4364917.804 | G26: =SUM(G12:G23) -> 51437012.71 | J26: =SUM(J12:J25) -> 50678778.92 | K26: 61000233.39 | L26: 16007912.31 | M26: 1848144.653 | N26: 2224545.61 | O26: 583773.6855 | P26: =SUM(P12:P23) -> 122955478.6 | Q26: 52526923.57 | R26: 63224779 | S26: 16591686 | T26: 517857.6298 | U26: 9387910
C29: Months | F29: System | G29: Utah | J29: Allocation Factors
C30: or Days | D30: Dth | E30: Rate | F30: Total | G30: Total
J31: Peak Demand Allocation Base
A32: II. Transportation (ML 104 demand) | C32: ='Other Inputs'!E23 -> 12 | D32: ='Other Inputs'!D23 -> 30000 | E32: ='Other Inputs'!F23 -> 5.28804 | F32: =C32*D32*E32 -> 1903694.4 | G32: =F32*J34 -> 1846397.17 | J32: Utah | K32: Wyo | L32: Total
J33: ='Other Inputs'!E129 -> 1263667 | K33: ='Other Inputs'!E130 -> 39214 | L33: =J33+K33 -> 1302881
J34: =J33/L33 -> 0.9699020862 | K34: =K33/L33 -> 0.03009791378
A36: III. Transportation (TL 112 demand) | C36: ='Other Inputs'!E24 -> 12 | D36: ='Other Inputs'!D24 -> 12000 | E36: ='Other Inputs'!F24 -> 5.28804 | F36: =C36*D36*E36 -> 761477.76 | G36: =F36*J34 -> 738558.868 | J36: Dth Sales Allocation Base
C37: ='Other Inputs'!E25 -> 5 | D37: ='Other Inputs'!D25 -> 75000 | E37: ='Other Inputs'!F25 -> 6.80887 | F37: =C37*D37*E37 -> 2553326.25 | G37: =F37*J34 -> 2476476.457 | J37: Utah | K37: Wyo | L37: Total
J38: =Calculations!P20 -> 110482745 | K38: =Calculations!P39 -> 4029065 | L38: =J38+K38 -> 114511810
A39: IV. Transportation (KR 2003 Expansion) | C39: ='Other Inputs'!E54 -> 12 | D39: ='Other Inputs'!D54 -> 3000 | E39: ='Other Inputs'!F54 -> 14.34754167 | F39: =C39*D39*E39 -> 516511.5 | J39: =J38/L38 -> 0.9648152885 | K39: =K38/L38 -> 0.03518471152
C40: ='Other Inputs'!E55 -> 5 | D40: ='Other Inputs'!D55 -> 50000 | E40: ='Other Inputs'!F55 -> 14.34754167 | F40: =C40*D40*E40 -> 3586885.417 | G40: =(F39+F40+F41)*J34 -> 4369139.168
C41: ='Other Inputs'!E56 -> 12 | D41: ='Other Inputs'!D56 -> 1885 | E41: ='Other Inputs'!F56 -> 17.74204167 | F41: =C41*D41*E41 -> 401324.9825
A43: V. Trans (KR 2003 Expansion) | B43: ='Other Inputs'!C61 -> 0.8274794078 | C43: ='Other Inputs'!E60 -> 366 | D43: ='Other Inputs'!D60 -> 4885 | E43: ='Other Inputs'!F60 -> 0.0044 | F43: =B43*C43*D43*E43 -> 6509.618315
B44: ='Other Inputs'!C60 -> 0.8274794078 | C44: ='Other Inputs'!E61 -> 152 | D44: ='Other Inputs'!D61 -> 50000 | E44: ='Other Inputs'!F61 -> 0.0044 | F44: =B44*C44*D44*E44 -> 27670.9114 | G44: =(F43+F44)*J39 -> 32977.89763
A47: VI. Other Trans, Gathering & Processing | F47: ='Other Inputs'!$D$165+'Other Inputs'!$D$167 -> 5259048.99 | G47: =F47*$J$39 -> 5074010.868
A49: VII. QGM Gathering | B49: Demand | C49: ='Ut 1.3 p1'!H49 -> 12 | E49: ='Ut 1.3 p1'!J49 -> 862503 | F49: =C49*E49 -> 10350036
B50: Commodity | C50: ='Ut 1.3 p1'!F50 -> 40069171.17 | D50: ='Ut 1.3 p1'!F50 -> 40069171.17 | E50: ='Ut 1.3 p1'!J50 -> 0.14446 | F50: =C50*E50 -> 5788392.467 | G50: =(F49)*'Ut 1.5'!G51+(F50)*'Ut 1.5'!G54 -> 15623251.06
A51: Wexpro II Gathering | B51: Commodity | D51: ='Ut 1.3 p1'!F53 -> 4138215 | E51: ='Ut 1.3 p1'!J53 -> 0.48 | F51: =E51*D51 -> 1986343.2 | G51: =(F51)*'Ut 1.5'!G54 -> 1916454.288
A53: VII. Storage Demand | C53: 12 | D53: ='Other Inputs'!E151 -> 184625 | E53: ='Other Inputs'!E14 -> 2.87375 | F53: =C53*D53*E53 -> 6366793.125
C54: 11 | D54: ='Other Inputs'!E152 -> 2500000 | E54: ='Other Inputs'!E15 -> 0.09 | F54: =C54*D54*E54 -> 2475000
C55: 12 | D55: ='Other Inputs'!E153 -> 111827 | E55: ='Other Inputs'!E16 -> 2.85338 | F55: =C55*D55*E55 -> 3829019.103
C56: 12 | D56: ='Other Inputs'!E154 -> 13419000 | E56: ='Other Inputs'!E17 -> 0.02378 | F56: =C56*D56*E56 -> 3829245.84 | G56: =SUM(F53:F56)*J34 -> 16003440.74
A59: Total Supplier Non-Gas Costs | G59: =G26+G32+G36+G37+G40+G44+G47+G51+G56+G50 -> 99517719.23

Sheet SDR#3
I1: ='Control Panel'!F32 -> Questar Gas Company
I2: ='Control Panel'!F33 -> Docket No. 15-057-04
C5: Standard Data Request #3
C6: Monthly Forecasted Sales
D8: Utah Sales | F8: Wyoming Sales | H8: System Total
C9: Month | D9: Dth | F9: Dth | H9: Dth
B11: 1 | C11: =Calculations!D141 -> Jun15 | D11: =Calculations!D20 -> 3336871 | F11: =Calculations!D39 -> 129185 | H11: =SUM(D11:F11) -> 3466056
B13: =B11+1 -> 2 | C13: =Calculations!E141 -> Jul15 | D13: =Calculations!E20 -> 2737787 | F13: =Calculations!E39 -> 92404 | H13: =SUM(D13:F13) -> 2830191
B15: =B13+1 -> 3 | C15: =Calculations!F141 -> Aug15 | D15: =Calculations!F20 -> 2724789 | F15: =Calculations!F39 -> 82209 | H15: 2806998
B17: =B15+1 -> 4 | C17: =Calculations!G141 -> Sep15 | D17: =Calculations!G20 -> 3801106 | F17: =Calculations!G39 -> 150364 | H17: 3951470
B19: =B17+1 -> 5 | C19: =Calculations!H141 -> Oct15 | D19: =Calculations!H20 -> 6720254 | F19: =Calculations!H39 -> 252110 | H19: 6972364
B21: =B19+1 -> 6 | C21: =Calculations!I141 -> Nov15 | D21: =Calculations!I20 -> 11911933 | F21: =Calculations!I39 -> 417646 | H21: 12329579
B23: =B21+1 -> 7 | C23: =Calculations!J141 -> Dec15 | D23: =Calculations!J20 -> 17470638 | F23: =Calculations!J39 -> 591520 | H23: 18062158
B25: =B23+1 -> 8 | C25: =Calculations!K141 -> Jan16 | D25: =Calculations!K20 -> 20116306 | F25: =Calculations!K39 -> 644544 | H25: 20760850
B27: =B25+1 -> 9 | C27: =Calculations!L141 -> Feb16 | D27: =Calculations!L20 -> 16299179 | F27: =Calculations!L39 -> 597003 | H27: 16896182
B29: =B27+1 -> 10 | C29: =Calculations!M141 -> Mar16 | D29: =Calculations!M20 -> 11861136 | F29: =Calculations!M39 -> 484986 | H29: 12346122
B31: =B29+1 -> 11 | C31: =Calculations!N141 -> Apr16 | D31: =Calculations!N20 -> 8714552 | F31: =Calculations!N39 -> 349501 | H31: 9064053
B33: =B31+1 -> 12 | C33: =Calculations!O141 -> May16 | D33: =Calculations!O20 -> 4788194 | F33: =Calculations!O39 -> 237593 | H33: 5025787
B36: =B33+1 -> 13 | C36: Total Sales (Dth) | D36: =SUM(D11:D33) -> 110482745 | F36: =SUM(F11:F33) -> 4029065 | H36: =SUM(H11:H33) -> 114511810

Sheet SDR#4
H1: ='Control Panel'!F32 -> Questar Gas Company
H2: ='Control Panel'!F33 -> Docket No. 15-057-04
C5: Standard Data Request #4
C6: Supplier Non-Gas Costs Recovered at Current Rates
C9: (A) | D9: (B) | E9: (C) | F9: (D) | G9: (E)
B10: 1 | C10: Rate Schedule | D10: Season | E10: Sales Dth | F10: SNG Rate | G10: SNG Revenue
B12: =B10+1 -> 2 | C12: GS | D12: winter | E12: ='Utah Summary-by class'!B8 -> 73670788 | F12: ='Utah Summary-by class'!J8 -> 0.99133 | G12: =E12*F12 -> 73032062.27
B13: =B12+1 -> 3 | D13: summer | E13: ='Utah Summary-by class'!B9 -> 28571076 | F13: ='Utah Summary-by class'!J9 -> 0.46544 | G13: =E13*F13 -> 13298121.61
B15: =B13+1 -> 4 | C15: FS | D15: winter | E15: ='Utah Summary-by class'!B13 -> 2498555 | F15: ='Utah Summary-by class'!J13 -> 0.96551 | G15: =E15*F15 -> 2412379.838
B16: =B15+1 -> 5 | D16: summer | E16: ='Utah Summary-by class'!B14 -> 2389296 | F16: ='Utah Summary-by class'!J14 -> 0.46544 | G16: =E16*F16 -> 1112073.93
B18: =B16+1 -> 6 | C18: NGV | D18: annual | E18: ='Utah Summary-by class'!B19 -> 705009 | F18: ='Utah Summary-by class'!J19 -> 0.71537 | G18: =E18*F18 -> 504342.2883
B20: =B18+1 -> 7 | C20: IS | D20: annual | E20: ='Utah Summary-by class'!B21 -> 2648021 | F20: ='Utah Summary-by class'!J27 -> 0.1788 | G20: =E20*F20 -> 473466.1548
B23: =B20+1 -> 8 | C23: Total Supplier Non-Gas Costs | E23: =SUM(E12:E20) -> 110482745 | G23: =SUM(G12:G20) -> 90832446.09

Sheet Ut 1.1
I1: Questar Gas Company
I2: ='Control Panel'!$F$33 -> Docket No. 15-057-04
I3: Exhibit 1.1
D4: Test Year Cost of Questar Gas' Production
D5: =CONCATENATE('Control Panel'!F40," through ",'Control Panel'!F41) -> Jun-15 through May-16
B7: WEXPRO I
B8: (A) | C8: (B) | D8: (C) | E8: (D) | F8: (E) | G8: (F) | H8: (G) | I8: (H)
F9: Base Year | G9: Market | H9: Royalty | I9: Test Year
B10: Field Name | C10: Well Name | D10: Formation | E10: Price $ | F10: Dth | G10: Value $ | H10: Rate % | I10: Royalty $
A12: 1 | B12: ACE UNIT (CO) | C12: ACE UNIT 2 FT UN | D12: FORT UNION | E12: 2.610642742 | F12: 66454.38 | G12: =E12*F12 -> 173488.6448 | H12: 0.1268519763 | I12: =G12*H12 -> 22007.37746
A13: =A12+1 -> 2 | C13: ACE UNIT 10 FT UN | D13: MESAVERDE | E13: 2.610642742 | F13: 6881.017 | G13: =E13*F13 -> 17963.87709 | H13: 0.1268519763 | I13: =G13*H13 -> 2278.753311
A14: =A13+1 -> 3 | C14: ACE UNIT 12 FT UN | D14: FORT UNION | E14: 2.610642742 | F14: 20835.714 | G14: =E14*F14 -> 54394.60552 | H14: 0.1268519763 | I14: 6900.063211
A15: 4 | C15: ACE UNIT 11 FT UN | D15: FORT UNION | E15: 2.610642742 | F15: 20352.156 | G15: 53132.20834 | H15: 0.1268519763 | I15: 6739.925634
A16: 5 | C16: ACE UNIT 13 FT UN | D16: FORT UNION | E16: 2.610642742 | F16: 43043.943 | G16: 112372.3574 | H16: 0.1268519763 | I16: =G16*H16 -> 14254.65562
A17: 6 | B17: E HIAW (CO) | C17: HIAWATHA UNIT 1 FT UN | D17: FORT UNION | E17: 2.610642742 | F17: 34807.236 | G17: 90869.25802 | H17: 0.1925 | I17: 17492.33217
A18: 7 | C18: F WILSON A 2 WAS | D18: WASATCH | E18: 2.610642742 | F18: 79468.929 | G18: 207464.9827 | H18: 0.1925 | I18: 39937.00917
A19: 8 | C19: F WILSON B 3 WAS | D19: WASATCH | E19: 2.610642742 | F19: 230960.702 | G19: 602955.8803 | H19: 0.1625 | I19: 97980.33055
A20: 9 | C20: F WILSON B 6 WAS | D20: WASATCH | E20: 2.610642742 | F20: 126266.745 | G20: 329637.3614 | H20: 0.1625 | I20: 53566.07122
A21: 10 | C21: F WILSON A 9 WAS | D21: WASATCH | E21: 2.610642742 | F21: 149176.307 | G21: 389446.0431 | H21: 0.1925 | I21: 74968.3633
A22: 11 | C22: F WILSON B 12 FT UN | D22: FORT UNION | E22: 2.610642742 | F22: 69387.328 | G22: 181145.5242 | H22: 0.1625 | I22: 29436.14768
A23: 12 | C23: F WILSON B 2 UNIT (HIAW) FT UN | D23: FORT UNION | E23: 2.610642742 | F23: 38600.675 | G23: 100772.572 | H23: 0.1625 | I23: 16375.54295
A24: 13 | C24: F WILSON A 22 FT UN | D24: FORT UNION | E24: 2.610642742 | F24: 38202.387 | G24: 99732.78434 | H24: 0.1925 | I24: 19198.56099
A25: 14 | C25: STLD 3712100 NE4 2 WAS | D25: WASATCH | E25: 2.610642742 | F25: 8812.469 | G25: 23006.20823 | H25: 0.13375 | I25: 3077.080351
A26: 15 | C26: STLD 3712100 SE4 4 WAS | D26: WASATCH | E26: 2.610642742 | F26: 30583.787 | G26: 79843.34155 | H26: 0.1375 | I26: 10978.45946
A27: 16 | C27: STATE LAND 5 FT UN | D27: FORT UNION | E27: 2.610642742 | F27: 20215.503 | G27: 52775.45618 | H27: 0.13375 | I27: 7058.717264
A28: 17 | C28: G KUYKENDALL A 8 FT UN | D28: FORT UNION | E28: 2.610642742 | F28: 8 | G28: 20.88514193 | H28: 0.1925 | I28: 4.020389822
A29: 18 | C29: KS WHITFORD 1 WAS | D29: WASATCH | E29: 2.610642742 | F29: 39831.163 | G29: 103984.9366 | H29: 0.155 | I29: 16117.66517
A30: 19 | C30: F WILSON B 24 FT UN | D30: FORT UNION | E30: 2.610642742 | F30: 83302.4 | G30: 217472.8059 | H30: 0.1625 | I30: 35339.33096
A31: 20 | C31: F WILSON A 26 FT UN | D31: FORT UNION | E31: 2.610642742 | F31: 148170.181 | G31: 386819.4076 | H31: 0.1925 | I31: 74462.73596
A32: 21 | C32: HIAWATHA STATELAND 6 FT UN | D32: FORT UNION | E32: 2.610642742 | F32: 13631.107 | G32: 35585.95055 | H32: 0.13375 | I32: 4759.620886
A33: 22 | C33: G KUYKENDALL 9 FT UN | D33: FORT UNION | E33: 2.610642742 | F33: 25251.326 | G33: 65922.19094 | H33: 0.1925 | I33: 12690.02176
A34: 23 | C34: F WILSON A 20 FT UN | D34: FORT UNION | E34: 2.610642742 | F34: 1147.86 | G34: 2996.652378 | H34: 0.1925 | I34: 576.8555827
A35: 24 | C35: F WILSON A 20 LEW/LAN/FT UN | D35: LEWIS/LANCE/FT U | E35: 2.610642742 | F35: 21830.851 | G35: 56992.55271 | H35: 0.1925 | I35: 10971.0664
A36: 25 | C36: F WILSON 32 MESA | D36: MESAVERDE | E36: 2.610642742 | F36: 4345.411 | G36: 11344.31569 | H36: 0.1925 | I36: 2183.78077
A37: 26 | C37: F WILSON 32 LEWIS | D37: LEWIS | E37: 2.610642742 | F37: 31150.028 | G37: 81321.5945 | H37: 0.1925 | I37: 15654.40694
A38: 27 | C38: F WILSON 32 LANCE | D38: LANCE | E38: 2.610642742 | F38: 35120.172 | G38: 91686.22212 | H38: 0.1925 | I38: 17649.59776
A39: 28 | C39: HIAWATHA STLD 7 FT UN | D39: FORT UNION | E39: 2.610642742 | F39: 33042.33 | G39: 86261.71898 | H39: 0.1375 | I39: 11860.98636
A40: 29 | C40: F WILSON 33 FT UN | D40: FORT UNION | E40: 2.610642742 | F40: 482839.836 | G40: 1260522.313 | H40: 0.1925 | I40: 242650.5453
A41: 30 | C41: F WILSON 33 LEWIS | D41: LEWIS | E41: 2.610642742 | F41: 15275.845 | G41: 39879.77387 | H41: 0.1925 | I41: 7676.856471
A42: 31 | C42: F WILSON 33 LANCE | D42: LANCE | E42: 2.610642742 | F42: 15275.845 | G42: 39879.77387 | H42: 0.1925 | I42: 7676.856471
A43: 32 | C43: F WILSON 34 LEW/LAN/FT UN | D43: LEWIS/LANCE/FT U | E43: 2.610642742 | F43: 37523.897 | G43: 97961.48934 | H43: 0.1625 | I43: 15918.74202
A44: 33 | C44: F WILSON 35 MESA | D44: MESAVERDE | E44: 2.610642742 | F44: 1552.317 | G44: 4052.545109 | H44: 0.1925 | I44: 780.1149335
A45: 34 | C45: F WILSON 35 LEW/LAN/FT UN | D45: LEWIS/LANCE/FT U | E45: 2.610642742 | F45: 75942.653 | G45: 198259.1358 | H45: 0.1925 | I45: 38164.88365
A46: 35 | C46: F WILSON 29E (DD) FT UN | D46: FORT UNION | E46: 2.610642742 | F46: 24736.549 | G46: 64578.2921 | H46: 0.1625 | I46: 10493.97247
A47: 36 | C47: F WILSON 37 MESA | D47: FORT UNION | E47: 2.610642742 | F47: 10920.518 | G47: 28509.57105 | H47: 0.2325 | I47: 6628.47527
A48: 37 | C48: F WILSON 37 LEW/LNC/FTUN | D48: FORT UNION | E48: 2.610642742 | F48: 61883.28 | G48: 161555.1358 | H48: 0.1625 | I48: 26252.70956
A49: 38 | B49: HIAW DEEP (CO) | C49: HIAWATHA DEEP UNIT 1 NUGGET | D49: NUGGET | E49: 2.610642742 | F49: 60543.481 | G49: 158057.3992 | H49: 0.1723962084 | I49: 27248.49633
A50: 39 | C50: HIAWATHA DEEP UNIT 3 NUGGET | D50: NUGGET | E50: 2.610642742 | F50: 192411.056 | G50: 502316.5268 | H50: 0.1714959958 | I50: 86145.27295
A51: 40 | C51: HIAWATHA DEEP UNIT 2 NUGGET | D51: NUGGET | E51: 2.610642742 | F51: 7061.795 | G51: 18435.82386 | H51: 0.172395903 | I51: 3178.260502
A52: 41 | B52: JACKS DRAW (CO) | C52: JACKS DRAW UNIT 2 FT UN | D52: FORT UNION | E52: 2.610642742 | F52: 44007.826 | G52: 114888.7115 | H52: 0.1396875 | I52: 16048.51689
A53: 42 | C53: JACKS DRAW UNIT 3 FT UN | D53: FORT UNION | E53: 2.610642742 | F53: 9483.846 | G53: 24758.93372 | H53: 0.1396875 | I53: 3458.513555
A54: 43 | C54: JACKS DRAW UNIT 9 FT UN | D54: FORT UNION | E54: 2.610642742 | F54: 25389.185 | G54: 66282.09154 | H54: 0.1396875 | I54: 9258.779662
A55: 44 | C55: JACKS DRAW UNIT 5 FT UN | D55: FORT UNION | E55: 2.610642742 | F55: 1774.147 | G55: 4631.663988 | H55: 0.1489132823 | I55: 689.7162871
A56: 45 | C56: JACKS DRAW UNIT 8 FT UN | D56: FORT UNION | E56: 2.610642742 | F56: 3039.313 | G56: 7934.560423 | H56: 0.1489132823 | I56: 1181.561436
A57: 46 | C57: JACKS DRAW UNIT 17 FT UN | D57: FORT UNION | E57: 2.610642742 | F57: 22373.469 | G57: 58409.13445 | H57: 0.1396875 | I57: 8159.025969
A58: 47 | C58: JACKS DRAW UNIT 18 FT UN | D58: FORT UNION | E58: 2.610642742 | F58: 161760.487 | G58: 422298.8413 | H58: 0.1396877 | I58: 58989.95385
A59: 48 | C59: JACKS DRAW UNIT 19 FT UN | D59: FORT UNION | E59: 2.610642742 | F59: 124307.906 | G59: 324523.5325 | H59: 0.149541643 | I59: 48529.78224
A60: 49 | C60: JACKS DRAW UNIT 20 FT UN | D60: FORT UNION | E60: 2.610642742 | F60: 115697.453 | G60: 302044.7159 | H60: 0.1396877 | I60: 42191.93166
A61: 50 | B61: LO HORSE DR (CO) | C61: LOWER HORSE DRAW 11-1 MANCOS B | D61: MANCOS B | E61: 2.610642742 | F61: 788.054 | G61: 2057.327455 | H61: 0.125 | I61: 257.1659319
A62: 51 | C62: LOWER HORSE DRAW 12-2 MANCOS B | D62: MANCOS B | E62: 2.610642742 | F62: 32734.791 | G62: 85458.84453 | H62: 0.125 | I62: 10682.35557
A63: 52 | C63: LOWER HORSE DRAW 10-1 MANCOS B | D63: MANCOS B | E63: 2.610642742 | F63: 2395.139 | G63: 6252.852246 | H63: 0.125 | I63: 781.6065307
A64: 53 | C64: LOWER HORSE DRAW 10-2 MB SILT | D64: MANCOS B SILT | E64: 2.610642742 | F64: 4890.545 | G64: 12767.46581 | H64: 0.125 | I64: 1595.933226
A65: 54 | C65: LOWER HORSE FED 11-5 MANCOS B | D65: MANCOS B | E65: 2.610642742 | F65: 25197.02 | G65: 65780.41738 | H65: 0.125 | I65: 8222.552172
A66: 55 | C66: LOWER HORSE FED 11-5 MB SILT | D66: MANCOS B SILT | E66: 2.610642742 | F66: 16451.751 | G66: 42949.64434 | H66: 0.125 | I66: 5368.705542
A67: 56 | B67: POWDER WASH (CO) | C67: CARL ALLEN B 4 WAS | D67: WASATCH | E67: 2.610642742 | F67: 287.924 | G67: 751.6667008 | H67: 0.1100461 | I67: 82.71798892
A68: 57 | C68: CARL ALLEN B 6 FT UN | D68: FORT UNION | E68: 2.610642742 | F68: 40147.377 | G68: 104810.4584 | H68: 0.1100461 | I68: 11533.98218
A69: 58 | C69: CARL ALLEN B 6 LOWER FT UN | D69: FORT UNION | E69: 2.610642742 | F69: 40147.377 | G69: 104810.4584 | H69: 0.1100461 | I69: 11533.98218
A70: 59 | C70: CARL ALLEN B 7 FT UN | D70: FORT UNION | E70: 2.610642742 | F70: 8943.391 | G70: 23347.9988 | H70: 0.1100461 | I70: 2569.356211
A71: 60 | C71: CARL ALLEN A 8 FT UN | D71: FORT UNION | E71: 2.610642742 | F71: 24280.09 | G71: 63386.64073 | H71: 0.1100461 | I71: 6975.452604
A72: 61 | C72: CARL ALLEN B 10 WAS | D72: WASATCH | E72: 2.610642742 | F72: 1194.003 | G72: 3117.115266 | H72: 0.1100461 | I72: 343.0263782
A73: 62 | C73: CARL ALLEN A 11 FT UN | D73: FORT UNION | E73: 2.610642742 | F73: 2637.383 | G73: 6885.264786 | H73: 0.1100461 | I73: 757.6965372
A74: 63 | C74: CARL ALLEN A 11 LOWER FT UN | D74: FORT UNION | E74: 2.610642742 | F74: 50110.032 | G74: 130819.3913 | H74: 0.110046 | I74: 14396.15074
A75: 64 | C75: CARL ALLEN B 15 WAS | D75: WASATCH | E75: 2.610642742 | F75: 6679.7 | G75: 17438.31032 | H75: 0.1100461 | I75: 1919.018042
A76: 65 | C76: CARL ALLEN B 17 WAS | D76: WASATCH | E76: 2.610642742 | F76: 8025.506 | G76: 20951.72899 | H76: 0.1100461 | I76: 2305.656063
A77: 66 | C77: CARL ALLEN A 19 FT UN | D77: FORT UNION | E77: 2.610642742 | F77: 66018.051 | G77: =E77*F77 -> 172349.5457 | H77: 0.1100461 | I77: =G77*H77 -> 18966.39534
A78: =A77+1 -> 67 | C78: CARL ALLEN A 20 FT UN | D78: FORT UNION | E78: 2.610642742 | F78: 18635.76 | G78: 48651.31158 | H78: 0.1100461 | I78: 5353.887099
A79: 68 | C79: BW MUSSER A 1 WAS | D79: WASATCH | E79: 2.610642742 | F79: 9513.295 | G79: 24835.81454 | H79: 0.1100461 | I79: 2733.084531
A80: 69 | C80: BW MUSSER B 10 FT UN | D80: FORT UNION | E80: 2.610642742 | F80: 13254.136 | G80: 34601.81395 | H80: 0.1100461 | I80: 3807.794678
A81: 70 | C81: BW MUSSER B 11 FT UN | D81: FORT UNION | E81: 2.610642742 | F81: 9838.695 | G81: 25685.31769 | H81: 0.1100461 | I81: 2826.569039
A82: 71 | C82: JC DONNELL B 3 WAS | D82: WASATCH | E82: 2.610642742 | F82: 50148.807 | G82: 130920.619 | H82: 0.1100461 | I82: 14407.30353
A83: 72 | C83: JC DONNELL B 5 FT UN | D83: FORT UNION | E83: 2.610642742 | F83: 18221.278 | G83: 47569.24716 | H83: 0.1100461 | I83: 5234.810129
A84: 73 | C84: JC DONNELL B 9 FT UN | D84: FORT UNION | E84: 2.610642742 | F84: 16946.238 | G84: 44240.57323 | H84: 0.1100461 | I84: 4868.502546
A85: 74 | C85: JC DONNELL B 10 FT UN | D85: FORT UNION | E85: 2.610642742 | F85: 37680.443 | G85: 98370.17502 | H85: 0.1100461 | I85: 10825.25412
A86: 75 | C86: H STEWART A 1 FT UN | D86: FORT UNION | E86: 2.610642742 | F86: 8493.759 | G86: 22174.17028 | H86: 0.1100461 | I86: 2440.18096
A87: 76 | C87: BW MUSSER B 13 FT UN | D87: FORT UNION | E87: 2.610642742 | F87: 21863.391 | G87: 57077.50302 | H87: 0.1100461 | I87: 6281.156606
A88: 77 | C88: BW MUSSER A 14 FT UN | D88: FORT UNION | E88: 2.610642742 | F88: 18163.749 | G88: 47419.05949 | H88: 0.1100461 | I88: 5218.282563
A89: 78 | C89: BW MUSSER 15 UPPER FT UN | D89: FORT UNION | E89: 2.610642742 | F89: 13009.417 | G89: 33962.94007 | H89: 0.1100461 | I89: 3737.489099
A90: 79 | C90: BW MUSSER B 18 FT UN | D90: FORT UNION | E90: 2.610642742 | F90: 28640.184 | G90: 74769.28848 | H90: 0.1100461 | I90: 8228.068597
A91: 80 | C91: BW MUSSER B 19 FT UN | D91: FORT UNION | E91: 2.610642742 | F91: 33600.369 | G91: 87718.55945 | H91: 0.1100461 | I91: 9653.085365
A92: 81 | C92: BW MUSSER B 20 FT UN | D92: FORT UNION | E92: 2.610642742 | F92: 7138.156 | G92: 18635.17515 | H92: 0.1100461 | I92: 2050.728348
A93: 82 | C93: POWDER WASH GOVT 1 FT UN | D93: FORT UNION | E93: 2.610642742 | F93: 7634.925 | G93: 19932.06153 | H93: 0.1100461 | I93: 2193.445637
A94: 83 | C94: JC DONNELL A 11 FT UN | D94: FORT UNION | E94: 2.610642742 | F94: 56112.076 | G94: 146488.5839 | H94: 0.1100461 | I94: 16120.49736
A95: 84 | C95: JA LEE 1 FT UN | D95: FORT UNION | E95: 2.610642742 | F95: 14821.764 | G95: 38694.33061 | H95: 0.1100461 | I95: 4258.160175
A96: 85 | C96: JC DONNELL A 1 FT UN | D96: FORT UNION | E96: 2.610642742 | F96: 15699.85 | G96: 40986.69945 | H96: 0.1100461 | I96: 4510.426426
A97: 86 | C97: MFS 20-1 FT UN | D97: FORT UNION | E97: 2.610642742 | F97: 71339.094 | G97: 186240.888 | H97: 0.125 | I97: 23280.11099
A98: 87 | C98: CARL ALLEN A 16 WAS | D98: WASATCH | E98: 2.610642742 | F98: 20438.889 | G98: 53358.63722 | H98: 0.1100461 | I98: 5871.909927
A99: 88 | C99: H STEWART A 2 FT UN | D99: FORT UNION | E99: 2.610642742 | F99: 76983.221 | G99: 200975.6871 | H99: 0.1100461 | I99: 22116.59056
A100: 89 | C100: CARL ALLEN B 9 UPPER WAS | D100: WASATCH | E100: 2.610642742 | F100: 12474.618 | G100: 32566.77094 | H100: 0.1100461 | I100: 3583.846131
A101: 90 | C101: CARL ALLEN A 2 WAS | D101: WASATCH | E101: 2.610642742 | F101: 14379.95 | G101: 37540.91209 | H101: 0.1100461 | I101: 4131.230966
A102: 91 | C102: CARL ALLEN 22 FT UN | D102: FORT UNION | E102: 2.610642742 | F102: 96562.452 | G102: 252090.0644 | H102: 0.1100461 | I102: 27741.52844
A103: 92 | C103: JC DONNELL 14-29 FT UN | D103: FORT UNION | E103: 2.610642742 | F103: 126337.586 | G103: 329822.3019 | H103: 0.1100461 | I103: 36295.65802
A104: 93 | C104: CARL ALLEN 23 FT UN | D104: FORT UNION | E104: 2.610642742 | F104: 44388.028 | G104: 115881.2831 | H104: 0.1100461 | I104: 12752.28327
A105: 94 | C105: BW MUSSER 23 FT UN | D105: FORT UNION | E105: 2.610642742 | F105: 63518.832 | G105: 165824.9777 | H105: 0.1100461 | I105: 18248.39208
A106: 95 | C106: BW MUSSER 24 FT UN | D106: FORT UNION | E106: 2.610642742 | F106: 41442.135 | G106: 108190.6089 | H106: 0.1100461 | I106: 11905.95457
A107: 96 | C107: CARL ALLEN 26 FT UN | D107: MESAVERDE | E107: 2.610642742 | F107: 154663.504 | G107: 403771.1541 | H107: 0.1100461 | I107: 44433.4408
A108: 97 | C108: CARL ALLEN 25 FT UN | D108: WASATCH | E108: 2.610642742 | F108: 229219.333 | G108: 598409.788 | H108: 0.1100461 | I108: 65852.66337
A109: 98 | C109: H STEWART 5 FT UN | D109: FORT UNION | E109: 2.610642742 | F109: 128569.396 | G109: 335648.7605 | H109: 0.1100461 | I109: 36936.83706
A110: 99 | C110: CARL ALLEN 27 FT UN | D110: FORT UNION | E110: 2.610642742 | F110: 185733.882 | G110: 484884.8109 | H110: 0.110046 | I110: 53359.6339
A111: 100 | C111: CARL ALLEN 28 FT UN | D111: FORT UNION | E111: 2.610642742 | F111: 62011.404 | G111: 161889.6218 | H111: 0.110046 | I111: 17815.30532
A112: 101 | C112: CARL ALLEN 29 FT UN | D112: FORT UNION | E112: 2.610642742 | F112: 110687.718 | G112: 288966.0876 | H112: 0.110046 | I112: 31799.56208
A113: 102 | C113: BW MUSSER 27 FT UN | D113: FORT UNION | E113: 2.610642742 | F113: 106410.785 | G113: 277800.5435 | H113: 0.110046 | I113: 30570.83861
A114: 103 | C114: JC DONNELL 14 FT UN | D114: FORT UNION | E114: 2.610642742 | F114: 36797.279 | G114: 96064.54934 | H114: 0.110046 | I114: 10571.5194
A115: 104 | C115: JC DONNELL 15 FT UN | D115: FORT UNION | E115: 2.610642742 | F115: 76854.177 | G115: 200638.7994 | H115: 0.110046 | I115: 22079.49731
A116: 105 | C116: JC DONNELL 16 FT UN | D116: FORT UNION | E116: 2.610642742 | F116: 99084.164 | G116: 258673.3536 | H116: 0.110046 | I116: 28465.96787
A117: 106 | C117: BW MUSSER 28 FT UN | D117: FORT UNION | E117: 2.610642742 | F117: 7743.648 | G117: 20215.89845 | H117: 0.110046 | I117: 2224.67876
A118: 107 | C118: BW MUSSER 29 FT UN | D118: FORT UNION | E118: 2.610642742 | F118: 82198.794 | G118: 214591.6849 | H118: 0.110046 | I118: 23614.95656
A119: 108 | C119: BW MUSSER 26R FT UN | D119: FORT UNION | E119: 2.610642742 | F119: 77691.452 | G119: 202824.6253 | H119: 0.1100461 | I119: 22320.05899
A120: 109 | C120: CARL ALLEN 30 FT UN | D120: FORT UNION | E120: 2.610642742 | F120: 100285.817 | G120: 261810.4403 | H120: 0.110046 | I120: 28811.19171
A121: 110 | C121: CARL ALLEN 31 FT UN | D121: FORT UNION | E121: 2.610642742 | F121: 239044.741 | G121: 624060.418 | H121: 0.110046 | I121: 68675.35276
A122: 111 | C122: CARL ALLEN 32 FT UN | D122: FORT UNION | E122: 2.610642742 | F122: 110914.683 | G122: 289558.6121 | H122: 0.110046 | I122: 31864.76703
A123: 112 | C123: CARL ALLEN 33 FT UN | D123: FORT UNION | E123: 2.610642742 | F123: 15475.253 | G123: 40400.35692 | H123: 0.110046 | I123: 4445.897678
A124: 113 | C124: CARL ALLEN 34 FT UN | D124: FORT UNION | E124: 2.610642742 | F124: 109094.049 | G124: 284805.5872 | H124: 0.110046 | I124: 31341.71565
A125: 114 | C125: JC DONNELL 18 FT UN | D125: FORT UNION | E125: 2.610642742 | F125: 15456.027 | G125: 40350.1647 | H125: 0.110046 | I125: 4440.374225
A126: 115 | C126: BW MUSSER 31 FT UN | D126: FORT UNION | E126: 2.610642742 | F126: 108424.3 | G126: 283057.1118 | H126: 0.110046 | I126: 31149.30293
A127: 116 | C127: BW MUSSER 32 FT UN | D127: FORT UNION | E127: 2.610642742 | F127: 86441.263 | G127: 225667.2558 | H127: 0.110046 | I127: 24833.77884
A128: 117 | C128: BW MUSSER 34 FT UN | D128: FORT UNION | E128: 2.610642742 | F128: 73186.138 | G128: 191062.86 | H128: 0.110046 | I128: 21025.70349
A129: 118 | C129: BW MUSSER 35 FT UN | D129: FORT UNION | E129: 2.610642742 | F129: 4422.975 | G129: 11546.80758 | H129: 0.110046 | I129: 1270.679987
A130: 119 | C130: STEWART 6 FT UN | D130: FORT UNION | E130: 2.610642742 | F130: 97875.99 | G130: 255519.2429 | H130: 0.110046 | I130: 28118.8706
A131: 120 | C131: BW MUSSER 36 FT UN | D131: FORT UNION | E131: 2.610642742 | F131: 170883.115 | G131: 446114.7639 | H131: 0.110046 | I131: 49093.1453
A132: 121 | C132: BW MUSSER 37 FT UN | D132: FORT UNION | E132: 2.610642742 | F132: 199474.48 | G132: 520756.6034 | H132: 0.110046 | I132: 57307.18117
A133: 122 | C133: CARL ALLEN 35 FT UN | D133: FORT UNION | E133: 2.610642742 | F133: 81429.804 | G133: 212584.1268 | H133: 0.110046 | I133: 23394.03281
A134: 123 | C134: CARL ALLEN 36 FT UN | D134: FORT UNION | E134: 2.610642742 | F134: 135673.93 | G134: 354196.1606 | H134: 0.110046 | I134: 38977.87069
A135: 124 | C135: BW MUSSER 38 FT UN | D135: FORT UNION | E135: 2.610642742 | F135: 172949.233 | G135: 451508.6598 | H135: 0.110046 | I135: 49686.72198
A136: 125 | C136: BW MUSSER 39 FT UN | D136: FORT UNION | E136: 2.610642742 | F136: 128839.087 | G136: 336352.8273 | H136: 0.110046 | I136: 37014.28324
A137: 126 | C137: CARL ALLEN 37 FT UN | D137: FORT UNION | E137: 2.610642742 | F137: 78082.622 | G137: 203845.8304 | H137: 0.1100461 | I137: 22432.43863
A138: 127 | C138: BW MUSSER 42 FT UN | D138: FORT UNION | E138: 2.610642742 | F138: 68746.02 | G138: 179471.2981 | H138: 0.110046 | I138: 19750.09847
A139: 128 | C139: POWDER WASH GOVT 17 FT UN | D139: FORT UNION | E139: 2.610642742 | F139: 29.992 | G139: 78.29839711 | H139: 0.110046 | I139: 8.616425408
A140: 129 | C140: BW MUSSER 72 FT UN | D140: FORT UNION | E140: 2.610642742 | F140: 11761.924 | G140: 30706.18152 | H140: 0.110046 | I140: 3379.092451
A141: 130 | C141: BW MUSSER 73 FT UN | D141: FORT UNION | E141: 2.610642742 | F141: 60214.404 | G141: =E141*F141 -> 157198.2968 | H141: 0.110046 | I141: =G141*H141 -> 17299.04376
A142: =A141+1 -> 131 | C142: CARL ALLEN 40 FT UN | D142: FORT UNION | E142: 2.610642742 | F142: 81903.965 | G142: 213821.9917 | H142: 0.110046 | I142: 23530.2549
A143: 132 | C143: CARL ALLEN 41 FT UN | D143: FORT UNION | E143: 2.610642742 | F143: 89054.246 | G143: 232488.8209 | H143: 0.110046 | I143: 25584.46479
A144: 133 | B144: RABBIT MTN (CO) | C144: MF FEDERAL 8-1 MANCOS B | D144: MANCOS B | E144: 2.610642742 | F144: 34732.91 | G144: 90675.21939 | H144: 0.155 | I144: 14054.65901
A145: 134 | C145: RABBIT MTN FED 7-1 MANCOS B | D145: MANCOS B | E145: 2.610642742 | F145: 41717.3 | G145: 108908.9665 | H145: 0.125 | I145: 13613.62081
A146: 135 | B146: SUGAR LOAF (CO) | C146: SUGARLOAF GOVT 1 MESA | D146: MESAVERDE | E146: 2.610642742 | F146: 123112.402 | G146: 321402.4987 | H146: 0.13375 | I146: 42987.5842
A147: 136 | C147: SUGARLOAF GOVT 2 MESA | D147: MESAVERDE | E147: 2.610642742 | F147: 147429.853 | G147: 384886.6757 | H147: 0.13375 | I147: 51478.59287
A148: 137 | C148: SUGARLOAF GOVT 3 FT UN | D148: FORT UNION | E148: 2.610642742 | F148: 66687.047 | G148: 174096.0552 | H148: 0.13375 | I148: 23285.34739
A149: 138 | C149: SUGARLOAF GOVT 4 MESA | D149: MESAVERDE | E149: 2.610642742 | F149: 36668.005 | G149: 95727.06111 | H149: 0.13375 | I149: 12803.49442
A150: 139 | C150: SUGARLOAF GOVT 6 MESA | D150: MESAVERDE | E150: 2.610642742 | F150: 116191.261 | G150: 303333.8722 | H150: 0.13375 | I150: 40570.9054
A151: 140 | C151: SUGARLOAF GOVT 8 MESA | D151: MESAVERDE | E151: 2.610642742 | F151: 9564.075 | G151: 24968.38298 | H151: 0.13375 | I151: 3339.521224
A152: 141 | C152: SUGARLOAF GOVT 10 MESA | D152: MESAVERDE | E152: 2.610642742 | F152: 84916.382 | G152: 221686.3363 | H152: 0.13375 | I152: 29650.54748
A153: 142 | C153: SUGARLOAF GOVT 12 MESA | D153: MESAVERDE | E153: 2.610642742 | F153: 6388.098 | G153: 16677.04168 | H153: 0.13375 | I153: 2230.554324
A154: 143 | C154: SUGARLOAF GOVT 14 MESA | D154: MESAVERDE | E154: 2.610642742 | F154: 32602.484 | G154: 85113.43822 | H154: 0.13375 | I154: 11383.92236
A155: 144 | C155: SUGARLOAF GOVT 15 MESA | D155: MESAVERDE | E155: 2.610642742 | F155: 12448.289 | G155: 32498.03532 | H155: 0.13375 | I155: 4346.612225
A156: 145 | C156: SUGARLOAF GOVT 17 ALMOND | D156: ALMOND | E156: 2.610642742 | F156: 213479.796 | G156: 557319.4799 | H156: 0.20375 | I156: 113553.844
A157: 146 | B157: W HIAW (CO) | C157: WB LASHER A 2 WAS | D157: WASATCH | E157: 2.610642742 | F157: 15970.384 | G157: 41692.96707 | H157: 0.1925 | I157: 8025.896161
A158: 147 | C158: WB LASHER A 4 FT UN | D158: FORT UNION | E158: 2.610642742 | F158: 25711.4 | G158: 67123.27979 | H158: 0.1925 | I158: 12921.23136
A159: 148 | C159: WM WHEELER A 2 WAS | D159: WASATCH | E159: 2.610642742 | F159: 25370.385 | G159: 66233.01146 | H159: 0.1925 | I159: 12749.85471
A160: 149 | C160: WM WHEELER A 2 FT UN | D160: FORT UNION | E160: 2.610642742 | F160: 4806.667 | G160: 12548.49032 | H160: 0.1925 | I160: 2415.584386
A161: 150 | C161: WM WHEELER A 3 FT UN | D161: FORT UNION | E161: 2.610642742 | F161: 18677.308 | G161: 48759.77857 | H161: 0.1925 | I161: 9386.257374
A162: 151 | C162: WB LASHER A 5 FT UN | D162: FORT UNION | E162: 2.610642742 | F162: 24421.573 | G162: 63756.00229 | H162: 0.1840625 | I162: 11735.08917
A163: 152 | C163: WB LASHER A 6 LEW/LNC/FT UN | D163: LANCE/LEWIS | E163: 2.610642742 | F163: 51674.789 | G163: 134904.4128 | H163: 0.1925 | I163: 25969.09947
A164: 153 | C164: WM WHEELER A 4 LEW/LNC/FT UN | D164: LANCE/LEWIS | E164: 2.610642742 | F164: 62276.554 | G164: 162581.8337 | H164: 0.1925 | I164: 31297.00298
A165: 154 | C165: LASHER 7 LEWIS | D165: LEWIS | E165: 2.610642742 | F165: 76994.622 | G165: 201005.4511 | H165: 0.1925 | I165: 38693.54933
A166: 155 | C166: LASHER 8 LEWIS | D166: LEWIS | E166: 2.610642742 | F166: 30390.037 | G166: 79337.52952 | H166: 0.1840625 | I166: 14603.06403
A167: 156 | C167: LASHER 9 LEWIS | D167: LEWIS | E167: 2.610642742 | F167: 46519.878 | G167: 121446.7818 | H167: 0.1840625 | I167: 22353.79828
A168: 157 | C168: LASHER 10 MESA | D168: MESAVERDE | E168: 2.610642742 | F168: 6262.612 | G168: 16349.44256 | H168: 0.2540625 | I168: 4153.780251
A169: 158 | C169: LASHER 10 FT UN | D169: FORT UNION | E169: 2.610642742 | F169: 6074.954 | G169: 15859.53457 | H169: 0.1840625 | I169: 2919.145581
A170: 159 | C170: LASHER 10 LEWIS | D170: LEWIS | E170: 2.610642742 | F170: 6074.954 | G170: 15859.53457 | H170: 0.1840625 | I170: 2919.145581
A171: 160 | C171: LASHER 11 MESA | D171: MESAVERDE | E171: 2.610642742 | F171: 20539.784 | G171: 53622.03802 | H171: 0.2540625 | I171: 13623.34903
A172: 161 | C172: LASHER 11 FT UN | D172: FORT UNION | E172: 2.610642742 | F172: 20539.881 | G172: 53622.29125 | H172: 0.1840625 | I172: 9869.852983
A173: 162 | C173: LASHER 11 LEWIS | D173: LEWIS | E173: 2.610642742 | F173: 20539.881 | G173: 53622.29125 | H173: 0.1840625 | I173: 9869.852983
A174: 163 | C174: LASHER 11 LANCE | D174: LANCE | E174: 2.610642742 | F174: 20539.881 | G174: 53622.29125 | H174: 0.1840625 | I174: 9869.852983
A175: 164 | C175: LASHER 12 MESA | D175: MESAVERDE | E175: 2.610642742 | F175: 10333.94 | G175: 26978.22545 | H175: 0.2540625 | I175: 6854.155405
A176: 165 | C176: LASHER 12 FT UN | D176: FORT UNION | E176: 2.610642742 | F176: 10334.347 | G176: 26979.28799 | H176: 0.1840625 | I176: 4965.875195
A177: 166 | C177: LASHER 12 LEWIS | D177: LEWIS | E177: 2.610642742 | F177: 10334.347 | G177: 26979.28799 | H177: 0.1840625 | I177: 4965.875195
A178: 167 | C178: LASHER 12 LANCE | D178: LANCE | E178: 2.610642742 | F178: 10334.347 | G178: 26979.28799 | H178: 0.1840625 | I178: 4965.875195
A179: 168 | C179: WHEELER 6 MESA | D179: MESAVERDE | E179: 2.610642742 | F179: 11928.872 | G179: 31142.0231 | H179: 0.2625 | I179: 8174.781065
A180: 169 | C180: WHEELER 6 LEW/LAN/FT UN | D180: LANCE/LEWIS | E180: 2.610642742 | F180: 16540.984 | G180: 43182.59982 | H180: 0.1925 | I180: 8312.650466
A181: 170 | C181: WHEELER 5 MESA | D181: MESAVERDE | E181: 2.610642742 | F181: 1761.055 | G181: 4597.485454 | H181: 0.2625 | I181: 1206.839932
A182: 171 | C182: WHEELER 5 LEW/LAN/FT UN | D182: LANCE/LEWIS | E182: 2.610642742 | F182: 37359.602 | G182: 97532.5738 | H182: 0.1925 | I182: 18775.02046
A183: 172 | C183: WHEELER 7 MESA | D183: MESAVERDE | E183: 2.610642742 | F183: 4839.392 | G183: 12633.9236 | H183: 0.2625 | I183: 3316.404945
A184: 173 | C184: WHEELER 7 LEW/LAN/FT UN | D184: LANCE/LEWIS | E184: 2.610642742 | F184: 10974.428 | G184: 28650.3108 | H184: 0.1925 | I184: 5515.18483
A185: 174 | C185: WHEELER 8 MESA | D185: MESAVERDE | E185: 2.610642742 | F185: 111.008 | G185: 289.8022295 | H185: 0.2625 | I185: 76.07308524
A186: 175 | C186: WHEELER 8 LEW/LAN/FT UN | D186: LANCE/LEWIS | E186: 2.610642742 | F186: 1120.068 | G186: 2924.097394 | H186: 0.1925 | I186: 562.8887484
A187: 176 | C187: WHEELER 9 MESA | D187: MESAVERDE | E187: 2.610642742 | F187: 6772.378 | G187: 17680.25947 | H187: 0.2625 | I187: 4641.068111
A188: 177 | C188: WHEELER 9 LEW/LAN/FT UN | D188: LANCE/LEWIS | E188: 2.610642742 | F188: 59618.025 | G188: 155641.3642 | H188: 0.1925 | I188: 29960.96262
A189: 178 | B189: CLAY BASIN (UT) | C189: CLAY BASIN UNIT 7 FR | D189: FRONTIER | E189: 2.610642742 | F189: 33085.028 | G189: 86373.18821 | H189: 0.1549177 | I189: 13380.73566
A190: 179 | C190: CLAY BASIN UNIT 8 FR | D190: FRONTIER | E190: 2.610642742 | F190: 65634.621 | G190: 171348.5469 | H190: 0.1549177 | I190: 26544.92279
A191: 180 | C191: CLAY BASIN UNIT 9 FR | D191: FRONTIER | E191: 2.610642742 | F191: 101366.509 | G191: 264631.741 | H191: 0.1549177 | I191: 40996.14066
A192: 181 | C192: CLAY BASIN UNIT 12 FR | D192: FRONTIER | E192: 2.610642742 | F192: 103208.633 | G192: 269440.8686 | H192: 0.1549177 | I192: 41741.15965
A193: 182 | C193: CLAY BASIN UNIT 13 FR | D193: FRONTIER | E193: 2.610642742 | F193: 98240.338 | G193: 256470.4253 | H193: 0.1549177 | I193: 39731.80841
A194: 183 | C194: CLAY BASIN UNIT 14 FR | D194: FRONTIER | E194: 2.610642742 | F194: 49275.02 | G194: 128639.4733 | H194: 0.1549177 | I194: 19928.53133
A195: 184 | C195: CLAY BASIN UNIT 15 FR | D195: LANCE | E195: 2.610642742 | F195: 190215.823 | G195: 496585.5577 | H195: 0.1549177 | I195: 76929.89245
A196: 185 | C196: CLAY BASIN UNIT 16 FR | D196: FRONTIER | E196: 2.610642742 | F196: 31635.707 | G196: 82589.52886 | H196: 0.1549177 | I196: 12794.57985
A197: 186 | C197: CLAY BASIN UNIT 17 FR | D197: FRONTIER | E197: 2.610642742 | F197: 76947.632 | G197: 200882.777 | H197: 0.1549177 | I197: 31120.29778
A198: 187 | C198: CLAY BASIN UNIT 18 FR | D198: FRONTIER | E198: 2.610642742 | F198: 82989.92 | G198: 216657.0323 | H198: 0.1549177 | I198: 33564.00913
A199: 188 | C199: CLAY BASIN UNIT 19 FR | D199: FRONTIER | E199: 2.610642742 | F199: 113811.674 | G199: 297121.6207 | H199: 0.1549177 | I199: 46029.39809
A200: 189 | C200: CLAY BASIN UNIT 20 FR | D200: FRONTIER | E200: 2.610642742 | F200: 90307.508 | G200: 235760.6403 | H200: 0.1549177 | I200: 36523.49614
A201: 190 | C201: CLAY BASIN UNIT 22 FR | D201: FRONTIER | E201: 2.610642742 | F201: 104479.203 | G201: 272757.873 | H201: 0.1549177 | I201: 42255.02234
A202: 191 | C202: CLAY BASIN UNIT 23 FR | D202: FRONTIER | E202: 2.610642742 | F202: 56005.893 | G202: 146211.3781 | H202: 0.1549177 | I202: 22650.7304
... 1294 more rows

Sheet Ut 1.2
H1: ='Control Panel'!$F$32 -> Questar Gas Company
H2: ='Control Panel'!$F$33 -> Docket No. 15-057-04
H3: Exhibit 1.2
B8: TEST YEAR PURCHASED GAS COSTS
D11: (A) | E11: (B) | F11: (C) | G11: (D)
F12: Cost
C13: Component | E13: Dth | F13: per Dth | G13: Total Cost
B15: 1 | C15: Current Contracts | G15: =ROUND(Calculations!$P$184+Calculations!$P$187-G16,0) -> 56685620
B16: =B15+1 -> 2 | C16: Stabilization Costs | G16: ='Monthly Inputs'!S94 -> 0
B17: =B16+1 -> 3 | D17: Total Current Contracts | E17: =Calculations!$P$183+Calculations!$P$186 -> 18560000 | F17: =G17/E17 -> 3.054182112 | G17: =G15+G16 -> 56685620
B19: =B17+1 -> 4 | C19: Forecast Spot | E19: =Calculations!$P$180 -> 33328270 | F19: =G19/E19 -> 2.753174257 | G19: =ROUND(Calculations!P181,0) -> 91758535
B21: =B19+1 -> 5 | C21: Future Contracts | E21: =Calculations!P189 -> 1694227 | F21: =G21/E21 -> 2.649834408 | G21: =ROUND(Calculations!P190,0) -> 4489421
B24: =B21+1 -> 6 | C24: Total Gas Purchased | E24: =E17+E19+E21 -> 53582497 | F24: =G24/E24 -> 2.854170383 | G24: =G17+G19+G21 -> 152933576

Sheet Ut 1.3 p1
N1: ='Control Panel'!$F$32 -> Questar Gas Company
N2: ='Control Panel'!$F$33 -> Docket No. 15-057-04
N3: Exhibit 1.3
N4: Page 1 of 2
B8: TEST YEAR TRANSPORTATION, GATHERING AND PROCESSING CHARGES
B11: (A) | D11: (B) | F11: (C) | H11: (D) | J11: (E) | L11: (F) | M11: (G)
D12: Fctr | F12: Dth | H12: Months/Days | J12: Rate | M12: Total Costs
B14: TRANSPORTATION DEMAND
B16: QPC Demand
A17: 1 | B17: T-1 Transportation - Yearly | F17: ='Other Inputs'!D22+'Other Inputs'!D23+'Other Inputs'!D24 -> 840902 | G17: x | H17: ='Other Inputs'!E22 -> 12 | I17: x | J17: ='Other Inputs'!F22 -> 5.28804 | K17: = | L17: =ROUND(F17*H17*J17,0) -> 53360681
A18: =A17+1 -> 2 | B18: T-1 Transportation Nov-Mar | F18: ='Other Inputs'!D25 -> 75000 | G18: x | H18: ='Other Inputs'!E25 -> 5 | I18: x | J18: ='Other Inputs'!F25 -> 6.80887 | K18: = | L18: =ROUND(F18*H18*J18,0) -> 2553326
A19: =A18+1 -> 3 | B19: No-Notice Transportation | F19: ='Other Inputs'!D30 -> 203542 | G19: x | H19: ='Other Inputs'!E30 -> 12 | I19: x | J19: ='Other Inputs'!F30 -> 0.86753 | K19: = | L19: =ROUND(F19*H19*J19,0) -> 2118945
A20: =A19+1 -> 4 | B20: Capacity Release Credits | L20: =-ROUND('Other Inputs'!E291,0) -> -110748
A21: =A20+1 -> 5 | C21: Total | L21: =SUM(L17:L20) -> 57922204
B23: Kern River Demand
A24: =A21+1 -> 6 | B24: January - December | F24: ='Other Inputs'!D56 -> 1885 | G24: x | H24: ='Other Inputs'!E56 -> 12 | I24: x | J24: ='Other Inputs'!F56 -> 17.74204167 | K24: = | L24: =ROUND(F24*H24*J24,0) -> 401325
A25: =A24+1 -> 7 | B25: January - December | F25: ='Other Inputs'!D54 -> 3000 | G25: x | H25: ='Other Inputs'!E54 -> 12 | I25: x | J25: ='Other Inputs'!F54 -> 14.34754167 | K25: = | L25: =ROUND(F25*H25*J25,0) -> 516512
A26: =A25+1 -> 8 | B26: November - March | F26: ='Other Inputs'!D55 -> 50000 | G26: x | H26: ='Other Inputs'!E55 -> 5 | I26: x | J26: =J25 -> 14.34754167 | K26: = | L26: =ROUND(F26*H26*J26,0) -> 3586885
A27: =A26+1 -> 9 | C27: Total | L27: =SUM(L24:L26) -> 4504722
A29: =A27+1 -> 10 | B29: Total Transportation Demand (SNG) | M29: =L21+L27 -> 62426926
B32: TRANSPORTATION COMMODITY
B34: QPC Commodity
A35: =A29+1 -> 11 | B35: QPC Commodity (SNG) | F35: =F36-(D40*F40*H40)-(D41*F41*H41) -> 124057228.7 | I35: x | J35: ='Other Inputs'!F38 -> 0.00267 | K35: = | L35: =ROUND(F35*J35,0) -> 331233
A36: =A35+1 -> 12 | B36: QPC ACA | F36: =Calculations!$P$173 -> 131825530.9 | I36: x | J36: ='Other Inputs'!F39 -> 0.0014 | K36: = | L36: =ROUND(F36*J36,0) -> 184556
A37: =A36+1 -> 13 | C37: Total | L37: =SUM(L35:L36) -> 515789
B39: Kern River Commodity
A40: =A37+1 -> 14 | B40: January - December | D40: ='Other Inputs'!C60 -> 0.8274794078 | E40: x | F40: ='Other Inputs'!D60 -> 4885 | G40: x | H40: ='Other Inputs'!E60 -> 366 | I40: x | J40: ='Other Inputs'!F60 -> 0.0044 | K40: = | L40: =ROUND(D40*F40*H40*J40,0) -> 6510
A41: =A40+1 -> 15 | B41: November - March | D41: ='Other Inputs'!C61 -> 0.8274794078 | E41: x | F41: ='Other Inputs'!D61 -> 50000 | G41: x | H41: ='Other Inputs'!E61 -> 152 | I41: x | J41: ='Other Inputs'!F61 -> 0.0044 | K41: = | L41: =ROUND(D41*F41*H41*J41,0) -> 27671
A42: =A41+1 -> 16 | C42: Total (SNG) | L42: =SUM(L40:L41) -> 34181
A44: =A42+1 -> 17 | B44: Total Transportation Commodity | M44: =L37+L42 -> 549970
B47: OTHER CHARGES
A49: =A44+1 -> 18 | B49: QEP Field Services Demand | H49: 12 | I49: x | J49: ='Other Inputs'!E173 -> 862503 | K49: = | L49: =ROUND(H49*J49,0) -> 10350036
A50: =A49+1 -> 19 | B50: QEP Field Services Commodity | F50: ='Other Inputs'!D174 -> 40069171.17 | I50: x | J50: ='Other Inputs'!D173 -> 0.14446 | K50: = | L50: =ROUND(F50*J50,0) -> 5788392
A51: =A50+1 -> 20 | C51: Total QEP Field Services (SNG) | M51: =L49+L50 -> 16138428 | N51: 1/
A53: =A51+1 -> 21 | B53: Wexpro II Gathering | F53: ='Other Inputs'!D177 -> 4138215 | J53: ='Other Inputs'!D176 -> 0.48 | L53: ='Other Inputs'!D177*'Other Inputs'!D176 -> 1986343.2
A54: =A53+1 -> 22 | B54: Other Wexpro I Gathering Charges | L54: =ROUND('Other Inputs'!D165,0) -> 1865281
A55: =A54+1 -> 23 | B55: Other Transportation Charges | L55: =ROUND('Other Inputs'!$D$167,0) -> 3393768
A56: =A55+1 -> 24 | C56: Total Wexpro II Gathering, Other Gathering & Transportation | M56: =SUM(L53:L55) -> 7245392.2
A61: =A56+1 -> 25 | B61: TOTAL TRANSPORTATION AND OTHER CHARGES | M61: =SUM(M13:M59) -> 86360716.2
A66: 1/ | B66: See paragraph 7c in application.

Sheet Ut 1.3 p2
L1: ='Control Panel'!$F$32 -> Questar Gas Company
L2: ='Control Panel'!$F$33 -> Docket No. 15-057-04
L3: Exhibit 1.3
L4: Page 2 of 2
B7: TEST YEAR STORAGE AND WORKING GAS CHARGES
B10: (A) | D10: (B) | F10: (C) | H10: (D) | J10: (E) | K10: (F)
B12: STORAGE CHARGES 1/
B14: Component | D14: Dth | F14: Months | H14: Rate | K14: Total Costs
B15: Storage Demand
A16: 1 | B16: Peaking Demand | D16: ='Other Inputs'!E151 -> 184625 | E16: x | F16: 12 | G16: x | H16: ='Other Inputs'!E14 -> 2.87375 | I16: = | J16: =ROUND(D16*F16*H16,0) -> 6366793
A17: =A16+1 -> 2 | B17: Ryckman Demand 4/ | D17: ='Other Inputs'!E152 -> 2500000 | E17: x | F17: 11 | G17: x | H17: ='Other Inputs'!E15 -> 0.09 | I17: = | J17: =ROUND(D17*F17*H17,0) -> 2475000
A18: =A17+1 -> 3 | B18: Clay Basin Demand | D18: ='Other Inputs'!E153 -> 111827 | E18: x | F18: 12 | G18: x | H18: ='Other Inputs'!E16 -> 2.85338 | I18: = | J18: =ROUND(D18*F18*H18,0) -> 3829019
A19: 4 | B19: Clay Basin Capacity | D19: ='Other Inputs'!E154 -> 13419000 | E19: x | F19: 12 | G19: x | H19: ='Other Inputs'!E17 -> 0.02378 | I19: = | J19: =ROUND(D19*F19*H19,0) -> 3829246
A20: 5 | C20: Total Demand Charges (SNG) | J20: =SUM(J16:J19) -> 16500058
B22: Storage Commodity 2/
A23: =A20+1 -> 6 | B23: Peaking Injections | D23: =(+'Monthly Inputs'!S24+'Monthly Inputs'!S26+'Monthly Inputs'!S27) -> 1938571 | F23: x | H23: ='Other Inputs'!E6 -> 0.03872 | I23: = | J23: =ROUND(D23*H23,0) -> 75061
A24: =A23+1 -> 7 | B24: Peaking Withdrawals | D24: =(+'Monthly Inputs'!S32+'Monthly Inputs'!S34+'Monthly Inputs'!S35) -> 1919426 | F24: x | H24: ='Other Inputs'!E7 -> 0.03872 | I24: = | J24: =ROUND(D24*H24,0) -> 74320
A25: =A24+1 -> 8 | B25: Ryckman Injections | D25: ='Monthly Inputs'!S28 -> 1828154 | F25: x | H25: ='Other Inputs'!E8 -> 0.015 | I25: = | J25: =ROUND(D25*H25,0) -> 27422
A26: =A25+1 -> 9 | B26: Ryckman Withdrawals | D26: ='Monthly Inputs'!S36 -> 1782450 | F26: x | H26: ='Other Inputs'!E9 -> 0.01 | I26: = | J26: 17825
A27: =A26+1 -> 10 | B27: Clay Basin Injections | D27: ='Monthly Inputs'!S25 -> 12588580 | F27: x | H27: ='Other Inputs'!E10 -> 0.01049 | I27: = | J27: =ROUND(D27*H27,0) -> 132054
A28: =A27+1 -> 11 | B28: Clay Basin Withdrawals | D28: ='Monthly Inputs'!S33 -> 12889810 | F28: x | H28: ='Other Inputs'!E11 -> 0.01781 | I28: = | J28: =ROUND(D28*H28,0) -> 229568
A29: 12 | C29: Total Commodity Charges | J29: =SUM(J23:J28) -> 556250
A31: 13 | B31: Total Storage Charges | K31: =J20+J29 -> 17056308
B34: WORKING GAS CHARGES - QGC Account 164
C36: Month | D36: Amount | H36: Pre-Tax Return %
A38: =A31+1 -> 14 | C38: =+'Rate Base'!H8 -> 2014-03-21 | D38: =+'Rate Base'!H216 -> 6166884.89
A39: =A38+1 -> 15 | C39: =+'Rate Base'!I8 -> 2014-04-20 | D39: =+'Rate Base'!I216 -> 4699533.51
A40: 16 | C40: =+'Rate Base'!J8 -> 2014-05-20 | D40: =+'Rate Base'!J216 -> 13360087
A41: 17 | C41: =+'Rate Base'!K8 -> 2014-06-19 | D41: =+'Rate Base'!K216 -> 27776654.2
A42: 18 | C42: =+'Rate Base'!L8 -> 2014-07-19 | D42: =+'Rate Base'!L216 -> 42002346.57
A43: 19 | C43: =+'Rate Base'!M8 -> 2014-08-18 | D43: =+'Rate Base'!M216 -> 56135251.62
A44: 20 | C44: =+'Rate Base'!N8 -> 2014-09-17 | D44: =+'Rate Base'!N216 -> 66798582.12
A45: 21 | C45: =+'Rate Base'!O8 -> 2014-10-17 | D45: =+'Rate Base'!O216 -> 69627001.85
A46: 22 | C46: =+'Rate Base'!P8 -> 2014-11-16 | D46: =+'Rate Base'!P216 -> 59708122.01
A47: 23 | C47: =+'Rate Base'!Q8 -> 2014-12-16 | D47: =+'Rate Base'!Q216 -> 40325369.94
A48: 24 | C48: =+'Rate Base'!R8 -> 2015-01-15 | D48: =+'Rate Base'!R216 -> 30248596.29
A49: 25 | C49: =+'Rate Base'!S8 -> 2015-02-14 | D49: =+'Rate Base'!S216 -> 14896410.62
A50: 26 | C50: =+'Rate Base'!T8 -> 2015-03-16 | D50: =+'Rate Base'!T216 -> 9447138.71
A53: =A50+1 -> 27 | B53: 12-Month Average 3/ | D53: =(SUM(D39:D49)+D38/2+D50/2)/12 -> 36115413.96 | F53: x | H53: ='Other Inputs'!E281 -> 0.1079 | J53: = | K53: =D53*H53 -> 3896853.166
A56: =A53+1 -> 28 | B56: TOTAL FIRM STORAGE AND WORKING GAS CHARGES | K56: =K53+K31 -> 20953161.17
A60: 1/ | B60: =CONCATENATE("Exhibit 1.9 - ",'Other Inputs'!G22) -> Exhibit 1.9 - 1/1/2015
A61: 2/ | B61: Questar Gas planned volumes.
A62: 3/ | B62: (½ of Line 14 + sum of Lines 15 through 25 + ½ of Line 26) / 12
A63: 4/ | B63: Ryckman Creek Resources is expected to be operational beginning July of 2015.

Sheet Ut 1.4 p1
G1: ='Control Panel'!$F$32 -> Questar Gas Company
G2: ='Control Panel'!$F$33 -> Docket No. 15-057-04
G3: Exhibit 1.4
G4: Page 1 of 3
B8: SUMMARY OF TEST-YEAR GAS RELATED COSTS AND REVENUES CREDITS
B11: (A) | E11: (B) | F11: (C) | G11: (D)
B12: Component | E12: Costs | F12: Dth | G12: $ per Dth
B14: WEXPRO I
A15: 1 | C15: Questar Gas Production 1/ | E15: ='Other Inputs'!D184 -> 317082952.4
A16: =A15+1 -> 2 | C16: Wexpro I Revenue Sharing Credits 2/ | E16: =-'Ut 1.4 p3'!H28 -> -18963047
A17: =A16+1 -> 3 | D17: Net Questar Gas Production Costs | E17: =E15+E16 -> 298119905.4 | F17: =F22 -> 62957234 | G17: =E17/F22 -> 4.735276416
A19: =A17+1 -> 4 | D19: Gathering 3/ | E19: ='Ut 1.3 p1'!L54+'Ut 1.3 p1'!M51 -> 18003709
A22: =A19+1 -> 5 | B22: Total Wexpro I Cost of Production | E22: =SUM(E17:E19) -> 316123614.4 | F22: ='Monthly Inputs'!S7 -> 62957234 | G22: =E22/F22 -> 5.021243697
B24: WEXPRO II
A25: =A22+1 -> 6 | C25: Wexpro II Production 4/ | E25: ='Other Inputs'!D205 -> 26347912.63
A26: =A25+1 -> 7 | C26: Wexpro II Revenue Sharing Credits 5/ | E26: =-'Ut 1.4 p3'!H44 -> -1393647
A27: =A26+1 -> 8 | D27: Net Cost of Wexpro II Production | E27: =E25+E26 -> 24954265.63 | F27: =F32 -> 4138215 | G27: =E27/F32 -> 6.030200371
A29: =A27+1 -> 9 | D29: Gathering 6/ | E29: ='Ut 1.3 p1'!L53 -> 1986343.2
A32: =A29+1 -> 10 | B32: Total Wexpro II Cost of Production | E32: =SUM(E27:E29) -> 26940608.83 | F32: ='Monthly Inputs'!S13 -> 4138215 | G32: =E32/F32 -> 6.510200371
A34: =A32+1 -> 11 | B34: Sales of Cost-of-Service Gas 7/ | E34: =-'Other Inputs'!E223 -> 0 | F34: ='Other Inputs'!F223 -> 0 | G34: ='Other Inputs'!G223 -> 0
A37: =A34+1 -> 12 | B37: Total Cost of Service Production | E37: =E22+E32+E34 -> 343064223.2 | F37: =F22+F32 -> 67095449 | G37: =E37/F37 -> 5.113077389
A39: =A37+1 -> 13 | B39: Questar Gas Contract Gas 8/ | E39: ='Ut 1.2'!G24 -> 152933576 | F39: ='Ut 1.2'!E24 -> 53582497 | G39: =E39/F39 -> 2.854170383
A41: =A39+1 -> 14 | B41: Injection / Withdrawal Adjustment 9/ | E41: ='Ut 1.4 p2'!H23 -> 1197977.702
A43: =A41+1 -> 15 | B43: Transportation & Other Costs 10/ | E43: ='Ut 1.3 p1'!M29+'Ut 1.3 p1'!M44+'Ut 1.3 p1'!L55 -> 66370664 | F43: ='Ut 1.3 p1'!F35 -> 124057228.7 | G43: =E43/F43 -> 0.5350003759
A45: =A43+1 -> 16 | B45: Storage & Working Gas 11/ | E45: ='Ut 1.3 p2'!K56 -> 20953161.17
B47: Gas Management Costs | E47: ='Ut 1.3 p1'!M58 -> 0
A50: =A45+1 -> 17 | B50: Questar Gas - Related Gas Costs for Rate Purposes 12/ | E50: =E37+E39+E41+E43+E45+E47 -> 584519602.1 | F50: ='Ut 1.6 p1'!H20 -> 114511810 | G50: =E50/F50 -> 5.104448197
A53: 1/ | B53: Exhibit 1.1, Page 19, Line 1396, Column H.
A54: 2/ | B54: Exhibit 1.4, Page 3, Line 8.
A55: 3/ | B55: Exhibit 1.3, Page 1, Lines 20 + 22.
A56: 4/ | B56: Exhibit 1.1, Page 20, Line 1477, Column H.
A57: 5/ | B57: Exhibit 1.4, Page 3, Line 16.
A58: 6/ | B58: Exhibit 1.3, Page 1, Line 21.
A59: 7/ | B59: Exhibit 1.4, Page 3, Line 17.
A60: 8/ | B60: Exhibit 1.2, Line 6.
A61: 9/ | B61: Exhibit 1.4, Page 2, Line 6.
A62: 10/ | B62: Exhibit 1.3, Page 1, Lines 10 + 17 + 23.
A63: 11/ | B63: Exhibit 1.3, Page 2, Line 28.
A64: 12/ | B64: Exhibit 1.6, Page 1, Line 4.

Sheet Ut 1.4 p2
J1: ='Control Panel'!$F$32 -> Questar Gas Company
J2: ='Control Panel'!$F$33 -> Docket No. 15-057-04
J3: Exhibit 1.4
J4: Page 2 of 3
B8: ANNUALIZED UNIT COST OF STORAGE GAS
C11: (A) | E11: (B) | F11: (C) | H11: (D)
F12: Average
E13: Dth | F13: Rate | H13: Total Costs
B15: 1 | C15: Company Production 1/ | E15: ='Ut 1.4 p1'!F37 -> 67095449 | F15: =H15/E15 -> 5.113077389 | H15: ='Ut 1.4 p1'!E37 -> 343064223.2
B16: =B15+1 -> 2 | C16: Purchased Gas 2/ | E16: ='Ut 1.2'!E24 -> 53582497 | F16: =H16/E16 -> 2.854170383 | H16: ='Ut 1.2'!G24 -> 152933576
B17: =B16+1 -> 3 | C17: Average Price | E17: =SUM(E15:E16) -> 120677946 | F17: =(+H15+H16)/(+E15+E16) -> 4.110094807 | H17: =SUM(H15:H16) -> 495997799.2
C20: Storage 3/
B21: =B17+1 -> 4 | C21: Withdrawals | E21: ='Monthly Inputs'!S37 -> 16591686 | F21: ='Ut Storage'!L27 -> 4.560584604 | H21: =E21*F21 -> 75667787.72
B22: =B21+1 -> 5 | C22: Injections | E22: =-'Monthly Inputs'!S29 -> -16355305 | F22: ='Ut Storage'!K27 -> 4.553251072 | H22: =E22*F22 -> -74469810.02
B23: =B22+1 -> 6 | C23: Storage Adjustment | H23: =H21+H22 -> 1197977.702
B29: 1/ | C29: Exhibit 1.4, Page 1, Line 12.
B30: 2/ | C30: Exhibit 1.2, Line 6.
B31: 3/ | C31: Questar Gas Company planned volumes.

Sheet Ut 1.4 p3
K1: ='Control Panel'!$F$32 -> Questar Gas Company
K2: ='Control Panel'!$F$33 -> Docket No. 15-057-04
K3: Exhibit 1.4
K4: Page 3 of 3
D8: OTHER REVENUES 1/
C11: (A) | E11: (B) | F11: (C) | G11: (D)
C12: Account | G12: =Expenses!S8 -> 12 Months Ending
C13: Number | E13: Account Name | G13: ='Control Panel'!F7 -> 2016-05-31
C14: WEXPRO I
B15: 1 | D15: 483 | E15: Sales for Resale | H15: ='Other Inputs'!F191 -> 2702880
B17: =B15+1 -> 2 | D17: 490 | E17: Plant By-Product | H17: ='Other Inputs'!F192 -> 2976196
B19: =B17+1 -> 3 | D19: 492 | E19: Gasoline and Oil Sales | F19: ='Other Inputs'!F193 -> 535068
B20: =B19+1 -> 4 | D20: 758-1 | E20: Gasoline and Oil Cost | F20: ='Other Inputs'!F196 -> -80260
B21: =B20+1 -> 5 | E21: Net Gasoline and Oil Sales | H21: =F19+F20 -> 454808
B23: =B21+1 -> 6 | D23: 495-1 | E23: Overriding Royalty Revenue from Questar E & P | H23: ='Other Inputs'!F194 -> 12829163
B25: =B23+1 -> 7 | D25: 495-2 | E25: Oil Revenue Received from Wexpro | H25: ='Other Inputs'!F195 -> 0
B28: =B25+1 -> 8 | E28: Total Wexpro I | H28: =SUM(H15:H25) -> 18963047
C30: WEXPRO II
B31: =B28+1 -> 9 | D31: 483 | E31: Sales for Resale | H31: ='Other Inputs'!E212 -> 0
B33: =B31+1 -> 10 | D33: 490 | E33: Plant By-Product | H33: ='Other Inputs'!E213 -> 931501
B35: =B33+1 -> 11 | D35: 492 | E35: Gasoline and Oil Sales | F35: ='Other Inputs'!E214 -> 543701
B36: =B35+1 -> 12 | D36: 758-1 | E36: Gasoline and Oil Cost | F36: ='Other Inputs'!E217 -> -81555
B37: =B36+1 -> 13 | E37: Net Gasoline and Oil Sales | H37: =F35+F36 -> 462146
B39: =B37+1 -> 14 | D39: 495-1 | E39: Overriding Royalty Revenue from Questar E & P | H39: ='Other Inputs'!E215 -> 0
B41: =B39+1 -> 15 | D41: 495-2 | E41: Oil Revenue Received from Wexpro | H41: ='Other Inputs'!E216 -> 0
B44: =B41+1 -> 16 | E44: Total Wexpro II | H44: =SUM(H31:H41) -> 1393647
B46: 17 | E46: Sales of Cost-of-Service Gas | H46: ='Other Inputs'!E223 -> 0
B49: 18 | E49: Grand Total (Line 8 + Line 16 + Line 17) | H49: =H28+H44+H46 -> 20356694
B53: 1/ | D53: Forecasted 12-month test year.

Sheet Ut 1.5
H1: ='Control Panel'!$F$32 -> Questar Gas Company
H2: ='Control Panel'!$F$33 -> Docket No. 15-057-04
H3: Exhibit 1.5
B8: TEST-YEAR GAS COST ALLOCATION
B11: (A) | D11: (B) | E11: (C) | F11: (D) | G11: (E)
D12: Allocation
D13: Factor 1/ | E13: System | F13: Wyoming | G13: Utah
A15: 1 | B15: Questar Gas Production (Exhibit 1.1) | D15: 2 | E15: ='Ut 1.4 p1'!E15+'Ut 1.4 p1'!E25 -> 343430865 | F15: =CHOOSE($D15,F$51,F$54)*$E15 -> 12083515.91 | G15: =CHOOSE($D15,G$51,G$54)*$E15 -> 331347349.1
A16: =A15+1 -> 2 | B16: Other Revenue's Credit (Exhibit 1.4, p 3) | D16: 2 | E16: ='Ut 1.4 p1'!E16+'Ut 1.4 p1'!E26+'Ut 1.4 p1'!E34 -> -20356694 | F16: -716244.4058 | G16: -19640449.59
A17: =A16+1 -> 3 | B17: Gathering (Exhibit 1.3, p 1) | C17: - Demand | D17: 1 | E17: ='Ut 1.3 p1'!L49 -> 10350036 | F17: 311514.4911 | G17: =CHOOSE($D17,G$51,G$54)*$E17 -> 10038521.51
A18: =A17+1 -> 4 | B18: Gathering | C18: - Commodity | D18: 2 | E18: ='Ut 1.3 p1'!L54+'Ut 1.3 p1'!L50+'Ut 1.3 p1'!L53 -> 9640016.2 | F18: 339181.189 | G18: 9300835.011
A19: =A18+1 -> 5 | B19: Net Cost of Questar Gas Production | E19: =SUM(E15:E18) -> 343064223.2 | F19: =SUM(F15:F18) -> 12017967.19 | G19: =SUM(G15:G18) -> 331046256
A21: =A19+1 -> 6 | B21: Questar Gas Contract Gas (Exhibit 1.2) | D21: 2 | E21: ='Ut 1.4 p1'!E39 -> 152933576 | F21: =CHOOSE($D21,F$51,F$54)*$E21 -> 5380923.753 | G21: =CHOOSE($D21,G$51,G$54)*$E21 -> 147552652.2
A24: =A21+1 -> 7 | B24: Injection / Withdrawal Adjustment (Exhibit 1.4, p 1) | D24: 2 | E24: ='Ut 1.4 p1'!E41 -> 1197977.702 | F24: =CHOOSE($D24,F$51,F$54)*$E24 -> 42150.49984 | G24: =CHOOSE($D24,G$51,G$54)*$E24 -> 1155827.202
A27: =A24+1 -> 8 | B27: Transportation (Exhibit 1.3, p 1) | C27: - Demand | D27: 1 | E27: ='Ut 1.3 p1'!M29 -> 62426926 | F27: =CHOOSE($D27,F$51,F$54)*$E27 -> 1878920.236 | G27: =CHOOSE($D27,G$51,G$54)*$E27 -> 60548005.76
A28: =A27+1 -> 9 | B28: Transportation | C28: - Commodity | D28: 2 | E28: ='Ut 1.3 p1'!M44 -> 549970 | F28: =CHOOSE($D28,F$51,F$54)*$E28 -> 19350.53579 | G28: =CHOOSE($D28,G$51,G$54)*$E28 -> 530619.4642
A31: =A28+1 -> 10 | B31: Storage (Exhibit 1.3, p 2) | C31: - Demand | D31: 1 | E31: ='Ut 1.3 p2'!J20 -> 16500058 | F31: =CHOOSE($D31,F$51,F$54)*$E31 -> 496617.323 | G31: =CHOOSE($D31,G$51,G$54)*$E31 -> 16003440.68
A32: =A31+1 -> 11 | B32: Storage | C32: - Commodity | D32: 2 | E32: ='Ut 1.3 p2'!J29 -> 556250 | F32: =CHOOSE($D32,F$51,F$54)*$E32 -> 19571.49578 | G32: =CHOOSE($D32,G$51,G$54)*$E32 -> 536678.5042
A35: =A32+1 -> 12 | B35: Other Transportation - Commodity (Exhibit 1.3, p 1) | D35: 2 | E35: ='Ut 1.3 p1'!L55 -> 3393768 | F35: =CHOOSE($D35,F$51,F$54)*$E35 -> 119408.748 | G35: =CHOOSE($D35,G$51,G$54)*$E35 -> 3274359.252
A38: =A35+1 -> 13 | B38: Working Gas Costs (Exhibit 1.3, p 2) | D38: 2 | E38: ='Ut 1.3 p2'!K53 -> 3896853.166 | F38: =CHOOSE($D38,F$51,F$54)*$E38 -> 137109.6545 | G38: =CHOOSE($D38,G$51,G$54)*$E38 -> 3759743.512
A41: =A38+1 -> 14 | B41: Totals | E41: =SUM(E19:E38) -> 584519602.1 | F41: =SUM(F19:F38) -> 20112019.43 | G41: =SUM(G19:G38) -> 564407582.6
A48: 1/ | B48: Allocation Factors | E48: Total | F48: Wyoming | G48: Utah
B50: #1 Peak Day Demand | D50: Dth- | E50: =SUM(F50:G50) -> 1302881 | F50: ='Other Inputs'!$E$130 -> 39214 | G50: ='Other Inputs'!$E$129 -> 1263667
D51: Percent- | E51: =F51+G51 -> 1 | F51: =F50/E50 -> 0.03009791378 | G51: =G50/E50 -> 0.9699020862
B53: #2 Commodity Sales - All | D53: Dth- | E53: =F53+G53 -> 114511810 | F53: ='Ut 1.6 p1'!H19 -> 4029065 | G53: ='Ut 1.6 p1'!H18 -> 110482745
D54: Percent- | E54: =F54+G54 -> 1 | F54: =F53/E53 -> 0.03518471152 | G54: =G53/E53 -> 0.9648152885

Sheet Ut 1.6 p1
J1: ='Control Panel'!$F$32 -> Questar Gas Company
J2: ='Control Panel'!$F$33 -> Docket No. 15-057-04
J3: Exhibit 1.6
J4: Page 1 of 3
B8: TEST-YEAR GAS COST CHANGE
B11: (A) | C11: (B) | D11: (C) | F11: (D) | H11: (E) | J11: (F)
F12: Average Rate | H12: x Dth | I12: = | J12: Total
A13: 1 | B13: Utah Allocation of Questar Gas-Related Gas Costs (Exhibit 1.5) 1/ | J13: ='Ut 1.5'!G41 -> 564407582.6
H15: Total
B16: Test-Year Sales: | D16: Firm | F16: + Interruptible | H16: = Sales Dth
A18: =A13+1 -> 2 | B18: Utah | D18: =Calculations!P13 -> 107834724 | F18: =Calculations!P17 -> 2648021 | H18: =D18+F18 -> 110482745
A19: =A18+1 -> 3 | B19: Wyoming | D19: =Calculations!P32 -> 3857734 | F19: =Calculations!P36 -> 171331 | H19: =D19+F19 -> 4029065
A20: =A19+1 -> 4 | B20: Total Dth | H20: =SUM(H18:H19) -> 114511810
A22: =A20+1 -> 5 | B22: Supplier Non-Gas Costs 2/ | J22: =(-'Ut 1.6 p2'!F14) -> -99517719.23
A25: =A22+1 -> 6 | B25: Commodity Portion of Test-Year Gas Cost (Lines 1 + 5) | J25: =J13+J22 -> 464889863.4
F28: Current Case | H28: Prior Case
B29: FIRM CUSTOMER RATES | F29: ='Control Panel'!F5 -> 15-057-04 | H29: ='Control Panel'!F9 -> 14-057-22 | J29: Difference
A31: =A25+1 -> 7 | B31: Gas Cost (line 6/ Firm Sales, line 2) | F31: =ROUND((J25)/H18,5) -> 4.20781 | H31: ='Other Inputs'!F105 -> 4.63135 | J31: =F31-H31 -> -0.42354
A32: =A31+1 -> 8 | B32: 191 Account Amortization (Commodity Portion) 3/ | F32: =D49/H18 -> 0.06293716725 | H32: ='Other Inputs'!F106 -> 0.41533 | J32: =F32-H32 -> -0.3523928328
A33: =A32+1 -> 9 | B33: Total Sales Unit Commodity Cost (Lines 7 + 8) | F33: =F31+F32 -> 4.270747167 | H33: =H31+H32 -> 5.04668 | J33: =J31+J32 -> -0.7759328328
A43: 1/ | B43: Exhibit 1.5, Line 14, Column E.
A45: 2/ | B45: Test Year Estimate of Transportation, Gathering, and Storage billings.
A47: 3/ | B47: 191 Account (March 2015) actual | D47: ='Other Inputs'!E123 -> 2311585
B48: Less: Supplier Non-Gas balance actual | D48: ='Other Inputs'!E124 -> -4641886
B49: 191 Account Commodity Portion | D49: =D47-D48 -> 6953471 | F49: =H18 -> 110482745 | H49: =D49/F49 -> 0.06293716725

Sheet Ut 1.6 p2
E1: Questar Gas Company
G2: ='Control Panel'!$F$33 -> Docket No. 15-057-04
G3: Exhibit 1.6
G4: Page 2 of 3
C8: TEST-YEAR SUPPLIER NON-GAS COST CHANGE
C11: (A) | D11: (B) | E11: (C) | F11: (D)
D12: Dth | E12: Average Rate | F12: Total
B14: 1 | C14: Supplier Non-Gas (SNG) Costs 1/ | F14: ='Ut 1.5'!G27+'Ut 1.5'!G31+'Ut 1.5'!G17+(+'Ut 1.3 p1'!L35+'Ut 1.3 p1'!L42+'Ut 1.3 p1'!L54+'Ut 1.3 p1'!L55+'Ut 1.3 p1'!L50+'Ut 1.3 p1'!L53)*'Ut 1.5'!G54 -> 99517719.23
B15: =B14+1 -> 2 | C15: 191 Account Balance for SNG Costs 2/ | F15: =E46 -> 15358114
B16: =1+B15 -> 3 | C16: Total | F16: =SUM(F14:F15) -> 114875833.2
B19: =B16+1 -> 4 | C19: SNG Costs Recovered at Current Rates 3/ | F19: ='Other Inputs'!E229-(D29*('Other Inputs'!G81-'Other Inputs'!F230)) -> 90832446.09
B22: =1+B19 -> 5 | C22: SNG Costs Adjustment to Current Rates (Line 3 - Line 4) | F22: =F16-F19 -> 24043387.14
B28: 6a | C28: Adjustment for SNG contributions from:
B29: 6b | C29: IS SNG current rate | D29: ='RevRun Fcst'!T102+'RevRun Fcst'!T93 -> 2648021 | E29: ='Ut 1.6 p3'!E24 -> 0.1788 | F29: =D29*E29 -> 473466.1548
B30: 6c | C30: IS SNG new rate | D30: ='RevRun Fcst'!T102+'RevRun Fcst'!T93 -> 2648021 | E30: ='Ut 1.6 p3'!I24 -> 0.1788 | F30: =D30*E30 -> 473466.1548
B35: =2+B22 -> 7 | C35: Percent Change to Current Rates | F35: =(((+F16-F30)-(F19-F29))/(F19-F29))*100 -> 26.60874122 | G35: %
C36: ((ln 3-ln 6c)-(ln 4-ln 6b))/(ln 4-ln 6b)
B42: 1/ | C42: Exhibit 1.6, Page 1, Line 5.
E43: SNG Balance
B44: 2/ | C44: March 2015 SNG Balance | E44: ='Other Inputs'!E124 -> -4641886
C45: Expected March 2015 SNG Balance | E45: -20000000
C46: SNG Amortization | E46: =E44-E45 -> 15358114
B48: 3/ | C48: ="Output of Revrun.Exe computer program dated "&'RevRun Fcst'!D4 -> Output of Revrun.Exe computer program dated 3/23/2015

Sheet Ut 1.6 p3
I1: ='Control Panel'!$F$32 -> Questar Gas Company
I2: ='Control Panel'!$F$33 -> Docket No. 15-057-04
I3: Exhibit 1.6
I4: Page 3 of 3
F8: TEST YEAR CHANGE IN SUPPLIER NON-GAS COSTS
F9: BY RATE CLASS
C12: (A) | D12: (B) | E12: (C) | F12: (D) | G12: (E) | H12: (F) | I12: (G)
G13: Rate per Dth
C14: Rate Class | D14: Season | E14: Current total 1/ | F14: Curr. Base 1/ | G14: Calc. Base 2/ | H14: Amortization 3/ | I14: Total 4/ | K14: CHECK !! | M14: Current Amort.
B16: 1 | C16: GS | D16: Winter | E16: ='Other Inputs'!G73 -> 0.99133 | F16: ='Other Inputs'!E73 -> 1.05851 | G16: =ROUND(E16*('Ut 1.6 p2'!$F$14-'Ut 1.6 p2'!$F$30)/('Ut 1.6 p2'!$F$19-'Ut 1.6 p2'!$F$29),5) -> 1.08662 | H16: =I16-G16 -> 0.16849 | I16: =ROUND(E16*ROUND(1+'Ut 1.6 p2'!$F$35/100,7),5)+M16 -> 1.25511 | K16: =ROUND(G16*('Ut 1.6 p2'!$F$15)/('Ut 1.6 p2'!$F$14-'Ut 1.6 p2'!$F$30),5)-H16 -> 0 | M16: 0
B17: =B16+1 -> 2 | D17: Summer | E17: ='Other Inputs'!G74 -> 0.46544 | F17: ='Other Inputs'!E74 -> 0.49698 | G17: =ROUND(E17*('Ut 1.6 p2'!$F$14-'Ut 1.6 p2'!$F$30)/('Ut 1.6 p2'!$F$19-'Ut 1.6 p2'!$F$29),5) -> 0.51018 | H17: =I17-G17 -> 0.07911 | I17: =ROUND(E17*ROUND(1+'Ut 1.6 p2'!$F$35/100,7),5)+M17 -> 0.58929 | K17: =ROUND(G17*('Ut 1.6 p2'!$F$15)/('Ut 1.6 p2'!$F$14-'Ut 1.6 p2'!$F$30),5)-H17 -> 0 | M17: 0
B19: =B17+1 -> 3 | C19: FS | D19: Winter | E19: ='Other Inputs'!G76 -> 0.96551 | F19: ='Other Inputs'!E76 -> 1.03094 | G19: =ROUND(E19*('Ut 1.6 p2'!$F$14-'Ut 1.6 p2'!$F$30)/('Ut 1.6 p2'!$F$19-'Ut 1.6 p2'!$F$29),5) -> 1.05831 | H19: =I19-G19 -> 0.16411 | I19: =ROUND(E19*ROUND(1+'Ut 1.6 p2'!$F$35/100,7),5)+M19 -> 1.22242 | K19: =ROUND(G19*('Ut 1.6 p2'!$F$15)/('Ut 1.6 p2'!$F$14-'Ut 1.6 p2'!$F$30),5)-H19 -> -1e-05 | M19: 0
B20: =B19+1 -> 4 | D20: Summer | E20: ='Other Inputs'!G77 -> 0.46544 | F20: ='Other Inputs'!E77 -> 0.49697 | G20: =ROUND(E20*('Ut 1.6 p2'!$F$14-'Ut 1.6 p2'!$F$30)/('Ut 1.6 p2'!$F$19-'Ut 1.6 p2'!$F$29),5) -> 0.51018 | H20: =I20-G20 -> 0.07911 | I20: =ROUND(E20*ROUND(1+'Ut 1.6 p2'!$F$35/100,7),5)+M20 -> 0.58929 | K20: =ROUND(G20*('Ut 1.6 p2'!$F$15)/('Ut 1.6 p2'!$F$14-'Ut 1.6 p2'!$F$30),5)-H20 -> 0 | M20: 0
B22: =B20+1 -> 5 | C22: NGV | E22: ='Other Inputs'!G79 -> 0.71537 | F22: ='Other Inputs'!E79 -> 0.76385 | G22: =ROUND(E22*('Ut 1.6 p2'!$F$14-'Ut 1.6 p2'!$F$30)/('Ut 1.6 p2'!$F$19-'Ut 1.6 p2'!$F$29),5) -> 0.78413 | H22: =I22-G22 -> 0.12159 | I22: =ROUND(E22*ROUND(1+'Ut 1.6 p2'!$F$35/100,7),5)+M22 -> 0.90572 | K22: =ROUND(G22*('Ut 1.6 p2'!$F$15)/('Ut 1.6 p2'!$F$14-'Ut 1.6 p2'!$F$30),5)-H22 -> 0 | M22: 0
B24: =B22+1 -> 6 | C24: IS 5/ | E24: ='Other Inputs'!F230 -> 0.1788 | F24: ='Other Inputs'!F230 -> 0.1788 | G24: ='Other Inputs'!$F$48 -> 0.1788 | H24: =I24-G24 -> 0 | I24: ='Other Inputs'!$F$48 -> 0.1788
B31: 1/ | C31: Current Questar Gas Tariff (excluding bad debt surcharge).
B33: 2/ | C33: Exhibit 1.6 page 2 (line 1 - line 6c)/(line 4 - line 6b)*Exhibit 1.6 page 3 column C. (N.A. to line 6)
B35: 3/ | C35: Column G - Column E
B37: 4/ | C37: (Current Questar Gas rates) x (1+Exhibit 1.6, Page 2, Line 7, % change).
C38: ="(except ln. 6, which is calculated by adding QPC T-2 and ACA rates, then adjusting for distr. loss of "&TEXT('Other Inputs'!E283,"0.000%") -> (except ln. 6, which is calculated by adding QPC T-2 and ACA rates, then adjusting for distr. loss of 0.494%
C39: ="= ("&TEXT('Other Inputs'!$F$42,"$0.00000")&" + "&TEXT('Other Inputs'!$F$44,"$0.00000")&") / ( 1 - "&TEXT('Other Inputs'!$E$283,"0.00000")&" ) = "&TEXT(('Other Inputs'!F42+'Other Inputs'!F44)/(1-('Other Inputs'!$E$283)),("$0.00000")) -> = ($0.17652 + $0.00140) / ( 1 - 0.00494 ) = $0.17880
B41: 5/ | C41: ="IS Tariff rate has an adjustment for bad debt of "&TEXT('Other Inputs'!$E$294,"0.00%")&" = "&TEXT($I$24,"$0.00000")&" / ( 1 - "&TEXT('Other Inputs'!$E$294,"0.00000")&" ) = "&TEXT($I$24/(1-('Other Inputs'!$E$294)),("$0.00000")) -> IS Tariff rate has an adjustment for bad debt of 0.25% = $0.17880 / ( 1 - 0.00250 ) = $0.17925

Sheet Ut 1.7
L1: ='Control Panel'!$F$32 -> Questar Gas Company
L2: ='Control Panel'!$F$33 -> Docket No. 15-057-04
L3: Exhibit 1.7
C7: EFFECT ON GS TYPICAL CUSTOMER
C8: 80 DTHS - ANNUAL CONSUMPTION
C11: (A) | D11: (B) | E11: (C) | F11: (D) | H11: (E) | J11: (F)
F12: Billed at Current | H12: Billed at
C13: Rate | E13: Usage | F13: Rates Effective | H13: Proposed Rates
C14: Schedule | D14: Month | E14: In Dth | F14: ='Other Inputs'!J86 -> 2015-02-01 | H14: ='Control Panel'!F5 -> 15-057-04 | J14: Change
B16: 1 | C16: GS | D16: Jan | E16: ='Monthly Inputs'!G116 -> 14.9 | F16: =ROUND((+E16*'Other Inputs'!$G$88)+'Other Inputs'!$G$90,2) -> 134.25 | H16: =ROUND((+E16*'Ut 1.8'!$F$10)+'Ut 1.8'!$C$12,2) -> 126.62 | J16: =H16-F16 -> -7.63
B17: =B16+1 -> 2 | D17: Feb | E17: ='Monthly Inputs'!G117 -> 12.5 | F17: =ROUND((+E17*'Other Inputs'!$G$88)+'Other Inputs'!$G$90,2) -> 113.71 | H17: =ROUND((+E17*'Ut 1.8'!$F$10)+'Ut 1.8'!$C$12,2) -> 107.31 | J17: -6.4
B18: =B17+1 -> 3 | D18: Mar | E18: ='Monthly Inputs'!G118 -> 10.1 | F18: =ROUND((+E18*'Other Inputs'!$G$88)+'Other Inputs'!$G$90,2) -> 93.18 | H18: =ROUND((+E18*'Ut 1.8'!$F$10)+'Ut 1.8'!$C$12,2) -> 88 | J18: -5.18
B19: 4 | D19: Apr | E19: ='Monthly Inputs'!G119 -> 8.3 | F19: =ROUND((+E19*'Other Inputs'!$G$86)+'Other Inputs'!$G$90,2) -> 68.44 | H19: =ROUND((+E19*'Ut 1.8'!$C$10)+'Ut 1.8'!$C$12,2) -> 63.03 | J19: -5.41
B20: 5 | D20: May | E20: ='Monthly Inputs'!G120 -> 4.4 | F20: =ROUND((+E20*'Other Inputs'!$G$86)+'Other Inputs'!$G$90,2) -> 39.45 | H20: =ROUND((+E20*'Ut 1.8'!$C$10)+'Ut 1.8'!$C$12,2) -> 36.59 | J20: -2.86
B21: 6 | D21: Jun | E21: ='Monthly Inputs'!G121 -> 3.1 | F21: =ROUND((+E21*'Other Inputs'!$G$86)+'Other Inputs'!$G$90,2) -> 29.79 | H21: =ROUND((+E21*'Ut 1.8'!$C$10)+'Ut 1.8'!$C$12,2) -> 27.77 | J21: -2.02
B22: 7 | D22: Jul | E22: ='Monthly Inputs'!G122 -> 2 | F22: =ROUND((+E22*'Other Inputs'!$G$86)+'Other Inputs'!$G$90,2) -> 21.62 | H22: =ROUND((+E22*'Ut 1.8'!$C$10)+'Ut 1.8'!$C$12,2) -> 20.31 | J22: -1.31
B23: 8 | D23: Aug | E23: ='Monthly Inputs'!G123 -> 1.8 | F23: =ROUND((+E23*'Other Inputs'!$G$86)+'Other Inputs'!$G$90,2) -> 20.13 | H23: =ROUND((+E23*'Ut 1.8'!$C$10)+'Ut 1.8'!$C$12,2) -> 18.96 | J23: -1.17
B24: 9 | D24: Sep | E24: ='Monthly Inputs'!G124 -> 2 | F24: =ROUND((+E24*'Other Inputs'!$G$86)+'Other Inputs'!$G$90,2) -> 21.62 | H24: =ROUND((+E24*'Ut 1.8'!$C$10)+'Ut 1.8'!$C$12,2) -> 20.31 | J24: -1.31
B25: 10 | D25: Oct | E25: ='Monthly Inputs'!G125 -> 3.1 | F25: =ROUND((+E25*'Other Inputs'!$G$86)+'Other Inputs'!$G$90,2) -> 29.79 | H25: =ROUND((+E25*'Ut 1.8'!$C$10)+'Ut 1.8'!$C$12,2) -> 27.77 | J25: -2.02
B26: 11 | D26: Nov | E26: ='Monthly Inputs'!G126 -> 6.3 | F26: =ROUND((+E26*'Other Inputs'!$G$88)+'Other Inputs'!$G$90,2) -> 60.66 | H26: =ROUND((+E26*'Ut 1.8'!$F$10)+'Ut 1.8'!$C$12,2) -> 57.43 | J26: -3.23
B27: 12 | D27: Dec | E27: ='Monthly Inputs'!G127 -> 11.5 | F27: =ROUND((+E27*'Other Inputs'!$G$88)+'Other Inputs'!$G$90,2) -> 105.16 | H27: =ROUND((+E27*'Ut 1.8'!$F$10)+'Ut 1.8'!$C$12,2) -> 99.27 | J27: -5.89
B30: =B27+1 -> 13 | D30: Total | E30: =SUM(E16:E27) -> 80 | F30: =SUM(F16:F27) -> 737.8 | H30: =SUM(H16:H27) -> 693.37 | J30: =H30-F30 -> -44.43
H32: Percent Change: | J32: =ROUND(J30/F30,4)*100 -> -6.02 | K32: %

Sheet Ut 1.7 Tot (hidden)
L1: ='Control Panel'!$F$32 -> Questar Gas Company
L2: Docket Nos. 08-057-15, 08-057-16 & 08-057-17
L3: Hearing Exhibit 2
A5: NOT USED
C7: EFFECT ON GS-1 TYPICAL CUSTOMER
B8: OF PROPOSED COMMODITY AND SNG RATES AND CET AND DSM AMORTIZATIONS
C9: 80 DTHS - ANNUAL CONSUMPTION
C12: (A) | D12: (B) | E12: (C) | F12: (D) | H12: (E) | J12: (F)
F13: Billed at Current | H13: Billed at
C14: Rate | E14: Usage | F14: Rates Effective | H14: Proposed
C15: Schedule | D15: Month | E15: In Dth | F15: ='Other Inputs'!J86 -> 2015-02-01 | H15: Rates | J15: Change
B17: 1 | C17: GS | D17: Jan | E17: ='Monthly Inputs'!G116 -> 14.9 | F17: =ROUND((+E17*'Other Inputs'!$G$88)+'Other Inputs'!$G$90,2) -> 134.25 | H17: ='CET & DSM'!D107 -> 147.31 | J17: =H17-F17 -> 13.06
B18: =B17+1 -> 2 | D18: Feb | E18: ='Monthly Inputs'!G117 -> 12.5 | F18: =ROUND((+E18*'Other Inputs'!$G$88)+'Other Inputs'!$G$90,2) -> 113.71 | H18: ='CET & DSM'!D108 -> 124.67 | J18: 10.96
B19: 3 | D19: Mar | E19: ='Monthly Inputs'!G118 -> 10.1 | F19: =ROUND((+E19*'Other Inputs'!$G$88)+'Other Inputs'!$G$90,2) -> 93.18 | H19: ='CET & DSM'!D109 -> 102.03 | J19: 8.85
B20: 4 | D20: Apr | E20: ='Monthly Inputs'!G119 -> 8.3 | F20: =ROUND((+E20*'Other Inputs'!$G$86)+'Other Inputs'!$G$90,2) -> 68.44 | H20: ='CET & DSM'!D110 -> 69.57 | J20: 1.13
B21: 5 | D21: May | E21: ='Monthly Inputs'!G120 -> 4.4 | F21: =ROUND((+E21*'Other Inputs'!$G$86)+'Other Inputs'!$G$90,2) -> 39.45 | H21: ='CET & DSM'!D111 -> 40.05 | J21: 0.6
B22: 6 | D22: Jun | E22: ='Monthly Inputs'!G121 -> 3.1 | F22: =ROUND((+E22*'Other Inputs'!$G$86)+'Other Inputs'!$G$90,2) -> 29.79 | H22: ='CET & DSM'!D112 -> 30.21 | J22: 0.42
B23: 7 | D23: Jul | E23: ='Monthly Inputs'!G122 -> 2 | F23: =ROUND((+E23*'Other Inputs'!$G$86)+'Other Inputs'!$G$90,2) -> 21.62 | H23: ='CET & DSM'!D113 -> 21.89 | J23: 0.27
B24: 8 | D24: Aug | E24: ='Monthly Inputs'!G123 -> 1.8 | F24: =ROUND((+E24*'Other Inputs'!$G$86)+'Other Inputs'!$G$90,2) -> 20.13 | H24: ='CET & DSM'!D114 -> 20.37 | J24: 0.24
B25: 9 | D25: Sep | E25: ='Monthly Inputs'!G124 -> 2 | F25: =ROUND((+E25*'Other Inputs'!$G$86)+'Other Inputs'!$G$90,2) -> 21.62 | H25: ='CET & DSM'!D115 -> 21.89 | J25: 0.27
B26: 10 | D26: Oct | E26: ='Monthly Inputs'!G125 -> 3.1 | F26: =ROUND((+E26*'Other Inputs'!$G$86)+'Other Inputs'!$G$90,2) -> 29.79 | H26: ='CET & DSM'!D116 -> 30.21 | J26: 0.42
B27: 11 | D27: Nov | E27: ='Monthly Inputs'!G126 -> 6.3 | F27: =ROUND((+E27*'Other Inputs'!$G$88)+'Other Inputs'!$G$90,2) -> 60.66 | H27: ='CET & DSM'!D117 -> 66.18 | J27: 5.52
B28: 12 | D28: Dec | E28: ='Monthly Inputs'!G127 -> 11.5 | F28: =ROUND((+E28*'Other Inputs'!$G$88)+'Other Inputs'!$G$90,2) -> 105.16 | H28: ='CET & DSM'!D118 -> 115.23 | J28: 10.07
B31: =B28+1 -> 13 | D31: Total | E31: =SUM(E17:E28) -> 80 | F31: =SUM(F17:F28) -> 737.8 | H31: =SUM(H17:H28) -> 789.61 | J31: =H31-F31 -> 51.81
H33: Percent Change: | J33: =ROUND(J31/F31,4)*100 -> 7.02 | K33: %

Sheet Ut 1.8 p1
F1: ='Control Panel'!F36 -> Questar Gas Company
F2: ='Control Panel'!F33 -> Docket No. 15-057-04
F3: Exhibit 1.8
F4: Page 1 of 17
A15: QUESTAR GAS COMPANY
A16: 333 South State Street
A17: P.O. Box 45433
A18: Salt Lake City, Utah 84145-0433
A29: LEGISLATIVE/PROPOSED RATE SCHEDULES
A31: P.S.C. Utah No. 400
A32: Affecting All Firm Sales Rate Schedules
A33: and Classes of Service In
A34: Questar Gas Company's
A35: Utah Service Area
A39: Date Issued: April 30, 2015
A40: To Become Effective June 1, 2015

Sheet LEG - PR
A2: LEGISLATIVE TARIFF
A3: SHEETS
A6: PROPOSED TARIFF
A7: SHEETS

Sheet Ut 1.8
A1: SUMMARY OF PROPOSED RATES
A3: UTAH RATE CLASSES | C3: Rates per Dth Used Each Month
C4: All Season Rates or Summer Rates: Apr. 1 - Oct. 31 | F4: Winter Rates: Nov. 1 - Mar. 31
A5: UT GS | C5: First 45 Dth | D5: All Over 45 Dth | F5: First 45 Dth | G5: All Over 45 Dth
B6: Distribution Non-Gas Cost | C6: 1.92071 | D6: 0.9601 | F6: 2.51897 | G6: 1.55837
B7: Supplier Non-Gas Cost | C7: ='Ut 1.6 p3'!I17 -> 0.58929 | D7: =C7 -> 0.58929 | F7: ='Ut 1.6 p3'!I16 -> 1.25511 | G7: =F7 -> 1.25511
B8: Commodity Cost | C8: =('Ut 1.6 p1'!$F$33) -> 4.270747167 | D8: =C8 -> 4.270747167 | F8: =D8 -> 4.270747167 | G8: =F8 -> 4.270747167
B10: Total Rate | C10: =SUM(C6:C9) -> 6.780747167 | D10: =SUM(D6:D9) -> 5.820137167 | F10: =SUM(F6:F9) -> 8.044827167 | G10: =SUM(G6:G9) -> 7.084227167
B12: BSF Category 1 | C12: 6.75
B13: BSF Category 2 | C13: 18.25
B14: BSF Category 3 | C14: 63.5
B15: BSF Category 4 | C15: 420.25
A18: UT FS | C18: First 200 Dth | D18: Next 1,800 Dth | E18: All Over 2,000 Dth | F18: First 200 Dth | G18: Next 1,800 Dth | H18: All Over 2,000 Dth
B19: Distribution Non-Gas Cost | C19: 0.84366 | D19: 0.4579 | E19: 0.05184 | F19: 1.27647 | G19: 0.89071 | H19: 0.48465
B20: Supplier Non-Gas Cost | C20: ='Ut 1.6 p3'!$I$20 -> 0.58929 | D20: =C20 -> 0.58929 | E20: =D20 -> 0.58929 | F20: ='Ut 1.6 p3'!$I$19 -> 1.22242 | G20: =F20 -> 1.22242 | H20: =G20 -> 1.22242
B21: Commodity Cost | C21: =('Ut 1.6 p1'!$F$33) -> 4.270747167 | D21: =C21 -> 4.270747167 | E21: =D21 -> 4.270747167 | F21: =E21 -> 4.270747167 | G21: =F21 -> 4.270747167 | H21: =G21 -> 4.270747167
B23: Total Rate | C23: =SUM(C19:C22) -> 5.703697167 | D23: =SUM(D19:D22) -> 5.317937167 | E23: 4.911877167 | F23: 6.769637167 | G23: 6.383877167 | H23: 5.977817167
B25: Minimum Monthly DNG Charge: | C25: =ROUND(C19*175,0) -> 148 | F25: =ROUND(F19*175,0) -> 223
B27: BSF Category 1 | C27: =C12 -> 6.75
B28: BSF Category 2 | C28: =C13 -> 18.25
B29: BSF Category 3 | C29: =C14 -> 63.5
B30: BSF Category 4 | C30: =C15 -> 420.25
A33: UT Future Rate Class
C34: First 10,000 Dth | D34: All Over 10,000 Dth
B35: Distribution Non-Gas Cost
B36: Supplier Non-Gas Cost
B37: Commodity Cost
B39: Total Rate | C39: =SUM(C35:C38) -> 0 | D39: =SUM(D35:D38) -> 0
B41: Minimum Yearly Distribution Non-Gas Charge | D41: =ROUND(((10000*C35))*12,-2) -> 0
B44: BSF Category 1 | C44: =C12 -> 6.75
B45: BSF Category 2 | C45: =C13 -> 18.25
B46: BSF Category 3 | C46: =C14 -> 63.5
B47: BSF Category 4 | C47: =C15 -> 420.25
A51: UT NGV
B52: Distribution Non-Gas Cost | C52: 5.52588
B53: Supplier Non-Gas Cost | C53: ='Ut 1.6 p3'!I22 -> 0.90572
B54: Commodity Cost | C54: ='Ut 1.6 p1'!F33 -> 4.270747167
B56: Total Rate | C56: =SUM(C52:C55) -> 10.70234717
A59: UT IS | C59: First 2,000 Dth | D59: Next 18,000 Dth | E59: All Over 20,000
B60: Distribution Non-Gas Cost | C60: 0.43867 | D60: 0.07303 | E60: 0.04628
B61: Supplier Non-Gas Cost | C61: ='Ut 1.6 p3'!$I$24/(1-'Other Inputs'!$E$294) -> 0.1792481203 | D61: =C61 -> 0.1792481203 | E61: =D61 -> 0.1792481203
B62: Commodity Cost | C62: =('Ut 1.6 p1'!$F$33) -> 4.270747167 | D62: =('Ut 1.6 p1'!$F$33) -> 4.270747167 | E62: =('Ut 1.6 p1'!$F$33) -> 4.270747167
B64: Total Rate | C64: =SUM(C60:C62) -> 4.888665288 | D64: =SUM(D60:D62) -> 4.523025288 | E64: 4.496275288
B66: BSF Category 1 | C66: =C12 -> 6.75
B67: BSF Category 2 | C67: =C13 -> 18.25
B68: BSF Category 3 | C68: 63.5
B69: BSF Category 4 | C69: 420.25

Sheet Ut 1.9
D1: ='Control Panel'!$F$32 -> Questar Gas Company
D2: ='Control Panel'!$F$33 -> Docket No. 15-057-04
D3: Exhibit 1.9
D4: Page 1 of 2
D6: ='Control Panel'!$F$32 -> Questar Gas Company
D7: ='Control Panel'!$F$33 -> Docket No. 15-057-04
D8: Exhibit 1.9
D9: Page 2 of 2

Sheet Ut 1.10
P17: Exhibit 1.10 | Q17: =CONCATENATE("Docket No. ",'Control Panel'!F5) -> Docket No. 15-057-04 | R17: Questar Gas Company

Sheet Ut 1.11
F1: ='Control Panel'!F36 -> Questar Gas Company
F2: ='Control Panel'!F33 -> Docket No. 15-057-04
F3: Exhibit 1.11
F4: Page 1 of 7
A17: QUESTAR GAS COMPANY
A18: 333 South State Street
A19: P.O. Box 45433
A20: Salt Lake City, Utah 84145-0433
A31: LEGISLATIVE/PROPOSED RATE SCHEDULES
A32: P.S.C. Utah Tariff

Sheet Ut Storage
A1: Storage Injection / Withdrawal adjustment
C3: (A) | D3: (B) | E3: (C) | F3: (D) | G3: (E) | H3: (F) | I3: (G) | K3: (H) | L3: (I) | M3: (J)
G4: Injections | I4: (J) / (C)
E5: Storage | G5: ------------------------------------------------------------- | I5: Storage | M5: Storage
C6: Injection Dth | D6: Withdrawal Dth | E6: Inventory Dth | F6: % that is | G6: Co. Prod. | H6: Purchased | I6: Inventory | M6: Inventory
A7: Line | B7: Month | C7: Per IRPs | D7: Per IRPs | E7: Balance | F7: Co. Prod. (1) | G7: $/Dth (2) | H7: $/Dth (3) | I7: Average $/Dth | K7: Injection (4) | L7: Withdrawal (5) | M7: Balance
B8: Mar15 | E8: =-1*'Other Inputs'!D234 -> 2053992 | I8: =M8/E8 -> 4.599403849 | M8: ='Other Inputs'!E234 -> 9447138.71
B9: ='Monthly Inputs'!E3 -> Apr15 | C9: ='Monthly Inputs'!E29 -> 0 | D9: =-'Monthly Inputs'!E37 -> 0 | E9: =E8+C9+D9 -> 2053992 | F9: =F21 -> 0.5667640657 | G9: ='Other Inputs'!F102 -> 5.08011 | H9: ='Monthly Inputs'!E79 -> 2.33 | I9: =M9/E9 -> 4.599403849 | K9: =(+F9*C9*G9)+((1-F9)*C9*H9) -> 0 | L9: =D9*I8 -> 0 | M9: =M8+L9+K9 -> 9447138.71
B10: ='Monthly Inputs'!F3 -> May15 | C10: ='Monthly Inputs'!F29 -> 780215.0852 | D10: =-'Monthly Inputs'!F37 -> -185530 | E10: =E9+C10+D10 -> 2648677.085 | F10: =F22 -> 0.9499300737 | G10: =G9 -> 5.08011 | H10: ='Monthly Inputs'!F79 -> 2.41 | I10: =M10/E10 -> 4.701622995 | K10: =(+F10*C10*G10)+((1-F10)*C10*H10) -> 3859269.777 | L10: =D10*I9 -> -853327.396 | M10: =M9+L10+K10 -> 12453081.09
A11: 1. | B11: ='Monthly Inputs'!G3 -> Jun15 | C11: ='Monthly Inputs'!G29 -> 2298952 | D11: =-'Monthly Inputs'!G37 -> -103510 | E11: =E10+C11+D11 -> 4844119.085 | F11: =Calculations!D177 -> 0.9757867402 | G11: ='Ut 1.4 p2'!$F$15 -> 5.113077389 | H11: =Calculations!D195 -> 2.57 | I11: =M11/E11 -> 4.867670356 | K11: 11613158.78 | L11: =D11*I10 -> -486664.9962 | M11: =M10+L11+K11 -> 23579574.87
A12: 2. | B12: ='Monthly Inputs'!H3 -> Jul15 | C12: ='Monthly Inputs'!H29 -> 2860060 | D12: =-'Monthly Inputs'!H37 -> -65920 | E12: 7638259.085 | F12: =Calculations!E177 -> 0.9754861644 | G12: ='Ut 1.4 p2'!$F$15 -> 5.113077389 | H12: =Calculations!E195 -> 2.66 | I12: =M12/E12 -> 4.937043629 | K12: 14451720.31 | L12: =D12*I11 -> -320876.8299 | M12: =M11+L12+K12 -> 37710418.35
A13: 3. | B13: ='Monthly Inputs'!I3 -> Aug15 | C13: ='Monthly Inputs'!I29 -> 2664090 | D13: =-'Monthly Inputs'!I37 -> 0 | E13: 10302349.09 | F13: =Calculations!F177 -> 0.9720495849 | G13: ='Ut 1.4 p2'!$F$15 -> 5.113077389 | H13: =Calculations!F195 -> 2.64219 | I13: 4.964705429 | K13: 13437710.08 | L13: =D13*I12 -> 0 | M13: 51148128.44
A14: 4. | B14: ='Monthly Inputs'!J3 -> Sep15 | C14: ='Monthly Inputs'!J29 -> 2358382 | D14: =-'Monthly Inputs'!J37 -> 0 | E14: 12660731.09 | F14: =Calculations!G177 -> 0.8214655832 | G14: ='Ut 1.4 p2'!$F$15 -> 5.113077389 | H14: =Calculations!G195 -> 2.56526 | I14: 4.907611826 | K14: 10985825.17 | L14: 0 | M14: 62133953.6
A15: 5. | B15: ='Monthly Inputs'!K3 -> Oct15 | C15: ='Monthly Inputs'!K29 -> 2724550 | D15: =-'Monthly Inputs'!K37 -> 0 | E15: 15385281.09 | F15: =Calculations!H177 -> 0.5495426605 | G15: ='Ut 1.4 p2'!$F$15 -> 5.113077389 | H15: =Calculations!H195 -> 2.562 | I15: 4.740496283 | K15: 10799914.19 | L15: 0 | M15: 72933867.79
A16: 6. | B16: ='Monthly Inputs'!L3 -> Nov15 | C16: ='Monthly Inputs'!L29 -> 2403815 | D16: =-'Monthly Inputs'!L37 -> -271850 | E16: 17517246.09 | F16: =Calculations!I177 -> 0.3579851051 | G16: ='Ut 1.4 p2'!$F$15 -> 5.113077389 | H16: =Calculations!I195 -> 2.70789 | I16: 4.579724799 | K16: 8579002.421 | L16: -1288703.914 | M16: 80224166.3
A17: 7. | B17: ='Monthly Inputs'!M3 -> Dec15 | C17: ='Monthly Inputs'!M29 -> 439886 | D17: =-'Monthly Inputs'!M37 -> -514600 | E17: 17442532.09 | F17: =Calculations!J177 -> 0.2936331601 | G17: ='Ut 1.4 p2'!$F$15 -> 5.113077389 | H17: =Calculations!J195 -> 2.94752 | I17: 4.554598311 | K17: 1576287.255 | L17: -2356726.381 | M17: 79443727.17
A18: 8. | B18: ='Monthly Inputs'!N3 -> Jan16 | C18: ='Monthly Inputs'!N29 -> 0 | D18: =-'Monthly Inputs'!N37 -> -7800136 | E18: 9642396.085 | F18: =Calculations!K177 -> 0.4089463529 | G18: ='Ut 1.4 p2'!$F$15 -> 5.113077389 | H18: =Calculations!K195 -> 3.08226 | I18: 4.554598311 | K18: 0 | L18: -35526486.25 | M18: 43917240.92
A19: 9. | B19: ='Monthly Inputs'!O3 -> Feb16 | C19: ='Monthly Inputs'!O29 -> 0 | D19: =-'Monthly Inputs'!O37 -> -5116610 | E19: 4525786.085 | F19: =Calculations!L177 -> 0.4261638431 | G19: ='Ut 1.4 p2'!$F$15 -> 5.113077389 | H19: =Calculations!L195 -> 2.9818 | I19: 4.554598311 | K19: 0 | L19: -23304103.26 | M19: =M18+L19+K19 -> 20613137.66
A20: 10. | B20: ='Monthly Inputs'!P3 -> Mar16 | C20: ='Monthly Inputs'!P29 -> 0 | D20: =-'Monthly Inputs'!P37 -> -2526510 | E20: 1999276.085 | F20: =Calculations!M177 -> 0.5446059454 | G20: ='Ut 1.4 p2'!$F$15 -> 5.113077389 | H20: =Calculations!M195 -> 2.8061 | I20: 4.554598311 | K20: 0 | L20: -11507238.18 | M20: =M19+L20+K20 -> 9105899.481
A21: 11. | B21: ='Monthly Inputs'!Q3 -> Apr16 | C21: ='Monthly Inputs'!Q29 -> 0 | D21: =-'Monthly Inputs'!Q37 -> 0 | E21: 1999276.085 | F21: =Calculations!N177 -> 0.5667640657 | G21: ='Ut 1.4 p2'!$F$15 -> 5.113077389 | H21: =Calculations!N195 -> 2.72112 | I21: 4.554598311 | K21: 0 | L21: 0 | M21: =M20+L21+K21 -> 9105899.481
A22: 12. | B22: ='Monthly Inputs'!R3 -> May16 | C22: ='Monthly Inputs'!R29 -> 605570 | D22: =-'Monthly Inputs'!R37 -> -192550 | E22: 2412296.085 | F22: =Calculations!O177 -> 0.9499300737 | G22: ='Ut 1.4 p2'!$F$15 -> 5.113077389 | H22: =Calculations!O195 -> 2.8 | I22: 4.665722196 | K22: 3026191.813 | L22: -876987.9048 | M22: =M21+L22+K22 -> 11255103.39
M25: Inj./With. Adj.
A26: 14. | B26: Total | C26: =SUM(C11:C22) -> 16355305 | D26: =SUM(D11:D22) -> -16591686 | K26: =SUM(K11:K22) -> 74469810.02 | L26: =SUM(L11:L22) -> -75667787.72 | M26: =L26+K26 -> -1197977.702
A27: 15. | B27: Average $ /Dth | K27: =K26/C26 -> 4.553251072 | L27: =L26/D26 -> 4.560584604
A31: ___________________________________________________________________

Sheet Ex 1.1 Data
A1: QEPFS gathered | B1: 46916526.48 | C1: Adjusted test year-> | D1: -0.1459476185 | E1: 40069171.17 | H1: Samson Gathered | I1: 4930428.513 | J1: Adjusted test year-> | K1: -0.1606784301 | L1: 4138215
A2: Birch Creek | B2: 1563398.313 | C2: Adjusted test year-> | D2: =D1 -> -0.1459476185 | E2: 1335224.052
A3: Other | B3: 25194119.53
C4: WEXPRO I | J4: WEXPRO II
A5: Input Operator Service Fee > | C5: ='Monthly Inputs'!S107 -> 288909249 | H5: Input Operator Service Fee > | J5: ='Monthly Inputs'!S109 -> 24440477
A7: do not change the order of the months below!!!!! | H7: do not change the order of the months below!!!!!
A8: \/ | C8: 2015-03-01 | H8: \/ | J8: =C8 -> 2015-03-01
A9: \/ | B9: Company | C9: Average Index | D9: Church Buttes | H9: \/ | I9: Company | J9: Average Index | K9: Church Buttes
A10: \/ | B10: Production | C10: Spot Prices | D10: & Canyon Cr | H10: \/ | I10: Production | J10: Spot Prices | K10: & Canyon Cr
A11: January | B11: 5226520 | C11: ='Graph (Ex 1.10) Inputs'!F10 -> 2.95 | D11: =C11+0.1 -> 3.05 | E11: =B11*D11 -> 15940886 | H11: January | I11: 415617 | J11: =C11 -> 2.95 | K11: =J11+0.1 -> 3.05 | L11: =I11*K11 -> 1267631.85
A12: February | B12: 4930358 | C12: ='Graph (Ex 1.10) Inputs'!F11 -> 2.86 | D12: 2.96 | E12: =B12*D12 -> 14593859.68 | H12: February | I12: 384810 | J12: =C12 -> 2.86 | K12: =J12+0.1 -> 2.96 | L12: =I12*K12 -> 1139037.6
A13: March | B13: 5247379 | C13: ='Graph (Ex 1.10) Inputs'!F12 -> 2.76 | D13: 2.86 | E13: 15007503.94 | H13: March | I13: 407195 | J13: 2.76 | K13: 2.86 | L13: 1164577.7
A14: April | B14: 4994548 | C14: ='Graph (Ex 1.10) Inputs'!F13 -> 2.72 | D14: 2.82 | E14: 14084625.36 | H14: April | I14: 390146 | J14: 2.72 | K14: 2.82 | L14: 1100211.72
A15: May | B15: 5118907 | C15: ='Graph (Ex 1.10) Inputs'!F14 -> 2.78 | D15: 2.88 | E15: 14742452.16 | H15: May | I15: 399214 | J15: 2.78 | K15: 2.88 | L15: 1149736.32
A16: June | B16: 5624689 | C16: ='Graph (Ex 1.10) Inputs'!F3 -> 2.55 | D16: 2.65 | E16: 14905425.85 | H16: June | I16: 310574 | J16: 2.55 | K16: 2.65 | L16: 823021.1
A17: July | B17: 5587051 | C17: ='Graph (Ex 1.10) Inputs'!F4 -> 2.64 | D17: 2.74 | E17: 15308519.74 | H17: July | I17: 317160 | J17: 2.64 | K17: 2.74 | L17: 869018.4
A18: August | B18: 5368302 | C18: ='Graph (Ex 1.10) Inputs'!F5 -> 2.63 | D18: 2.73 | E18: 14655464.46 | H18: August | I18: 313512 | J18: 2.63 | K18: 2.73 | L18: 855887.76
A19: September | B19: 5227297 | C19: ='Graph (Ex 1.10) Inputs'!F6 -> 2.56 | D19: 2.66 | E19: 13904610.02 | H19: September | I19: 299978 | J19: 2.56 | K19: 2.66 | L19: 797941.48
A20: October | B20: 5307546 | C20: ='Graph (Ex 1.10) Inputs'!F7 -> 2.56 | D20: 2.66 | E20: 14118072.36 | H20: October | I20: 306553 | J20: 2.56 | K20: 2.66 | L20: 815430.98
A21: November | B21: 5107105 | C21: ='Graph (Ex 1.10) Inputs'!F8 -> 2.67 | D21: 2.77 | E21: 14146680.85 | H21: November | I21: 293451 | J21: 2.67 | K21: 2.77 | L21: 812859.27
A22: December | B22: 5181791 | C22: ='Graph (Ex 1.10) Inputs'!F9 -> 2.88 | D22: 2.98 | E22: 15441737.18 | H22: December | I22: 300005 | J22: 2.88 | K22: 2.98 | L22: 894014.9
B24: =SUM(B11:B22) -> 62921493 | C24: CANYON CREEK | D24: =E24/B24 -> 2.810642742 | E24: =SUM(E11:E22) -> 176849837.6 | I24: =SUM(I11:I22) -> 4138215 | J24: CANYON CREEK | K24: =L24/I24 -> 2.824737013 | L24: =SUM(L11:L22) -> 11689369.08
C25: CHURCH BUTTES | J25: CHURCH BUTTES
C26: All Others -> | D26: =D24-0.2 -> 2.610642742 | J26: All Others -> | K26: =K24-0.2 -> 2.624737013
A29: Make sure all spot pricing is only 2 decimals | H29: Make sure all spot pricing is only 2 decimals

Sheet Expenses
A1: %,LACTUALS
S7: Historical
S8: 12 Months Ending
C9: FERC Acct | E9: Description | G9: 2014-04-01 | H9: 2014-05-01 | I9: 2014-06-01 | J9: 2014-07-01 | K9: 2014-08-01 | L9: 2014-09-01 | M9: 2014-10-01 | N9: 2014-11-01 | O9: 2014-12-01 | P9: 2015-01-01 | Q9: 2015-02-01 | R9: 2015-03-01 | S9: 2015-03-01
B11: 497 | C11: UTILITY OPERATING EXPENSES
B12: 498 | C12: GAS PURCHASE EXPENSES
B13: 499
B14: 500 | D14: Utah % of Sales Dth from 191 Acct ===> | G14: 0.95997 | H14: 0.94891 | I14: 0.96392 | J14: 0.9747 | K14: 0.97175 | L14: 0.96048 | M14: 0.9569 | N14: 0.9595 | O14: 0.96259 | P14: 0.96995 | Q14: 0.95886 | R14: 0.96038
B15: 501
A16: %,FACCOUNT,TQGCACCTS,V758000 | B16: 502 | C16: 758 | D16: Gas Well Royalties
B17: 503 | E17: Utah | G17: 5914453.436 | H17: 6537567.91 | I17: 5021310.458 | J17: 5398159.771 | K17: 4796924.029 | L17: 4097631.501 | M17: 2790182.071 | N17: 3652822.219 | O17: 2676507.485 | P17: 3725775.403 | Q17: 4517904.271 | R17: 3130069.872 | S17: 52259308.43
B18: 504 | E18: Wyoming | G18: 246628.0936 | H18: 351987.3798 | I18: 187950.1217 | J18: 140118.4387 | K18: 139452.6409 | L18: 168601.5293 | M18: 125673.3695 | N18: 154183.7414 | O18: 104019.5151 | P18: 115428.1673 | Q18: 193841.209 | R18: 129129.4782 | S18: 2057013.685
B19: 505 | E19: Total | G19: 6161081.53 | H19: 6889555.29 | I19: 5209260.58 | J19: 5538278.21 | K19: 4936376.67 | L19: 4266233.03 | M19: 2915855.44 | N19: 3807005.96 | O19: 2780527 | P19: 3841203.57 | Q19: 4711745.48 | R19: 3259199.35 | S19: 54316322.11
B20: 506
A21: %,FACCOUNT,TQGCACCTS,V758001,V758002,V758003,V758004 | B21: 507 | C21: 758.1 | D21: Gas Well Royalties - Other
B22: 508 | E22: Utah | G22: 33676.42 | H22: 46868.47 | I22: 35513.94 | J22: 55547.94 | K22: 42487.02 | L22: 27726.92 | M22: 24473.79 | N22: 35445.14 | O22: 26866.01 | P22: 20397.98 | Q22: 23435.82 | R22: 11271.11 | S22: 383710.56
B23: 509 | E23: Wyoming | G23: 0 | H23: 0 | I23: 0 | J23: 0 | K23: 0 | L23: 0 | M23: 0 | N23: 0 | O23: 0 | P23: 0 | Q23: 0 | R23: 0 | S23: 0
B24: 510 | E24: Total | G24: 33676.42 | H24: 46868.47 | I24: 35513.94 | J24: 55547.94 | K24: 42487.02 | L24: 27726.92 | M24: 24473.79 | N24: 35445.14 | O24: 26866.01 | P24: 20397.98 | Q24: 23435.82 | R24: 11271.11 | S24: 383710.56
B25: 511
A26: %,FACCOUNT,TQGCACCTS,V759000,V759001,V759002,V759003,V759004 | B26: 512 | C26: 759 | D26: Gathering by Others, GRI & ACA - Gas Cost
B27: 513 | E27: Utah | G27: 1630022.67 | H27: 1564053.29 | I27: 1577802.69 | J27: 1483636.46 | K27: 1469942.68 | L27: 1614798.51 | M27: 1657722.47 | N27: 1693911.7 | O27: 3403590.3 | P27: 1765938.79 | Q27: 1904586.83 | R27: 1750012.61 | S27: 21516019
B28: 514 | E28: Wyoming | G28: 0 | H28: 0 | I28: 0 | J28: 0 | K28: 0 | L28: 0 | M28: 0 | N28: 0 | O28: 0 | P28: 0 | Q28: 0 | R28: 0 | S28: 0
B29: 515 | E29: Total | G29: 1630022.67 | H29: 1564053.29 | I29: 1577802.69 | J29: 1483636.46 | K29: 1469942.68 | L29: 1614798.51 | M29: 1657722.47 | N29: 1693911.7 | O29: 3403590.3 | P29: 1765938.79 | Q29: 1904586.83 | R29: 1750012.61 | S29: 21516019
B30: 516
A31: %,FACCOUNT,TQGCACCTS,V759005 | B31: 517 | C31: 759 | D31: Gathering by Others - SNG Cost
B32: 518 | E32: Utah | G32: 0 | H32: 0 | I32: 0 | J32: 0 | K32: 0 | L32: 0 | M32: 0 | N32: 0 | O32: 0 | P32: 0 | Q32: 0 | R32: 0 | S32: 0
B33: 519 | E33: Wyoming | G33: 0 | H33: 0 | I33: 0 | J33: 0 | K33: 0 | L33: 0 | M33: 0 | N33: 0 | O33: 0 | P33: 0 | Q33: 0 | R33: 0 | S33: 0
B34: 520 | E34: Total | G34: 0 | H34: 0 | I34: 0 | J34: 0 | K34: 0 | L34: 0 | M34: 0 | N34: 0 | O34: 0 | P34: 0 | Q34: 0 | R34: 0 | S34: 0
B35: 521
A36: %,FACCOUNT,TQGCACCTS,V800000,V800005,V800002 | B36: 522 | C36: 800 | D36: Natural Gas Well Head Purchases
B37: 523 | E37: Utah | G37: 16934.20679 | H37: 18810.73636 | I37: 376381.8231 | J37: 34279.20481 | K37: 28247.04279 | L37: 28209.77784 | M37: 26869.13958 | N37: 22729.19251 | O37: 23359.40255 | P37: 16679.37659 | Q37: 22876.93254 | R37: 15027.39239 | S37: 630404.2279
B38: 524 | E38: Wyoming | G38: 706.1432105 | H38: 1012.783637 | I38: 14088.15688 | J38: 889.775194 | K38: 821.177215 | L38: 1160.72216 | M38: 1210.220416 | N38: 959.38749 | O38: 907.8374484 | P38: 516.743406 | Q38: 981.5374558 | R38: 619.9476108 | S38: 23874.43212
B39: 525 | E39: Total | G39: 17640.35 | H39: 19823.52 | I39: 390469.98 | J39: 35168.98 | K39: 29068.22 | L39: 29370.5 | M39: 28079.36 | N39: 23688.58 | O39: 24267.24 | P39: 17196.12 | Q39: 23858.47 | R39: 15647.34 | S39: 654278.66
B40: 526
A41: %,FACCOUNT,TQGCACCTS,V801000 | B41: 527 | C41: 801 | D41: Natural Gas Field Line Purchases
B42: 528 | E42: Utah | G42: 0 | H42: 0 | I42: 0 | J42: 0 | K42: 0 | L42: 0 | M42: 0 | N42: 0 | O42: 0 | P42: 0 | Q42: 0 | R42: 0 | S42: 0
B43: 529 | E43: Wyoming | G43: 0 | H43: 0 | I43: 0 | J43: 0 | K43: 0 | L43: 0 | M43: 0 | N43: 0 | O43: 0 | P43: 0 | Q43: 0 | R43: 0 | S43: 0
B44: 530 | E44: Total | G44: 0 | H44: 0 | I44: 0 | J44: 0 | K44: 0 | L44: 0 | M44: 0 | N44: 0 | O44: 0 | P44: 0 | Q44: 0 | R44: 0 | S44: 0
B45: 531
A46: %,FACCOUNT,TQGCACCTS,V802000 | B46: 532 | C46: 802 | D46: Natural Gas Gasoline Plant Outlet Purchase
B47: 533 | E47: Utah | G47: 0 | H47: 0 | I47: 0 | J47: 0 | K47: 0 | L47: 0 | M47: 0 | N47: 0 | O47: 0 | P47: 0 | Q47: 0 | R47: 0 | S47: 0
B48: 534 | E48: Wyoming | G48: 0 | H48: 0 | I48: 0 | J48: 0 | K48: 0 | L48: 0 | M48: 0 | N48: 0 | O48: 0 | P48: 0 | Q48: 0 | R48: 0 | S48: 0
B49: 535 | E49: Total | G49: 0 | H49: 0 | I49: 0 | J49: 0 | K49: 0 | L49: 0 | M49: 0 | N49: 0 | O49: 0 | P49: 0 | Q49: 0 | R49: 0 | S49: 0
B50: 536
A51: %,FACCOUNT,TQGCACCTS,V803000,V803002 | B51: 537 | C51: 803 | D51: Natural Gas Transmission Line - Purchases
B52: 538 | E52: Utah | G52: 2810332.574 | H52: 496326.1609 | I52: -83861.04 | J52: 0 | K52: 0 | L52: 0 | M52: 0 | N52: 17558850 | O52: 19210708.25 | P52: 26702063.43 | Q52: 6035276.086 | R52: 5554577.34 | S52: 78284272.8
B53: 539 | E53: Wyoming | G53: 117188.6756 | H53: 26722.5591 | I53: -3138.96 | J53: 0 | K53: 0 | L53: 0 | M53: 0 | N53: 741150 | O53: 746603.0142 | P53: 827256.0504 | Q53: 258944.2236 | R53: 229151.3299 | S53: 2943876.893
B54: 540 | E54: Total | G54: 2927521.25 | H54: 523048.72 | I54: -87000 | J54: 0 | K54: 0 | L54: 0 | M54: 0 | N54: 18300000 | O54: 19957311.26 | P54: 27529319.48 | Q54: 6294220.31 | R54: 5783728.67 | S54: 81228149.69
B55: 541
A56: %,FACCOUNT,V804000,FAFFILIATE,V09 | B56: 542 | C56: 804 | D56: Natural Gas City Gate Purchases - Resources
B57: 543 | E57: Utah | G57: 0 | H57: 0 | I57: 0 | J57: 0 | K57: 0 | L57: 0 | M57: 0 | N57: 0 | O57: 0 | P57: 0 | Q57: 0 | R57: 0 | S57: 0
B58: 544 | E58: Wyoming | G58: 0 | H58: 0 | I58: 0 | J58: 0 | K58: 0 | L58: 0 | M58: 0 | N58: 0 | O58: 0 | P58: 0 | Q58: 0 | R58: 0 | S58: 0
B59: 545 | E59: Total | G59: 0 | H59: 0 | I59: 0 | J59: 0 | K59: 0 | L59: 0 | M59: 0 | N59: 0 | O59: 0 | P59: 0 | Q59: 0 | R59: 0 | S59: 0
B60: 546
A61: %,FACCOUNT,V804000,FAFFILIATE,V | B61: 547 | C61: 804.1 | D61: Natural Gas City Gate Purchases - Other
B62: 548 | E62: Utah | G62: 38.3988 | H62: 21943.54375 | I62: 84062.49928 | J62: 0 | K62: 0 | L62: 0 | M62: 0 | N62: 1719.90375 | O62: 1380113.518 | P62: 14724.90795 | Q62: 1169271.318 | R62: 117570.9105 | S62: 2789445
B63: 549 | E63: Wyoming | G63: 1.6012 | H63: 1181.45625 | I63: 3146.50072 | J63: 0 | K63: 0 | L63: 0 | M63: 0 | N63: 72.59625 | O63: 53636.59162 | P63: 456.192055 | Q63: 50167.72211 | R63: 4850.329529 | S63: 113512.9897
B64: 550 | E64: Total | G64: 40 | H64: 23125 | I64: 87209 | J64: 0 | K64: 0 | L64: 0 | M64: 0 | N64: 1792.5 | O64: 1433750.11 | P64: 15181.1 | Q64: 1219439.04 | R64: 122421.24 | S64: 2902957.99
B65: 551
B66: 552 | C66: 805 | D66: Purchased Gas Cost Adjustments - Other
B67: 553 | E67: Utah | G67: 0 | H67: 0 | I67: 0 | J67: 0 | K67: 0 | L67: 0 | M67: 0 | N67: 0 | O67: 0 | P67: 0 | Q67: 0 | R67: 0 | S67: 0
B68: 554 | E68: Wyoming | G68: 0 | H68: 0 | I68: 0 | J68: 0 | K68: 0 | L68: 0 | M68: 0 | N68: 0 | O68: 0 | P68: 0 | Q68: 0 | R68: 0 | S68: 0
B69: 555 | E69: Total | G69: 0 | H69: 0 | I69: 0 | J69: 0 | K69: 0 | L69: 0 | M69: 0 | N69: 0 | O69: 0 | P69: 0 | Q69: 0 | R69: 0 | S69: 0
B70: 556
A71: %,FACCOUNT,TQGCACCTS,V805100 | B71: 557 | C71: 805.1 | D71: Purchased Gas Cost Adjustments - Utah
B72: 558 | E72: Utah | G72: -6084550.972 | H72: -15136767.5 | I72: -9791215.004 | J72: -9353489.242 | K72: -7415753.673 | L72: -7796305.485 | M72: -4268728.029 | N72: -495856.167 | O72: 21796640.86 | P72: 24437361.63 | Q72: 5670780.502 | R72: 4880657.883 | S72: -3557225.198
B73: 559 | E73: Wyoming | G73: -253721.0282 | H73: -814974.4988 | I73: -366489.9964 | J73: -242785.7575 | K73: -215585.3268 | L73: -320787.5154 | M73: -192268.9707 | N73: -20929.833 | O73: 847102.4369 | P73: 757093.3727 | Q73: 243305.498 | R73: 201349.1173 | S73: -378692.5017
B74: 560 | E74: Total | G74: -6338272 | H74: -15951742 | I74: -10157705 | J74: -9596275 | K74: -7631339 | L74: -8117093 | M74: -4460997 | N74: -516786 | O74: 22643743.3 | P74: 25194455 | Q74: 5914086 | R74: 5082007 | S74: -3935917.7
B75: 561
A76: %,FACCOUNT,TQGCACCTS,V806000 | B76: 562 | C76: 806 | D76: Exchange Gas
B77: 563 | E77: Utah | G77: 0 | H77: 0 | I77: 0 | J77: 0 | K77: 0 | L77: 0 | M77: 0 | N77: 0 | O77: 0 | P77: 0 | Q77: 0 | R77: 0 | S77: 0
B78: 564 | E78: Wyoming | G78: 0 | H78: 0 | I78: 0 | J78: 0 | K78: 0 | L78: 0 | M78: 0 | N78: 0 | O78: 0 | P78: 0 | Q78: 0 | R78: 0 | S78: 0
B79: 565 | E79: Total | G79: 0 | H79: 0 | I79: 0 | J79: 0 | K79: 0 | L79: 0 | M79: 0 | N79: 0 | O79: 0 | P79: 0 | Q79: 0 | R79: 0 | S79: 0
B80: 566
A81: %,FACCOUNT,TQGCACCTS,V808100 | B81: 567 | C81: 808.1 | D81: Gas Withdrawn from Underground Storage
B82: 568 | E82: Utah | G82: 6347752.475 | H82: 2156162.617 | I82: 118362.2334 | J82: 575094.5019 | K82: 42495.60897 | L82: 189389.7131 | M82: 2945313.569 | N82: 12773314.85 | O82: 21157687.34 | P82: 11138905.8 | Q82: 14937335.33 | R82: 6894793.056 | S82: 79276607.09
B83: 569 | E83: Wyoming | G83: 264696.3255 | H83: 116089.3531 | I83: 4430.356647 | J83: 14927.55812 | K83: 1235.401032 | L83: 7792.646867 | M83: 132660.6906 | N83: 539155.0301 | O83: 822270.2119 | P83: 345094.2 | Q83: 640888.1123 | R83: 284441.2638 | S83: 3173681.15
B84: 570 | E84: Total | G84: 6612448.8 | H84: 2272251.97 | I84: 122792.59 | J84: 590022.06 | K84: 43731.01 | L84: 197182.36 | M84: 3077974.26 | N84: 13312469.88 | O84: 21979957.55 | P84: 11484000 | Q84: 15578223.44 | R84: 7179234.32 | S84: 82450288.24
B85: 571
A86: %,FACCOUNT,TQGCACCTS,V808200 | B86: 572 | C86: 808.2 | D86: Gas Delivered to Underground Storage
B87: 573 | E87: Utah | G87: -4939139.17 | H87: -10374248.43 | I87: -14014779.69 | J87: -14440876.85 | K87: -13776146.09 | L87: -10431305.39 | M87: -5651828.409 | N87: -3256149.643 | O87: -2500044.023 | P87: -1364939.198 | Q87: -216738.5761 | R87: -1661421.299 | S87: -82627616.78
B88: 574 | E88: Wyoming | G88: -205958.2497 | H88: -558557.031 | I88: -524580.1012 | J88: -374837.5751 | K88: -400489.9687 | L88: -429207.4682 | M88: -254565.581 | N88: -137440.3966 | O88: -97161.45701 | P88: -42287.15182 | Q88: -9299.193858 | R88: -68541.11068 | S88: -3102925.285
B89: 575 | E89: Total | G89: -5145097.42 | H89: -10932805.46 | I89: -14539359.79 | J89: -14815714.43 | K89: -14176636.06 | L89: -10860512.86 | M89: -5906393.99 | N89: -3393590.04 | O89: -2597205.48 | P89: -1407226.35 | Q89: -226037.77 | R89: -1729962.41 | S89: -85730542.06
B90: 576
A91: %,FACCOUNT,TQGCACCTS,V808300 | B91: 577 | C91: 808.3 | D91: Exchange Gas
B92: 578 | E92: Utah | G92: 280322.7596 | H92: 276250.4748 | I92: 284099.9973 | J92: 294208.3215 | K92: 300372.7838 | L92: 304254.131 | M92: 308724.647 | N92: 311754.983 | O92: 314015.1472 | P92: 315839.9688 | Q92: 311630.4589 | R92: 311643.31 | S92: 3613116.983
B93: 579 | E93: Wyoming | G93: 11689.24036 | H93: 14873.52516 | I93: 10634.00272 | J93: 7636.6785 | K93: 8732.21625 | L93: 12518.86896 | M93: 13905.353 | N93: 13159.017 | O93: 12203.85279 | P93: 9785.03125 | Q93: 13370.54114 | R93: 12856.69 | S93: 141365.0171
B94: 580 | E94: Total | G94: 292012 | H94: 291124 | I94: 294734 | J94: 301845 | K94: 309105 | L94: 316773 | M94: 322630 | N94: 324914 | O94: 326219 | P94: 325625 | Q94: 325001 | R94: 324500 | S94: 3754482
B95: 581
A96: %,FACCOUNT,TQGCACCTS,V813000,V813001,V813002,V813003,V813004 | B96: 582 | C96: 813 | D96: Other Gas Supply Expenses - Gas Cost
B97: 583 | E97: Utah | G97: 31155920.74 | H97: 30045156.07 | I97: 33609368.23 | J97: 29227148.59 | K97: 28037816.3 | L97: 26505992.71 | M97: 28893224.9 | N97: 27509126.43 | O97: 28133983.82 | P97: 29217361.16 | Q97: 29549863.24 | R97: 27090451.72 | S97: 348975413.9
B98: 584 | E98: Wyoming | G98: 1299177.586 | H98: 1617652.911 | I98: 1258015.194 | J98: 758640.463 | K98: 815094.7369 | L98: 1090618.058 | M98: 1301387.808 | N98: 1161146.035 | O98: 1093396.29 | P98: 905182.4352 | Q98: 1267840.324 | R98: 1117603.133 | S98: 13685754.97
B99: 585 | E99: Total | G99: 32455098.33 | H99: 31662808.98 | I99: 34867383.42 | J99: 29985789.05 | K99: 28852911.04 | L99: 27596610.77 | M99: 30194612.71 | N99: 28670272.46 | O99: 29227380.11 | P99: 30122543.6 | Q99: 30817703.56 | R99: 28208054.85 | S99: 362661168.9
B100: 586
B101: 587 | C101: 813 | D101: Other Gas Supply Expenses - SNG Cost
B102: 588 | E102: Utah | S102: 0
B103: 589 | E103: Wyoming | S103: 0
B104: 590 | E104: Total | G104: 0 | H104: 0 | I104: 0 | J104: 0 | K104: 0 | L104: 0 | M104: 0 | N104: 0 | O104: 0 | P104: 0 | Q104: 0 | R104: 0 | S104: 0
B105: 591
B106: 592 | C106: 813.5 | D106: CO2 Processing Expenses
A107: %,FACCOUNT,TQGCACCTS,V813005,V813007,V813008 | B107: 593 | E107: Utah | G107: 0 | H107: 0 | I107: 0 | J107: 0 | K107: 0 | L107: 0 | M107: 0 | N107: 0 | O107: 0 | P107: 0 | Q107: 0 | R107: 0 | S107: 0
A108: %,FACCOUNT,TQGCACCTS,V813006 | B108: 594 | E108: Wyoming | G108: 0 | H108: 0 | I108: 0 | J108: 0 | K108: 0 | L108: 0 | M108: 0 | N108: 0 | O108: 0 | P108: 0 | Q108: 0 | R108: 0 | S108: 0
B109: 595 | E109: Total | G109: 0 | H109: 0 | I109: 0 | J109: 0 | K109: 0 | L109: 0 | M109: 0 | N109: 0 | O109: 0 | P109: 0 | Q109: 0 | R109: 0 | S109: 0
B110: 596
A111: %,FACCOUNT,TQGCACCTS,V858000 | B111: 597 | C111: 858 | D111: Transportation GRI & ACA - Gas Cost
B112: 598 | E112: Utah | G112: 4542557.602 | H112: 4537776.106 | I112: 4598060.695 | J112: 4648079.425 | K112: 4636160.381 | L112: 4583312.072 | M112: 4559573.287 | N112: 5782280.359 | O112: 5807563.993 | P112: 5918248.443 | Q112: 5826148.625 | R112: 5729960.505 | S112: 61169721.49
B113: 599 | E113: Wyoming | G113: 189421.1078 | H113: 244317.1441 | I113: 172107.6748 | J113: 120648.8247 | K113: 134779.0386 | L113: 188585.3876 | M113: 205369.0131 | N113: 244067.0709 | O113: 225704.5772 | P113: 183353.1272 | Q113: 249971.5854 | R113: 236386.6753 | S113: 2394711.227
B114: 600 | E114: Total | G114: 4731978.71 | H114: 4782093.25 | I114: 4770168.37 | J114: 4768728.25 | K114: 4770939.42 | L114: 4771897.46 | M114: 4764942.3 | N114: 6026347.43 | O114: 6033268.57 | P114: 6101601.57 | Q114: 6076120.21 | R114: 5966347.18 | S114: 63564432.72
B115: 601
A116: %,FACCOUNT,TQGCACCTS,V858001 | B116: 602 | C116: 858 | D116: Trans & Comp of Gas by Others - SNG Cost
B117: 603 | E117: Utah | G117: 0 | H117: 0 | I117: 0 | J117: 0 | K117: 0 | L117: 0 | M117: 0 | N117: 0 | O117: 0 | P117: 0 | Q117: 0 | R117: 0 | S117: 0
B118: 604 | E118: Wyoming | G118: 0 | H118: 0 | I118: 0 | J118: 0 | K118: 0 | L118: 0 | M118: 0 | N118: 0 | O118: 0 | P118: 0 | Q118: 0 | R118: 0 | S118: 0
B119: 605 | E119: Total | G119: 0 | H119: 0 | I119: 0 | J119: 0 | K119: 0 | L119: 0 | M119: 0 | N119: 0 | O119: 0 | P119: 0 | Q119: 0 | R119: 0 | S119: 0
B120: 606
B121: 607 | C121: System Total Gas Purchase Expenses
B122: 608 | D122: Utah Gas Purchase Expenses | G122: 41708321.14 | H122: 20189899.45 | I122: 21815106.83 | J122: 17921788.11 | K122: 18162546.08 | L122: 19123704.46 | M122: 31285527.44 | N122: 65589948.96 | O122: 101430992.1 | P122: 101908357.7 | Q122: 69752370.83 | R122: 53824614.41 | S122: 562713177.5
B123: 609 | D123: Wyoming Gas Purchase Expenses | G123: 1669829.496 | H123: 1000305.582 | I123: 756162.9497 | J123: 425238.4056 | K123: 484039.9155 | L123: 719282.229 | M123: 1333371.903 | N123: 2695522.648 | O123: 3808682.87 | P123: 3101878.168 | Q123: 2910011.56 | R123: 2147846.854 | S123: 21052172.58
B124: 610
B125: 611
B126: 612 | D126: System Total Gas Purchase Expenses | G126: 43378150.64 | H126: 21190205.03 | I126: 22571269.78 | J126: 18347026.52 | K126: 18646586 | L126: 19842986.69 | M126: 32618899.34 | N126: 68285471.61 | O126: 105239675 | P126: 105010235.9 | Q126: 72662382.39 | R126: 55972461.26 | S126: 583765350.1
B127: 613
B128: 614
B129: 615 | C129: OPERATION AND MAINTENANCE EXPENSES
B130: 616
B131: 617 | C131: Production Expenses
B132: 618
A133: %,FACCOUNT,TQGCACCTS,V810000,V810001 | B133: 619 | C133: 810 | D133: Gas Used for Compressor Station Fuel | G133: -3302 | H133: -3355.24 | I133: -3237.11 | J133: -3050.07 | K133: -2981.76 | L133: -3605.16 | M133: -2790.6 | N133: -2367.42 | O133: -1665.07 | P133: -1641.94 | Q133: -1450.28 | R133: -1414.54 | S133: -30861.19
A134: %,FACCOUNT,TQGCACCTS,V812000,V812001 | B134: 620 | C134: 812 | D134: Gas Used for Other Utility Operations | G134: -109185.59 | H134: -97722.45 | I134: -102736.41 | J134: -200920.6 | K134: -9293.74 | L134: -108709.68 | M134: -233315.06 | N134: 31239.66 | O134: -125027.24 | P134: -138110.25 | Q134: -117213.53 | R134: -121744.67 | S134: -1332739.56
B135: 621
B136: 622 | D136: Total Production Expenses | G136: -112487.59 | H136: -101077.69 | I136: -105973.52 | J136: -203970.67 | K136: -12275.5 | L136: -112314.84 | M136: -236105.66 | N136: 28872.24 | O136: -126692.31 | P136: -139752.19 | Q136: -118663.81 | R136: -123159.21 | S136: -1363600.75
B137: 623
B138: 624 | C138: Distribution Operations & Maintenance Expenses
B139: 625
B140: 626 | C140: 870 | D140: Operation Supervision & Engineering
B141: 627 | E141: Utah | G141: 933819.55 | H141: 744035.4 | I141: 925009.9 | J141: 782735.23 | K141: 797590.42 | L141: 998804.71 | M141: 900235.3 | N141: 873773.68 | O141: 1318177.47 | P141: 1052962.8 | Q141: 970620.17 | R141: 815650.23 | S141: 11113414.86
B142: 628 | E142: Wyoming | G142: 46644.64 | H142: 40642.91 | I142: 38626.04 | J142: 33924.44 | K142: 38731.79 | L142: 39517.43 | M142: 37639.96 | N142: 48756.84 | O142: 66114.6 | P142: 57056.15 | Q142: 52298.61 | R142: 40845.87 | S142: 540799.28
A143: %,FACCOUNT,TQGCACCTS,N870 | B143: 629 | E143: Total | G143: 980464.19 | H143: 784678.31 | I143: 963635.94 | J143: 816659.67 | K143: 836322.21 | L143: 1038322.14 | M143: 937875.26 | N143: 922530.52 | O143: 1384292.07 | P143: 1110018.95 | Q143: 1022918.78 | R143: 856496.1 | S143: 11654214.14
B144: 630
B145: 631 | C145: 871 | D145: Distribution Load Dispatching
B146: 632 | E146: Utah | G146: 145051.96 | H146: 159898.88 | I146: 149190.01 | J146: 136151.98 | K146: 140986.7 | L146: 165080.21 | M146: 157271.06 | N146: 172634.53 | O146: 203236.77 | P146: 137867.23 | Q146: 199892.44 | R146: 164138.21 | S146: 1931399.98
B147: 633 | E147: Wyoming | G147: 4996.61 | H147: 5576.53 | I147: 5203.04 | J147: 4792.1 | K147: 4977.38 | L147: 5827.97 | M147: 5518.57 | N147: 5946.76 | O147: 7066.18 | P147: 2324.46 | Q147: 4417.57 | R147: 3200.14 | S147: 59847.31
A148: %,FACCOUNT,TQGCACCTS,N871 | B148: 634 | E148: Total | G148: 150048.57 | H148: 165475.41 | I148: 154393.05 | J148: 140944.08 | K148: 145964.08 | L148: 170908.18 | M148: 162789.63 | N148: 178581.29 | O148: 210302.95 | P148: 140191.69 | Q148: 204310.01 | R148: 167338.35 | S148: 1991247.29
B149: 635
B150: 636 | C150: 872 | D150: Compressor Station Labor & Expenses
B151: 637 | E151: Utah | G151: 278.33 | H151: 0 | I151: 0 | J151: 0 | K151: 207.15 | L151: 0 | M151: 854.02 | N151: 38.14 | O151: 0 | P151: 0 | Q151: 0 | R151: 0 | S151: 1377.64
B152: 638 | E152: Wyoming | G152: 0 | H152: 0 | I152: 0 | J152: 0 | K152: 0 | L152: 0 | M152: 0 | N152: 0 | O152: 0 | P152: 0 | Q152: 0 | R152: 0 | S152: 0
A153: %,FACCOUNT,TQGCACCTS,N872 | B153: 639 | E153: Total | G153: 278.33 | H153: 0 | I153: 0 | J153: 0 | K153: 207.15 | L153: 0 | M153: 854.02 | N153: 38.14 | O153: 0 | P153: 0 | Q153: 0 | R153: 0 | S153: 1377.64
B154: 640
B155: 641 | C155: 873 | D155: Compressor Station Fuel & Power
B156: 642 | E156: Utah | G156: 3339.52 | H156: 3376.6 | I156: 3245.22 | J156: 3057.78 | K156: 2988.8 | L156: 3614.58 | M156: 2803.92 | N156: 2405.64 | O156: 1718.4 | P156: 1708.76 | Q156: 1492.47 | R156: 1452.13 | S156: 31203.82
B157: 643 | E157: Wyoming | G157: 0 | H157: 0 | I157: 0 | J157: 0 | K157: 0 | L157: 0 | M157: 0 | N157: 0 | O157: 0 | P157: 0 | Q157: 0 | R157: 0 | S157: 0
A158: %,FACCOUNT,TQGCACCTS,N873 | B158: 644 | E158: Total | G158: 3339.52 | H158: 3376.6 | I158: 3245.22 | J158: 3057.78 | K158: 2988.8 | L158: 3614.58 | M158: 2803.92 | N158: 2405.64 | O158: 1718.4 | P158: 1708.76 | Q158: 1492.47 | R158: 1452.13 | S158: 31203.82
B159: 645
B160: 646 | C160: 874 | D160: Mains & Service Expenses
B161: 647 | E161: Utah | G161: 879774.52 | H161: 684296 | I161: 1270014.25 | J161: 592448.12 | K161: 616480.05 | L161: 1219928.03 | M161: 614704.17 | N161: 724150.68 | O161: 862092.85 | P161: 612566.63 | Q161: 924753.08 | R161: 822094.38 | S161: 9823302.76
B162: 648 | E162: Wyoming | G162: 61978.23 | H162: 56618.22 | I162: 84393.88 | J162: 49950.5 | K162: 46766.9 | L162: 75095.52 | M162: 45143.89 | N162: 55568.3 | O162: 52077.08 | P162: 37499.23 | Q162: 54338.01 | R162: 45275.3 | S162: 664705.06
A163: %,FACCOUNT,TQGCACCTS,N874 | B163: 649 | E163: Total | G163: 941752.75 | H163: 740914.22 | I163: 1354408.13 | J163: 642398.62 | K163: 663246.95 | L163: 1295023.55 | M163: 659848.06 | N163: 779718.98 | O163: 914169.93 | P163: 650065.86 | Q163: 979091.09 | R163: 867369.68 | S163: 10488007.82
B164: 650
B165: 651 | C165: 875 | D165: Measuring & Regulating Station Expenses
B166: 652 | E166: Utah | G166: 149344.59 | H166: 253511.39 | I166: 140657.67 | J166: 208452.9 | K166: 137510.49 | L166: 169595.45 | M166: 167675.81 | N166: 375622.06 | O166: 151844.28 | P166: 153216.77 | Q166: 187870.81 | R166: 192808.61 | S166: 2288110.83
B167: 653 | E167: Wyoming | G167: 5405.17 | H167: 8958.24 | I167: 5307.65 | J167: 7595.95 | K167: 4878.47 | L167: 5971.17 | M167: 5907.16 | N167: 13039.52 | O167: 5376.65 | P167: 5404.94 | Q167: 6931.43 | R167: 9828.73 | S167: 84605.08
A168: %,FACCOUNT,TQGCACCTS,N875 | B168: 654 | E168: Total | G168: 154749.76 | H168: 262469.63 | I168: 145965.32 | J168: 216048.85 | K168: 142388.96 | L168: 175566.62 | M168: 173582.97 | N168: 388661.58 | O168: 157220.93 | P168: 158621.71 | Q168: 194802.24 | R168: 202637.34 | S168: 2372715.91
B169: 655
B170: 656 | C170: 878 | D170: Meter & House Regulator Expenses
B171: 657 | E171: Utah | G171: 274954.94 | H171: 285781.52 | I171: 256753 | J171: 245757.02 | K171: 315536.44 | L171: 295618.58 | M171: 304551.1 | N171: 365647.62 | O171: 360176.65 | P171: 285239.51 | Q171: 328834.91 | R171: 259914.17 | S171: 3578765.46
B172: 658 | E172: Wyoming | G172: 8285.46 | H172: 7662.03 | I172: 8646.45 | J172: 6942.16 | K172: 9979.37 | L172: 6652.84 | M172: 8307.73 | N172: 14550.74 | O172: 15098.25 | P172: 20386.2 | Q172: 17776.77 | R172: 18980.49 | S172: 143268.49
A173: %,FACCOUNT,TQGCACCTS,N878 | B173: 659 | E173: Total | G173: 283240.4 | H173: 293443.55 | I173: 265399.45 | J173: 252699.18 | K173: 325515.81 | L173: 302271.42 | M173: 312858.83 | N173: 380198.36 | O173: 375274.9 | P173: 305625.71 | Q173: 346611.68 | R173: 278894.66 | S173: 3722033.95
B174: 660
B175: 661 | C175: 879 | D175: Customer Installations Expenses
B176: 662 | E176: Utah | G176: 248414.69 | H176: 248561.13 | I176: 227443.2 | J176: 216561.1 | K176: 212395.25 | L176: 293582.66 | M176: 258188.14 | N176: 325084.85 | O176: 339773.61 | P176: 321358.56 | Q176: 338072 | R176: 243337.28 | S176: 3272772.47
B177: 663 | E177: Wyoming | G177: 15098.72 | H177: 10293.52 | I177: 9498.34 | J177: 5915.76 | K177: 6903.87 | L177: 9340.7 | M177: 8638.89 | N177: 18520.58 | O177: 20113.26 | P177: 18241.47 | Q177: 20475.2 | R177: 11800.28 | S177: 154840.59
A178: %,FACCOUNT,TQGCACCTS,N879 | B178: 664 | E178: Total | G178: 263513.41 | H178: 258854.65 | I178: 236941.54 | J178: 222476.86 | K178: 219299.12 | L178: 302923.36 | M178: 266827.03 | N178: 343605.43 | O178: 359886.87 | P178: 339600.03 | Q178: 358547.2 | R178: 255137.56 | S178: 3427613.06
B179: 665
B180: 666 | C180: 880 | D180: Other Expenses
B181: 667 | E181: Utah | G181: 923920.1 | H181: 796443.82 | I181: 652608.36 | J181: 532088.6 | K181: 686398.81 | L181: 876917.35 | M181: 647786.12 | N181: 829807.95 | O181: 957099.11 | P181: 961156.37 | Q181: 1136060.95 | R181: 980982.49 | S181: 9981270.03
B182: 668 | E182: Wyoming | G182: 100052.28 | H182: 79774.32 | I182: 54450.81 | J182: 43702.85 | K182: 49169.2 | L182: 61317.53 | M182: 59237.45 | N182: 92441.27 | O182: 107406.47 | P182: 99742.9 | Q182: 128970.17 | R182: 100322.26 | S182: 976587.51
A183: %,FACCOUNT,TQGCACCTS,N880 | B183: 669 | E183: Total | G183: 1023972.38 | H183: 876218.14 | I183: 707059.17 | J183: 575791.45 | K183: 735568.01 | L183: 938234.88 | M183: 707023.57 | N183: 922249.22 | O183: 1064505.58 | P183: 1060899.27 | Q183: 1265031.12 | R183: 1081304.75 | S183: 10957857.54
B184: 670
B185: 671 | C185: 881 | D185: Rents
B186: 672 | E186: Utah | G186: 6835.83 | H186: 1706.26 | I186: 1751.67 | J186: 1721.95 | K186: 1712.5 | L186: 1715.01 | M186: 1707.48 | N186: 1714.17 | O186: 1702.78 | P186: 1699.27 | Q186: 1671.98 | R186: 1706.58 | S186: 25645.48
B187: 673 | E187: Wyoming | G187: 235.47 | H187: 59.51 | I187: 61.09 | J187: 60.61 | K187: 60.46 | L187: 60.55 | M187: 59.91 | N187: 59.05 | O187: 59.2 | P187: 59.63 | Q187: 58.67 | R187: 59.88 | S187: 894.03
A188: %,FACCOUNT,TQGCACCTS,N881 | B188: 674 | E188: Total | G188: 7071.3 | H188: 1765.77 | I188: 1812.76 | J188: 1782.56 | K188: 1772.96 | L188: 1775.56 | M188: 1767.39 | N188: 1773.22 | O188: 1761.98 | P188: 1758.9 | Q188: 1730.65 | R188: 1766.46 | S188: 26539.51
B189: 675
B190: 676 | C190: 885 | D190: Maintenance Supervision & Engineering
B191: 677 | E191: Utah | G191: 45904.6 | H191: 37352.25 | I191: 65636.32 | J191: 38456.61 | K191: 49000.4 | L191: 44548.6 | M191: 56354.6 | N191: 40632.2 | O191: 75514.24 | P191: 44932.8 | Q191: 51352.64 | R191: 25238.81 | S191: 574924.07
B192: 678 | E192: Wyoming | G192: 1453.06 | H192: 1183.33 | I192: 2167.44 | J192: 1203.28 | K192: 1607.85 | L192: 1451.95 | M192: 1853.6 | N192: 1309.52 | O192: 2433.58 | P192: 1520.5 | Q192: 1690.87 | R192: 838.94 | S192: 18713.92
A193: %,FACCOUNT,TQGCACCTS,N885 | B193: 679 | E193: Total | G193: 47357.66 | H193: 38535.58 | I193: 67803.76 | J193: 39659.89 | K193: 50608.25 | L193: 46000.55 | M193: 58208.2 | N193: 41941.72 | O193: 77947.82 | P193: 46453.3 | Q193: 53043.51 | R193: 26077.75 | S193: 593637.99
B194: 680
B195: 681 | C195: 886 | D195: Maintenance of Structures & Improvements
B196: 682 | E196: Utah | G196: 6026.09 | H196: 5125.55 | I196: 6340.27 | J196: 5902.57 | K196: 6401.57 | L196: 6192.95 | M196: 6298.87 | N196: 9155.42 | O196: 8945.4 | P196: 5539.94 | Q196: 6469.33 | R196: 6476.16 | S196: 78874.12
B197: 683 | E197: Wyoming | G197: 207.58 | H197: 178.76 | I197: 221.13 | J197: 207.75 | K197: 226 | L197: 218.63 | M197: 221.02 | N197: 315.39 | O197: 311.02 | P197: 194.4 | Q197: 227.01 | R197: 227.25 | S197: 2755.94
A198: %,FACCOUNT,TQGCACCTS,N886 | B198: 684 | E198: Total | G198: 6233.67 | H198: 5304.31 | I198: 6561.4 | J198: 6110.32 | K198: 6627.57 | L198: 6411.58 | M198: 6519.89 | N198: 9470.81 | O198: 9256.42 | P198: 5734.34 | Q198: 6696.34 | R198: 6703.41 | S198: 81630.06
B199: 685
B200: 686 | C200: 887 | D200: Maintenance of Mains
B201: 687 | E201: Utah | G201: 741084.99 | H201: 715214.76 | I201: 761675.59 | J201: 703055.76 | K201: 705768.36 | L201: 757877.46 | M201: 716964.07 | N201: 752666.95 | O201: 761613.93 | P201: 852914.66 | Q201: 815590.57 | R201: 750240.84 | S201: 9034667.94
B202: 688 | E202: Wyoming | G202: 16120.82 | H202: 10902.2 | I202: 16002.67 | J202: 7440.33 | K202: 5132.71 | L202: 11284.19 | M202: 13959.49 | N202: 15210.28 | O202: 7643.91 | P202: 19108.54 | Q202: 17950.85 | R202: 22316.93 | S202: 163072.92
A203: %,FACCOUNT,TQGCACCTS,N887 | B203: 689 | E203: Total | G203: 757205.81 | H203: 726116.96 | I203: 777678.26 | J203: 710496.09 | K203: 710901.07 | L203: 769161.65 | M203: 730923.56 | N203: 767877.23 | O203: 769257.84 | P203: 872023.2 | Q203: 833541.42 | R203: 772557.77 | S203: 9197740.86
B204: 690
B205: 691 | C205: 888 | D205: Maint of Compressor Station Equipment
B206: 692 | E206: Utah | G206: 197129.9 | H206: 174955.2 | I206: 210188.51 | J206: 144820.65 | K206: 274842.59 | L206: 120506.8 | M206: 204111.96 | N206: 168802.29 | O206: -277804.82 | P206: 177912.05 | Q206: 127707.56 | R206: 149938.12 | S206: 1673110.81
... 843 more rows

Sheet Rate Base
A1: %,LACTUALS
C2: Company: | F2: Company:
C3: Period Ended: | F3: Period Ended:
C4: Date,Time, Stamp: | F4: Date,Time, Stamp:
U5: Historical
U6: 13-Month Avg
U7: Period Ended
G8: =+H8-30 -> 2014-02-19 | H8: 2014-03-21 | I8: 2014-04-20 | J8: 2014-05-20 | K8: 2014-06-19 | L8: 2014-07-19 | M8: 2014-08-18 | N8: 2014-09-17 | O8: 2014-10-17 | P8: 2014-11-16 | Q8: 2014-12-16 | R8: 2015-01-15 | S8: 2015-02-14 | T8: 2015-03-16 | U8: 2015-03-31
C10: UTILITY RATE BASE
D11: NET UTILITY PLANT
D13: Intangible Plant
C14: 101 | D14: Gas Plant In Service
E15: Intangible Plant
B16: 1 | D16: 302 | E16: Franchises & Consents
B17: =+B16+1 -> 2 | E17: Distribution - Wyoming | H17: 10883.08 | I17: 10883.08 | J17: 10883.08 | K17: 10883.08 | L17: 10883.08 | M17: 10883.08 | N17: 10883.08 | O17: 10883.08 | P17: 10883.08 | Q17: 10883.08 | R17: 10883.08 | S17: 10883.08 | T17: 10883.08 | U17: 10883.08
B18: 3 | E18: Distribution - Utah | H18: 58742.88 | I18: 58742.88 | J18: 58742.88 | K18: 58742.88 | L18: 58742.88 | M18: 58742.88 | N18: 58742.88 | O18: 58742.88 | P18: 58742.88 | Q18: 58742.88 | R18: 58742.88 | S18: 58742.88 | T18: 58742.88 | U18: 58742.88
B19: 4
A20: ="%,FACCOUNT,TQGCACCTS,N"&(D16) -> %,FACCOUNT,TQGCACCTS,N302 | B20: 5 | E20: Total Intangible Plant | H20: 69625.96 | I20: 69625.96 | J20: 69625.96 | K20: 69625.96 | L20: 69625.96 | M20: 69625.96 | N20: 69625.96 | O20: 69625.96 | P20: 69625.96 | Q20: 69625.96 | R20: 69625.96 | S20: 69625.96 | T20: 69625.96 | U20: 69625.96
B21: 6
B22: 7 | E22: Production & Gathering Plant
A23: ="%,FACCOUNT,TQGCACCTS,N"&(D23) -> %,FACCOUNT,TQGCACCTS,N325 | B23: 8 | D23: 325 | E23: Land & Land Rights | H23: 6266900.69 | I23: 6266900.69 | J23: 6266900.69 | K23: 6266900.69 | L23: 6266900.69 | M23: 6266900.69 | N23: 6266900.69 | O23: 6266900.69 | P23: 6266900.69 | Q23: 6266900.69 | R23: 6266900.69 | S23: 6266900.69 | T23: 6266900.69 | U23: 6266900.69
A24: %,FACCOUNT,TQGCACCTS,N326,N327,N328,N329 | B24: 9 | D24: 326...9 | E24: Structures | H24: 1443936.84 | I24: 1443936.84 | J24: 1443936.84 | K24: 1437567.99 | L24: 1437567.99 | M24: 1437567.99 | N24: 1437567.99 | O24: 1437567.99 | P24: 1437567.99 | Q24: 1437567.99 | R24: 1437567.99 | S24: 1437567.99 | T24: 1437567.99 | U24: 1438894.834
A25: ="%,FACCOUNT,TQGCACCTS,N"&(D25) -> %,FACCOUNT,TQGCACCTS,N330 | B25: 10 | D25: 330 | E25: Gas Wells - Construction | H25: 52986090.91 | I25: 52986090.91 | J25: 52986090.91 | K25: 52175293.81 | L25: 52175293.81 | M25: 52175293.81 | N25: 52175293.81 | O25: 52175293.81 | P25: 52175293.81 | Q25: 52175293.81 | R25: 52175293.81 | S25: 52175293.81 | T25: 52175293.81 | U25: 52344209.87
A26: ="%,FACCOUNT,TQGCACCTS,N"&(D26) -> %,FACCOUNT,TQGCACCTS,N331 | B26: 11 | D26: 331 | E26: Gas Wells - Equipment | H26: 17432452.88 | I26: 17432452.88 | J26: 17432452.88 | K26: 17216356.88 | L26: 17216356.88 | M26: 17216356.88 | N26: 17216356.88 | O26: 17216356.88 | P26: 17216356.88 | Q26: 17216356.88 | R26: 17216356.88 | S26: 17216356.88 | T26: 17216356.88 | U26: 17261376.88
A27: %,FACCOUNT,TQGCACCTS,N332,N333,N334 | B27: 12 | D27: 332...4 | E27: Field Lines & Comp, Meas & Reg St Eqpt | H27: 2872306.78 | I27: 2872306.78 | J27: 2872306.78 | K27: 2693816.12 | L27: 2693816.12 | M27: 2693816.12 | N27: 2693816.12 | O27: 2693816.12 | P27: 2693816.12 | Q27: 2693816.12 | R27: 2693816.12 | S27: 2693816.12 | T27: 2693816.12 | U27: 2731001.674
A28: ="%,FACCOUNT,TQGCACCTS,N"&(D28) -> %,FACCOUNT,TQGCACCTS,N336 | B28: 13 | D28: 336 | E28: Purification Equipment | H28: 57014.71 | I28: 57014.71 | J28: 57014.71 | K28: 57014.71 | L28: 57014.71 | M28: 57014.71 | N28: 57014.71 | O28: 57014.71 | P28: 57014.71 | Q28: 57014.71 | R28: 57014.71 | S28: 57014.71 | T28: 57014.71 | U28: 57014.71
A29: ="%,FACCOUNT,TQGCACCTS,N"&(D29) -> %,FACCOUNT,TQGCACCTS,N337 | B29: 14 | D29: 337 | E29: Other Equipment | H29: 121186.63 | I29: 121186.63 | J29: 121186.63 | K29: 121186.63 | L29: 121186.63 | M29: 121186.63 | N29: 121186.63 | O29: 121186.63 | P29: 121186.63 | Q29: 121186.63 | R29: 121186.63 | S29: 121186.63 | T29: 121186.63 | U29: 121186.63
B30: 15
B31: 16 | E31: Total Production & Gathering Plant | H31: 81179889.44 | I31: 81179889.44 | J31: 81179889.44 | K31: 79968136.83 | L31: 79968136.83 | M31: 79968136.83 | N31: 79968136.83 | O31: 79968136.83 | P31: 79968136.83 | Q31: 79968136.83 | R31: 79968136.83 | S31: 79968136.83 | T31: 79968136.83 | U31: 80220585.29
B32: 17
B33: 18 | E33: Distribution Plant
B34: 19 | D34: 374 | E34: Land & Land Rights
B35: 20 | F35: Wyoming | H35: 361364.44 | I35: 361364.44 | J35: 361364.44 | K35: 361364.44 | L35: 361364.44 | M35: 361364.44 | N35: 361364.44 | O35: 361364.44 | P35: 381894.39 | Q35: 381894.39 | R35: 381894.39 | S35: 381894.39 | T35: 400188.28 | U35: 369825.4167
A36: ="%,FACCOUNT,TQGCACCTS,N"&(D34) -> %,FACCOUNT,TQGCACCTS,N374 | B36: 21 | F36: Utah | H36: 13822319.81 | I36: 13701155.42 | J36: 13701268.66 | K36: 13714884.27 | L36: 14388070 | M36: 14576087.81 | N36: 15057646.82 | O36: 15057646.82 | P36: 15564264.28 | Q36: 16452627.14 | R36: 16453519.21 | S36: 16453519.21 | T36: 16770722.2 | U36: 15034767.55
B37: 22 | F37: Total | H37: 14183684.25 | I37: 14062519.86 | J37: 14062633.1 | K37: 14076248.71 | L37: 14749434.44 | M37: 14937452.25 | N37: 15419011.26 | O37: 15419011.26 | P37: 15946158.67 | Q37: 16834521.53 | R37: 16835413.6 | S37: 16835413.6 | T37: 17170910.48 | U37: 15404592.97
B38: 23
B39: 24 | D39: 375 | E39: Structures & Improvements
B40: 25 | F40: Wyoming | H40: 721780.23 | I40: 721780.23 | J40: 721780.23 | K40: 721780.23 | L40: 721780.23 | M40: 717226.15 | N40: 717226.15 | O40: 717226.15 | P40: 717226.15 | Q40: 717226.15 | R40: 717226.15 | S40: 871199.46 | T40: 866096.88 | U40: 737967.9863
A41: ="%,FACCOUNT,TQGCACCTS,N"&(D39) -> %,FACCOUNT,TQGCACCTS,N375 | B41: 26 | F41: Utah | H41: 10424265.45 | I41: 10613284.26 | J41: 11180671.69 | K41: 11660031.16 | L41: 11712193.54 | M41: 11712952.97 | N41: 11715155.21 | O41: 11748425.27 | P41: 11817112.62 | Q41: 11933293.41 | R41: 11989968.78 | S41: 14733261.66 | T41: 14850891.31 | U41: 11954494.08
B42: 27 | F42: Total | H42: 11146045.68 | I42: 11335064.49 | J42: 11902451.92 | K42: 12381811.39 | L42: 12433973.77 | M42: 12430179.12 | N42: 12432381.36 | O42: 12465651.42 | P42: 12534338.77 | Q42: 12650519.56 | R42: 12707194.93 | S42: 15604461.12 | T42: 15716988.19 | U42: 12692462.07
B43: 28
B44: 29 | D44: 376 | E44: Mains
B45: 30 | F45: Dist - Wy - Mains - SD
B46: 31 | F46: Dist - Wy - Mains - LD
B47: 32 | F47: Dist - Wy - Mains - Feeders
B48: 33 | F48: Wyoming | H48: 32634970.48 | I48: 32475313.01 | J48: 32519791.55 | K48: 33270608.65 | L48: 33080212.1 | M48: 33041505.96 | N48: 33590552.92 | O48: 33591506.12 | P48: 33858502.07 | Q48: 34121858.45 | R48: 34128475 | S48: 34234962.28 | T48: 34518784.01 | U48: 33457513.78
B49: 34 | F49: Dist - Ut - Mains - SD
B50: 35 | F50: Dist - Ut - Mains - LD
B51: 36 | F51: Dist - Ut - Mains - Feeders
A52: ="%,FACCOUNT,TQGCACCTS,N"&(D44) -> %,FACCOUNT,TQGCACCTS,N376 | B52: 37 | F52: Utah | H52: 1091106215 | I52: 1093340596 | J52: 1097467945 | K52: 1106805124 | L52: 1107192093 | M52: 1108599961 | N52: 1131855852 | O52: 1163061684 | P52: 1169234827 | Q52: 1178719177 | R52: 1179529359 | S52: 1185206633 | T52: 1198670518 | U52: 1138825135
B53: 38 | F53: Total | H53: 1123741186 | I53: 1125815909 | J53: 1129987736 | K53: 1140075732 | L53: 1140272305 | M53: 1141641467 | N53: 1165446405 | O53: 1196653191 | P53: 1203093329 | Q53: 1212841035 | R53: 1213657834 | S53: 1219441596 | T53: 1233189302 | U53: 1172282649
B54: 39
B55: 40 | D55: 377 | E55: Compressor Station Equipment
B56: 41 | F56: Wyoming | H56: 0 | I56: 0 | J56: 0 | K56: 0 | L56: 0 | M56: 0 | N56: 0 | O56: 0 | P56: 0 | Q56: 0 | R56: 0 | S56: 0 | T56: 0 | U56: 0
A57: ="%,FACCOUNT,TQGCACCTS,N"&(D55) -> %,FACCOUNT,TQGCACCTS,N377 | B57: 42 | F57: Utah | H57: 17745410.74 | I57: 17712351.64 | J57: 17898265.07 | K57: 17742002.32 | L57: 17742002.32 | M57: 17742228.7 | N57: 17742228.7 | O57: 17742228.7 | P57: 17742228.7 | Q57: 18154668.64 | R57: 18154668.64 | S57: 18154668.64 | T57: 18154668.64 | U57: 17873131.81
B58: 43 | F58: Total | H58: 17745410.74 | I58: 17712351.64 | J58: 17898265.07 | K58: 17742002.32 | L58: 17742002.32 | M58: 17742228.7 | N58: 17742228.7 | O58: 17742228.7 | P58: 17742228.7 | Q58: 18154668.64 | R58: 18154668.64 | S58: 18154668.64 | T58: 18154668.64 | U58: 17873131.81
B59: 44
B60: 45 | D60: 378 | E60: Measuring & Regulation Station Equip
B61: 46 | F61: Wyoming | H61: 5229532.83 | I61: 5229532.83 | J61: 5229532.83 | K61: 5329343.01 | L61: 5334339.69 | M61: 5315594.5 | N61: 5354943.39 | O61: 5354408.39 | P61: 6194071.52 | Q61: 6275909.74 | R61: 6488955.88 | S61: 6451531.52 | T61: 6420397.35 | U61: 5698594.032
A62: ="%,FACCOUNT,TQGCACCTS,N"&(D60) -> %,FACCOUNT,TQGCACCTS,N378 | B62: 47 | F62: Utah | H62: 70715627.58 | I62: 70850665.35 | J62: 73655387.73 | K62: 74940570 | L62: 75054943.28 | M62: 75380820.51 | N62: 75396209.55 | O62: 75526253.42 | P62: 76217550.6 | Q62: 76788067.05 | R62: 76890036.68 | S62: 77003120.66 | T62: 78178648.13 | U62: 75179230.22
B63: 48 | F63: Total | H63: 75945160.41 | I63: 76080198.18 | J63: 78884920.56 | K63: 80269913.01 | L63: 80389282.97 | M63: 80696415.01 | N63: 80751152.94 | O63: 80880661.81 | P63: 82411622.12 | Q63: 83063976.79 | R63: 83378992.56 | S63: 83454652.18 | T63: 84599045.48 | U63: 80877824.26
B64: 49
B65: 50 | D65: 380 | E65: Services
B66: 51 | F66: Wyoming | H66: 16037533.31 | I66: 16113189.52 | J66: 16165681.43 | K66: 16240875.56 | L66: 16320576.25 | M66: 16365247.61 | N66: 16393742.73 | O66: 16435995.38 | P66: 16698714.26 | Q66: 16772047.64 | R66: 16722941.59 | S66: 16779702.21 | T66: 16960115.71 | U66: 16458961.56
A67: ="%,FACCOUNT,TQGCACCTS,N"&(D65) -> %,FACCOUNT,TQGCACCTS,N380 | B67: 52 | F67: Utah | H67: 324057092.9 | I67: 324952022.3 | J67: 326379208.1 | K67: 327440763.5 | L67: 328245780.1 | M67: 328632238.1 | N67: 329260526.5 | O67: 330185592.2 | P67: 329665476.4 | Q67: 333057164 | R67: 332877469.2 | S67: 335121064.4 | T67: 340030226.8 | U67: 329821747.1
B68: 53 | F68: Total | H68: 340094626.2 | I68: 341065211.8 | J68: 342544889.6 | K68: 343681639.1 | L68: 344566356.3 | M68: 344997485.7 | N68: 345654269.3 | O68: 346621587.6 | P68: 346364190.7 | Q68: 349829211.7 | R68: 349600410.8 | S68: 351900766.6 | T68: 356990342.5 | U68: 346280708.6
B69: 54
B70: 55 | D70: 381...2 | E70: Meters & Meter Installation
B71: 56 | F71: Wyoming | H71: 8448181.574 | I71: 8446102.244 | J71: 8445360.154 | K71: 8548706.494 | L71: 8535838.064 | M71: 8534583.804 | N71: 8649358.034 | O71: 8666784.594 | P71: 8678974.554 | Q71: 8688637.394 | R71: 8735216.524 | S71: 8770831.524 | T71: 8798058.224 | U71: 8610292.774
A72: %,FACCOUNT,TQGCACCTS,N381,N382 | B72: 57 | F72: Utah | H72: 267672350.6 | I72: 267611554.6 | J72: 267576719.3 | K72: 271105230 | L72: 270931419.7 | M72: 270807793.1 | N72: 274096181.4 | O72: 272774669.4 | P72: 273024925.6 | Q72: 273408946.6 | R72: 274458101.9 | S72: 276554253.5 | T72: 278399086.2 | U72: 272115459.5
B73: 58 | F73: Total | H73: 276120532.2 | I73: 276057656.9 | J73: 276022079.5 | K73: 279653936.5 | L73: 279467257.8 | M73: 279342376.9 | N73: 282745539.4 | O73: 281441454 | P73: 281703900.2 | Q73: 282097584 | R73: 283193318.4 | S73: 285325085 | T73: 287197144.4 | U73: 280725752.2
B74: 59
B75: 60 | D75: 383...4 | E75: House Regulators & Reg Installations
B76: 61 | F76: Wyoming | H76: 900429.84 | I76: 896557 | J76: 914729.58 | K76: 914729.58 | L76: 914729.58 | M76: 914729.58 | N76: 914729.58 | O76: 914729.58 | P76: 647686.5 | Q76: 904120.82 | R76: 903671.56 | S76: 899916.04 | T76: 899150.9 | U76: 886676.6475
A77: %,FACCOUNT,TQGCACCTS,N383,N384 | B77: 62 | F77: Utah | H77: 14078914.27 | I77: 14083036.34 | J77: 14069377.45 | K77: 14020519.54 | L77: 14020519.54 | M77: 14020519.54 | N77: 13993509.2 | O77: 13985312.92 | P77: 14180494.6 | Q77: 13894040.07 | R77: 13869699.99 | S77: 13869587.53 | T77: 13835819.39 | U77: 13996998.63
B78: 63 | F78: Total | H78: 14979344.11 | I78: 14979593.34 | J78: 14984107.03 | K78: 14935249.12 | L78: 14935249.12 | M78: 14935249.12 | N78: 14908238.78 | O78: 14900042.5 | P78: 14828181.1 | Q78: 14798160.89 | R78: 14773371.55 | S78: 14769503.57 | T78: 14734970.29 | U78: 14883675.28
B79: 64
B80: 65 | D80: 387 | E80: Other Equipment
B81: =+B80+1 -> 66 | F81: Wyoming | H81: 48746.01 | I81: 52618.85 | J81: 52618.85 | K81: 52618.85 | L81: 52618.85 | M81: 52618.85 | N81: 52618.85 | O81: 56482.77 | P81: 52618.85 | Q81: 52618.85 | R81: 52618.85 | S81: 52618.85 | T81: 7220 | U81: 50887.85625
A82: ="%,FACCOUNT,TQGCACCTS,N"&(D80) -> %,FACCOUNT,TQGCACCTS,N387 | B82: 67 | F82: Utah | H82: 1517090.11 | I82: 1513217.27 | J82: 1531223 | K82: 1531223 | L82: 906448.28 | M82: 700967.14 | N82: 700967.14 | O82: 779169.25 | P82: 815969.38 | Q82: 991700.26 | R82: 994458.45 | S82: 994458.45 | T82: 1227602.97 | U82: 1069345.68
B83: 68 | F83: Total | H83: 1565836.12 | I83: 1565836.12 | J83: 1583841.85 | K83: 1583841.85 | L83: 959067.13 | M83: 753585.99 | N83: 753585.99 | O83: 835652.02 | P83: 868588.23 | Q83: 1044319.11 | R83: 1047077.3 | S83: 1047077.3 | T83: 1234822.97 | U83: 1120233.536
B84: =+B83+1 -> 69
B85: =+B84+1 -> 70 | D85: 388 | E85: Other Equipment
B86: =+B85+1 -> 71 | F86: Wyoming | H86: 7220 | I86: 7220 | J86: 7220 | K86: 7220 | L86: 7220 | M86: 7220 | N86: 7220 | O86: 7220 | P86: 7220 | Q86: 7220 | R86: 7220 | S86: 7220 | T86: 11584.02 | U86: 7401.834167
A87: ="%,FACCOUNT,TQGCACCTS,N"&(D85) -> %,FACCOUNT,TQGCACCTS,N388 | B87: =+B86+1 -> 72 | F87: Utah | H87: 319038 | I87: 319038 | J87: 319038 | K87: 319038 | L87: 319038 | M87: 319038 | N87: 319038 | O87: 319038 | P87: 319038 | Q87: 319038 | R87: 319038 | S87: 305101.6 | T87: 300737.58 | U87: 317114.1158
B88: =+B87+1 -> 73 | F88: Total | H88: 326258 | I88: 326258 | J88: 326258 | K88: 326258 | L88: 326258 | M88: 326258 | N88: 326258 | O88: 326258 | P88: 326258 | Q88: 326258 | R88: 326258 | S88: 312321.6 | T88: 312321.6 | U88: 324515.95
B89: =+B83+1 -> 69
B90: 70 | E90: Total Distribution Plant | H90: 1875848083 | I90: 1879000599 | J90: 1888197183 | K90: 1904726632 | L90: 1905841187 | M90: 1907802698 | N90: 1936179071 | O90: 1967285738 | P90: 1975818796 | Q90: 1991640255 | R90: 1993674540 | S90: 2006845545 | T90: 2029300517 | U90: 1942465545
B91: 71
B92: 72 | C92: General Plant
B93: 73 | D93: 389 | E93: Land & Land Rights
B94: 74 | F94: Distribution - Wyoming | H94: 11584.02 | I94: 11584.02 | J94: 11584.02 | K94: 11584.02 | L94: 11584.02 | M94: 11584.02 | N94: 11584.02 | O94: 11584.02 | P94: 11584.02 | Q94: 11584.02 | R94: 11584.02 | S94: 11584.02 | T94: 11584.02 | U94: 11584.02
A95: ="%,FACCOUNT,TQGCACCTS,N"&(D93) -> %,FACCOUNT,TQGCACCTS,N389 | B95: 75 | F95: Distribution - Utah | H95: 2707795.83 | I95: 2707795.83 | J95: 2707795.83 | K95: 2703949.33 | L95: 2707795.83 | M95: 2707795.83 | N95: 2707795.83 | O95: 2707795.83 | P95: 2707795.83 | Q95: 2707795.83 | R95: 2707795.83 | S95: 2707795.83 | T95: 2707795.83 | U95: 2707475.288
B96: 76 | F96: Total | H96: 2719379.85 | I96: 2719379.85 | J96: 2719379.85 | K96: 2715533.35 | L96: 2719379.85 | M96: 2719379.85 | N96: 2719379.85 | O96: 2719379.85 | P96: 2719379.85 | Q96: 2719379.85 | R96: 2719379.85 | S96: 2719379.85 | T96: 2719379.85 | U96: 2719059.308
B97: 77
B98: 78 | D98: 390 | E98: Structures & Improvements
B99: 79 | F99: Distribution - Wyoming | H99: 179167.56 | I99: 111749.71 | J99: 111749.71 | K99: 111749.71 | L99: 111749.71 | M99: 111749.71 | N99: 111749.71 | O99: 111749.71 | P99: 111749.71 | Q99: 120846.7 | R99: 120846.7 | S99: 120846.7 | T99: 142988.51 | U99: 118134.6512
A100: ="%,FACCOUNT,TQGCACCTS,N"&(D98) -> %,FACCOUNT,TQGCACCTS,N390 | B100: 80 | F100: Distribution - Utah | H100: 22234215.81 | I100: 22187487.81 | J100: 22201964.65 | K100: 21955443.8 | L100: 21955443.8 | M100: 21955970.75 | N100: 21960398.74 | O100: 21974813.48 | P100: 22021155.44 | Q100: 22063883.04 | R100: 22063883.04 | S100: 22077663.79 | T100: 22228818.09 | U100: 22054135.44
B101: 81 | F101: General | H101: 46174639.3 | I101: 46158753.78 | J101: 46162400.78 | K101: 46168575.52 | L101: 46168575.52 | M101: 46169039.52 | N101: 46169039.52 | O101: 46169039.52 | P101: 46172755.38 | Q101: 46213378.45 | R101: 46213378.45 | S101: 46213378.45 | T101: 46427958.53 | U101: 46189967.82
B102: 82 | F102: Total | H102: 68588022.67 | I102: 68457991.3 | J102: 68476115.14 | K102: 68235769.03 | L102: 68235769.03 | M102: 68236759.98 | N102: 68241187.97 | O102: 68255602.71 | P102: 68305660.53 | Q102: 68398108.19 | R102: 68398108.19 | S102: 68411888.94 | T102: 68799765.13 | U102: 68362237.91
B103: 83
B104: 84 | D104: 391 | E104: Office Furniture & Equipment
B105: 85 | F105: Distribution - Wyoming | H105: 276913.08 | I105: 278470.01 | J105: 280871.01 | K105: 283272.01 | L105: 283272.01 | M105: 283272.01 | N105: 283272.01 | O105: 283272.01 | P105: 283272.01 | Q105: 283272.01 | R105: 170254.98 | S105: 283272.01 | T105: 207014.46 | U105: 269811.3208
A106: ="%,FACCOUNT,TQGCACCTS,N"&(D104) -> %,FACCOUNT,TQGCACCTS,N391 | B106: 86 | F106: Distribution - Utah | H106: 13910555.65 | I106: 13952069.97 | J106: 15958063.38 | K106: 16008844.39 | L106: 16067529.74 | M106: 16093616.42 | N106: 15375719.03 | O106: 15408548.1 | P106: 15442308.61 | Q106: 15584975.47 | R106: 15697992.5 | S106: 15587146.11 | T106: 13059346.36 | U106: 15388480.39
B107: 87 | F107: General | H107: 44951845.03 | I107: 45961486.69 | J107: 46237434.51 | K107: 45871376.65 | L107: 45874301.14 | M107: 45877079.56 | N107: 45873456.48 | O107: 45927316.79 | P107: 46988364.44 | Q107: 47798062.23 | R107: 47969805.63 | S107: 47969805.63 | T107: 48020097.33 | U107: 46569538.41
B108: 88 | F108: Total | H108: 59139313.76 | I108: 60192026.67 | J108: 62476368.9 | K108: 62163493.05 | L108: 62225102.89 | M108: 62253967.99 | N108: 61532447.52 | O108: 61619136.9 | P108: 62713945.06 | Q108: 63666309.71 | R108: 63838053.11 | S108: 63840223.75 | T108: 61286458.15 | U108: 62227830.13
B109: 89
B110: 90 | D110: 392 | E110: Transportation Equipment
B111: 91 | F111: Distribution - Wyoming | H111: 1648729.47 | I111: 1648729.47 | J111: 1631659.35 | K111: 1631659.35 | L111: 1729375.27 | M111: 1998763.81 | N111: 2035375.15 | O111: 2035375.15 | P111: 2168792.07 | Q111: 2168792.07 | R111: 2280449.68 | S111: 2167432.65 | T111: 2167432.65 | U111: 1950373.757
A112: ="%,FACCOUNT,TQGCACCTS,N"&(D110) -> %,FACCOUNT,TQGCACCTS,N392 | B112: 92 | F112: Distribution - Utah | H112: 41243150.36 | I112: 41360584.03 | J112: 40643582.35 | K112: 40591130.13 | L112: 40725720.29 | M112: 41128133.28 | N112: 41722813.26 | O112: 41753243.97 | P112: 42562297.85 | Q112: 43694185.34 | R112: 43360729.14 | S112: 43563343.76 | T112: 43544494.33 | U112: 41958298.81
B113: 93 | F113: General | H113: 0 | I113: 0 | J113: 0 | K113: 0 | L113: 0 | M113: 0 | N113: 0 | O113: 0 | P113: 0 | Q113: 0 | R113: 0 | S113: 0 | T113: 0 | U113: 0
B114: 94 | F114: Total | H114: 42891879.83 | I114: 43009313.5 | J114: 42275241.7 | K114: 42222789.48 | L114: 42455095.56 | M114: 43126897.09 | N114: 43758188.41 | O114: 43788619.12 | P114: 44731089.92 | Q114: 45862977.41 | R114: 45641178.82 | S114: 45730776.41 | T114: 45711926.98 | U114: 43908672.57
B115: 95
B116: 96 | D116: 393 | E116: Stores Equipment
B117: 97 | F117: Distribution - Wyoming | H117: 12371.89 | I117: 12371.89 | J117: 12371.89 | K117: 12371.89 | L117: 12371.89 | M117: 12371.89 | N117: 12371.89 | O117: 12371.89 | P117: 12371.89 | Q117: 12371.89 | R117: 12371.89 | S117: 12371.89 | T117: 12371.89 | U117: 12371.89
A118: ="%,FACCOUNT,TQGCACCTS,N"&(D116) -> %,FACCOUNT,TQGCACCTS,N393 | B118: 98 | F118: Distribution - Utah | H118: 45026.02 | I118: 45026.02 | J118: 45026.02 | K118: 45026.02 | L118: 45026.02 | M118: 45026.02 | N118: 45026.02 | O118: 45026.02 | P118: 45026.02 | Q118: 45026.02 | R118: 45026.02 | S118: 45026.02 | T118: 45026.02 | U118: 45026.02
B119: 99 | F119: Total | H119: 57397.91 | I119: 57397.91 | J119: 57397.91 | K119: 57397.91 | L119: 57397.91 | M119: 57397.91 | N119: 57397.91 | O119: 57397.91 | P119: 57397.91 | Q119: 57397.91 | R119: 57397.91 | S119: 57397.91 | T119: 57397.91 | U119: 57397.91
B120: 100
B121: 101 | D121: 394 | E121: Tools, Shop & Garage Equipment
B122: 102 | F122: Distribution - Wyoming | H122: 1874367.71 | I122: 2111789.47 | J122: 2069722.72 | K122: 2071217.57 | L122: 2082758.46 | M122: 2088814.68 | N122: 2097310.91 | O122: 2107965.41 | P122: 2107965.41 | Q122: 2109997.47 | R122: 2109997.47 | S122: 2136065.44 | T122: 2168041.2 | U122: 2092900.789
A123: ="%,FACCOUNT,TQGCACCTS,N"&(D121) -> %,FACCOUNT,TQGCACCTS,N394 | B123: 103 | F123: Distribution - Utah | H123: 23153472.59 | I123: 24607241.03 | J123: 24632098.06 | K123: 24562259.51 | L123: 24748129.26 | M123: 25026510.77 | N123: 24930664.77 | O123: 24970584.86 | P123: 25022950.34 | Q123: 25233681.27 | R123: 26063720.79 | S123: 26187058.4 | T123: 26287419.01 | U123: 25058778.74
B124: 104 | F124: General | H124: 0 | I124: 0 | J124: 0 | K124: 0 | L124: 0 | M124: 0 | N124: 0 | O124: 0 | P124: 0 | Q124: 0 | R124: 0 | S124: 0 | T124: 0 | U124: 0
B125: 105 | F125: Total | H125: 25027840.3 | I125: 26719030.5 | J125: 26701820.78 | K125: 26633477.08 | L125: 26830887.72 | M125: 27115325.45 | N125: 27027975.68 | O125: 27078550.27 | P125: 27130915.75 | Q125: 27343678.74 | R125: 28173718.26 | S125: 28323123.84 | T125: 28455460.21 | U125: 27151679.53
B126: 106
B127: 107 | D127: 395 | E127: Laboratory Equipment
B128: 108 | F128: Distribution - Wyoming | H128: 0 | I128: 0 | J128: 0 | K128: 0 | L128: 0 | M128: 0 | N128: 0 | O128: 0 | P128: 0 | Q128: 0 | R128: 0 | S128: 0 | T128: 0 | U128: 0
A129: ="%,FACCOUNT,TQGCACCTS,N"&(D127) -> %,FACCOUNT,TQGCACCTS,N395 | B129: 109 | F129: Distribution - Utah | H129: 76245.36 | I129: 76245.36 | J129: 76245.36 | K129: 76245.36 | L129: 76245.36 | M129: 76245.36 | N129: 76245.36 | O129: 76245.36 | P129: 76245.36 | Q129: 76245.36 | R129: 76245.36 | S129: 76245.36 | T129: 76245.36 | U129: 76245.36
B130: 110 | F130: General | H130: 0 | I130: 0 | J130: 0 | K130: 0 | L130: 0 | M130: 0 | N130: 0 | O130: 0 | P130: 0 | Q130: 0 | R130: 0 | S130: 0 | T130: 0 | U130: 0
B131: 111 | F131: Total | H131: 76245.36 | I131: 76245.36 | J131: 76245.36 | K131: 76245.36 | L131: 76245.36 | M131: 76245.36 | N131: 76245.36 | O131: 76245.36 | P131: 76245.36 | Q131: 76245.36 | R131: 76245.36 | S131: 76245.36 | T131: 76245.36 | U131: 76245.36
B132: 112
B133: 113 | D133: 396 | E133: Power Operated Equipment
B134: 114 | F134: Distribution - Wyoming | H134: 695559.31 | I134: 695559.31 | J134: 695559.31 | K134: 695559.31 | L134: 695559.31 | M134: 695559.31 | N134: 695559.31 | O134: 695559.31 | P134: 695559.31 | Q134: 695559.31 | R134: 695559.31 | S134: 695559.31 | T134: 695559.31 | U134: 695559.31
A135: ="%,FACCOUNT,TQGCACCTS,N"&(D133) -> %,FACCOUNT,TQGCACCTS,N396 | B135: 115 | F135: Distribution - Utah | H135: 9860222.17 | I135: 9873381.19 | J135: 10119565.46 | K135: 10418828.5 | L135: 10108382 | M135: 10095643.35 | N135: 10095643.35 | O135: 10095993.35 | P135: 10723219.85 | Q135: 10734078.66 | R135: 10734078.66 | S135: 10734078.66 | T135: 10740010.23 | U135: 10336084.1
B136: 116 | F136: General | H136: 0 | I136: 0 | J136: 0 | K136: 0 | L136: 0 | M136: 0 | N136: 0 | O136: 0 | P136: 0 | Q136: 0 | R136: 0 | S136: 0 | T136: 0 | U136: 0
B137: 117 | F137: Total | H137: 10555781.48 | I137: 10568940.5 | J137: 10815124.77 | K137: 11114387.81 | L137: 10803941.31 | M137: 10791202.66 | N137: 10791202.66 | O137: 10791552.66 | P137: 11418779.16 | Q137: 11429637.97 | R137: 11429637.97 | S137: 11429637.97 | T137: 11435569.54 | U137: 11031643.41
B138: 118
B139: 119 | D139: 397 | E139: Communication Equipment
B140: 120 | F140: Distribution - Wyoming | H140: 73309.11 | I140: 73309.11 | J140: 73309.11 | K140: 73309.11 | L140: 73309.11 | M140: 73309.11 | N140: 73309.11 | O140: 73309.11 | P140: 73309.11 | Q140: 73309.11 | R140: 73309.11 | S140: 73309.11 | T140: 49809.31 | U140: 72329.95167
A141: ="%,FACCOUNT,TQGCACCTS,N"&(D139) -> %,FACCOUNT,TQGCACCTS,N397 | B141: 121 | F141: Distribution - Utah | H141: 3788202.29 | I141: 3788202.29 | J141: 3892379.45 | K141: 4247958.07 | L141: 4874158.36 | M141: 5090656.64 | N141: 5184652.19 | O141: 5185613.75 | P141: 5186105.58 | Q141: 5254778.85 | R141: 5254778.85 | S141: 5254778.85 | T141: 5254778.85 | U141: 4811296.121
B142: 122 | F142: Total | H142: 3861511.4 | I142: 3861511.4 | J142: 3965688.56 | K142: 4321267.18 | L142: 4947467.47 | M142: 5163965.75 | N142: 5257961.3 | O142: 5258922.86 | P142: 5259414.69 | Q142: 5328087.96 | R142: 5328087.96 | S142: 5328087.96 | T142: 5304588.16 | U142: 4883626.073
B143: 123
B144: 124 | D144: 398 | E144: Miscellaneous Equipment
B145: =+B144+1 -> 125 | F145: Distribution - Wyoming | H145: 3863.92 | I145: 3863.92 | J145: 3863.92 | K145: 3863.92 | L145: 3863.92 | M145: 3863.92 | N145: 3863.92 | O145: 0 | P145: 3863.92 | Q145: 3863.92 | R145: 3863.92 | S145: 3863.92 | T145: 3863.92 | U145: 3541.926667
A146: ="%,FACCOUNT,TQGCACCTS,N"&(D144) -> %,FACCOUNT,TQGCACCTS,N398 | B146: 126 | F146: Distribution - Utah | H146: 242323.33 | I146: 246621.86 | J146: 246621.86 | K146: 246621.86 | L146: 246621.86 | M146: 246621.86 | N146: 246621.86 | O146: 250485.78 | P146: 264561.53 | Q146: 265117.63 | R146: 265117.63 | S146: 265117.63 | T146: 267617.63 | U146: 253758.4867
B147: 127 | F147: General | H147: 0 | I147: 0 | J147: 0 | K147: 0 | L147: 0 | M147: 0 | N147: 0 | O147: 0 | P147: 0 | Q147: 0 | R147: 0 | S147: 0 | T147: 0 | U147: 0
B148: 128 | F148: Total | H148: 246187.25 | I148: 250485.78 | J148: 250485.78 | K148: 250485.78 | L148: 250485.78 | M148: 250485.78 | N148: 250485.78 | O148: 250485.78 | P148: 268425.45 | Q148: 268981.55 | R148: 268981.55 | S148: 268981.55 | T148: 271481.55 | U148: 257300.4133
B149: 129
B150: 130 | D150: 399 | E150: Communication Equipment
B151: =+B150+1 -> 131 | F151: Distribution - Wyoming | H151: 0 | I151: 0 | J151: 0 | K151: 0 | L151: 0 | M151: 0 | N151: 0 | O151: 0 | P151: 0 | Q151: 0 | R151: 0 | S151: 0 | T151: 0 | U151: 0
A152: ="%,FACCOUNT,TQGCACCTS,N"&(D150) -> %,FACCOUNT,TQGCACCTS,N399 | B152: =+B151+1 -> 132 | F152: Distribution - Utah | H152: 52300 | I152: 52300 | J152: 52300 | K152: 52300 | L152: 52300 | M152: 52300 | N152: 52300 | O152: 52300 | P152: 52300 | Q152: 52300 | R152: 52300 | S152: 52300 | T152: 52300 | U152: 52300
B153: =+B152+1 -> 133 | F153: Total | H153: 52300 | I153: 52300 | J153: 52300 | K153: 52300 | L153: 52300 | M153: 52300 | N153: 52300 | O153: 52300 | P153: 52300 | Q153: 52300 | R153: 52300 | S153: 52300 | T153: 52300 | U153: 52300
B154: =+B148+1 -> 129
B155: 130 | E155: Total General Plant | H155: 213215859.8 | I155: 215964622.8 | J155: 217866168.8 | K155: 217843146 | L155: 218654072.9 | M155: 219843927.8 | N155: 219764772.4 | O155: 219948193.4 | P155: 222733553.7 | Q155: 225203104.7 | R155: 225983089 | S155: 226238043.5 | T155: 224170572.8 | U155: 220727992.6
B156: 131
B157: 132 | C157: 101 | D157: Gas Plant in Service
B158: 133 | E158: Production | H158: 81179889.44 | I158: 81179889.44 | J158: 81179889.44 | K158: 79968136.83 | L158: 79968136.83 | M158: 79968136.83 | N158: 79968136.83 | O158: 79968136.83 | P158: 79968136.83 | Q158: 79968136.83 | R158: 79968136.83 | S158: 79968136.83 | T158: 79968136.83 | U158: 80220585.29
B159: 134 | E159: Distribution - Wyoming | H159: 64400641.79 | I159: 64314561.2 | J159: 64428962.14 | K159: 65458129.89 | L159: 65339562.28 | M159: 65320973.97 | N159: 66052639.17 | O159: 66116600.5 | P159: 67247791.37 | Q159: 67932416.51 | R159: 68149103.02 | S159: 68460759.35 | T159: 68892478.45 | U159: 66289004.96
B160: 135 | E160: Distribution - Utah | H160: 1811517068 | I160: 1814755664 | J160: 1823837847 | K160: 1839338128 | L160: 1840571251 | M160: 1842551350 | N160: 1870196058 | O160: 1901238763 | P160: 1908640630 | Q160: 1923777465 | R160: 1925595063 | S160: 1938454412 | T160: 1960477665 | U160: 1876246166
B161: 136 | E161: General | H161: 213215859.8 | I161: 215964622.8 | J161: 217866168.8 | K161: 217843146 | L161: 218654072.9 | M161: 219843927.8 | N161: 219764772.4 | O161: 219948193.4 | P161: 222733553.7 | Q161: 225203104.7 | R161: 225983089 | S161: 226238043.5 | T161: 224170572.8 | U161: 220727992.6
B162: 137 | E162: Total | H162: 2170313459 | I162: 2176214737 | J162: 2187312867 | K162: 2202607541 | L162: 2204533023 | M162: 2207684388 | N162: 2235981606 | O162: 2267271694 | P162: 2278590112 | Q162: 2296881123 | R162: 2299695392 | S162: 2313121352 | T162: 2333508853 | U162: 2243483749
B163: 138
B164: 139 | C164: 105 | D164: Gas Plant Held for Future Use
B165: 140 | E165: Distribution - Utah | H165: 5036.83 | I165: 5036.83 | J165: 5036.83 | K165: 5036.83 | L165: 5036.83 | M165: 5036.83 | N165: 5036.83 | O165: 5036.83 | P165: 5036.83 | Q165: 5036.83 | R165: 5036.83 | S165: 5036.83 | T165: 5036.83 | U165: 5036.83
A166: %,FACCOUNT,TQGCACCTS,N105 | B166: 141 | E166: Total | H166: 5036.83 | I166: 5036.83 | J166: 5036.83 | K166: 5036.83 | L166: 5036.83 | M166: 5036.83 | N166: 5036.83 | O166: 5036.83 | P166: 5036.83 | Q166: 5036.83 | R166: 5036.83 | S166: 5036.83 | T166: 5036.83 | U166: 5036.83
B167: 142
B168: 143 | C168: 106 | D168: Completed Construction Not Classified - Gas
B169: 144 | E169: Production | H169: 0 | I169: 0 | J169: 0 | K169: 0 | L169: 0 | M169: 0 | N169: 0 | O169: 0 | P169: 0 | Q169: 0 | R169: 0 | S169: 0 | T169: 0 | U169: 0
B170: 145 | E170: Distribution - Wyoming | H170: 0 | I170: -60702.54 | J170: 17007.53 | K170: 176023.47 | L170: 727697.83 | M170: 936734.75 | N170: 612911.41 | O170: 717114.37 | P170: 471167.12 | Q170: 856031.42 | R170: 572535.89 | S170: 676781.89 | T170: 289153.15 | U170: 487323.3096
B171: 146 | E171: Distribution - Utah | H171: 39379731.47 | I171: 10980637.12 | J171: 8178112.92 | K171: 2956146.93 | L171: 6621971.27 | M171: 6552554.19 | N171: 3589531.54 | O171: 8717793.74 | P171: 10080220.33 | Q171: 11425022.55 | R171: 10040972.04 | S171: 10918710.18 | T171: 12845961.18 | U171: 9681209.928
B172: 147 | E172: General | H172: 9836452.77 | I172: 2410489.91 | J172: 410067.95 | K172: 123926.41 | L172: 56308.06 | M172: 498002.79 | N172: 1833520.23 | O172: 2049390.4 | P172: 662094.31 | Q172: 537703.08 | R172: 884000.03 | S172: 859857.44 | T172: 811247.84 | U172: 1304100.91
B173: 148 | E173: Total | H173: 49216184.24 | I173: 13330424.49 | J173: 8605188.4 | K173: 3256096.81 | L173: 7405977.16 | M173: 7987291.73 | N173: 6035963.18 | O173: 11484298.51 | P173: 11213481.76 | Q173: 12818757.05 | R173: 11497507.96 | S173: 12455349.51 | T173: 13946362.17 | U173: 11472634.15
B174: 149
B175: 150 | C175: 108 | D175: Accum Prov for Depreciation of Gas Plant in Service
B176: 151 | E176: Production | H176: -68129649.47 | I176: -68224081.55 | J176: -68304512.95 | K176: -67171390.31 | L176: -67270278.51 | M176: -67313568.07 | N176: -67341847.47 | O176: -67370368.33 | P176: -67417957.61 | Q176: -67503017.46 | R176: -67590733.85 | S176: -67644222.63 | T176: -67710115.81 | U176: -67589321.78
B177: 152 | E177: Distribution - Wyoming | H177: -24984200.1 | I177: -25130872.3 | J177: -25277803.42 | K177: -25466096.44 | L177: -25610221.65 | M177: -25754337.31 | N177: -25899869.45 | O177: -26045556.85 | P177: -25546039.79 | Q177: -25589774.88 | R177: -25733361.7 | S177: -25806711.9 | T177: -25821750.13 | U177: -25605301.73
B178: 153 | E178: Distribution - Utah | H178: -546403513.8 | I178: -548216266.6 | J178: -550738960.1 | K178: -534715841 | L178: -537333079.5 | M178: -539740116.7 | N178: -541534169.1 | O178: -543764303.1 | P178: -546909546.5 | Q178: -549129921 | R178: -551531433.8 | S178: -553795236.3 | T178: -560148916.6 | U178: -545890424.1
B179: 154 | E179: General | H179: -107613007 | I179: -108582049.9 | J179: -109208667.5 | K179: -126814794.6 | L179: -127441864.8 | M179: -128335775.1 | N179: -128517505.2 | O179: -129387867.8 | P179: -130171341.4 | Q179: -130905115.7 | R179: -131581541.3 | S179: -132558919.6 | T179: -130642175.3 | U179: -125219419.5
B180: 155 | E180: Total | H180: -747130370.4 | I180: -750153270.3 | J180: -753529943.9 | K180: -754168122.4 | L180: -757655444.5 | M180: -761143797.2 | N180: -763293391.2 | O180: -766568096.1 | P180: -770044885.2 | Q180: -773127829 | R180: -776437070.6 | S180: -779805090.4 | T180: -784322957.8 | U180: -764304467.1
B181: 156
B182: 157 | C182: 111 | D182: Accum Prov for Amortization of Gas Plant in Service
B183: 158 | E183: Production | H183: -6080432.19 | I183: -6082750.98 | J183: -6084703.26 | K183: -6086682.23 | L183: -6089142.24 | M183: -6090167.45 | N183: -6090799.73 | O183: -6091526.41 | P183: -6092752.27 | Q183: -6094959.03 | R183: -6097235.33 | S183: -6098547.69 | T183: -6100221.03 | U183: -6090799.436
B184: 159 | E184: Distribution - Wyoming | H184: -300 | I184: -300 | J184: -300 | K184: -10883.08 | L184: -10883.08 | M184: -10883.08 | N184: -10883.08 | O184: -10883.08 | P184: -10883.08 | Q184: -10883.08 | R184: -10883.08 | S184: -10883.08 | T184: -10883.08 | U184: -8678.271667
B185: 160 | E185: Distribution - Utah | H185: -69325.97 | I185: -69325.97 | J185: -69325.97 | K185: -58742.89 | L185: -58742.89 | M185: -58742.89 | N185: -58742.89 | O185: -58742.89 | P185: -58742.88 | Q185: -58742.89 | R185: -58742.89 | S185: -58742.89 | T185: -58742.89 | U185: -60947.6975
B186: 161 | E186: General | H186: 0 | I186: 0 | J186: 0 | K186: 0 | L186: 0 | M186: 0 | N186: 0 | O186: 0 | P186: 0 | Q186: 0 | R186: 0 | S186: 0 | T186: 0 | U186: 0
B187: 162 | E187: Total | H187: -6150058.16 | I187: -6152376.95 | J187: -6154329.23 | K187: -6156308.2 | L187: -6158768.21 | M187: -6159793.42 | N187: -6160425.7 | O187: -6161152.38 | P187: -6162378.23 | Q187: -6164585 | R187: -6166861.3 | S187: -6168173.66 | T187: -6169847 | U187: -6160425.405
B188: 163
B189: 164 | C189: 254 | D189: Other Regulatory Liabilities - ARC
B190: 165 | E190: Production | H190: 0 | I190: 0 | J190: 0 | K190: 0 | L190: 0 | M190: 0 | N190: 0 | O190: 0 | P190: 0 | Q190: 0 | R190: 0 | S190: 0 | T190: 0 | U190: 0
B191: 166 | E191: Distribution - Wyoming | H191: 0 | I191: 0 | J191: 0 | K191: 0 | L191: 0 | M191: 0 | N191: 0 | O191: -1873094.13 | P191: -1915245.14 | Q191: -1939747.24 | R191: -1969165.41 | S191: -1992446.19 | T191: -2012121.13 | U191: -891313.2229
B192: 167 | E192: Distribution - Utah | H192: 0 | I192: 0 | J192: 0 | K192: 0 | L192: 0 | M192: 0 | N192: 0 | O192: -57566301.87 | P192: -58099649.86 | Q192: -58750167.76 | R192: -59536256.59 | S192: -60317643.81 | T192: -61138251.87 | U192: -27069928.82
B193: 168 | E193: General | H193: -54496865 | I193: -55301061 | J193: -56058895 | K193: -56754824 | L193: -57507091 | M193: -58028227 | N193: -58875037 | O193: 0 | P193: 0 | Q193: 0 | R193: 0 | S193: 0 | T193: 0 | U193: -30814463.96
B194: 169 | E194: Total | H194: -54496865 | I194: -55301061 | J194: -56058895 | K194: -56754824 | L194: -57507091 | M194: -58028227 | N194: -58875037 | O194: -59439396 | P194: -60014895 | Q194: -60689915 | R194: -61505422 | S194: -62310090 | T194: -63150373 | U194: -58775706
B195: 170
B196: 171
B197: 172 | C197: System Net Utility Plant
B198: 173 | E198: Production | H198: 6969807.78 | I198: 6873056.91 | J198: 6790673.23 | K198: 6710064.29 | L198: 6608716.08 | M198: 6564401.31 | N198: 6535489.63 | O198: 6506242.09 | P198: 6457426.95 | Q198: 6370160.34 | R198: 6280167.65 | S198: 6225366.51 | T198: 6157799.99 | U198: 6540464.073
B199: 174 | E199: Distribution - Wyoming | H199: 39416141.69 | I199: 39122686.36 | J199: 39167866.25 | K199: 40157173.84 | L199: 40446155.38 | M199: 40492488.33 | N199: 40754798.05 | O199: 38904180.81 | P199: 40246790.48 | Q199: 41248042.73 | R199: 41008228.72 | S199: 41327500.07 | T199: 41336877.26 | U199: 41162348.27
B200: 175 | E200: Distribution - Utah | H200: 1304423959 | I200: 1277450708 | J200: 1281207673 | K200: 1307519691 | L200: 1309801399 | M200: 1309305044 | N200: 1332192677 | O200: 1308567209 | P200: 1313652911 | Q200: 1327263656 | R200: 1324509602 | S200: 1335201499 | T200: 1351977714 | U200: 1339981041
B201: 176 | E201: General | H201: 60942440.62 | I201: 54492001.82 | J201: 53008674.2 | K201: 34397453.8 | L201: 33761425.15 | M201: 33977928.52 | N201: 34205750.5 | O201: 92609716.03 | P201: 93224306.62 | Q201: 94835692.06 | R201: 95285547.72 | S201: 94538981.42 | T201: 94339645.37 | U201: 96812674.03
B202: 177 | E202: Total
... 92 more rows

Sheet RevRun Fcst
D3: TEMPERATURE ADJUSTED INPUT DATA FROM REVRUN SYSTEM
D4: 3/23/2015
T7: 12-Month
B8: Rate Class | D8: Description | H8: Jun15 | I8: Jul15 | J8: Aug15 | K8: Sep15 | L8: Oct15 | M8: Nov15 | N8: Dec15 | O8: Jan16 | P8: Feb16 | Q8: Mar16 | R8: Apr16 | S8: May16 | T8: Total
B10: UTILITY OPERATING REVENUE
B11: TARIFF DTH SALES AND REVENUE
A13: 13 | B13: Utah | H13: =MONTH(H8) -> 6 | I13: =MONTH(I8) -> 7 | J13: 8 | K13: 9 | L13: 10 | M13: 11 | N13: =MONTH(N8) -> 12 | O13: 1 | P13: 2 | Q13: 3 | R13: 4 | S13: 5
A14: 14 | C14: GS | D14: Distribution Non-Gas Rev | H14: 11337126.32 | I14: 10472421.4 | J14: 10422527.15 | K14: 12073332.94 | L14: 16485924.43 | M14: 31233850.87 | N14: 43077024.16 | O14: 48628640.68 | P14: 40734117.1 | Q14: 31506424.27 | R14: 19730546.88 | S14: 13715603.45 | T14: 289417539.6
A15: 15
A16: 16 | D16: Supplier Non-Gas Revenue | H16: 1271285.59 | I16: 1014796.51 | J16: 995469.11 | K16: 1493081.25 | L16: 2819029.05 | M16: 10995566.68 | N16: 16495680.64 | O16: 19096321.89 | P16: 15370300.02 | Q16: 11074193.04 | R16: 3764666.29 | S16: 1939793.81 | T16: 86330183.88 | V16: =S16/S21 -> 0.4654400003
A17: 17
A18: 18 | D18: Commodity Revenue | H18: 13784315.03 | I18: 11003251.17 | J18: 10793687.78 | K18: 16189204.4 | L18: 30566211.62 | M18: 55976422.05 | N18: 83976497.81 | O18: 97215887.48 | P18: 78247390.61 | Q18: 56376694.43 | R18: 40819581.66 | S18: 21032826.19 | T18: 515981970.2
A19: 19 | D19: Total Revenue | H19: 26392726.94 | I19: 22490469.08 | J19: 22211684.04 | K19: 29755618.59 | L19: 49871165.1 | M19: 98205839.6 | N19: 143549202.6 | O19: 164940850.1 | P19: 134351807.7 | Q19: 98957311.74 | R19: 64314794.83 | S19: 36688223.45 | T19: 891729693.8
A20: 20 | D20: # of Customers | H20: 949973 | I20: 948137 | J20: 950038 | K20: 950074 | L20: 953630 | M20: 957689 | N20: 961344 | O20: 966622 | P20: 968323 | Q20: 970895 | R20: 971095 | S20: 971708 | T20: 959960.6667
A21: 21 | D21: Total Dth | H21: 2731363 | I21: 2180295 | J21: 2138770 | K21: 3207892 | L21: 6056697 | M21: 11091732 | N21: 16639949 | O21: 19263335 | P21: 15504726 | Q21: 11171046 | R21: 8088403 | S21: 4167656 | T21: 102241864
A22: 22
A23: 23 | C23: GS-C | D23: Distribution Non-Gas Rev | T23: 0
A24: 24
A25: 25 | D25: Supplier Non-Gas Revenue | T25: 0
A26: 26
A27: 27 | D27: Commodity Revenue | T27: 0
A28: 28 | D28: Total Revenue | T28: 0
A29: 29 | D29: # of Customers
A30: 30 | D30: Total Dth | T30: 0
A31: 31
A32: 32 | C32: GSS | D32: Distribution Non-Gas Rev | H32: 0 | I32: 0 | J32: 0 | K32: 0 | L32: 0 | M32: 0 | N32: 0 | O32: 0 | P32: 0 | Q32: 0 | R32: 0 | S32: 0 | T32: 0
A33: 33 | H33: 0 | I33: 0 | J33: 0 | K33: 0 | L33: 0 | M33: 0 | N33: 0 | O33: 0 | P33: 0 | Q33: 0 | R33: 0 | S33: 0
